{"text_format":"1","workbook":"xlsx","n_sheets":2,"sheets":["Kuntakortti","Luvut"],"not_rendered":{"charts":0,"images":0,"macros":1,"external_links":0,"defined_names":1,"comments":0,"pivot_tables":0},"unopened":[],"bounds":{"document_bytes":16777216,"sheet_cells":100000,"rows_first":2000,"rows_last":500,"rows_between":2000,"halvings":0,"cell_chars":16384,"cell_head_chars":4096},"cells_cut":0,"cells_raw":0,"read":"whole","date_system":"1900"}

{"sheet":"Kuntakortti","index":0,"n_rows":76,"n_cols":14,"rows_kept":76,"cut":false,"hidden":false,"merged":[[10,29,10,30]]}
["Valtiovarainministeriö/Kunta- ja aluehallinto-osasto,25.2.2015",null,"Valitse KY "]
["KUNTAYHTYMIEN TALOUSARVIOT 2014-2015 JA TALOUSSUUNNITELMAT 2016-2017",null,"valikosta:"]
[null,null,null,null,null,null," "]
[{"$f":"INDEX(Luvut!$A$3:'Luvut'!$A$305,$A$7)","v":" Kuntayhtymät yhteensä"},null,2014,null,null,2015,null,null,2016,null,null,2017]
[]
[null,null,null,null,null,null," ",null,null," "]
[1,null," "]
[]
[]
[]
[]
[]
[]
[]
[]
[]
[]
[]
[]
[null,null,1000,null,null,1000,null,"muut.%",1000,null,"muut.%",1000,null,"muut.%"]
[]
["Henkilöstömenot (palkat+sivukulut)",null,{"$f":"VLOOKUP($A$4,Luvut!$A$3:$AX$305,14,FALSE)","v":6381220},null,null,{"$f":"VLOOKUP($A$4,Luvut!$A$3:$EF$305,59,FALSE)","v":8151460},null,{"$f":"((F22/C22)-1)*100","v":27.741403681427677},{"$f":"VLOOKUP($A$4,Luvut!$A$3:$EF$305,104,FALSE)","v":5963664},null,{"$f":"((I22/F22)-1)*100","v":-26.839314674917137},{"$f":"VLOOKUP($A$4,Luvut!$A$3:$HR$305,149,FALSE)","v":5931729},null,{"$f":"((L22/I22)-1)*100","v":-0.53549294527659441}]
["Palvelujen ostot",null,{"$f":"VLOOKUP($A$4,Luvut!$A$3:$FZ$305,181,FALSE)","v":3536311},null,null,{"$f":"VLOOKUP($A$4,Luvut!$A$3:$FZ$305,182,FALSE)","v":4422669},null,{"$f":"((F23/C23)-1)*100","v":25.06448103687713},{"$f":"VLOOKUP($A$4,Luvut!$A$3:$GA$305,183,FALSE)","v":5555329},null,{"$f":"((I23/F23)-1)*100","v":25.610327157650726},{"$f":"VLOOKUP($A$4,Luvut!$A$3:$HR$305,184,FALSE)","v":4690769},null,{"$f":"((L23/I23)-1)*100","v":-15.562714647503329}]
["Toimintatuotot, sis. valmistus omaan käyt.",null,{"$f":"VLOOKUP($A$4,Luvut!$A$3:$AT$305,15,FALSE)","v":12993238},null,null,{"$f":"VLOOKUP($A$4,Luvut!$A$3:$EF$305,60,FALSE)","v":15934045},null,22.633365139621088,{"$f":"VLOOKUP($A$4,Luvut!$A$3:$EF$305,105,FALSE)","v":13065817},null,-18.000626959444389,{"$f":"VLOOKUP($A$4,Luvut!$A$3:$HR$305,150,FALSE)","v":13127376},null,0.47114543239048512]
["Toimintakulut",null,{"$f":"VLOOKUP($A$4,Luvut!$A$3:$AT$305,16,FALSE)","v":12108644},null,null,{"$f":"VLOOKUP($A$4,Luvut!$A$3:$EF$305,61,FALSE)","v":15066892},null,24.430877644102832,{"$f":"VLOOKUP($A$4,Luvut!$A$3:$EF$305,106,FALSE)","v":12011072},null,-20.28168782254496,{"$f":"VLOOKUP($A$4,Luvut!$A$3:$HR$305,151,FALSE)","v":12151937},null,1.1727929030814321]
["Toimintakate",null,{"$f":"VLOOKUP($A$4,Luvut!$A$3:$AT$305,17,FALSE)","v":884594},null,null,{"$f":"VLOOKUP($A$4,Luvut!$A$3:$EF$305,62,FALSE)","v":867153},null,-1.9716389665767609,{"$f":"VLOOKUP($A$4,Luvut!$A$3:$EF$305,107,FALSE)","v":1054745},null,21.633091276856554,{"$f":"VLOOKUP($A$4,Luvut!$A$3:$HR$305,152,FALSE)","v":975439},null,-7.5189737803924128]
[null,null," ",null,null," ",null,null," ",null,null," "]
[]
[]
[]
[]
[]
[]
[]
[]
["Vuosikate",null,{"$f":"VLOOKUP($A$4,Luvut!$A$3:$AT$305,24,FALSE)","v":531520},null,null,{"$f":"VLOOKUP($A$4,Luvut!$A$3:$EF$305,69,FALSE)","v":520927},null,null,{"$f":"VLOOKUP($A$4,Luvut!$A$3:$EF$305,114,FALSE)","v":546817},null,null,{"$f":"VLOOKUP($A$4,Luvut!$A$3:$HR$305,159,FALSE)","v":644403}]
[null,null," ",null,null," ",null,null," ",null,null," "]
["Suunnitelman mukaiset ",null,{"$f":"VLOOKUP($A$4,Luvut!$A$3:$AT$305,25,FALSE)","v":559845},null," ",{"$f":"VLOOKUP($A$4,Luvut!$A$3:$EF$305,70,FALSE)","v":568695},null,1.5807946842429699,{"$f":"VLOOKUP($A$4,Luvut!$A$3:$EF$305,115,FALSE)","v":590120},null,3.7673972867705796,{"$f":"VLOOKUP($A$4,Luvut!$A$3:$HR$305,160,FALSE)","v":605986},null,2.6886057073137737]
["poistot ja arvonalennukset"]
[]
[]
[null,null," ",null,null," ",null,null," "]
[]
[]
[]
[]
[]
[]
[]
[]
[]
["Investoinnit, netto",null,{"$f":"C53+C54+C55","v":-886379},null,null,{"$f":"F53+F54+F55","v":-950789},null,7.2666432756191224,{"$f":"I53+I54+I55","v":-857039},null,-9.8602318705832701,{"$f":"L53+L54+L55","v":-846926},null,{"$f":"((L52/I52)-1)*100","v":-1.1799929758155692}]
[" - Investointimenot",null,{"$f":"VLOOKUP($A$4,Luvut!$A$3:$HR$305,188,FALSE)","v":-920807},null,null,{"$f":"VLOOKUP($A$4,Luvut!$A$3:$HR$305,191,FALSE)","v":-972820},null,5.6486321237783743,{"$f":"VLOOKUP($A$4,Luvut!$A$3:$HR$305,194,FALSE)","v":-899109},null,-7.5770440574823734,{"$f":"VLOOKUP($A$4,Luvut!$A$3:$HR$305,197,FALSE)","v":-906749},null,0.84973012170939111]
[" + Rahoitusosuudet investointimenoihin",null,{"$f":"VLOOKUP($A$4,Luvut!$A$3:$HR$305,189,FALSE)","v":23491},null,null,{"$f":"VLOOKUP($A$4,Luvut!$A$3:$HR$305,192,FALSE)","v":18566},null,-20.965476139798223,{"$f":"VLOOKUP($A$4,Luvut!$A$3:$HR$305,195,FALSE)","v":39040},null,110.27685015619953,{"$f":"VLOOKUP($A$4,Luvut!$A$3:$HR$305,198,FALSE)","v":59193},null,51.621413934426229]
[" + Investointihyödykkeiden luovutustulot",null,{"$f":"VLOOKUP($A$4,Luvut!$A$3:$HR$305,190,FALSE)","v":10937},null,null,{"$f":"VLOOKUP($A$4,Luvut!$A$3:$HR$305,193,FALSE)","v":3465},null,{"$f":"((F55/C55)-1)*100","v":-68.318551705220813},{"$f":"VLOOKUP($A$4,Luvut!$A$3:$HR$305,196,FALSE)","v":3030},null,-12.554112554112551,{"$f":"VLOOKUP($A$4,Luvut!$A$3:$HR$305,199,FALSE)","v":630},null,-79.207920792079207]
[]
[]
[]
[]
[]
[]
[]
[]
[]
[]
[]
["Lainakanta",null,{"$f":"VLOOKUP($A$4,Luvut!$A$3:$HE$305,206,FALSE)","v":3113782},null,null,{"$f":"VLOOKUP($A$4,Luvut!$A$3:$HE$305,210,FALSE)","v":3329350},null,{"$f":"((F67/C67)-1)*100","v":6.923028009025689},{"$f":"VLOOKUP($A$4,Luvut!$A$3:$HO$305,214,FALSE)","v":3500671},null,{"$f":"((I67/F67)-1)*100","v":5.1457792061513574},{"$f":"VLOOKUP($A$4,Luvut!$A$3:$HO$305,218,FALSE)","v":3737032},null,{"$f":"((L67/I67)-1)*100","v":6.7518769972956694}]
[]
[]
[]
[]
[]
["Henkilöstön määrä",null,{"$f":"VLOOKUP($A$4,Luvut!$A$3:$HR$305,44,FALSE)","v":111747}," ",null,{"$f":"VLOOKUP($A$4,Luvut!$A$3:$HR$305,91,FALSE)","v":110593},null,null,{"$f":"VLOOKUP($A$4,Luvut!$A$3:$HR$305,134,FALSE)","v":105959},null,null,{"$f":"VLOOKUP($A$4,Luvut!$A$3:$HR$305,179,FALSE)","v":101995}]
[]
["HUOM: Malmin kiinteistöt, Pohjois-Karjalan maakuntaliitto, Kuntayhtymä Raision-Naantalin vesilaitos ja Kainuun Jätehuollon ky eivät lähettäneet TA- ja TP-tietoja"]
["Lähde: Kunnat ja kuntayhtymät"]

{"sheet":"Luvut","index":1,"n_rows":305,"n_cols":233,"rows_kept":305,"cut":false,"hidden":false,"merged":[]}
[1,2,"hakee muualta",92,93,94,"vanha",96,97,98,99,100,101,14,15,16,17,18,19,null,"summana",null,null,24,25,null,null,null,null,null,null,null,null,null,"kaavasta",null,null,null,null,null,null,null,43,44,"kaavasta",null,47,"hakee muualta",null,null,null,"vanha",null,null,null,null,null,null,59,60,61,62,63,64,null,"summana",null,null,69,70,null,null,null,null,null,null,null,null,null,null,null,null,null,null,null,null,null,88,"kaavasta",133,91,92,"hakee muualta",92,93,94,"vanha",96,97,98,99,100,101,104,105,106,107,108,109,null,"summana",null,null,114,115,null,null,null,null,null,null,null,null,null,"kaavasta",null,null,null,null,null,null,null,133,134,"kaavasta",133,137,null,null,140,null,null,null,null,null,null,null,null,149,150,151,152,153,154,null,null,null,null,159,169,null,null,null,null,null,null,null,null,null,null,null,null,null,null,null,null,null,178,179,null,181,182,183,184,null,null,null,188,189,190,191,192,193,194,195,196,197,198,199,2011,152,2012,154,2013,null,206,null,null,null,210,null,null,null,214,null,null,null,218]
["Kuntayhtymä","Asukasluku 2014","Lainat e/asukas","Lainanhoitokate","Suhteellinen velkaantuneisuus-%","Rahoitusvarallisuus, e/as","Vuosikate","Suunnitelman mukaiset poistot","Tilikauden tulos","Omavaraisuusaste, %","Rahavarat e/as","Kassan riittävyys, pv","Kassasta maksut, €/as","Henkilöstökulut 2014","Toimintatuotot","Toimintakulut","Toimintakate","Verotulot","Valtionosuudet","Alv-takaisinperintä","Käyttökate","Korkotuotot/-menot, netto","Muut rahoitustuotot/-menot, netto (sis Osinkotuotot)","Vuosikate","Sumu-poistot ja arvonalet","Satunnaiset tuotot","Satunnaiset kulut","Tilikauden tulos","Poistoeron lisäys(-) tai vähennys(+)","Varausten lisäys(-) tai vähennys(+)","Rahastojen lisäys(-) tai vähennys(+)","Tilikauden yli- tai alijäämä","Kumulat yli/alij","Tulorah (toiminnan rahavirta)","Investoinnit, netto","Saamisten muutos (ent Pitkäaikaisten saamisten muutokset, netto)","Pitkäaikaisten lainojen vähennys","Toim ja inv rahavirta","Verotulot","Kunnallisvero","Osuus yhteisöveron tuotosta","Kiinteistövero","Tuloveroprosentti","Henkilöstömäärä","Yhden veroprosentin tuotto 2006","Sijoitus vuosikatteen mukaan","Asukasluku 2015","Lainat e/asukas","Lainanhoitokate","Suhteellinen velkaantuneisuus-%","Rahoitusvarallisuus, e/as","Vuosikate","Suunnitelman mukaiset poistot","Tilikauden tulos","Omavaraisuusaste, %","Rahavarat e/as","Kassan riittävyys, pv","Kassasta maksut, €/as","Henkilöstökulut 2015","Toimintatuotot","Toimintakulut","Toimintakate","Verotulot","Valtionosuudet","Alv-takaisinperintä","Käyttökate","Korkotuotot/-menot, netto","Muut rahoitustuotot/-menot, netto (sis Osinkotuotot)","Vuosikate","Sumu-poistot ja arvonalet","Satu. tuotot","Satu. kulut","Tilikauden tulos","Poistoeron lisäys(-) tai vähennys(+)","Varausten lisäys(-) tai vähennys(+)","Rahastojen lisäys(-) tai vähennys(+)","Tilikauden yli- tai alijäämä","Kumulat yli/alij","Tulorah (toiminnan rahavirta)","Investoinnit, netto","Saamisten muutos (ent Pitkäaikaisten saamisten muutokset, netto)","Pitkäaikaisten lainojen vähennys","Toim ja inv rahavirta","Verotulot","Kunnallisvero","Osuus yhteisöveron tuotosta","Kiinteistövero","Tuloveroprosentti","Yhden veroprosentin tuotto 2006","Sijoitus vuosikatteen mukaan","Henkilöstömäärä","Asukasluku 2016","Lainat e/asukas","Lainanhoitokate","Suhteellinen velkaantuneisuus-%","Rahoitusvarallisuus, e/as","Vuosikate","Suunnitelman mukaiset poistot","Tilikauden tulos","Omavaraisuusaste, %","Rahavarat e/as","Kassan riittävyys, pv","Kassasta maksut, €/as","Henkilöstökulut 2016","Toimintatuotot","Toimintakulut","Toimintakate","Verotulot","Valtionosuudet","Alv-takaisinperintä","Käyttökate","Korkotuotot/-menot, netto","Muut rahoitustuotot/-menot, netto (sis Osinkotuotot)","Vuosikate","Sumu-poistot ja arvonalet","Satu. tuotot","Satu. kulut","Tilikauden tulos","Poistoeron lisäys(-) tai vähennys(+)","Varausten lisäys(-) tai vähennys(+)","Rahastojen lisäys(-) tai vähennys(+)","Tilikauden yli- tai alijäämä","Kumulat yli/alij","Tulorah (toiminnan rahavirta)","Investoinnit, netto","Saamisten muutos (ent Pitkäaikaisten saamisten muutokset, netto)","Pitkäaikaisten lainojen vähennys","Toim ja inv rahavirta","Verotulot","Kunnallisvero","Osuus yhteisöveron tuotosta","Kiinteistövero","Tuloveroprosentti","Henkilöstömäärä","Yhden veroprosentin tuotto 2006","Sijoitus vuosikatteen mukaan","Asukasluku 2017","Lainat e/asukas","Lainanhoitokate","Suhteellinen velkaantuneisuus-%","Rahoitusvarallisuus, e/as","Vuosikate","Suunnitelman mukaiset poistot","Tilikauden tulos","Omavaraisuusaste, %","Rahavarat e/as","Kassan riittävyys, pv","Kassasta maksut, €/as","Henkilöstökulut 2017","Toimintatuotot","Toimintakulut","Toimintakate","Verotulot","Valtionosuudet","Alv-takaisinperintä","Käyttökate","Korkotuotot/-menot, netto","Muut rahoitustuotot/-menot, netto (sis Osinkotuotot)","Vuosikate","Sumu-poistot ja arvonalet.","Satu. tuotot","Satu. kulut","Tilikauden tulos","Poistoeron lisäys(-) tai vähennys(+)","Varausten lisäys(-) tai vähennys(+)","Rahastojen lisäys(-) tai vähennys(+)","Tilikauden yli- tai alijäämä","Kumulat yli/alij","Tulorah (toiminnan rahavirta)","Investoinnit, netto","Saamisten muutos (ent Pitkäaikaisten saamisten muutokset, netto)","Pitkäaikaisten lainojen vähennys","Toim ja inv rahavirta","Verotulot","Kunnallisvero","Osuus yhteisöveron tuotosta","Kiinteistövero","Tuloveroprosentti","Henkilöstömäärä","Sijoitus vuosikatteen mukaan","Palvelujen ostot 2014","Palvelujen ostot 2015","Palvelujen ostot 2016","Palvelujen ostot 2017","Harkvar2011","Harkvar2012","Harkvar2013","Investointimenot 2014","Rahoitusos. inv.menoihin","Inv.hyödykk. luovutustulot","Investointimenot 2015"," Rahoitusos. inv.menoihin","Inv.hyödykkeiden luovutustulot","Investointimenot 2016","Rahoitusos. inv.menoihin","Inv.hyödykkeiden luovutustulot","Investointimenot 2017"," Rahoitusos. inv.menoihin"," Inv.hyödykkeiden luovutustulot","Pitkäaikaisten lainojen lisäys"," ± Lyhytaikaisten lainojen muutos","Pitkäaikaisten lainojen lisäys"," ± Lyhytaikaisten lainojen muutos","Pitkäaikaisten lainojen lisäys"," ± Lyhytaikaisten lainojen muutos","Lainakanta 2014","josta pitkäaik","josta lyhytaik","Lainasaamiset","Lainakanta 2015","josta pitkäaik","josta lyhytaik","Lainasaamiset","Lainakanta 2016","josta pitkäaik","josta lyhytaik","Lainasaamiset","Lainakanta 2017"]
[" Kuntayhtymät yhteensä",null,null,null,null,null,null,null,null,null,null,null,null,6381220,12993238,12108644,884594,0,0,0,0,0,0,531520,559845,0,0,0,0,0,0,0,0,0,0,0,0,0,0,0,0,0,0,111747,0,22934,0,0,-4273.063614194014,6464.6000000000022,-292074,0,0,0,7636.1999999999989,78461,3710,1071346.1154611099,8151460,15934045,15066892,867153,0,0,0,0,0,0,520927,568695,0,0,0,0,0,0,0,0,0,0,0,0,0,0,0,0,0,0,0,0,110593,0,0,0,0,0,0,0,0,0,0,0,0,5963664,13065817,12011072,1054745,0,0,0,0,0,0,546817,590120,0,0,0,0,0,0,0,0,0,0,0,0,0,0,0,0,0,0,105959,0,22124,0,0,0,0,0,0,0,0,0,0,0,0,5931729,13127376,12151937,975439,0,0,0,0,0,0,644403,605986,0,0,0,0,0,0,0,0,0,0,0,0,0,0,0,0,0,0,101995,0,3536311,4422669,5555329,4690769,29080,27790,29570,-920807,23491,10937,-972820,18566,3465,-899109,39040,3030,-906749,59193,630,0,0,0,0,0,0,3113782,0,0,0,3329350,0,0,0,3500671,0,0,0,3737032]
[" Helsingin ja Uudenmaan sairaanhoitopiirin ky.",17108,null,0.7588319379211762,44.9,-1980,null,null,null,43.5,212,12,6059.0954303434555,1112904,1878404,1757285,121119,null,null,null,null,null,null,106564,106564,null,null,null,null,null,null,null,null,null,null,null,null,null,null,null,null,null,null,21926,null,199,null,null,-0.41593369418132614,51.9,-2485,null,null,null,37.799999999999997,158,8,7406.1515116143346,1115410,1916211,1793040,123171,null,null,null,null,null,null,108527,110027,null,null,null,null,null,null,null,null,null,null,null,null,null,null,null,null,null,null,null,null,21911,null,null,null,null,null,null,null,null,null,null,null,null,1126564,1940562,1813240,127322,null,null,null,null,null,null,112162,112162,null,null,null,null,null,null,null,null,null,null,null,null,null,null,null,null,null,null,22020,null,205,null,null,null,null,null,null,null,null,null,null,null,null,1137830,1965819,1834550,131269,null,null,null,null,null,null,116109,116109,null,null,null,null,null,null,null,null,null,null,null,null,null,null,null,null,null,null,22130,null,269658,290336,290336,294647,null,null,1540,-165200,null,null,-166080,null,null,-111650,null,null,-114670,null,null,null,null,null,null,null,null,294648,null,null,null,284409,null,null,null,284171,null,null,null,283933,null,null,null,null,null,null,null,null,null,null,null,null,null,4670,{"$f":"HX4*-1","v":-4670}]
[" Etelä-Karjalan sosiaali- ja terveydenhuollon kuntayhtymä (EKSOTE)",10227,null,1.0397684369494085,29.1,-2055,null,null,null,47.2,316,11,10581.969594267453,211187,431483,413783,17700,null,null,null,null,null,null,16752,8465,null,null,null,null,null,null,null,null,null,null,null,null,null,null,null,null,null,null,3937,null,120,null,null,0.26483613817537643,33.5,-2443,null,null,null,42,321,11,10728.184651343981,214024,442114,424083,18031,null,null,null,null,null,null,17623,9251,null,null,null,null,null,null,null,null,null,null,null,null,null,null,null,null,null,null,null,null,3886,null,null,null,null,null,null,null,null,null,null,null,null,215629,448686,429477,19209,null,null,null,null,null,null,18720,10347,null,null,null,null,null,null,null,null,null,null,null,null,null,null,null,null,null,null,3858,null,268,null,null,null,null,null,null,null,null,null,null,null,null,217110,458062,435572,22490,null,null,null,null,null,null,20942,12387,null,null,null,null,null,null,null,null,null,null,null,null,null,null,null,null,null,null,3830,null,120554,123989,123989,130349,null,null,null,-14948,null,null,-36617,null,null,-27203,null,null,-14963,null,null,null,null,null,null,null,null,50358,null,null,null,52266,null,null,null,64608,null,null,null,56391,null,null,null,null,null,null,null,null,null,null,null,null,null,3040,-3040]
[" Kanta-Hämeen sairaanhoitopiirin ky.",2740,null,0.7041906327033689,56.7,-2821,null,null,null,37,403,22,8734.181818181818,103341,204294,195729,8565,null,null,null,null,null,null,7680,9780,null,null,null,null,null,null,null,null,null,null,null,null,null,null,null,null,null,null,1969,null,229,null,null,5.185979971387697E-2,59.4,-3134,null,null,null,34,147,7,7455.6320173850054,104135,211762,199319,12443,null,null,null,null,null,null,11774,10366,null,null,null,null,null,null,null,null,null,null,null,null,null,null,null,null,null,null,null,null,1899,null,null,null,null,null,null,null,null,null,null,null,null,null,219295,203200,16095,null,null,null,null,null,null,15375,10590,null,null,null,null,null,null,null,null,null,null,null,null,null,null,null,null,null,null,1899,null,176,null,null,null,null,null,null,null,null,null,null,null,null,null,227321,207147,20174,null,null,null,null,null,null,19454,10740,null,null,null,null,null,null,null,null,null,null,null,null,null,null,null,null,null,null,1899,null,58475,60963,60963,null,300,null,360,-13800,null,null,-14820,null,null,-10230,null,null,-12000,null,null,null,null,null,null,null,null,48431,null,null,null,48431,null,null,null,48431,null,null,null,48431,null,null,null,null,null,null,null,null,null,null,null,null,null,792,-792]
[" Länsi-Pohjan sairaanhoitopiirin ky.",12228,null,0.79253112033195017,42.6,-1469,null,null,null,54.9,1040,52,6691.1908115722181,52574,101150,98809,2341,null,null,null,null,null,null,3911,3911,null,null,null,null,null,null,null,null,null,null,null,null,null,null,null,null,null,null,775,null,182,null,null,0.55079365079365084,45.2,-1664,null,null,null,52.3,1116,54,7495.6078516429889,54405,103400,99474,3926,null,null,null,null,null,null,3780,3780,null,null,null,null,null,null,null,null,null,null,null,null,null,null,null,null,null,null,null,null,777,null,null,null,null,null,null,null,null,null,null,null,null,55494,105468,101464,4004,null,null,null,null,null,null,3855,3855,null,null,null,null,null,null,null,null,null,null,null,null,null,null,null,null,null,null,777,null,192,null,null,null,null,null,null,null,null,null,null,null,null,56603,107577,103493,4084,null,null,null,null,null,null,3932,3932,null,null,null,null,null,null,null,null,null,null,null,null,null,null,null,null,null,null,777,null,30142,30665,30665,31903,null,null,null,-3490,null,null,-3638,30,null,-4250,null,null,-3560,null,null,null,null,null,null,null,null,2000,null,null,null,1900,null,null,null,2300,null,null,null,1950,null,null,null,null,null,null,null,null,null,null,null,null,null,2706,-2706]
[" Keski-Suomen sairaanhoitopiirin ky.",8405,null,3.6733333333333333,47.2,-2410,null,null,null,52.1,38,2,6265.3565544834082,194294,358418,341137,17281,null,null,null,null,null,null,15346,15546,null,null,null,null,null,null,null,null,null,null,null,null,null,null,null,null,null,null,null,null,138,null,null,2.2929642445213378,50.3,-2756,null,null,null,49.3,35,2,6547.5712090769412,189548,356919,337554,19365,null,null,null,null,null,null,17456,16456,null,null,null,null,null,null,null,null,null,null,null,null,null,null,null,null,null,null,null,null,null,null,null,null,null,null,null,null,null,null,null,null,null,null,358598,337554,21044,null,null,null,null,null,null,18645,15645,null,null,null,null,null,null,null,null,null,null,null,null,null,null,null,null,null,null,null,null,159,null,null,null,null,null,null,null,null,null,null,null,null,null,358503,337554,20949,null,null,null,null,null,null,17438,14438,null,null,null,null,null,null,null,null,null,null,null,null,null,null,null,null,null,null,null,null,87878,89212,89212,null,null,null,null,-24702,3234,3014,-22595,4839,300,-53900,33355,1900,-72711,55273,null,null,null,null,null,null,null,73220,null,null,null,78059,null,null,null,111414,null,null,null,166687,null,null,null,null,null,null,null,null,null,null,null,null,null,380,-380]
[" Pohjois-Savon sairaanhoitopiirin ky.",4991,null,-0.82442748091603058,63.7,-2853,null,null,null,32.299999999999997,172,11,8208.9187538179594,248572,457837,440382,17455,null,null,null,null,null,null,14488,13302,null,null,null,null,null,null,null,null,null,null,null,null,null,null,null,null,null,null,"4707,2",null,314,null,null,0.94182124789207422,57.2,-2703,null,null,null,31.1,203,13,5570.9703287890934,242482,453559,428761,24798,null,null,null,null,null,null,20451,19510,null,null,null,null,null,null,null,null,null,null,null,null,null,null,null,null,null,null,null,null,"4562,8",null,null,null,null,null,null,null,null,null,null,null,null,242746,458423,430768,27655,null,null,null,null,null,null,23266,22069,null,null,null,null,null,null,null,null,null,null,null,null,null,null,null,null,null,null,"4562,8",null,169,null,null,null,null,null,null,null,null,null,null,null,null,243672,462651,433453,29198,null,null,null,null,null,null,24765,23569,null,null,null,null,null,null,null,null,null,null,null,null,null,null,null,null,null,null,"4562,8",null,107234,101253,101253,103150,null,650,null,-85450,185,null,-63043,null,null,-39950,null,null,-35000,null,null,null,null,null,null,null,null,141166,null,null,null,200166,null,null,null,222166,null,null,null,237666,null,null,null,null,null,null,null,null,null,null,null,null,null,699,-699]
[" Lapin sairaanhoitopiirin ky.",3962,null,0.44941634241245138,64.900000000000006,-2543,null,null,null,25.1,212,14,5500.3773584905666,95347,177852,169314,8538,null,null,null,null,null,null,7447,7770,null,null,null,null,null,null,null,null,null,null,null,null,null,null,null,null,null,null,1637,null,280,null,null,-1.1086309523809523,79.5,-3172,null,null,null,15,360,22,5883.4046839587008,98205,182313,174205,8108,null,null,null,null,null,null,7646,7969,null,null,null,null,null,null,null,null,null,null,null,null,null,null,null,null,null,null,null,null,1637,null,null,null,null,null,null,null,null,null,null,null,null,100660,186871,178560,8311,null,null,null,null,null,null,7826,8149,null,null,null,null,null,null,null,null,null,null,null,null,null,null,null,null,null,null,1637,null,201,null,null,null,null,null,null,null,null,null,null,null,null,102874,190982,182488,8494,null,null,null,null,null,null,7986,8309,null,null,null,null,null,null,null,null,null,null,null,null,null,null,null,null,null,null,1637,null,43947,46601,46601,48817,null,500,515,-7800,null,null,-9748,null,null,-19935,null,null,-13310,null,null,null,null,null,null,null,null,9229,null,null,null,9829,null,null,null,20429,null,null,null,23869,null,null,null,null,null,null,null,null,null,null,null,null,null,607,-607]
[" Etelä-Savon sairaanhoitopiirin ky.",1522,null,6.9365079365079367,10.5,1526,null,null,null,88.9,1999,100,7266.9220945083016,75923,156019,151395,4624,null,null,null,null,null,null,4224,4100,null,null,null,null,null,null,null,null,null,null,null,null,null,null,null,null,null,null,1375,null,141,null,null,null,11.3,1324,null,null,null,87.7,1985,97,7500.652741514361,80423,157806,152297,5509,null,null,null,null,null,null,5149,4300,null,null,null,null,null,null,null,null,null,null,null,null,null,null,null,null,null,null,null,null,1355,null,null,null,null,null,null,null,null,null,null,null,null,81227,159384,153365,6019,null,null,null,null,null,null,5655,5000,null,null,null,null,null,null,null,null,null,null,null,null,null,null,null,null,null,null,1340,null,39,null,null,null,null,null,null,null,null,null,null,null,null,82032,160963,154884,6079,null,null,null,null,null,null,5712,5000,null,null,null,null,null,null,null,null,null,null,null,null,null,null,null,null,null,null,1340,null,46383,43751,43751,44167,null,null,null,-5526,null,null,-5150,null,null,-5520,null,null,-5520,null,null,null,null,null,null,null,null,27769,null,null,null,25626,null,null,null,25283,null,null,null,24888,null,null,null,null,null,null,null,null,null,null,null,null,null,63,-63]
[" Satakunnan sairaanhoitopiirin ky.",1891,null,0.83942307692307694,35.4,-2424,null,null,null,52.5,102,4,9041.7326994189116,177525,325345,320512,4833,null,null,null,null,null,null,4336,7176,null,null,null,null,null,null,null,null,null,null,null,null,null,null,null,null,null,null,3670,null,83,null,null,0.61633428300094972,35,-2528,null,null,null,52.4,254,9,9775.5319148936178,180560,333675,326987,6688,null,null,null,null,null,null,5892,8859,null,null,null,null,null,null,null,null,null,null,null,null,null,null,null,null,null,null,null,null,3630,null,null,null,null,null,null,null,null,null,null,null,null,183990,340015,333200,6815,null,null,null,null,null,null,5915,9000,null,null,null,null,null,null,null,null,null,null,null,null,null,null,null,null,null,null,3620,null,261,null,null,null,null,null,null,null,null,null,null,null,null,185646,343075,336199,6876,null,null,null,null,null,null,5926,9100,null,null,null,null,null,null,null,null,null,null,null,null,null,null,null,null,null,null,3600,null,77262,79090,79090,81318,null,null,null,-21300,null,null,-13150,null,null,-12400,null,null,-26800,null,null,null,null,null,null,null,null,16000,null,null,null,18400,null,null,null,20300,null,null,null,30000,null,null,null,null,null,null,null,null,null,null,null,null,null,874,-874]
[" Itä-Savon sairaanhoitopiirin kuntayhtymä SOSTERI",260753,null,2.4490751739351775,23.9,1837,null,null,null,86.5,2435,134,6609.0936820380375,81823,181446,177627,3819,null,null,null,null,null,null,3370,3370,null,null,null,null,null,null,null,null,null,null,null,null,null,null,null,null,null,null,1403,null,26,null,null,5.5008510953226759,24.2,1636,null,null,null,86.3,2425,133,6672.5539669189793,75908,178382,174623,3759,null,null,null,null,null,null,3376,3376,null,null,null,null,null,null,null,null,null,null,null,null,null,null,null,null,null,null,null,null,1385,null,null,null,null,null,null,null,null,null,null,null,null,74390,174814,171130,3684,null,null,null,null,null,null,3309,3309,null,null,null,null,null,null,null,null,null,null,null,null,null,null,null,null,null,null,1385,null,27,null,null,null,null,null,null,null,null,null,null,null,null,72902,171318,167708,3610,null,null,null,null,null,null,3243,3243,null,null,null,null,null,null,null,null,null,null,null,null,null,null,null,null,null,null,1385,null,44353,45333,45333,43538,null,null,null,-3320,null,null,-1733,null,null,-1365,null,null,-1163,null,null,null,null,null,null,null,null,14022,null,null,null,12757,null,null,null,11491,null,null,null,10225,null,null,null,null,null,null,null,null,null,null,null,null,null,55179,-55179]
[" Etelä-Pohjanmaan sairaanhoitopiirin ky.",12368,null,2.9961904761904763,29.8,-1443,null,null,null,63,89,5,6315.2768834513845,163697,284379,271687,12692,null,null,null,null,null,null,11680,11000,null,null,null,null,null,null,null,null,null,null,null,null,null,null,null,null,null,null,3085,null,172,null,null,2.0971690895179802,30,-1481,null,null,null,62.5,52,3,6287.3609543769144,160527,285662,271400,14262,null,null,null,null,null,null,13300,11300,null,null,null,null,null,null,null,null,null,null,null,null,null,null,null,null,null,null,null,null,3085,null,null,null,null,null,null,null,null,null,null,null,null,160201,285203,270872,14331,null,null,null,null,null,null,13300,11300,null,null,null,null,null,null,null,null,null,null,null,null,null,null,null,null,null,null,3085,null,187,null,null,null,null,null,null,null,null,null,null,null,null,160201,285315,270872,14443,null,null,null,null,null,null,13300,11300,null,null,null,null,null,null,null,null,null,null,null,null,null,null,null,null,null,null,3085,null,53730,56424,56424,56229,null,null,null,-17619,null,440,-19761,null,null,-24800,null,null,-23000,null,null,null,null,null,null,null,null,36974,null,null,null,43182,null,null,null,55590,null,null,null,66998,null,null,null,null,null,null,null,null,null,null,null,null,null,818,-818]
[" Pirkanmaan sairaanhoitopiirin kuntayhtymä",5931,null,5.8562162162162164,33.1,2366,null,null,null,81,4160,191,7969.541409993155,346220,718456,679944,38512,null,null,null,null,null,null,32193,26410,null,null,null,null,null,null,null,null,null,null,null,null,null,null,null,null,null,null,6967,null,9,null,null,9.244755244755245,27.7,1729,null,null,null,83.5,3320,146,8282.5059101654842,346460,717221,679340,37881,null,null,null,null,null,null,33334,26755,null,null,null,null,null,null,null,null,null,null,null,null,null,null,null,null,null,null,null,null,6842,null,null,null,null,null,null,null,null,null,null,null,null,346460,722816,679760,43056,null,null,null,null,null,null,38000,28239,null,null,null,null,null,null,null,null,null,null,null,null,null,null,null,null,null,null,6842,null,1,null,null,null,null,null,null,null,null,null,null,null,null,346460,726210,680560,45650,null,null,null,null,null,null,40000,26239,null,null,null,null,null,null,null,null,null,null,null,null,null,null,null,null,null,null,6842,null,213504,216486,216486,216500,null,null,null,-57000,null,1500,-83660,null,500,-82900,null,500,-84320,null,500,null,null,null,null,null,null,116386,null,null,null,172510,null,null,null,213317,null,null,null,254124,null,null,null,null,null,null,null,null,null,null,null,null,null,701,-701]
[" Varsinais-Suomen sairaanhoitopiirin ky.",2685,null,2.376271186440678,26.8,-1370,null,null,null,62.4,208,12,6473.2435384055334,367468,677234,624193,53041,null,null,null,null,null,null,43313,40313,null,null,null,null,null,null,null,null,null,null,null,null,null,null,null,null,null,null,6600,null,45,null,null,0.13082437275985664,27.4,-1498,null,null,null,60.5,163,9,6975.4281459419208,380302,702134,651869,50265,null,null,null,null,null,null,42370,40370,null,null,null,null,null,null,null,null,null,null,null,null,null,null,null,null,null,null,null,null,6660,null,null,null,null,null,null,null,null,null,null,null,null,389225,720267,668522,51745,null,null,null,null,null,null,44551,41551,null,null,null,null,null,null,null,null,null,null,null,null,null,null,null,null,null,null,6660,null,287,null,null,null,null,null,null,null,null,null,null,null,null,400122,739645,688642,51003,null,null,null,null,null,null,44609,41609,null,null,null,null,null,null,null,null,null,null,null,null,null,null,null,null,null,null,6660,null,114057,121814,121814,129418,400,null,null,-28195,325,null,-23580,310,null,-14300,320,null,-14200,320,null,null,null,null,null,null,null,264167,null,null,null,241731,null,null,null,210398,null,null,null,179065,null,null,null,null,null,null,null,null,null,null,null,null,null,500,-500]
[" Vaasan sairaanhoitopiirin ky.",17667,null,1.5941710200714876,40.9,-1455,null,null,null,61.2,583,33,6490.1026187405369,119028,421893,216710,205183,null,null,null,null,null,null,7958,7958,null,null,null,null,null,null,null,null,null,null,null,null,null,null,null,null,null,null,2023,null,140,null,null,1.0781552057442696,40.299999999999997,-1566,null,null,null,60.1,441,24,6634.9636148248437,120086,433758,220669,213089,null,null,null,null,null,null,12016,8616,null,null,null,null,null,null,null,null,null,null,null,null,null,null,null,null,null,null,null,null,2039,null,null,null,null,null,null,null,null,null,null,null,null,121527,441884,224534,217350,null,null,null,null,null,null,12200,8800,null,null,null,null,null,null,null,null,null,null,null,null,null,null,null,null,null,null,2040,null,62,null,null,null,null,null,null,null,null,null,null,null,null,122985,451517,229739,221778,null,null,null,null,null,null,12500,9100,null,null,null,null,null,null,null,null,null,null,null,null,null,null,null,null,null,null,2040,null,57712,61052,61052,66027,null,null,null,-22424,null,100,-14107,null,null,-18760,null,null,-18825,null,null,null,null,null,null,null,null,36055,null,null,null,32460,null,null,null,24060,null,null,null,25160,null,null,null,null,null,null,null,null,null,null,null,null,null,2820,-2820]
[" Carea - Kymenlaakson sairaanhoito- ja sosiaalipalvelujen kuntayhtymä",7616,null,0.80650542118432023,74.3,-2490,null,null,null,42.1,2079,108,7045.9981600735973,107697,226060,225945,115,null,null,null,null,null,null,111,5932,null,null,null,null,null,null,null,null,null,null,null,null,null,null,null,null,null,null,2020,null,35,null,null,0.39469161733817071,72.2,-2426,null,null,null,43.1,2015,104,7080.7485931160845,103060,215372,211232,4140,null,null,null,null,null,null,3875,5516,null,null,null,null,null,null,null,null,null,null,null,null,null,null,null,null,null,null,null,null,1910,null,null,null,null,null,null,null,null,null,null,null,null,102260,215372,209120,6252,null,null,null,null,null,null,6002,5300,null,null,null,null,null,null,null,null,null,null,null,null,null,null,null,null,null,null,1860,null,299,null,null,null,null,null,null,null,null,null,null,null,null,101237,215372,207029,8343,null,null,null,null,null,null,8093,5500,null,null,null,null,null,null,null,null,null,null,null,null,null,null,null,null,null,null,1820,null,71150,68185,68185,66870,800,null,null,-5235,null,null,-5305,null,null,-5300,null,null,-5300,null,null,null,null,null,null,null,null,9170,null,null,null,8517,null,null,null,9364,null,null,null,8711,null,null,null,null,null,null,null,null,null,null,null,null,null,5099,-5099]
[" Keski-Pohjanmaan erikoissairaanhoito- ja peruspalvelukuntayhtymä",7241,null,0.75120192307692313,35.4,-2017,null,null,null,41.7,897,30,10732.800650054172,88263,203237,197957,5280,null,null,null,null,null,null,5054,5054,null,null,null,null,null,null,null,null,null,null,null,null,null,null,null,null,null,null,1850,null,211,null,null,0.39507299270072993,37.799999999999997,-2346,null,null,null,38.200000000000003,974,32,11093.642729644378,92899,207017,200583,6434,null,null,null,null,null,null,6256,5606,null,null,null,null,null,null,null,null,null,null,null,null,null,null,null,null,null,null,null,null,1850,null,null,null,null,null,null,null,null,null,null,null,null,93560,208289,201792,6497,null,null,null,null,null,null,6316,5660,null,null,null,null,null,null,null,null,null,null,null,null,null,null,null,null,null,null,1850,null,230,null,null,null,null,null,null,null,null,null,null,null,null,94228,209572,203012,6560,null,null,null,null,null,null,6378,5714,null,null,null,null,null,null,null,null,null,null,null,null,null,null,null,null,null,null,null,null,55993,56012,56012,55442,null,null,null,-7313,null,null,-10215,210,null,-8564,null,null,-7434,null,null,null,null,null,null,null,null,14783,null,null,null,19200,null,null,null,20600,null,null,null,20000,null,null,null,null,null,null,null,null,null,null,null,null,null,1987,-1987]
[" Pohjois-Pohjanmaan sairaanhoitopiirin ky.",999,null,37.285714285714285,30.2,3787,null,null,null,77.5,5668,317,6516.9322709163343,333419,568957,568191,766,null,null,null,null,null,null,-110,25070,null,null,null,null,null,null,null,null,null,null,null,null,null,null,null,null,null,null,5853,null,3,null,null,3.9398496240601504,33.5,2367,null,null,null,77.400000000000006,3941,147,9815.4158215010139,334898,573131,545437,27694,null,null,null,null,null,null,27085,25499,null,null,null,null,null,null,null,null,null,null,null,null,null,null,null,null,null,null,null,null,5833,null,null,null,null,null,null,null,null,null,null,null,null,338247,586238,554503,31735,null,null,null,null,null,null,30735,27029,null,null,null,null,null,null,null,null,null,null,null,null,null,null,null,null,null,null,5833,null,301,null,null,null,null,null,null,null,null,null,null,null,null,341630,598126,563759,34367,null,null,null,null,null,null,33167,28651,null,null,null,null,null,null,null,null,null,null,null,null,null,null,null,null,null,null,5833,null,129838,108895,108895,114407,null,null,null,-32003,null,null,-38200,null,500,-46200,null,null,-46200,null,null,null,null,null,null,null,null,100000,null,null,null,112500,null,null,null,130000,null,null,null,145500,null,null,null,null,null,null,null,null,null,null,null,null,null,0,0]
[" Päijät-Hämeen sosiaali- ja terveysyhtymä",1229,null,0.60371517027863775,69.2,-3566,null,null,null,33.1,75,4,7410.9803921568628,203787,386681,374326,12355,null,null,null,null,null,null,11067,12574,null,null,null,null,null,null,null,null,null,null,null,null,null,null,null,null,null,null,3682,null,264,null,null,-1.1312217194570135E-2,68.2,-2349,null,null,null,35.200000000000003,65,3,7539.2628205128203,207308,401330,386960,14370,null,null,null,null,null,null,13334,13089,null,null,null,null,null,null,null,null,null,null,null,null,null,null,null,null,null,null,null,null,3627,null,null,null,null,null,null,null,null,null,null,null,null,209809,407869,393415,14454,null,null,null,null,null,null,13243,13090,null,null,null,null,null,null,null,null,null,null,null,null,null,null,null,null,null,null,3590,null,239,null,null,null,null,null,null,null,null,null,null,null,null,213240,414636,399968,14668,null,null,null,null,null,null,13436,13309,null,null,null,null,null,null,null,null,null,null,null,null,null,null,null,null,null,null,3550,null,96254,101319,101319,103760,null,170,160,-15122,1500,null,-18371,800,null,-19663,145,null,-19564,null,null,null,null,null,null,null,null,36274,null,null,null,41165,null,null,null,47465,null,null,null,53615,null,null,null,null,null,null,null,null,null,null,null,null,null,188,-188]
[" Pohjois-Karjalan sairaanhoito- ja sosiaalipalvelujen ky.",21203,null,0.73943781942078368,77.8,-4022,null,null,null,47.6,357,17,7477.2695416530396,135279,249070,236844,12226,null,null,null,null,null,null,10985,8870,null,null,null,null,null,null,null,null,null,null,null,null,null,null,null,null,null,null,2894,null,114,null,null,0.61676153898909536,75.5,-4209,null,null,null,46.4,381,19,7451.2137749341364,136356,249660,239428,10232,null,null,null,null,null,null,8554,7979,null,null,null,null,null,null,null,null,null,null,null,null,null,null,null,null,null,null,null,null,2900,null,null,null,null,null,null,null,null,null,null,null,null,140447,257726,246835,10891,null,null,null,null,null,null,9051,9235,null,null,null,null,null,null,null,null,null,null,null,null,null,null,null,null,null,null,2900,null,87,null,null,null,null,null,null,null,null,null,null,null,null,144660,266894,254470,12424,null,null,null,null,null,null,10405,10454,null,null,null,null,null,null,null,null,null,null,null,null,null,null,null,null,null,null,2900,null,58054,59629,59629,63720,null,null,null,-11020,0,500,-15455,null,null,-18310,null,null,-23900,null,null,null,null,null,null,null,null,65519,null,null,null,71660,null,null,null,76489,null,null,null,88138,null,null,null,null,null,null,null,null,null,null,null,null,null,9905,-9905]
[" Kolpeneen palvelukeskuksen ky.",5404,null,2.7216856892010536E-2,28.2,-867,null,null,null,63.4,445,21,7752.1398652340195,12444,16920,16245,675,null,null,null,null,null,null,540,600,null,null,null,null,null,null,null,null,null,null,null,null,null,null,null,null,null,null,"238,8",null,292,null,null,1.0226293103448276,25.6,-992,null,null,null,62.4,468,22,7752.7966257106182,13970,18608,17768,840,null,null,null,null,null,null,590,650,null,null,null,null,null,null,null,null,null,null,null,null,null,null,null,null,null,null,null,null,"265,3",null,null,null,null,null,null,null,null,null,null,null,null,null,null,null,null,null,null,null,null,null,null,null,null,null,null,null,null,null,null,null,null,null,null,null,null,null,null,null,null,null,null,"251,1",null,285,null,null,null,null,null,null,null,null,null,null,null,null,null,null,null,null,null,null,null,null,null,null,null,null,null,null,null,null,null,null,null,null,null,null,null,null,null,null,null,null,null,null,"241,6",null,3109,3052,3052,null,null,null,null,-1680,1650,null,-3440,503,null,-3222,398,null,-810,null,null,null,null,null,null,null,null,5924,null,null,null,null,null,null,null,null,null,null,null,null,null,null,null,null,null,null,null,null,null,null,null,null,null,985,-985]
[" Kårkulla samkommun",9109,null,0.67737096884161718,76.900000000000006,-5577,null,null,null,31.9,183,7,9252.5220346182432,40132,59030,58056,974,null,null,null,null,null,null,726,726,null,null,null,null,null,null,null,null,null,null,null,null,null,null,null,null,null,null,821,null,8,null,null,0.24535619514186569,82.6,-6074,null,null,null,27.8,85,3,9348.5486133592312,40398,60285,59278,1007,null,null,null,null,null,null,790,790,null,null,null,null,null,null,null,null,null,null,null,null,null,null,null,null,null,null,null,null,821,null,null,null,null,null,null,null,null,null,null,null,null,40648,60555,59529,1026,null,null,null,null,null,null,800,800,null,null,null,null,null,null,null,null,null,null,null,null,null,null,null,null,null,null,821,null,38,null,null,null,null,null,null,null,null,null,null,null,null,40707,60674,59588,1086,null,null,null,null,null,null,830,830,null,null,null,null,null,null,null,null,null,null,null,null,null,null,null,null,null,null,821,null,10793,11370,11370,11370,null,null,830,-4525,984,370,-7455,620,265,-12350,1600,500,-11850,1160,null,null,null,null,null,null,null,11568,null,null,null,16666,null,null,null,24961,null,null,null,33174,null,null,null,null,null,null,null,null,null,null,null,null,null,13300,-13300]
[" Varsinais-Suomen erityishuoltopiirin ky.",7407,null,null,12,905,null,null,null,86.8,1134,68,6045.8422174840089,26737,34402,null,34402,null,null,null,null,null,null,164,815,null,null,null,null,null,null,null,null,null,null,null,null,null,null,null,null,null,null,null,null,317,null,null,-4404,26.8,-934,null,null,null,70.8,180,9,7483.0349986641731,null,null,null,null,null,null,null,null,null,null,null,null,null,null,null,null,null,null,null,null,null,null,null,null,null,null,null,null,null,null,null,null,null,null,null,null,null,null,null,null,null,null,null,null,null,null,null,null,null,null,null,null,null,null,null,null,null,null,null,null,null,null,null,null,null,null,null,null,null,null,null,null,null,null,null,null,null,222,null,null,null,null,null,null,null,null,null,null,null,null,null,null,null,null,null,null,null,null,null,null,null,null,null,null,null,null,null,null,null,null,null,null,null,null,null,null,null,null,null,null,null,null,3170,null,null,null,null,null,null,-4770,null,null,-5965,null,null,-6635,null,null,-1885,null,null,null,null,null,null,null,null,13657,null,null,null,null,null,null,null,null,null,null,null,null,null,null,null,null,null,null,null,null,null,null,null,null,null,0,0]
[" Eskoon sosiaalipalvelujen kuntayhtymä",3098,null,0.73059866962305986,50.2,-2163,null,null,null,34.4,548,31,6544.3499392466583,19440,24825,23865,960,null,null,null,null,null,null,822,759,null,null,null,null,null,null,null,null,null,null,null,null,null,null,null,null,null,null,396,null,113,null,null,-0.19248554913294796,47.9,-2568,null,null,null,30.4,210,11,7255.8502340093601,18642,23940,22808,1132,null,null,null,null,null,null,1014,951,null,null,null,null,null,null,null,null,null,null,null,null,null,null,null,null,null,null,null,null,366,null,null,null,null,null,null,null,null,null,null,null,null,19344,24986,23765,1221,null,null,null,null,null,null,1000,950,null,null,null,null,null,null,null,null,null,null,null,null,null,null,null,null,null,null,365,null,235,null,null,null,null,null,null,null,null,null,null,null,null,18200,23521,22371,1150,null,null,null,null,null,null,1000,1000,null,null,null,null,null,null,null,null,null,null,null,null,null,null,null,null,null,null,355,null,2024,1846,1846,1812,null,null,420,-5240,266,null,-1610,null,null,-2880,32,null,-2615,null,null,null,null,null,null,null,null,5340,null,null,null,5925,null,null,null,7410,null,null,null,8695,null,null,null,null,null,null,null,null,null,null,null,null,null,1545,-1545]
[" Eteva kuntayhtymä",9684,null,0.92371475953565507,54.6,-2516,null,null,null,46.7,2,0,5590.3738896922123,58147,78819,78436,383,null,null,null,null,null,null,386,376,null,null,null,null,null,null,null,null,null,null,null,null,null,null,null,null,null,null,1314,null,243,null,null,-1.0962241169305725E-2,63.3,-2945,null,null,null,40.9,9,1,5551.8518518518522,51468,72759,72225,534,null,null,null,null,null,null,541,503,null,null,null,null,null,null,null,null,null,null,null,null,null,null,null,null,null,null,null,null,1168,null,null,null,null,null,null,null,null,null,null,null,null,51925,73300,72695,605,null,null,null,null,null,null,610,600,null,null,null,null,null,null,null,null,null,null,null,null,null,null,null,null,null,null,1200,null,127,null,null,null,null,null,null,null,null,null,null,null,null,null,null,null,null,null,null,null,null,null,null,null,null,null,null,null,null,null,null,null,null,null,null,null,null,null,null,null,null,null,null,null,null,8883,9753,9753,null,null,null,null,-577,null,null,-811,null,null,-450,null,null,null,null,null,null,null,null,null,null,null,null,null,null,null,null,null,null,null,null,null,null,null,null,null,null,null,null,null,null,null,null,null,null,null,null,null,1420,-1420]
[" Vaalijalan kuntayhtymä",8808,null,0.69950372208436729,56.8,-2267,null,null,null,43.2,582,37,5759.6230271375043,32916,42657,42020,637,null,null,null,null,null,null,447,818,null,null,null,null,null,null,null,null,null,null,null,null,null,null,null,null,null,null,790,null,161,null,null,0.2868252516010979,57.6,-2745,null,null,null,40.6,242,14,6319.7608842770132,35465,46404,45175,1229,null,null,null,null,null,null,1022,1015,null,null,null,null,null,null,null,null,null,null,null,null,null,null,null,null,null,null,null,null,805,null,null,null,null,null,null,null,null,null,null,null,null,35272,46440,44933,1507,null,null,null,null,null,null,1298,1065,null,null,null,null,null,null,null,null,null,null,null,null,null,null,null,null,null,null,815,null,191,null,null,null,null,null,null,null,null,null,null,null,null,35489,46766,45209,1557,null,null,null,null,null,null,1342,1115,null,null,null,null,null,null,null,null,null,null,null,null,null,null,null,null,null,null,825,null,4403,4843,4843,4747,null,null,null,-6271,1970,null,-5602,1400,null,-5160,1500,null,-4160,1000,null,null,null,null,null,null,null,12814,null,null,null,16157,null,null,null,18557,null,null,null,19597,null,null,null,null,null,null,null,null,null,null,null,null,null,3465,-3465]
[" Kokemäen ja Kiikoisten kuntayhtymä",19979,null,1.0556702966579046,51.7,349,null,null,null,64.400000000000006,3063,174,9958.1928188851416,null,41,1,40,null,null,null,null,null,null,32,28,null,null,null,null,null,null,null,null,null,null,null,null,null,null,null,null,null,null,null,null,105,null,null,0.98191016403495324,49.7,453,null,null,null,64.599999999999994,3201,169,6918.9566605156851,null,54,4,50,null,null,null,null,null,null,34,27,null,null,null,null,null,null,null,null,null,null,null,null,null,null,null,null,null,null,null,null,null,null,null,null,null,null,null,null,null,null,null,null,null,null,54,4,50,null,null,null,null,null,null,34,26,null,null,null,null,null,null,null,null,null,null,null,null,null,null,null,null,null,null,null,null,94,null,null,null,null,null,null,null,null,null,null,null,null,null,54,4,50,null,null,null,null,null,null,34,25,null,null,null,null,null,null,null,null,null,null,null,null,null,null,null,null,null,null,0,null,1,4,4,4,null,null,null,null,null,null,null,null,null,null,null,null,null,null,null,null,null,null,null,null,null,null,null,null,null,null,null,null,null,null,null,null,null,null,null,null,null,null,null,null,null,null,null,null,null,null,null,6262,-6262]
[" Moision palvelukeskuskiinteistön kuntayhtymä",3667,null,1.3540081919251024,41.1,-2132,null,null,null,56.3,415,17,10080.219493075516,null,515,268,247,null,null,null,null,null,null,187,123,null,null,null,null,null,null,null,null,null,null,null,null,null,null,null,null,null,null,null,null,190,null,null,-0.32163742690058478,54.9,-3148,null,null,null,46.6,651,27,8735.1683591662222,null,508,-292,800,null,null,null,null,null,null,154,null,null,null,null,null,null,null,null,null,null,null,null,null,null,null,null,null,null,null,null,null,null,null,null,null,null,null,null,null,null,null,null,null,null,null,518,298,220,null,null,null,null,null,null,162,123,null,null,null,null,null,null,null,null,null,null,null,null,null,null,null,null,null,null,null,null,137,null,null,null,null,null,null,null,null,null,null,null,null,null,529,304,225,null,null,null,null,null,null,166,123,null,null,null,null,null,null,null,null,null,null,null,null,null,null,null,null,null,null,0,null,83,100,100,105,null,null,null,null,null,null,null,null,null,null,null,null,null,null,null,null,null,null,null,null,null,531,null,null,null,411,null,null,null,291,null,null,null,171,null,null,null,null,null,null,null,null,null,null,null,null,null,225,-225]
[" Varsinais-Suomen lastensuojelu ky.",612664,null,4.9234395625117857,42.3,-1495,null,null,null,75.900000000000006,1361,58,7090.2577160286473,2667,3436,3301,135,null,null,null,null,null,null,75,126,null,null,null,null,null,null,null,null,null,null,null,null,null,null,null,null,null,null,44,null,6,null,null,2.9457060702875397,40.5,-1565,null,null,null,76.3,1105,46,8754.0482277206738,2513,3182,3085,97,null,null,null,null,null,null,39,125,null,null,null,null,null,null,null,null,null,null,null,null,null,null,null,null,null,null,null,null,44,null,null,null,null,null,null,null,null,null,null,null,null,2513,3182,3085,97,null,null,null,null,null,null,39,125,null,null,null,null,null,null,null,null,null,null,null,null,null,null,null,null,null,null,44,null,14,null,null,null,null,null,null,null,null,null,null,null,null,2513,3182,3085,97,null,null,null,null,null,null,39,125,null,null,null,null,null,null,null,null,null,null,null,null,null,null,null,null,null,null,44,null,306,289,289,289,null,null,null,-25,null,null,null,null,null,null,null,null,null,null,null,null,null,null,null,null,null,1715,null,null,null,1625,null,null,null,1545,null,null,null,1474,null,null,null,null,null,null,null,null,null,null,null,null,null,116591,-116591]
[" Hämeen päihdehuollon ky.",2338,null,3.4024767801857587,22.8,631,null,null,null,73,2007,106,6888.2377563834234,1034,2005,1933,72,null,null,null,null,null,null,73,0,null,null,null,null,null,null,null,null,null,null,null,null,null,null,null,null,null,null,27,null,57,null,null,3.9898477157360408,21.2,853,null,null,null,73.8,2138,113,6934.3710559528818,156,148,626,-478,null,null,null,null,null,null,-508,72,null,null,null,null,null,null,null,null,null,null,null,null,null,null,null,null,null,null,null,null,2,null,null,null,null,null,null,null,null,null,null,null,null,null,null,null,null,null,null,null,null,null,null,null,null,null,null,null,null,null,null,null,null,null,null,null,null,null,null,null,null,null,null,null,null,15,null,null,null,null,null,null,null,null,null,null,null,null,null,null,null,null,null,null,null,null,null,null,null,null,null,null,null,null,null,null,null,null,null,null,null,null,null,null,null,null,null,null,null,null,278,206,206,null,null,null,null,null,null,null,null,null,null,null,null,null,null,null,null,null,null,null,null,null,null,null,null,null,null,800,null,null,null,null,null,null,null,null,null,null,null,null,null,null,null,null,null,null,null,null,null,301,-301]
[" Itä-Suomen päihdehuollon ky.",21987,null,1.7738814993954051,30.5,-1320,null,null,null,61.4,525,23,8357.4931880108998,1539,2196,2169,27,null,null,null,null,null,null,22,85,null,null,null,null,null,null,null,null,null,null,null,null,null,null,null,null,null,null,"27,5",null,116,null,null,0.43058035714285714,37,-1625,null,null,null,54.7,655,27,8702.7750068014866,1492,2134,2126,8,null,null,null,null,null,null,5,78,null,null,null,null,null,null,null,null,null,null,null,null,null,null,null,null,null,null,null,null,26,null,null,null,null,null,null,null,null,null,null,null,null,1500,2155,2145,10,null,null,null,null,null,null,5,73,null,null,null,null,null,null,null,null,null,null,null,null,null,null,null,null,null,null,26,null,117,null,null,null,null,null,null,null,null,null,null,null,null,1500,2155,2150,5,null,null,null,null,null,null,null,72,null,null,null,null,null,null,null,null,null,null,null,null,null,null,null,null,null,null,26,null,223,221,221,230,null,null,null,null,null,null,null,null,null,null,null,null,null,null,null,null,null,null,null,null,null,null,null,null,null,null,null,null,null,null,null,null,null,null,null,null,null,null,null,null,null,null,null,null,null,null,null,3784,-3784]
[" Uudenmaan päihdehuollon ky.",1819,null,0.32307692307692309,33.4,-2802,null,null,null,34.9,91,3,10376.623376623376,1602,2585,2451,134,null,null,null,null,null,null,138,136,null,null,null,null,null,null,null,null,null,null,null,null,null,null,null,null,null,null,"32,5",null,265,null,null,0.74502712477396027,34.1,-2916,null,null,null,33.200000000000003,128,4,10751.091703056769,1724,2697,2540,157,null,null,null,null,null,null,160,100,null,null,null,null,null,null,null,null,null,null,null,null,null,null,null,null,null,null,null,null,"34,5",null,null,null,null,null,null,null,null,null,null,null,null,1721,2708,2587,121,null,null,null,null,null,null,124,100,null,null,null,null,null,null,null,null,null,null,null,null,null,null,null,null,null,null,"34,5",null,232,null,null,null,null,null,null,null,null,null,null,null,null,1738,2730,2625,105,null,null,null,null,null,null,108,100,null,null,null,null,null,null,null,null,null,null,null,null,null,null,null,null,null,null,"34,5",null,255,247,247,275,300,240,null,-100,null,null,-440,300,null,-120,null,null,-130,null,null,null,null,null,null,null,null,null,null,null,null,300,null,null,null,250,null,null,null,200,null,null,null,null,null,null,null,null,null,null,null,null,null,435,-435]
[" Lapin Jätehuolto kuntayhtymä",10543,null,2.7042878265155248,28.9,-725,null,null,null,66.900000000000006,680,36,6866.5162624553486,593,6053,5621,432,null,null,null,null,null,null,412,322,null,null,null,null,null,null,null,null,null,null,null,null,null,null,null,null,null,null,14,null,42,null,null,1.0323910482921084,32.799999999999997,-1247,null,null,null,63.8,540,26,7576.3908500423613,604,6310,-5892,12202,null,null,null,null,null,null,399,301,null,null,null,null,null,null,null,null,null,null,null,null,null,null,null,null,null,null,null,null,14,null,null,null,null,null,null,null,null,null,null,null,null,577,6369,5933,436,null,null,null,null,null,null,417,304,null,null,null,null,null,null,null,null,null,null,null,null,null,null,null,null,null,null,13,null,203,null,null,null,null,null,null,null,null,null,null,null,null,589,6488,6052,436,null,null,null,null,null,null,417,307,null,null,null,null,null,null,null,null,null,null,null,null,null,null,null,null,null,null,13,null,4806,5062,5062,5229,null,null,null,-400,null,null,-330,null,null,-120,null,null,-110,null,null,null,null,null,null,null,null,1740,null,null,null,1740,null,null,null,1740,null,null,null,1740,null,null,null,null,null,null,null,null,null,null,null,null,null,1775,-1775]
[" Sastamalan koulutuskuntayhtymä",2463,null,0.21052631578947367,47.3,-1820,null,null,null,47.7,30,2,6260.0878945265677,25489,40803,40030,773,null,null,null,null,null,null,621,3068,null,null,null,null,null,null,null,null,null,null,null,null,null,null,null,null,null,null,650,null,270,null,null,0.18433179723502305,50.1,-1820,null,null,null,44,341,19,6549.6794871794873,24327,40387,39667,720,null,null,null,null,null,null,317,2450,null,null,null,null,null,null,null,null,null,null,null,null,null,null,null,null,null,null,null,null,650,null,null,null,null,null,null,null,null,null,null,null,null,24327,40387,39668,719,null,null,null,null,null,null,292,2463,null,null,null,null,null,null,null,null,null,null,null,null,null,null,null,null,null,null,650,null,193,null,null,null,null,null,null,null,null,null,null,null,null,24327,40387,39668,719,null,null,null,null,null,null,157,2603,null,null,null,null,null,null,null,null,null,null,null,null,null,null,null,null,null,null,650,null,7144,7295,7295,7295,null,320,null,-3357,175,null,-921,null,null,-2151,null,null,-6670,null,null,null,null,null,null,null,null,7674,null,null,null,7970,null,null,null,9599,null,null,null,15728,null,null,null,null,null,null,null,null,null,null,null,null,null,958,-958]
[" Jyväskylän koulutuskuntayhtymä",2565,null,3.0562347188264057E-2,24.4,-1059,null,null,null,65.2,418,20,7755.9880239520953,69738,114538,101414,13124,null,null,null,null,null,null,12649,8004,null,null,null,null,null,null,null,null,null,null,null,null,null,null,null,null,null,null,1209,null,291,null,null,0.37721518987341773,40,-2024,null,null,null,54.8,668,27,9058.0099884748361,71251,109553,103454,6099,null,null,null,null,null,null,5512,8624,null,null,null,null,null,null,null,null,null,null,null,null,null,null,null,null,null,null,null,null,1202,null,null,null,null,null,null,null,null,null,null,null,null,70440,105286,101261,4025,null,null,null,null,null,null,3400,9171,null,null,null,null,null,null,null,null,null,null,null,null,null,null,null,null,null,null,1170,null,274,null,null,null,null,null,null,null,null,null,null,null,null,69930,105773,101223,4550,null,null,null,null,null,null,3845,10635,null,null,null,null,null,null,null,null,null,null,null,null,null,null,null,null,null,null,1155,null,17566,17887,17887,17192,null,350,null,-17750,null,null,-19351,null,null,-18355,null,null,-16705,null,null,null,null,null,null,null,null,8844,null,null,null,21388,null,null,null,34049,null,null,null,46399,null,null,null,null,null,null,null,null,null,null,null,null,null,734,-734]
[" Keski-Pohjanmaan koulutusyhtymä",46188,null,1.1907004830917873,43.1,-1950,null,null,null,61.9,232,13,6298.943484086366,27012,44971,41716,3255,null,null,null,null,null,null,2997,2997,null,null,null,null,null,null,null,null,null,null,null,null,null,null,null,null,null,null,540,null,80,null,null,0.63641136017638722,49.2,-2357,null,null,null,57.8,180,10,6837.7127566239697,25478,41001,38493,2508,null,null,null,null,null,null,2255,2754,null,null,null,null,null,null,null,null,null,null,null,null,null,null,null,null,null,null,null,null,510,null,null,null,null,null,null,null,null,null,null,null,null,24530,40060,37100,2960,null,null,null,null,null,null,2675,3000,null,null,null,null,null,null,null,null,null,null,null,null,null,null,null,null,null,null,480,null,113,null,null,null,null,null,null,null,null,null,null,null,null,24530,40260,36750,3510,null,null,null,null,null,null,3205,3000,null,null,null,null,null,null,null,null,null,null,null,null,null,null,null,null,null,null,480,null,7463,6147,6147,5520,null,null,null,-3740,null,1000,-5000,null,null,-5200,null,null,-6700,null,null,null,null,null,null,null,null,14793,null,null,null,17405,null,null,null,19420,null,null,null,23000,null,null,null,null,null,null,null,null,null,null,null,null,null,14443,-14443]
[" Keski-Uudenmaan koulutuskuntayhtymä",2086,null,0.69472361809045224,110.6,-4655,null,null,null,31.1,275,12,13729.577464788732,36552,60222,55996,4226,null,null,null,null,null,null,4211,4017,null,null,null,null,null,null,null,null,null,null,null,null,null,null,null,null,null,null,"631,5",null,279,null,null,0.30606680299931832,100.7,-4998,null,null,null,29.6,135,7,7357.3473282442756,37795,62103,57417,4686,null,null,null,null,null,null,4682,4076,null,null,null,null,null,null,null,null,null,null,null,null,null,null,null,null,null,null,null,null,650,null,null,null,null,null,null,null,null,null,null,null,null,38122,62724,57761,4963,null,null,null,null,null,null,4952,4080,null,null,null,null,null,null,null,null,null,null,null,null,null,null,null,null,null,null,660,null,47,null,null,null,null,null,null,null,null,null,null,null,null,38122,59588,57532,2056,null,null,null,null,null,null,2045,4084,null,null,null,null,null,null,null,null,null,null,null,null,null,null,null,null,null,null,670,null,10096,10325,10325,10396,null,null,null,-3587,null,null,-6139,null,null,-4796,null,null,-1615,null,null,null,null,null,null,null,null,1000,null,null,null,1500,null,null,null,1300,null,null,null,800,null,null,null,null,null,null,null,null,null,null,null,null,null,517,-517]
[" Satakunnan koulutuskuntayhtymä",10582,null,2.8079470198675498,28.1,-477,null,null,null,69.400000000000006,538,32,6123.7064464065315,18870,29920,28670,1250,null,null,null,null,null,null,1197,1600,null,null,null,null,null,null,null,null,null,null,null,null,null,null,null,null,null,null,413,null,186,null,null,-0.13918806959403479,34.6,-919,null,null,null,62,693,38,6632.2857142857147,18145,27015,25770,1245,null,null,null,null,null,null,1200,1600,null,null,null,null,null,null,null,null,null,null,null,null,null,null,null,null,null,null,null,null,375,null,null,null,null,null,null,null,null,null,null,null,null,null,26950,25455,1495,null,null,null,null,null,null,1450,1600,null,null,null,null,null,null,null,null,null,null,null,null,null,null,null,null,null,null,360,null,214,null,null,null,null,null,null,null,null,null,null,null,null,null,26900,25405,1495,null,null,null,null,null,null,1450,1600,null,null,null,null,null,null,null,null,null,null,null,null,null,null,null,null,null,null,340,null,5300,3575,3575,null,null,null,null,-1750,null,null,-1100,null,null,-1100,null,null,-1100,null,null,null,null,null,null,null,null,597,null,null,null,542,null,null,null,487,null,null,null,432,null,null,null,null,null,null,null,null,null,null,null,null,null,704,-704]
[" Luksia, Länsi-Uudenmaan koulutuskuntayhtymä",67806,null,0.23741853285637282,55.2,-1535,null,null,null,60.8,1356,69,6025.5983350676379,20699,34465,31670,2795,null,null,null,null,null,null,2856,1456,null,null,null,null,null,null,null,null,null,null,null,null,null,null,null,null,null,null,320,null,256,null,null,0.31001232225634207,54.6,-1722,null,null,null,59.7,1245,62,7307.9544276041897,20850,33313,31152,2161,null,null,null,null,null,null,2224,1500,null,null,null,null,null,null,null,null,null,null,null,null,null,null,null,null,null,null,null,null,320,null,null,null,null,null,null,null,null,null,null,null,null,20587,32635,30832,1803,null,null,null,null,null,null,1865,1514,null,null,null,null,null,null,null,null,null,null,null,null,null,null,null,null,null,null,320,null,132,null,null,null,null,null,null,null,null,null,null,null,null,20361,32077,30370,1707,null,null,null,null,null,null,1770,1419,null,null,null,null,null,null,null,null,null,null,null,null,null,null,null,null,null,null,320,null,5466,5240,5240,5114,null,null,null,-4968,null,null,-5715,null,null,-4400,null,null,-5285,null,null,null,null,null,null,null,null,null,null,null,null,null,null,null,null,null,null,null,null,null,null,null,null,null,null,null,null,null,null,null,null,null,null,20186,-20186]
[" Lounais-Suomen koulutuskuntayhtymä",9610,null,1.4379066478076379,50.9,-2512,null,null,null,50.2,307,18,6303.0845352142333,13936,21606,20917,689,null,null,null,null,null,null,659,851,null,null,null,null,null,null,null,null,null,null,null,null,null,null,null,null,null,null,285,null,49,null,null,0.69650067294751006,60.2,-2982,null,null,null,45.8,479,25,7101.4205138917905,13793,21312,20311,1001,null,null,null,null,null,null,980,937,null,null,null,null,null,null,null,null,null,null,null,null,null,null,null,null,null,null,null,null,280,null,null,null,null,null,null,null,null,null,null,null,null,13146,20492,19560,932,null,null,null,null,null,null,911,939,null,null,null,null,null,null,null,null,null,null,null,null,null,null,null,null,null,null,280,null,72,null,null,null,null,null,null,null,null,null,null,null,null,13146,20492,19560,932,null,null,null,null,null,null,911,939,null,null,null,null,null,null,null,null,null,null,null,null,null,null,null,null,null,null,270,null,3777,3315,3315,3308,null,null,null,-876,null,null,-919,null,null,-1684,null,null,-3227,null,null,null,null,null,null,null,null,3025,null,null,null,2575,null,null,null,2125,null,null,null,1675,null,null,null,null,null,null,null,null,null,null,null,null,null,2843,-2843]
[" Lounais-Hämeen ammatillisen koulutuksen ky.",22171,null,0.95196506550218341,33.700000000000003,-876,null,null,null,62.2,928,50,6771.8426874971774,6364,10523,9826,697,null,null,null,null,null,null,609,777,null,null,null,null,null,null,null,null,null,null,null,null,null,null,null,null,null,null,110,null,194,null,null,1.0868019242836227,35.700000000000003,-967,null,null,null,59.5,1056,56,6947.6394849785402,6172,10125,9588,537,null,null,null,null,null,null,445,902,null,null,null,null,null,null,null,null,null,null,null,null,null,null,null,null,null,null,null,null,105,null,null,null,null,null,null,null,null,null,null,null,null,5995,9687,9200,487,null,null,null,null,null,null,395,947,null,null,null,null,null,null,null,null,null,null,null,null,null,null,null,null,null,null,105,null,135,null,null,null,null,null,null,null,null,null,null,null,null,6005,9644,9180,464,null,null,null,null,null,null,372,926,null,null,null,null,null,null,null,null,null,null,null,null,null,null,null,null,null,null,105,null,1950,1857,1857,1750,null,null,null,-1960,null,null,-1693,null,null,-107,null,null,-262,null,null,null,null,null,null,null,null,null,null,null,null,null,null,null,null,null,null,null,null,null,null,null,null,null,null,null,null,null,null,null,null,null,null,4886,-4886]
[" Pohjois-Karjalan koulutuskuntayhtymä",6981,null,0.29671897289586308,35,-1111,null,null,null,69,492,30,6022.5649814338767,50348,76360,71163,5197,null,null,null,null,null,null,5422,5171,null,null,null,null,null,null,null,null,null,null,null,null,null,null,null,null,null,null,754,null,281,null,null,0.46036294173829989,35.799999999999997,-1552,null,null,null,63.8,328,19,6405.8950395398997,46533,72354,67352,5002,null,null,null,null,null,null,5240,5215,null,null,null,null,null,null,null,null,null,null,null,null,null,null,null,null,null,null,null,null,725,null,null,null,null,null,null,null,null,null,null,null,null,44652,69594,63988,5606,null,null,null,null,null,null,5835,5008,null,null,null,null,null,null,null,null,null,null,null,null,null,null,null,null,null,null,700,null,217,null,null,null,null,null,null,null,null,null,null,null,null,43261,67729,62123,5606,null,null,null,null,null,null,5835,4973,null,null,null,null,null,null,null,null,null,null,null,null,null,null,null,null,null,null,670,null,10067,10250,10250,9237,null,null,null,-6296,null,null,-7590,null,null,-13460,null,null,-9350,null,null,null,null,null,null,null,null,null,null,null,null,null,null,null,null,null,null,null,null,null,null,null,null,null,null,null,null,null,null,null,null,null,null,555,-555]
[" Itä-Uudenmaan koulutuskuntayhtymä",7303,null,0.44054360135900339,38.299999999999997,-1751,null,null,null,54.3,33,2,6346.0338983050851,22349,36851,36076,775,null,null,null,null,null,null,732,1928,null,null,null,null,null,null,null,null,null,null,null,null,null,null,null,null,null,null,495,null,273,null,null,1.432512315270936,60.7,-2635,null,null,null,41.6,149,7,7321.8077865505038,22478,36413,35280,1133,null,null,null,null,null,null,1023,1846,null,null,null,null,null,null,null,null,null,null,null,null,null,null,null,null,null,null,null,null,500,null,null,null,null,null,null,null,null,null,null,null,null,22059,35645,34626,1019,null,null,null,null,null,null,919,1846,null,null,null,null,null,null,null,null,null,null,null,null,null,null,null,null,null,null,510,null,185,null,null,null,null,null,null,null,null,null,null,null,null,22111,36233,34797,1436,null,null,null,null,null,null,1336,1846,null,null,null,null,null,null,null,null,null,null,null,null,null,null,null,null,null,null,510,null,7176,6117,6117,5904,null,null,null,-4290,null,null,-1915,null,null,-2650,null,null,-2350,null,null,null,null,null,null,null,null,5337,null,null,null,4018,null,null,null,3620,null,null,null,3222,null,null,null,null,null,null,null,null,null,null,null,null,null,744,-744]
[" Raahen koulutuskuntayhtymä",12099,null,0.49568308786185883,62.8,-3122,null,null,null,50.5,27,1,6511.4304925197512,7290,11467,10579,888,null,null,null,null,null,null,890,827,null,null,null,null,null,null,null,null,null,null,null,null,null,null,null,null,null,null,131,null,252,null,null,0.67052679382379654,64.900000000000006,-3317,null,null,null,47.9,124,7,6381.6336716020623,6631,11173,10200,973,null,null,null,null,null,null,981,842,null,null,null,null,null,null,null,null,null,null,null,null,null,null,null,null,null,null,null,null,127,null,null,null,null,null,null,null,null,null,null,null,null,6500,10720,9750,970,null,null,null,null,null,null,870,855,null,null,null,null,null,null,null,null,null,null,null,null,null,null,null,null,null,null,125,null,229,null,null,null,null,null,null,null,null,null,null,null,null,6300,10620,9620,1000,null,null,null,null,null,null,900,865,null,null,null,null,null,null,null,null,null,null,null,null,null,null,null,null,null,null,123,null,1595,1898,1898,1800,null,null,null,-2214,null,null,-1406,null,null,-1285,null,null,-1459,null,null,null,null,null,null,null,null,1100,null,null,null,1315,null,null,null,1371,null,null,null,1427,null,null,null,null,null,null,null,null,null,null,null,null,null,2979,-2979]
[" Raision seudun koulutuskuntayhtymä",5614,null,10.432098765432098,32.6,-887,null,null,null,62.7,709,32,8114.8440178265346,13284,20349,19756,593,null,null,null,null,null,null,599,1447,null,null,null,null,null,null,null,null,null,null,null,null,null,null,null,null,null,null,258,null,159,null,null,0.94493670886075953,30.5,-1199,null,null,null,63.7,695,29,8812.5768487616369,13096,19773,19384,389,null,null,null,null,null,null,396,1690,null,null,null,null,null,null,null,null,null,null,null,null,null,null,null,null,null,null,null,null,250,null,null,null,null,null,null,null,null,null,null,null,null,12757,19674,18920,754,null,null,null,null,null,null,760,1737,null,null,null,null,null,null,null,null,null,null,null,null,null,null,null,null,null,null,243,null,150,null,null,null,null,null,null,null,null,null,null,null,null,12245,19445,18416,1029,null,null,null,null,null,null,1035,1675,null,null,null,null,null,null,null,null,null,null,null,null,null,null,null,null,null,null,233,null,2574,2771,2771,2668,null,null,null,-6793,null,null,-835,null,null,-915,null,null,-735,null,null,null,null,null,null,null,null,null,null,null,null,null,null,null,null,null,null,null,null,null,null,null,null,null,null,null,null,null,null,null,null,null,null,0,0]
[" Salon seudun koulutuskuntayhtymä",28219,null,1.2401479951815522,44.3,-2070,null,null,null,57.4,482,25,6177.9994380443941,17477,28200,26365,1835,null,null,null,null,null,null,1651,2668,null,null,null,null,null,null,null,null,null,null,null,null,null,null,null,null,null,null,291,null,40,null,null,0.72274415556041072,43.9,-2174,null,null,null,57.5,445,18,9209.4083551282965,16602,27031,24629,2402,null,null,null,null,null,null,2154,2707,null,null,null,null,null,null,null,null,null,null,null,null,null,null,null,null,null,null,null,null,291,null,null,null,null,null,null,null,null,null,null,null,null,16540,27026,24481,2545,null,null,null,null,null,null,2292,2671,null,null,null,null,null,null,null,null,null,null,null,null,null,null,null,null,null,null,291,null,54,null,null,null,null,null,null,null,null,null,null,null,null,15961,25785,23180,2605,null,null,null,null,null,null,2361,2519,null,null,null,null,null,null,null,null,null,null,null,null,null,null,null,null,null,null,291,null,4089,3535,3535,3167,null,null,null,-6033,null,null,-5003,null,null,-352,null,null,-1217,null,null,null,null,null,null,null,null,9550,null,null,null,10713,null,null,null,10338,null,null,null,9963,null,null,null,null,null,null,null,null,null,null,null,null,null,11458,-11458]
[" Itä-Savon koulutuskuntayhtymä",6794,null,2.0647540983606558,41.3,-1136,null,null,null,63.6,948,43,10950.843944329286,14672,21077,20013,1064,null,null,null,null,null,null,1064,1058,null,null,null,null,null,null,null,null,null,null,null,null,null,null,null,null,null,null,"278,5",null,12,null,null,1.6629082426127528,37.700000000000003,-1413,null,null,null,66.2,549,23,8748.2174688057039,14316,20771,19671,1100,null,null,null,null,null,null,1100,1174,null,null,null,null,null,null,null,null,null,null,null,null,null,null,null,null,null,null,null,null,267,null,null,null,null,null,null,null,null,null,null,null,null,14162,20500,19400,1100,null,null,null,null,null,null,1100,1130,null,null,null,null,null,null,null,null,null,null,null,null,null,null,null,null,null,null,257,null,21,null,null,null,null,null,null,null,null,null,null,null,null,13943,20200,19100,1100,null,null,null,null,null,null,1100,1170,null,null,null,null,null,null,null,null,null,null,null,null,null,null,null,null,null,null,"256,5",null,2333,2341,2341,2101,null,null,null,-2373,null,null,-1288,null,null,-976,null,null,-898,null,null,null,null,null,null,null,null,null,null,null,null,null,null,null,null,null,null,null,null,null,null,null,null,null,null,null,null,null,null,null,null,null,null,1630,-1630]
[" Valkeakosken seudun koulutuskuntayhtymä",5562,null,1.2801444043321299,51.6,-2581,null,null,null,39.4,88,5,6756.3387879877719,8616,12183,11743,440,null,null,null,null,null,null,415,880,null,null,null,null,null,null,null,null,null,null,null,null,null,null,null,null,null,null,154,null,28,null,null,1.3480730223123731,56.5,-2723,null,null,null,40.5,324,17,6817.2625496569162,8338,11996,11596,400,null,null,null,null,null,null,397,770,null,null,null,null,null,null,null,null,null,null,null,null,null,null,null,null,null,null,null,null,142,null,null,null,null,null,null,null,null,null,null,null,null,8228,12000,11500,500,null,null,null,null,null,null,504,715,null,null,null,null,null,null,null,null,null,null,null,null,null,null,null,null,null,null,142,null,107,null,null,null,null,null,null,null,null,null,null,null,null,8043,12000,11315,685,null,null,null,null,null,null,691,691,null,null,null,null,null,null,null,null,null,null,null,null,null,null,null,null,null,null,142,null,1195,1270,1270,1270,null,null,null,-194,null,null,-242,null,null,-300,null,null,-300,null,null,null,null,null,null,null,null,834,null,null,null,184,null,null,null,89,null,null,null,null,null,null,null,null,null,null,null,null,null,null,null,null,null,2239,-2239]
[" Ylä-Savon koulutuskuntayhtymä",2257,null,0.25799573560767591,13.8,-399,null,null,null,79.8,402,20,8557.349192863212,14700,25391,23971,1420,null,null,null,null,null,null,1388,1230,null,null,null,null,null,null,null,null,null,null,null,null,null,null,null,null,null,null,276,null,304,null,null,-1.0551470588235294,16.100000000000001,-843,null,null,null,76.099999999999994,175,8,7810.0436681222709,14171,24467,22865,1602,null,null,null,null,null,null,1571,1289,null,null,null,null,null,null,null,null,null,null,null,null,null,null,null,null,null,null,null,null,265,null,null,null,null,null,null,null,null,null,null,null,null,13341,23306,21790,1516,null,null,null,null,null,null,1484,1256,null,null,null,null,null,null,null,null,null,null,null,null,null,null,null,null,null,null,250,null,244,null,null,null,null,null,null,null,null,null,null,null,null,13360,23293,21782,1511,null,null,null,null,null,null,1479,1231,null,null,null,null,null,null,null,null,null,null,null,null,null,null,null,null,null,null,250,null,3763,3765,3765,3485,null,null,null,-2770,1530,null,-1092,240,null,-3757,null,null,-1550,null,null,null,null,null,null,null,null,1096,null,null,null,822,null,null,null,548,null,null,null,274,null,null,null,null,null,null,null,null,null,null,null,null,null,172,-172]
[" Optima samkommun",4854,null,0.84674063800277388,33.299999999999997,-874,null,null,null,61.6,720,41,5784.0356564019448,12790,21472,20189,1283,null,null,null,null,null,null,1010,1100,null,null,null,null,null,null,null,null,null,null,null,null,null,null,null,null,null,null,270,null,167,null,null,0.58585858585858586,38.299999999999997,-1582,null,null,null,58.5,433,22,7218.9930413426109,12698,20573,19241,1332,null,null,null,null,null,null,1136,1200,null,null,null,null,null,null,null,null,null,null,null,null,null,null,null,null,null,null,null,null,273,null,null,null,null,null,null,null,null,null,null,null,null,12384,20158,18854,1304,null,null,null,null,null,null,1115,1170,null,null,null,null,null,null,null,null,null,null,null,null,null,null,null,null,null,null,271,null,200,null,null,null,null,null,null,null,null,null,null,null,null,12384,20090,18854,1236,null,null,null,null,null,null,1056,1070,null,null,null,null,null,null,null,null,null,null,null,null,null,null,null,null,null,null,269,null,3689,3085,3085,3050,null,null,null,-5109,null,null,-618,null,null,-963,null,null,-750,null,null,null,null,null,null,null,null,5163,null,null,null,2204,null,null,null,1744,null,null,null,1302,null,null,null,null,null,null,null,null,null,null,null,null,null,1420,-1420]
[" Äänekosken ammatillisen koulutuksen ky.",7987,null,-19.512301013024601,29.1,906,null,null,null,33.5,1921,77,9117.5891758917587,12542,21742,21225,517,null,null,null,null,null,null,666,1250,null,null,null,null,null,null,null,null,null,null,null,null,null,null,null,null,null,null,232,null,320,null,null,-0.4757142857142857,57.5,-3333,null,null,null,31.6,1196,46,9556.6844257217199,12072,20961,20266,695,null,null,null,null,null,null,893,1281,null,null,null,null,null,null,null,null,null,null,null,null,null,null,null,null,null,null,null,null,225,null,null,null,null,null,null,null,null,null,null,null,null,11762,20145,19576,569,null,null,null,null,null,null,769,1281,null,null,null,null,null,null,null,null,null,null,null,null,null,null,null,null,null,null,218,null,304,null,null,null,null,null,null,null,null,null,null,null,null,11626,20045,19440,605,null,null,null,null,null,null,804,1281,null,null,null,null,null,null,null,null,null,null,null,null,null,null,null,null,null,null,217,null,5706,5375,5375,5106,null,null,1000,-2000,null,null,-1983,null,null,-700,null,null,-600,null,null,null,null,null,null,null,null,null,null,null,null,null,null,null,null,null,null,null,null,null,null,null,null,null,null,null,null,null,null,null,null,null,null,1312,-1312]
[" Samkommunen för yrkesutbildning i östra Nyland",16842,null,0.65428659857629212,47.1,-2109,null,null,null,53.5,346,21,6056.8396226415089,2926,4074,4102,-28,null,null,null,null,null,null,0,536,null,null,null,null,null,null,null,null,null,null,null,null,null,null,null,null,null,null,58,null,202,null,null,0.37300843486410495,50.7,-2509,null,null,null,49.6,258,14,6525.5008569233496,2986,3668,4146,-478,null,null,null,null,null,null,-458,536,null,null,null,null,null,null,null,null,null,null,null,null,null,null,null,null,null,null,null,null,55,null,null,null,null,null,null,null,null,null,null,null,null,2986,3540,4146,-606,null,null,null,null,null,null,-591,536,null,null,null,null,null,null,null,null,null,null,null,null,null,null,null,null,null,null,52,null,170,null,null,null,null,null,null,null,null,null,null,null,null,2986,3421,4146,-725,null,null,null,null,null,null,-715,536,null,null,null,null,null,null,null,null,null,null,null,null,null,null,null,null,null,null,50,null,262,377,377,377,null,null,null,-494,null,null,-933,null,null,-1067,null,null,-4790,null,null,null,null,null,null,null,null,312,null,null,null,null,null,null,null,null,null,null,null,null,null,null,null,null,null,null,null,null,null,null,null,null,null,5623,-5623]
[" Koulutuskeskus Tavastia",74471,null,2.122368307983157,32.799999999999997,-854,null,null,null,65.3,947,51,6834.1332465630849,24317,37753,36261,1492,null,null,null,null,null,null,1339,2305,null,null,null,null,null,null,null,null,null,null,null,null,null,null,null,null,null,null,470,null,122,null,null,0.91337239486761101,37.700000000000003,-1182,null,null,null,61.2,999,51,7100.7712220903895,28567,43327,41974,1353,null,null,null,null,null,null,1197,2352,null,null,null,null,null,null,null,null,null,null,null,null,null,null,null,null,null,null,null,null,490,null,null,null,null,null,null,null,null,null,null,null,null,28616,42385,41290,1095,null,null,null,null,null,null,962,2300,null,null,null,null,null,null,null,null,null,null,null,null,null,null,null,null,null,null,485,null,109,null,null,null,null,null,null,null,null,null,null,null,null,28765,42747,41193,1554,null,null,null,null,null,null,1420,5127,null,null,null,null,null,null,null,null,null,null,null,null,null,null,null,null,null,null,485,null,6516,6817,6817,6530,null,null,null,-2415,null,null,-1960,null,null,-1900,null,null,-2500,null,null,null,null,null,null,null,null,3186,null,null,null,2686,null,null,null,2186,null,null,null,9500,null,null,null,null,null,null,null,null,null,null,null,null,null,9446,-9446]
[" Espoon seudun koulutuskuntayhtymä",5595,null,0.85662063363119412,41.4,-1742,null,null,null,56.2,56,3,5920.1902748414377,42676,71638,67176,4462,null,null,null,null,null,null,4512,4383,null,null,null,null,null,null,null,null,null,null,null,null,null,null,null,null,null,null,745,null,110,null,null,1.0015527950310559,48.2,-1896,null,null,null,51.6,259,16,5995.746943115364,52118,82861,79018,3843,null,null,null,null,null,null,3892,4597,null,null,null,null,null,null,null,null,null,null,null,null,null,null,null,null,null,null,null,null,850,null,null,null,null,null,null,null,null,null,null,null,null,52162,83552,78958,4594,null,null,null,null,null,null,4694,4592,null,null,null,null,null,null,null,null,null,null,null,null,null,null,null,null,null,null,850,null,125,null,null,null,null,null,null,null,null,null,null,null,null,52489,83954,79202,4752,null,null,null,null,null,null,4852,4245,null,null,null,null,null,null,null,null,null,null,null,null,null,null,null,null,null,null,850,null,14558,16616,16616,16614,null,null,null,-2238,null,null,-2218,null,null,-1837,null,null,-2421,null,null,null,null,null,null,null,null,null,null,null,null,null,null,null,null,null,null,null,null,null,null,null,null,null,null,null,null,null,null,null,null,null,null,2224,-2224]
[" EVTEK-Kuntayhtymä",5213,null,0.2153846153846154,45.5,-2963,null,null,null,47.7,139,5,9229.314863347061,320,1847,576,1271,null,null,null,null,null,null,750,750,null,null,null,null,null,null,null,null,null,null,null,null,null,null,null,null,null,null,null,null,266,null,null,0.41189931350114417,49.8,-3363,null,null,null,44.3,218,9,9166.5091665091677,320,1755,-624,2379,null,null,null,null,null,null,658,658,null,null,null,null,null,null,null,null,null,null,null,null,null,null,null,null,null,null,null,null,null,null,null,null,null,null,null,null,null,null,null,null,null,320,1755,624,1131,null,null,null,null,null,null,658,658,null,null,null,null,null,null,null,null,null,null,null,null,null,null,null,null,null,null,null,null,180,null,null,null,null,null,null,null,null,null,null,null,null,320,1755,624,1131,null,null,null,null,null,null,658,658,null,null,null,null,null,null,null,null,null,null,null,null,null,null,null,null,null,null,null,null,250,276,276,276,null,null,null,-500,null,null,-500,null,null,-500,null,null,-500,null,null,null,null,null,null,null,null,null,null,null,null,null,null,null,null,null,null,null,null,null,null,null,null,null,null,null,null,null,null,null,null,null,null,1768,-1768]
[" Rovaniemen koulutuskuntayhtymä",4857,null,0.61506434519303554,53.5,-2978,null,null,null,28.3,215,11,7306.3735377168214,34478,62389,58935,3454,null,null,null,null,null,null,3215,3318,null,null,null,null,null,null,null,null,null,null,null,null,null,null,null,null,null,null,693,null,147,null,null,0.27283061765820388,59.7,-3499,null,null,null,23.5,156,7,8424.0506329113923,32346,59666,54853,4813,null,null,null,null,null,null,4653,3422,null,null,null,null,null,null,null,null,null,null,null,null,null,null,null,null,null,null,null,null,660,null,null,null,null,null,null,null,null,null,null,null,null,31270,57666,52865,4801,null,null,null,null,null,null,4641,3482,null,null,null,null,null,null,null,null,null,null,null,null,null,null,null,null,null,null,627,null,240,null,null,null,null,null,null,null,null,null,null,null,null,31321,57822,52951,4871,null,null,null,null,null,null,4711,3442,null,null,null,null,null,null,null,null,null,null,null,null,null,null,null,null,null,null,627,null,12200,12210,12210,12045,null,null,null,-6908,620,null,-11341,460,null,-6406,250,null,-3965,null,null,null,null,null,null,null,null,6594,null,null,null,10840,null,null,null,10286,null,null,null,9732,null,null,null,null,null,null,null,null,null,null,null,null,null,2380,-2380]
[" Suupohjan koulutuskuntayhtymä",4995,null,0.51977626847782665,68,-4001,null,null,null,39.4,263,12,8186.9413136416633,5347,9259,9432,-173,null,null,null,null,null,null,-211,613,null,null,null,null,null,null,null,null,null,null,null,null,null,null,null,null,null,null,105,null,236,null,null,0.61947826086956526,57.8,-3287,null,null,null,43,314,15,7705.6744551344982,5144,7644,8824,-1180,null,null,null,null,null,null,-1206,433,null,null,null,null,null,null,null,null,null,null,null,null,null,null,null,null,null,null,null,null,94,null,null,null,null,null,null,null,null,null,null,null,null,5245,7451,8803,-1352,null,null,null,null,null,null,-1390,473,null,null,null,null,null,null,null,null,null,null,null,null,null,null,null,null,null,null,null,null,249,null,null,null,null,null,null,null,null,null,null,null,null,5245,7151,8803,-1652,null,null,null,null,null,null,-1690,473,null,null,null,null,null,null,null,null,null,null,null,null,null,null,null,null,null,null,null,null,1725,1702,1702,1672,850,700,null,-1341,null,null,-773,null,null,-712,null,null,-360,null,null,null,null,null,null,null,null,1020,null,null,null,8010,null,null,null,250,null,null,null,null,null,null,null,null,null,null,null,null,null,null,null,null,null,1948,-1948]
[" Oulun seudun koulutuskuntayhtymä",5203,null,null,12.7,1426,null,null,null,84.4,1930,95,7395.9288465065101,50546,95499,84432,11067,null,null,null,null,null,null,10702,14407,null,null,null,null,null,null,null,null,null,null,null,null,null,null,null,null,null,null,971,null,262,null,null,null,15.5,938,null,null,null,80.2,1561,69,8262.7723516153274,49812,92125,80445,11680,null,null,null,null,null,null,11550,11990,null,null,null,null,null,null,null,null,null,null,null,null,null,null,null,null,null,null,null,null,969,null,null,null,null,null,null,null,null,null,null,null,null,50303,92975,80375,12600,null,null,null,null,null,null,12100,8410,null,null,null,null,null,null,null,null,null,null,null,null,null,null,null,null,null,null,965,null,206,null,null,null,null,null,null,null,null,null,null,null,null,50935,93221,80411,12810,null,null,null,null,null,null,12310,8030,null,null,null,null,null,null,null,null,null,null,null,null,null,null,null,null,null,null,965,null,20018,17331,17331,16983,null,null,null,-7500,null,null,-7000,null,1900,-10350,null,null,-10600,null,null,null,null,null,null,null,null,40314,null,null,null,36068,null,null,null,30345,null,null,null,26522,null,null,null,null,null,null,null,null,null,null,null,null,null,0,0]
[" Päijät-Hämeen koulutuskonserni",2039,null,1.2587064676616915,34.799999999999997,-1640,null,null,null,65.3,172,10,6394.4281524926691,77499,124374,114566,9808,null,null,null,null,null,null,9479,10670,null,null,null,null,null,null,null,null,null,null,null,null,null,null,null,null,null,null,1453,null,107,null,null,-1.9135802469135803,49.8,-2501,null,null,null,55,80,4,6953.0400395452298,50874,85495,78013,7482,null,null,null,null,null,null,7208,9612,null,null,null,null,null,null,null,null,null,null,null,null,null,null,null,null,null,null,null,null,996,null,null,null,null,null,null,null,null,null,null,null,null,49307,84010,75610,8400,null,null,null,null,null,null,8107,9948,null,null,null,null,null,null,null,null,null,null,null,null,null,null,null,null,null,null,842,null,216,null,null,null,null,null,null,null,null,null,null,null,null,47175,84010,74640,9370,null,null,null,null,null,null,9012,9592,null,null,null,null,null,null,null,null,null,null,null,null,null,null,null,null,null,null,833,null,16492,12732,12732,11806,null,null,null,-9214,null,null,-4391,null,null,-9806,null,null,-9200,null,null,null,null,null,null,null,null,9679,null,null,null,10372,null,null,null,8067,null,null,null,10133,null,null,null,null,null,null,null,null,null,null,null,null,null,532,-532]
[" Savonia-ammattikorkeakoulun kuntayhtymä",6684,null,0.351575456053068,37.700000000000003,-2249,null,null,null,53.8,217,9,8901.7676035931599,28614,56572,53088,3484,null,null,null,null,null,null,3389,2503,null,null,null,null,null,null,null,null,null,null,null,null,null,null,null,null,null,null,465,null,277,null,null,2.522707034728406,39,-2576,null,null,null,64.3,334,13,9213.9171458056917,null,887,618,269,null,null,null,null,null,null,270,270,null,null,null,null,null,null,null,null,null,null,null,null,null,null,null,null,null,null,null,null,null,null,null,null,null,null,null,null,null,null,null,null,null,null,null,null,null,null,null,null,null,null,null,null,null,null,null,null,null,null,null,null,null,null,null,null,null,null,null,null,null,null,null,null,null,139,null,null,null,null,null,null,null,null,null,null,null,null,null,null,null,null,null,null,null,null,null,null,null,null,null,null,null,null,null,null,null,null,null,null,null,null,null,null,null,null,null,null,0,null,10541,126,126,0,null,null,null,-10179,900,null,null,null,null,null,null,null,null,null,null,null,null,null,null,null,null,1247,null,null,null,null,null,null,null,null,null,null,null,null,null,null,null,null,null,null,null,null,null,null,null,null,null,941,-941]
[" Seinäjoen koulutuskuntayhtymä",134658,null,0.67144271832642199,57.6,-2793,null,null,null,58,61,3,6723.2133391891684,38528,65491,61935,3556,null,null,null,null,null,null,3886,2676,null,null,null,null,null,null,null,null,null,null,null,null,null,null,null,null,null,null,800,null,246,null,null,0.50146159978740368,66.7,-3401,null,null,null,51.5,21,1,6486.5599856160379,38079,63785,60617,3168,null,null,null,null,null,null,3211,2687,null,null,null,null,null,null,null,null,null,null,null,null,null,null,null,null,null,null,null,null,790,null,null,null,null,null,null,null,null,null,null,null,null,37763,63785,59348,4437,null,null,null,null,null,null,3300,2700,null,null,null,null,null,null,null,null,null,null,null,null,null,null,null,null,null,null,820,null,171,null,null,null,null,null,null,null,null,null,null,null,null,37200,62315,58215,4100,null,null,null,null,null,null,3200,2800,null,null,null,null,null,null,null,null,null,null,null,null,null,null,null,null,null,null,820,null,10272,10100,10100,10900,null,null,null,-5478,null,3853,-4418,null,null,-7000,null,null,-3000,null,null,null,null,null,null,null,null,8978,null,null,null,7970,null,null,null,7000,null,null,null,6000,null,null,null,null,null,null,null,null,null,null,null,null,null,25477,-25477]
[" Hämeen ammatillisen korkeakoulutuksen ky.",1971,null,-0.10783055198973042,38.4,-1947,null,null,null,40.799999999999997,67,4,6294.5581627558659,41005,64855,60734,4121,null,null,null,null,null,null,4161,3650,null,null,null,null,null,null,null,null,null,null,null,null,null,null,null,null,null,null,null,null,303,null,null,2.4182076813655761E-2,39.200000000000003,-2088,null,null,null,36.200000000000003,60,3,6506.5458207452166,null,null,null,0,null,null,null,null,null,null,null,null,null,null,null,null,null,null,null,null,null,null,null,null,null,null,null,null,null,null,null,null,null,null,null,null,null,null,null,null,null,null,null,null,null,null,null,null,null,null,null,null,null,null,null,null,null,null,null,null,null,null,null,null,null,null,null,null,null,null,null,null,null,null,null,null,null,213,null,null,null,null,null,null,null,null,null,null,null,null,null,null,null,null,null,null,null,null,null,null,null,null,null,null,null,null,null,null,null,null,null,null,null,null,null,null,null,null,null,null,null,null,11032,null,null,null,350,260,260,-6640,null,30,null,null,null,null,null,null,null,null,null,null,null,null,null,null,null,null,null,null,null,null,null,null,null,null,null,null,null,null,null,null,null,null,null,null,null,null,null,null,null,null,null,716,-716]
[" Mikkelin ammattikorkeakouluyhtymä",22138,null,0.87084271067766938,42.2,-1814,null,null,null,59.5,397,18,8204.1142755587134,54,4392,1324,3068,null,null,null,null,null,null,2348,1700,null,null,null,null,null,null,null,null,null,null,null,null,null,null,null,null,null,null,"1,5",null,158,null,null,0.35666707036453915,41.8,-2050,null,null,null,57.7,257,12,7926.6797888521069,112,4556,1494,3062,null,null,null,null,null,null,2212,1850,null,null,null,null,null,null,null,null,null,null,null,null,null,null,null,null,null,null,null,null,"1,5",null,null,null,null,null,null,null,null,null,null,null,null,null,4650,1520,3130,null,null,null,null,null,null,2280,1880,null,null,null,null,null,null,null,null,null,null,null,null,null,null,null,null,null,null,null,null,68,null,null,null,null,null,null,null,null,null,null,null,null,null,4730,1570,3160,null,null,null,null,null,null,2340,1900,null,null,null,null,null,null,null,null,null,null,null,null,null,null,null,null,null,null,null,null,448,529,529,null,null,null,null,-1972,null,null,-3166,null,null,-1994,null,null,-250,null,null,null,null,null,null,null,null,24762,null,null,null,31762,null,null,null,null,null,null,null,null,null,null,null,null,null,null,null,null,null,null,null,null,null,6948,-6948]
[" Etelä-Karjalan koulutuskuntayhtymä",39953,null,6.1626425217974514,28.8,-1340,null,null,null,72.400000000000006,32,2,5780.3982959503155,25872,41104,38872,2232,null,null,null,null,null,null,2102,2418,null,null,null,null,null,null,null,null,null,null,null,null,null,null,null,null,null,null,455,null,53,null,null,3.1716273676072673,32.9,-1599,null,null,null,68.3,13,1,6074.0553902032998,26439,40732,38435,2297,null,null,null,null,null,null,2203,2634,null,null,null,null,null,null,null,null,null,null,null,null,null,null,null,null,null,null,null,null,472,null,null,null,null,null,null,null,null,null,null,null,null,26332,40306,37925,2381,null,null,null,null,null,null,2261,2759,null,null,null,null,null,null,null,null,null,null,null,null,null,null,null,null,null,null,470,null,131,null,null,null,null,null,null,null,null,null,null,null,null,25428,39572,37021,2551,null,null,null,null,null,null,2401,2884,null,null,null,null,null,null,null,null,null,null,null,null,null,null,null,null,null,null,455,null,6242,5795,5795,5595,null,null,null,-4400,null,null,-4780,130,null,-5250,null,null,-1650,null,null,null,null,null,null,null,null,3900,null,null,null,3500,null,null,null,3000,null,null,null,2500,null,null,null,null,null,null,null,null,null,null,null,null,null,2326,-2326]
[" Peimarin koulutuskuntayhtymä",31798,null,10.86783042394015,48.4,-1850,null,null,null,53.6,551,34,5853.6404877577943,9130,13930,13213,717,null,null,null,null,null,null,717,681,null,null,null,null,null,null,null,null,null,null,null,null,null,null,null,null,null,null,176,null,74,null,null,6.4510385756676554,48.4,-2230,null,null,null,53.1,185,11,5973.9501960909347,8945,13974,13017,957,null,null,null,null,null,null,957,852,null,null,null,null,null,null,null,null,null,null,null,null,null,null,null,null,null,null,null,null,174,null,null,null,null,null,null,null,null,null,null,null,null,9023,13803,13016,787,null,null,null,null,null,null,786,832,null,null,null,null,null,null,null,null,null,null,null,null,null,null,null,null,null,null,172,null,108,null,null,null,null,null,null,null,null,null,null,null,null,9112,13772,13118,654,null,null,null,null,null,null,653,781,null,null,null,null,null,null,null,null,null,null,null,null,null,null,null,null,null,null,170,null,1945,1766,1766,1775,null,null,null,-3120,null,null,-785,24,null,-786,null,null,-653,null,null,null,null,null,null,null,null,null,null,null,null,null,null,null,null,null,null,null,null,null,null,null,null,null,null,null,null,null,null,null,null,null,null,460,{"$f":"HX67*-1","v":-460}]
[" Järviseudun koulutuskuntayhtymä",3261,null,1.1286449399656946,28.9,-1273,null,null,null,58.6,348,19,6828.9512555391439,5084,8857,8560,297,null,null,null,null,null,null,337,372,null,null,null,null,null,null,null,null,null,null,null,null,null,null,null,null,null,null,94,null,223,null,null,0.35196374622356497,27.1,-1390,null,null,null,57.1,237,12,7502.5641025641025,4728,8023,8051,-28,null,null,null,null,null,null,13,388,null,null,null,null,null,null,null,null,null,null,null,null,null,null,null,null,null,null,null,null,87,null,null,null,null,null,null,null,null,null,null,null,null,4397,7366,7477,-111,null,null,null,null,null,null,-71,390,null,null,null,null,null,null,null,null,null,null,null,null,null,null,null,null,null,null,84,null,173,null,null,null,null,null,null,null,null,null,null,null,null,4334,7458,7377,81,null,null,null,null,null,null,121,395,null,null,null,null,null,null,null,null,null,null,null,null,null,null,null,null,null,null,81,null,1880,1842,1842,1634,null,null,null,-701,361,null,-322,60,null,-170,null,null,-75,null,null,null,null,null,null,null,null,64,null,null,null,5,null,null,null,null,null,null,null,null,null,null,null,null,null,null,null,null,null,null,null,null,null,479,-479]
[" Savon koulutuskuntayhtymä",37868,null,0.90873460246360582,38.299999999999997,-1909,null,null,null,60.4,226,12,7033.7232224996715,55793,102512,97540,4972,null,null,null,null,null,null,4534,4002,null,null,null,null,null,null,null,null,null,null,null,null,null,null,null,null,null,null,950,null,185,null,null,0.72144441894269762,43.4,-2279,null,null,null,57,201,10,7219.9720854291209,50867,96907,92308,4599,null,null,null,null,null,null,4205,3764,null,null,null,null,null,null,null,null,null,null,null,null,null,null,null,null,null,null,null,null,900,null,null,null,null,null,null,null,null,null,null,null,null,48809,93046,86038,7008,null,null,null,null,null,null,6650,3867,null,null,null,null,null,null,null,null,null,null,null,null,null,null,null,null,null,null,880,null,28,null,null,null,null,null,null,null,null,null,null,null,null,45654,83920,76937,6983,null,null,null,null,null,null,6660,3995,null,null,null,null,null,null,null,null,null,null,null,null,null,null,null,null,null,null,850,null,17289,17879,17879,14157,null,null,null,-4137,103,null,-4344,32,null,-8360,null,null,-16095,null,null,null,null,null,null,null,null,10104,null,null,null,8914,null,null,null,7723,null,null,null,9033,null,null,null,null,null,null,null,null,null,null,null,null,null,9462,-9462]
[" Kotkan-Haminan seudun koulutuskuntayhtymä",12644,null,1.9584251101321586,51,-1570,null,null,null,58.9,1124,59,7012.8408370323405,21925,35745,33165,2580,null,null,null,null,null,null,2330,1788,null,null,null,null,null,null,null,null,null,null,null,null,null,null,null,null,null,null,384,null,34,null,null,1.23878568192116,54.9,-1834,null,null,null,56.6,1062,51,7607.7623762376234,20849,34100,31447,2653,null,null,null,null,null,null,2430,1856,null,null,null,null,null,null,null,null,null,null,null,null,null,null,null,null,null,null,null,null,380,null,null,null,null,null,null,null,null,null,null,null,null,20742,33809,31168,2641,null,null,null,null,null,null,2438,1957,null,null,null,null,null,null,null,null,null,null,null,null,null,null,null,null,null,null,370,null,91,null,null,null,null,null,null,null,null,null,null,null,null,20513,33250,30860,2390,null,null,null,null,null,null,2207,2058,null,null,null,null,null,null,null,null,null,null,null,null,null,null,null,null,null,null,360,null,5416,5285,5285,5216,null,null,null,-2319,null,null,-1814,null,null,-1700,null,null,-1700,null,null,null,null,null,null,null,null,12531,null,null,null,11531,null,null,null,10531,null,null,null,9531,null,null,null,null,null,null,null,null,null,null,null,null,null,3053,-3053]
[" Kemi-Tornionlaakson koulutuskuntayhtymä Lappia",30345,null,1.9315983417779825,43.6,-952,null,null,null,56.6,1320,68,7096.0824328393164,21713,37824,34673,3151,null,null,null,null,null,null,3096,3349,null,null,null,null,null,null,null,null,null,null,null,null,null,null,null,null,null,null,384,null,37,null,null,1.3022518954396289,45.7,-1288,null,null,null,54.5,1029,50,7587.9638850162646,20127,34478,31981,2497,null,null,null,null,null,null,2459,2579,null,null,null,null,null,null,null,null,null,null,null,null,null,null,null,null,null,null,null,null,333,null,null,null,null,null,null,null,null,null,null,null,null,19006,32003,29393,2610,null,null,null,null,null,null,2560,2560,null,null,null,null,null,null,null,null,null,null,null,null,null,null,null,null,null,null,"329,5",null,48,null,null,null,null,null,null,null,null,null,null,null,null,18664,31003,28393,2610,null,null,null,null,null,null,2560,2560,null,null,null,null,null,null,null,null,null,null,null,null,null,null,null,null,null,null,"324,5",null,5868,5784,5784,4481,null,null,null,-3095,null,null,-2527,null,null,-1700,null,null,-3215,null,null,null,null,null,null,null,null,3419,null,null,null,2670,null,null,null,2167,null,null,null,1692,null,null,null,null,null,null,null,null,null,null,null,null,null,7141,-7141]
[" Jokilaaksojen koulutuskuntayhtymä JEDU",5801,null,0.76566236250597797,45.1,-2663,null,null,null,54.3,49,2,7402.5575447570327,27987,43377,40215,3162,null,null,null,null,null,null,3167,3742,null,null,null,null,null,null,null,null,null,null,null,null,null,null,null,null,null,null,541,null,187,null,null,1.1398017736045905,41.3,-2426,null,null,null,56.1,84,4,7025.0042815550614,26696,41032,38389,2643,null,null,null,null,null,null,2642,3164,null,null,null,null,null,null,null,null,null,null,null,null,null,null,null,null,null,null,null,null,520,null,null,null,null,null,null,null,null,null,null,null,null,26217,40407,37653,2754,null,null,null,null,null,null,2753,2929,null,null,null,null,null,null,null,null,null,null,null,null,null,null,null,null,null,null,508,null,116,null,null,null,null,null,null,null,null,null,null,null,null,26014,40126,37013,3113,null,null,null,null,null,null,3113,2971,null,null,null,null,null,null,null,null,null,null,null,null,null,null,null,null,null,null,497,null,5256,4972,4972,4444,null,null,null,-4410,64,null,-5535,882,null,-5902,null,null,-3448,null,null,null,null,null,null,null,null,1600,null,null,null,1700,null,null,null,3600,null,null,null,800,null,null,null,null,null,null,null,null,null,null,null,null,null,1782,-1782]
[" Pohjois-Suomen laboratoriokeskuksen liikelaitoskuntayhtymä",11972,null,-3.9097744360902256E-2,49.8,-2168,null,null,null,34.1,152,8,6608.8756416625265,28210,62186,60680,1506,null,null,null,null,null,null,1381,806,null,null,null,null,null,null,null,null,null,null,null,null,null,null,null,null,null,null,639,null,296,null,null,0.3420234393685721,51.1,-2429,null,null,null,30.7,144,8,6738.312285690391,28158,63456,62135,1321,null,null,null,null,null,null,1200,836,null,null,null,null,null,null,null,null,null,null,null,null,null,null,null,null,null,null,null,null,649,null,null,null,null,null,null,null,null,null,null,null,null,28515,63502,61695,1807,null,null,null,null,null,null,1682,1040,null,null,null,null,null,null,null,null,null,null,null,null,null,null,null,null,null,null,649,null,236,null,null,null,null,null,null,null,null,null,null,null,null,28515,63502,61695,1807,null,null,null,null,null,null,1682,1040,null,null,null,null,null,null,null,null,null,null,null,null,null,null,null,null,null,null,649,null,11161,12039,12039,11400,null,850,null,-2084,null,null,-1532,null,null,-1400,null,null,-1400,null,null,null,null,null,null,null,null,null,null,null,null,null,null,null,null,null,null,null,null,null,null,null,null,null,null,null,null,null,null,null,null,null,null,3569,-3569]
[" Kainuun sosiaali- ja terveydenhuollon kuntayhtymä",1520,null,2.0199063231850118,68.8,-2830,null,null,null,54.7,2910,89,11939.766839378239,165698,327523,318094,9429,null,null,null,null,null,null,9071,5206,null,null,null,null,null,null,null,null,null,null,null,null,null,null,null,null,null,null,3250,null,2,null,null,1.111310592459605,71.900000000000006,-4350,null,null,null,53.7,1442,43,12355.441081777206,172383,329181,326532,2649,null,null,null,null,null,null,2078,5881,null,null,null,null,null,null,null,null,null,null,null,null,null,null,null,null,null,null,null,null,3293,null,null,null,null,null,null,null,null,null,null,null,null,175831,335765,333063,2702,null,null,null,null,null,null,2120,5999,null,null,null,null,null,null,null,null,null,null,null,null,null,null,null,null,null,null,null,null,10,null,null,null,null,null,null,null,null,null,null,null,null,179347,342480,339724,2756,null,null,null,null,null,null,2162,6119,null,null,null,null,null,null,null,null,null,null,null,null,null,null,null,null,null,null,0,null,98124,96940,96940,100856,null,null,null,-9600,869,null,-17800,1251,null,-34150,null,null,-32800,null,null,null,null,null,null,null,null,2965,null,null,null,20265,null,null,null,53915,null,null,null,86215,null,null,null,null,null,null,null,null,null,null,null,null,null,707,-707]
[" Kainuun liitto -kuntayhtymä",5675,null,-4.2918454935622317E-2,30.8,-1461,null,null,null,62.8,40,2,6251.7114270668771,1684,3598,3598,{"$f":"O75-P75","v":0},null,null,null,null,null,null,0,null,null,null,null,null,null,null,null,null,null,null,null,null,null,null,null,null,null,null,29,null,290,null,null,-0.47226173541963018,39.4,-1993,null,null,null,54.1,76,4,6415.6206415620645,1598,2985,2985,null,null,null,null,null,null,null,null,null,null,null,null,null,null,null,null,null,null,null,null,null,null,null,null,null,null,null,null,null,25,null,null,null,null,null,null,null,null,null,null,null,null,1614,3015,3015,{"$f":"DA75-DB75","v":0},null,null,null,null,null,null,null,null,null,null,null,null,null,null,null,null,null,null,null,null,null,null,null,null,null,null,25,null,156,null,null,null,null,null,null,null,null,null,null,null,null,1630,3045,3045,null,null,null,null,null,null,null,null,null,null,null,null,null,null,null,null,null,null,null,null,null,null,null,null,null,null,null,25,null,1430,1133,1133793,1156578,null,null,null,null,null,null,null,null,null,null,null,null,null,null,null,null,null,null,null,null,null,null,null,null,null,null,null,null,null,null,null,null,null,null,null,null,null,null,null,null,null,null,null,null,null,null,null,865,-865]
[" Järviseudun sähkövoiman ky.",1462,null,0.26344086021505375,23.8,-470,null,null,null,65.7,726,43,6094.9574328749177,30,6248,6248,{"$f":"O76-P76","v":0},null,null,null,null,null,null,0,null,null,null,null,null,null,null,null,null,null,null,null,null,null,null,null,null,null,null,0,null,267,null,null,0.30653266331658291,25.9,-640,null,null,null,62.7,841,46,6618.8903566710696,30,6291,6291,null,null,null,null,null,null,null,null,null,null,null,null,null,null,null,null,null,null,null,null,null,null,null,null,null,null,null,null,null,null,null,null,null,null,null,null,null,null,null,null,null,null,30,6291,6291,{"$f":"DA76-DB76","v":0},null,null,null,null,null,null,null,null,null,null,null,null,null,null,null,null,null,null,null,null,null,null,null,null,null,null,null,null,294,null,null,null,null,null,null,null,null,null,null,null,null,30,6291,6291,null,null,null,null,null,null,null,null,null,null,null,null,null,null,null,null,null,null,null,null,null,null,null,null,null,null,null,0,null,6177,6261,6261,6261,null,null,null,-1,null,null,null,null,null,null,null,null,null,null,null,null,null,null,null,null,null,2200,null,null,null,2200,null,null,null,2200,null,null,null,2000,null,null,null,null,null,null,null,null,null,null,null,null,null,342,-342]
[" Korpelan Voima ky.",9074,null,0.85823849579416134,78.599999999999994,-4238,null,null,null,13.7,149,9,6157.6713819368879,1465,22478,18187,4291,null,null,null,null,null,null,4357,2906,null,null,null,null,null,null,null,null,null,null,null,null,null,null,null,null,null,null,23,null,146,null,null,0.35396354387452311,84,-4683,null,null,null,11.5,27,1,6610.5932668055711,1230,5632,2374,3258,null,null,null,null,null,null,3335,2507,null,null,null,null,null,null,null,null,null,null,null,null,null,null,null,null,null,null,null,null,20,null,null,null,null,null,null,null,null,null,null,null,null,1243,5909,2156,3753,null,null,null,null,null,null,3831,2699,null,null,null,null,null,null,null,null,null,null,null,null,null,null,null,null,null,null,20,null,165,null,null,null,null,null,null,null,null,null,null,null,null,1234,6337,2094,4243,null,null,null,null,null,null,4320,2851,null,null,null,null,null,null,null,null,null,null,null,null,null,null,null,null,null,null,20,null,435,493,493,493,1000,null,null,-5448,null,null,-4546,null,null,-3775,null,null,-4246,null,null,null,null,null,null,null,null,null,null,null,null,null,null,null,null,null,null,null,null,null,null,null,null,null,null,null,null,null,null,null,null,null,null,3101,-3101]
[" Vatajankosken Sähkön kuntayhtymä",4343,null,2.1264367816091956,49.5,-1427,null,null,null,51.2,2104,97,7907.8888390856118,0,132,22,110,null,null,null,null,null,null,339,null,null,null,null,null,null,null,null,null,null,null,null,null,null,null,null,null,null,null,0,null,204,null,null,0.73269230769230764,48.1,-1667,null,null,null,49.8,1840,79,8548.217550274223,0,132,23,109,null,null,null,null,null,null,222,0,null,null,null,null,null,null,null,null,null,null,null,null,null,null,null,null,null,null,null,null,null,null,null,null,null,null,null,null,null,null,null,null,null,null,133,23,110,null,null,null,null,null,null,190,null,null,null,null,null,null,null,null,null,null,null,null,null,null,null,null,null,null,null,null,null,225,null,null,null,null,null,null,null,null,null,null,null,null,null,151,25,126,null,null,null,null,null,null,174,null,null,null,null,null,null,null,null,null,null,null,null,null,null,null,null,null,null,null,0,null,8,8,8,8,null,null,null,0,null,null,null,null,null,0,null,null,null,null,null,null,null,null,null,null,null,null,null,null,null,null,null,null,null,null,null,null,null,null,null,null,null,null,null,null,null,null,null,null,null,null,null,291,-291]
[" Tuusulan seudun vesilaitos ky.",2523,null,37.31818181818182,11.6,-163,null,null,null,88.5,142,8,6289.3420546363986,675,3372,2200,1172,null,null,null,null,null,null,1092,927,null,null,null,null,null,null,null,null,null,null,null,null,null,null,null,null,null,null,11,null,118,null,null,42.9375,15.4,-245,null,null,null,84.8,446,25,6479.7642436149308,693,3345,2277,1068,null,null,null,null,null,null,1028,907,null,null,null,null,null,null,null,null,null,null,null,null,null,null,null,null,null,null,null,null,10,null,null,null,null,null,null,null,null,null,null,null,null,710,3464,2330,1134,null,null,null,null,null,null,1074,1030,null,null,null,null,null,null,null,null,null,null,null,null,null,null,null,null,null,null,10,null,95,null,null,null,null,null,null,null,null,null,null,null,null,730,3594,2430,1164,null,null,null,null,null,null,1084,1080,null,null,null,null,null,null,null,null,null,null,null,null,null,null,null,null,null,null,10,null,1001,983,983,1050,null,null,null,-910,null,null,-2890,300,null,-1390,null,null,-890,null,null,null,null,null,null,null,null,3063,null,null,null,4081,null,null,null,4481,null,null,null,4131,null,null,null,null,null,null,null,null,null,null,null,null,null,17,-17]
[" Hollolan-Lahden vesilaitos ky.",1350,null,-18.440677966101696,53.9,-2526,null,null,null,76.900000000000006,126,5,8408.8319088319095,28,570,276,294,null,null,null,null,null,null,null,180,null,null,null,null,null,null,null,null,null,null,null,null,null,null,null,null,null,null,1,null,319,null,null,0.23880597014925373,44.8,-2645,null,null,null,76.099999999999994,46,2,7625.1808972503613,34,570,256,314,null,null,null,null,null,null,null,170,null,null,null,null,null,null,null,null,null,null,null,null,null,null,null,null,null,null,null,null,1,null,null,null,null,null,null,null,null,null,null,null,null,35,570,250,320,null,null,null,null,null,null,null,160,null,null,null,null,null,null,null,null,null,null,null,null,null,null,null,null,null,null,1,null,8,null,null,null,null,null,null,null,null,null,null,null,null,35,570,250,320,null,null,null,null,null,null,null,150,null,null,null,null,null,null,null,null,null,null,null,null,null,null,null,null,null,null,1,null,226,201,201,200,null,800,null,-70,null,null,-70,null,null,-70,null,null,-70,null,null,null,null,null,null,null,null,1333,null,null,null,1000,null,null,null,867,null,null,null,734,null,null,null,null,null,null,null,null,null,null,null,null,null,0,0]
[" Masku-Nousiainen vesilaitos ky.",14081,null,0.27211860353897654,49.2,-2983,null,null,null,39.200000000000003,524,20,9370.6574589528573,119,518,377,141,null,null,null,null,null,null,108,108,null,null,null,null,null,null,null,null,null,null,null,null,null,null,null,null,null,null,3,null,284,null,null,0.17633555926544239,54,-3475,null,null,null,33.5,633,24,9637.749700007058,119,500,384,116,null,null,null,null,null,null,100,100,null,null,null,null,null,null,null,null,null,null,null,null,null,null,null,null,null,null,null,null,3,null,null,null,null,null,null,null,null,null,null,null,null,120,502,386,116,null,null,null,null,null,null,100,100,null,null,null,null,null,null,null,null,null,null,null,null,null,null,null,null,null,null,3,null,112,null,null,null,null,null,null,null,null,null,null,null,null,121,504,388,116,null,null,null,null,null,null,100,100,null,null,null,null,null,null,null,null,null,null,null,null,null,null,null,null,null,null,3,null,118,118,118,118,1200,1500,null,-80,40,null,-50,null,null,-50,null,null,-50,null,null,null,null,null,null,null,null,386,null,null,null,329,null,null,null,272,null,null,null,215,null,null,null,null,null,null,null,null,null,null,null,null,null,3128,-3128]
[" Helsingin seudun ympäristöpalvelut -kuntayhtymä (HSY)",17065,null,1.4664203434036078,31.2,-856,null,null,null,61.1,835,48,6338.7778743121917,43004,346361,188533,157828,null,null,null,null,null,null,88452,87671,null,null,null,null,null,null,null,null,null,null,null,null,null,null,null,null,null,null,"741,2",null,92,null,null,0.71771003025366531,31.1,-935,null,null,null,61,780,43,6555.7493314730846,42742,345928,185200,160728,null,null,null,null,null,null,91611,90274,null,null,null,null,null,null,null,null,null,null,null,null,null,null,null,null,null,null,null,null,"738,1",null,null,null,null,null,null,null,null,null,null,null,null,42266,350259,181129,169130,null,null,null,null,null,null,100016,94152,null,null,null,null,null,null,null,null,null,null,null,null,null,null,null,null,null,null,"729,5",null,215,null,null,null,null,null,null,null,null,null,null,null,null,41923,345575,172026,173549,null,null,null,null,null,null,102723,97322,null,null,null,null,null,null,null,null,null,null,null,null,null,null,null,null,null,null,"720,7",null,99329,102140,102140,89370,null,null,null,-133825,1284,null,-155905,1110,null,-142160,675,null,-155760,675,null,null,null,null,null,null,null,1414599,null,null,null,1478805,null,null,null,1517421,null,null,null,1568367,null,null,null,null,null,null,null,null,null,null,null,null,null,4056,-4056]
[" Pirkanmaan liitto",9101,null,null,11.2,165,null,null,null,92,609,28,7876.1212671738385,3064,4240,4304,-64,null,null,null,null,null,null,-52,65,null,null,null,null,null,null,null,null,null,null,null,null,null,null,null,null,null,null,43,null,7,null,null,null,12.8,-112,null,null,null,91.1,536,24,8214.4781144781136,2984,4066,4059,7,null,null,null,null,null,null,13,45,null,null,null,null,null,null,null,null,null,null,null,null,null,null,null,null,null,null,null,null,41,null,null,null,null,null,null,null,null,null,null,null,null,2984,4131,4124,7,null,null,null,null,null,null,13,45,null,null,null,null,null,null,null,null,null,null,null,null,null,null,null,null,null,null,39,null,24,null,null,null,null,null,null,null,null,null,null,null,null,2984,4196,4189,7,null,null,null,null,null,null,13,45,null,null,null,null,null,null,null,null,null,null,null,null,null,null,null,null,null,null,38,null,880,754,754,754,null,null,null,-90,null,null,-90,null,null,-180,null,null,-15,null,null,null,null,null,null,null,null,null,null,null,null,null,null,null,null,null,null,null,null,null,null,null,null,null,null,null,null,null,null,null,null,null,null,0,0]
[" Uudenmaan liitto",4288,null,1.1784406070120357,60.4,-3334,null,null,null,34.1,748,35,7833.4112149532712,5165,8114,8352,-238,null,null,null,null,null,null,-234,16,null,null,null,null,null,null,null,null,null,null,null,null,null,null,null,null,null,null,78,null,63,null,null,-0.29669211195928752,62.6,-3924,null,null,null,29,172,8,8083.9748075577327,5218,8264,-8454,16718,null,null,null,null,null,null,-186,14,null,null,null,null,null,null,null,null,null,null,null,null,null,null,null,null,null,null,null,null,77,null,null,null,null,null,null,null,null,null,null,null,null,5250,8517,8511,6,null,null,null,null,null,null,10,10,null,null,null,null,null,null,null,null,null,null,null,null,null,null,null,null,null,null,77,null,118,null,null,null,null,null,null,null,null,null,null,null,null,5300,8610,8606,4,null,null,null,null,null,null,8,8,null,null,null,null,null,null,null,null,null,null,null,null,null,null,null,null,null,null,77,null,2524,2435,2435,2475,650,null,555,null,null,null,null,null,null,null,null,null,null,null,null,null,null,null,null,null,null,null,null,null,null,null,null,null,null,null,null,null,null,null,null,null,null,null,null,null,null,null,null,null,null,null,null,1503,-1503]
[" Satakuntaliitto",2427,null,-0.17757009345794392,33,-1669,null,null,null,60.7,61,3,6930.6656101426306,1847,2890,2898,-8,null,null,null,null,null,null,0,null,null,null,null,null,null,null,null,null,null,null,null,null,null,null,null,null,null,null,23,null,294,null,null,1.1071428571428572,40,-1935,null,null,null,53.4,161,8,7128.0290791599355,1846,2947,2955,-8,null,null,null,null,null,null,0,null,null,null,null,null,null,null,null,null,null,null,null,null,null,null,null,null,null,null,null,null,22,null,null,null,null,null,null,null,null,null,null,null,null,1846,2999,3007,-8,null,null,null,null,null,null,0,null,null,null,null,null,null,null,null,null,null,null,null,null,null,null,null,null,null,null,22,null,220,null,null,null,null,null,null,null,null,null,null,null,null,1846,2999,3007,-8,null,null,null,null,null,null,null,null,null,null,null,null,null,null,null,null,null,null,null,null,null,null,null,null,null,null,22,null,684,682,682,682,null,null,null,null,null,null,null,null,null,null,null,null,null,null,null,null,null,null,null,null,null,null,null,null,null,null,null,null,null,null,null,null,null,null,null,null,null,null,null,null,null,null,null,null,null,null,null,61,-61]
[" Lapin liitto",22120,null,0.59369563704683037,65.2,-3892,null,null,null,42.1,95,4,8672.3067994106877,12216,18563,18542,21,null,null,null,null,null,null,25,53,null,null,null,null,null,null,null,null,null,null,null,null,null,null,null,null,null,null,197,null,221,null,null,0.64099677249868647,63.9,-3841,null,null,null,43.2,76,4,7054.1852001617472,12431,18745,18880,-135,null,null,null,null,null,null,56,84,null,null,null,null,null,null,null,null,null,null,null,null,null,null,null,null,null,null,null,null,196,null,null,null,null,null,null,null,null,null,null,null,null,12440,18981,18925,56,null,null,null,null,null,null,56,84,null,null,null,null,null,null,null,null,null,null,null,null,null,null,null,null,null,null,196,null,153,null,null,null,null,null,null,null,null,null,null,null,null,12471,19029,18975,54,null,null,null,null,null,null,56,84,null,null,null,null,null,null,null,null,null,null,null,null,null,null,null,null,null,null,196,null,2485,2978,2978,2625,900,null,null,-1662,1552,null,-765,765,null,-765,765,null,-765,765,null,null,null,null,null,null,null,363,null,null,null,526,null,null,null,530,null,null,null,550,null,null,null,null,null,null,null,null,null,null,null,null,null,9559,-9559]
[" Varsinais-Suomen liitto",7983,null,0.90836023036516678,52.6,-3163,null,null,null,52.7,500,20,22477.998794454488,3876,5927,6012,-85,null,null,null,null,null,null,-75,15,null,null,null,null,null,null,null,null,null,null,null,null,null,null,null,null,null,null,64,null,95,null,null,0.45510499637943519,53.7,-3557,null,null,null,50.8,389,15,9747.8067465711119,4594,6635,6708,-73,null,null,null,null,null,null,-63,17,null,null,null,null,null,null,null,null,null,null,null,null,null,null,null,null,null,null,null,null,65,null,null,null,null,null,null,null,null,null,null,null,null,4142,6129,6122,7,null,null,null,null,null,null,18,18,null,null,null,null,null,null,null,null,null,null,null,null,null,null,null,null,null,null,65,null,114,null,null,null,null,null,null,null,null,null,null,null,null,4237,6331,6323,8,null,null,null,null,null,null,20,20,null,null,null,null,null,null,null,null,null,null,null,null,null,null,null,null,null,null,65,null,-889,902,902,883,null,null,null,-20,null,null,-20,null,null,-20,null,null,-20,null,null,null,null,null,null,null,null,null,null,null,null,null,null,null,null,null,null,null,null,null,null,null,null,null,null,null,null,null,null,null,null,null,null,4403,-4403]
[" Etelä-Karjalan liitto",8565,null,0.61288398449150017,32.200000000000003,-1361,null,null,null,65.3,320,18,6658.1894540363983,1366,2137,2126,11,null,null,null,null,null,null,-22,null,null,null,null,null,null,null,null,null,null,null,null,null,null,null,null,null,null,null,27,null,226,null,null,7.558945908460471E-2,36.299999999999997,-1893,null,null,null,60.5,48,3,6932.0908561444376,1406,2180,2499,-319,null,null,null,null,null,null,-349,null,null,null,null,null,null,null,null,null,null,null,null,null,null,null,null,null,null,null,null,null,30,null,null,null,null,null,null,null,null,null,null,null,null,1448,2224,2243,-19,null,null,null,null,null,null,-49,null,null,null,null,null,null,null,null,null,null,null,null,null,null,null,null,null,null,null,30,null,288,null,null,null,null,null,null,null,null,null,null,null,null,1477,2246,2265,-19,null,null,null,null,null,null,-49,null,null,null,null,null,null,null,null,null,null,null,null,null,null,null,null,null,null,null,30,null,524,583,583,585,null,null,null,null,null,null,null,null,null,null,null,null,null,null,null,null,null,null,null,null,null,624,null,null,null,576,null,null,null,528,null,null,null,480,null,null,null,null,null,null,null,null,null,null,null,null,null,2686,-2686]
[" Hämeen liitto",7012,null,1.28125,49.2,-2245,null,null,null,56.5,809,42,6858.7759654259025,2094,3396,3451,-55,null,null,null,null,null,null,-51,6,null,null,null,null,null,null,null,null,null,null,null,null,null,null,null,null,null,null,28,null,16,null,null,1.5734635734635736,44.9,-2218,null,null,null,59.4,513,26,7311.3780918727916,1973,2174,3271,-1097,null,null,null,null,null,null,-22,6,null,null,null,null,null,null,null,null,null,null,null,null,null,null,null,null,null,null,null,null,25,null,null,null,null,null,null,null,null,null,null,null,null,1945,2217,3226,-1009,null,null,null,null,null,null,-19,6,null,null,null,null,null,null,null,null,null,null,null,null,null,null,null,null,null,null,24,null,26,null,null,null,null,null,null,null,null,null,null,null,null,1959,2262,3256,-994,null,null,null,null,null,null,0,6,null,null,null,null,null,null,null,null,null,null,null,null,null,null,null,null,null,null,24,null,1038,1012,1012,1019,null,null,null,-15,null,null,-15,null,null,null,null,null,null,null,null,null,null,null,null,null,null,null,null,null,null,null,null,null,null,null,null,null,null,null,null,null,null,null,null,null,null,null,null,null,null,null,null,3797,-3797]
[" Päijät-Hämeen liitto",16605,null,1.4685675025764342,37.1,-1226,null,null,null,65.2,329,22,5058.398220244716,12562,19299,18958,341,null,null,null,null,null,null,983,914,null,null,null,null,null,null,null,null,null,null,null,null,null,null,null,null,null,null,815,null,165,null,null,1.1303431667670079,41.9,-1637,null,null,null,61,185,11,5928.5845083318072,12572,20731,19740,991,null,null,null,null,null,null,949,1010,null,null,null,null,null,null,null,null,null,null,null,null,null,null,null,null,null,null,null,null,815,null,null,null,null,null,null,null,null,null,null,null,null,12625,20845,20146,699,null,null,null,null,null,null,954,1015,null,null,null,null,null,null,null,null,null,null,null,null,null,null,null,null,null,null,815,null,162,null,null,null,null,null,null,null,null,null,null,null,null,12794,21186,20156,1030,null,null,null,null,null,null,990,1020,null,null,null,null,null,null,null,null,null,null,null,null,null,null,null,null,null,null,815,null,2174,2016,2016,2044,null,null,null,-989,null,130,-955,null,null,-1090,null,130,-1095,null,130,null,null,null,null,null,null,380,null,null,null,307,null,null,null,234,null,null,null,161,null,null,null,null,null,null,null,null,null,null,null,null,null,2648,-2648]
[" Keski-Suomen liitto",34913,null,1.3175585768006943,30.6,-1420,null,null,null,78.3,81,5,5208.3996642449856,2085,3886,3886,0,null,null,null,null,null,null,0,0,null,null,null,null,null,null,null,null,null,null,null,null,null,null,null,null,null,null,30,null,20,null,null,1.2893969757697212,35.4,-1662,null,null,null,76.3,94,6,6221.9999420138583,1882,3411,3461,-50,null,null,null,null,null,null,0,null,null,null,null,null,null,null,null,null,null,null,null,null,null,null,null,null,null,null,null,null,26,null,null,null,null,null,null,null,null,null,null,null,null,1800,3310,3260,50,null,null,null,null,null,null,null,null,null,null,null,null,null,null,null,null,null,null,null,null,null,null,null,null,null,null,26,null,57,null,null,null,null,null,null,null,null,null,null,null,null,1800,3310,3260,50,null,null,null,null,null,null,null,null,null,null,null,null,null,null,null,null,null,null,null,null,null,null,null,null,null,null,26,null,700,552,552,500,null,null,null,null,null,null,null,null,null,null,null,null,null,null,null,null,null,null,null,null,null,null,null,null,null,null,null,null,null,null,null,null,null,null,null,null,null,null,null,null,null,null,null,null,null,null,null,16684,-16684]
[" Keski-Pohjanmaan liitto",10310,null,1.2757517594369803,41.7,-2549,null,null,null,58.7,149,7,6933.1378853792321,1030,1784,1783,1,null,null,null,null,null,null,0,null,null,null,null,null,null,null,null,null,null,null,null,null,null,null,null,null,null,null,13,null,97,null,null,0.75782798256044392,53.8,-3295,null,null,null,51,157,6,9132.7231121281475,910,1527,1557,-30,null,null,null,null,null,null,-31,null,null,null,null,null,null,null,null,null,null,null,null,null,null,null,null,null,null,null,null,null,13,null,null,null,null,null,null,null,null,null,null,null,null,810,1408,1408,0,null,null,null,null,null,null,null,null,null,null,null,null,null,null,null,null,null,null,null,null,null,null,null,null,null,null,10,null,78,null,null,null,null,null,null,null,null,null,null,null,null,810,1408,1408,null,null,null,null,null,null,null,null,null,null,null,null,null,null,null,null,null,null,null,null,null,null,null,null,null,null,null,10,null,601,512,512,475,null,null,null,null,null,null,null,null,null,null,null,null,null,null,null,null,null,null,null,null,null,null,null,null,null,null,null,null,null,null,null,null,null,null,null,null,null,null,null,null,null,null,null,null,null,null,null,2835,-2835]
[" Etelä-Pohjanmaan liitto",2111,null,1.4818941504178273,27.9,-630,null,null,null,73.3,866,47,6533.2721431849477,1945,3203,3312,-109,null,null,null,null,null,null,-96,null,null,null,null,null,null,null,null,null,null,null,null,null,null,null,null,null,null,null,32,null,213,null,null,1.7429718875502007,32.299999999999997,-1278,null,null,null,68.8,476,24,7232.8830926874716,1892977,3038178,3089699,-51521,null,null,null,null,null,null,-46521,null,null,null,null,null,null,null,null,null,null,null,null,null,null,null,null,null,null,null,null,null,29,null,null,null,null,null,null,null,null,null,null,null,null,1828,2951,3025,-74,null,null,null,null,null,null,-70866,null,null,null,null,null,null,null,null,null,null,null,null,null,null,null,null,null,null,null,28,null,302,null,null,null,null,null,null,null,null,null,null,null,null,1828,3001,3025,-24,null,null,null,null,null,null,-20,null,null,null,null,null,null,null,null,null,null,null,null,null,null,null,null,null,null,null,28,null,1000,845818,845818,841,null,null,null,null,null,null,null,null,null,null,null,null,null,null,null,null,null,null,null,null,null,null,null,null,null,null,null,null,null,null,null,null,null,null,null,null,null,null,null,null,null,null,null,null,null,null,null,226,-226]
[" Österbottens förbund - Pohjanmaan liitto",1769,null,5.1640625,57.1,-1963,null,null,null,60,561,23,8087.5550660792951,1638,2864,3639,-775,null,null,null,null,null,null,0,null,null,null,null,null,null,null,null,null,null,null,null,null,null,null,null,null,null,null,33,null,94,null,null,1.2613636363636365,59.6,-2621,null,null,null,58.5,12,1,9079.3650793650795,1642,2864,4089,-1225,null,null,null,null,null,null,-100,null,null,null,null,null,null,null,null,null,null,null,null,null,null,null,null,null,null,null,null,null,32,null,null,null,null,null,null,null,null,null,null,null,null,null,2906,2911,-5,null,null,null,null,null,null,null,null,null,null,null,null,null,null,null,null,null,null,null,null,null,null,null,null,null,null,31,null,31,null,null,null,null,null,null,null,null,null,null,null,null,null,2960,2965,-5,null,null,null,null,null,null,null,null,null,null,null,null,null,null,null,null,null,null,null,null,null,null,null,null,null,null,31,null,476,466,466,null,null,null,null,null,null,null,null,null,null,null,null,null,null,null,null,null,null,null,null,null,null,null,null,null,null,null,null,null,null,null,null,null,null,null,null,null,null,null,null,null,null,null,null,null,null,null,null,115,-115]
[" Kymenlaakson liitto",37899,null,3.0062159076493722,53.9,-2227,null,null,null,45.1,565,34,5594.6708969670899,1856,2934,2934,0,null,null,null,null,null,null,null,null,null,null,null,null,null,null,null,null,null,null,null,null,null,null,null,null,null,null,27,null,21,null,null,0.62920168067226889,57.1,-2448,null,null,null,41.8,547,32,6307.1046397103837,1759,2601,2601,0,null,null,null,null,null,null,null,null,null,null,null,null,null,null,null,null,null,null,null,null,null,null,null,null,null,null,null,null,"25,5",null,null,null,null,null,null,null,null,null,null,null,null,1648,2500,2500,0,null,null,null,null,null,null,null,null,null,null,null,null,null,null,null,null,null,null,null,null,null,null,null,null,null,null,23,null,210,null,null,null,null,null,null,null,null,null,null,null,null,1665,2525,2525,null,null,null,null,null,null,null,null,null,null,null,null,null,null,null,null,null,null,null,null,null,null,null,null,null,null,null,23,null,816,608,608,610,null,null,null,null,null,null,null,null,null,null,null,null,null,null,null,null,null,null,null,null,null,null,null,null,null,null,null,null,null,null,null,null,null,null,null,null,null,null,null,null,null,null,null,null,null,null,null,7251,-7251]
[" Suupohjan elinkeinotoimen ky.",11197,null,-9.8280098280098274E-2,33.6,-2359,null,null,null,24.5,498,16,11695.291161367857,7086,8979,8982,-3,null,null,null,null,null,null,-3198,1157,null,null,null,null,null,null,null,null,null,null,null,null,null,null,null,null,null,null,138,null,297,null,null,0.84024650391087941,35.700000000000003,-2463,null,null,null,29.5,498,19,9464.3015521064299,6574,8177,8177,0,null,null,null,null,null,null,0,null,null,null,null,null,null,null,null,null,null,null,null,null,null,null,null,null,null,null,null,null,125,null,null,null,null,null,null,null,null,null,null,null,null,null,8341,8341,0,null,null,null,null,null,null,null,null,null,null,null,null,null,null,null,null,null,null,null,null,null,null,null,null,null,null,null,null,164,null,null,null,null,null,null,null,null,null,null,null,null,null,8507,8507,null,null,null,null,null,null,null,null,null,null,null,null,null,null,null,null,null,null,null,null,null,null,null,null,null,null,null,null,null,1517,1209,1209,null,1100,1000,null,null,null,null,null,null,null,null,null,null,null,null,null,null,null,null,null,null,null,null,null,null,null,null,null,null,null,null,null,null,null,null,null,null,null,null,null,null,null,null,null,null,null,null,null,3565,-3565]
[" Pohjois-Pohjanmaan liitto",6478,null,0.86669101533966397,64.099999999999994,-3817,null,null,null,43.9,350,16,11174.868609651219,3489,5965,6016,-51,null,null,null,null,null,null,18,18,null,null,null,null,null,null,null,null,null,null,null,null,null,null,null,null,null,null,53,null,108,null,null,0.65394832166143446,63,-3928,null,null,null,42.7,413,18,8398.8728866624915,3428,5527,5534,-7,null,null,null,null,null,null,24,24,null,null,null,null,null,null,null,null,null,null,null,null,null,null,null,null,null,null,null,null,52,null,null,null,null,null,null,null,null,null,null,null,null,3462,5583,5590,-7,null,null,null,null,null,null,24,24,null,null,null,null,null,null,null,null,null,null,null,null,null,null,null,null,null,null,52,null,212,null,null,null,null,null,null,null,null,null,null,null,null,3497,5638,5646,-8,null,null,null,null,null,null,23,23,null,null,null,null,null,null,null,null,null,null,null,null,null,null,null,null,null,null,52,null,1813,1431,1431,1460,null,null,null,-18,null,null,-24,null,null,-24,null,null,-23,null,null,null,null,null,null,null,null,null,null,null,null,null,null,null,null,null,null,null,null,null,null,null,null,null,null,null,null,null,null,null,null,null,null,2822,-2822]
[" Pohjois-Savon liitto",8866,null,0.83198210791165783,44.2,-1769,null,null,null,57.4,793,42,6770.9367759020188,1911,4242,4261,-19,null,null,null,null,null,null,-8,null,null,null,null,null,null,null,null,null,null,null,null,null,null,null,null,null,null,null,29,null,153,null,null,0.3870879120879121,46.2,-2057,null,null,null,55.4,698,35,7224.1628657247738,2024,3814,3828,-14,null,null,null,null,null,null,-10,null,null,null,null,null,null,null,null,null,null,null,null,null,null,null,null,null,null,null,null,null,28,null,null,null,null,null,null,null,null,null,null,null,null,2000,3710,3741,-31,null,null,null,null,null,null,-27,null,null,null,null,null,null,null,null,null,null,null,null,null,null,null,null,null,null,null,25,null,238,null,null,null,null,null,null,null,null,null,null,null,null,1950,3756,3771,-15,null,null,null,null,null,null,-11,null,null,null,null,null,null,null,null,null,null,null,null,null,null,null,null,null,null,null,25,null,1744,625,625,670,null,null,null,null,null,null,null,null,null,null,null,null,null,null,null,null,null,null,null,null,null,null,null,null,null,null,null,null,null,null,null,null,null,null,null,null,null,null,null,null,null,null,null,null,null,null,null,3038,-3038]
[" Etelä-Savon maakuntaliitto",1259,null,0.87183308494783907,21.6,-594,null,null,null,79.2,690,31,12895.052473763119,2061,3011,3071,-60,null,null,null,null,null,null,-60,null,null,null,null,null,null,null,null,null,null,null,null,null,null,null,null,null,null,null,36,null,282,null,null,1.6272727272727272,19,-860,null,null,null,80.5,286,13,7999.2325402916349,1948,2959,-2926,5885,null,null,null,null,null,null,33,33,null,null,null,null,null,null,null,null,null,null,null,null,null,null,null,null,null,null,null,null,34,null,null,null,null,null,null,null,null,null,null,null,null,1771,2694,2661,33,null,null,null,null,null,null,33,33,null,null,null,null,null,null,null,null,null,null,null,null,null,null,null,null,null,null,32,null,277,null,null,null,null,null,null,null,null,null,null,null,null,1790,2719,2686,33,null,null,null,null,null,null,33,33,null,null,null,null,null,null,null,null,null,null,null,null,null,null,null,null,null,null,32,null,674,668,668,598,null,null,null,null,null,null,null,null,null,null,null,null,null,null,null,null,null,null,null,null,null,null,null,null,null,null,null,null,null,null,null,null,null,null,null,null,null,null,null,null,null,null,null,null,null,null,null,97,-97]
[" Oulunkaaren kuntayhtymä OSOTE",7769,null,0.53034300791556732,42.2,-2030,null,null,null,40.4,242,14,6641.5046705377426,45090,114105,114055,50,null,null,null,null,null,null,49,119,null,null,null,null,null,null,null,null,null,null,null,null,null,null,null,null,null,null,977,null,235,null,null,0.12116418854792788,44.2,-2231,null,null,null,37.1,230,13,6652.3501837070826,45276,116913,116870,43,null,null,null,null,null,null,43,43,null,null,null,null,null,null,null,null,null,null,null,null,null,null,null,null,null,null,null,null,987,null,null,null,null,null,null,null,null,null,null,null,null,46181,119251,119207,44,null,null,null,null,null,null,44,43,null,null,null,null,null,null,null,null,null,null,null,null,null,null,null,null,null,null,997,null,255,null,null,null,null,null,null,null,null,null,null,null,null,47105,121636,121591,45,null,null,null,null,null,null,45,45,null,null,null,null,null,null,null,null,null,null,null,null,null,null,null,null,null,null,1007,null,53875,56505,56505,58788,null,null,null,null,null,null,null,null,null,null,null,null,null,null,null,null,null,null,null,null,null,8,null,null,null,null,null,null,null,null,null,null,null,null,null,null,null,null,null,null,null,null,null,null,null,null,null,2577,-2577]
[" Jokilaaksojen musiikkiopisto ky.",47031,null,0.51247290640394094,72.8,-4872,null,null,null,38.4,122,5,7438.3599871203178,1134,1404,1404,0,null,null,null,null,null,null,0,0,null,null,null,null,null,null,null,null,null,null,null,null,null,null,null,null,null,null,23,null,143,null,null,0.39129480815117523,81.7,-5508,null,null,null,34,276,11,9393.1755499967931,1138,1418,1418,0,null,null,null,null,null,null,0,0,null,null,null,null,null,null,null,null,null,null,null,null,null,null,null,null,null,null,null,null,24,null,null,null,null,null,null,null,null,null,null,null,null,1158,1449,1449,0,null,null,null,null,null,null,null,null,null,null,null,null,null,null,null,null,null,null,null,null,null,null,null,null,null,null,24,null,66,null,null,null,null,null,null,null,null,null,null,null,null,1179,1478,1478,null,null,null,null,null,null,null,null,null,null,null,null,null,null,null,null,null,null,null,null,null,null,null,null,null,null,null,24,null,152,157,157,165,null,null,null,null,null,null,null,null,null,null,null,null,null,null,null,null,null,null,null,null,null,null,null,null,null,null,null,null,null,null,null,null,null,null,null,null,null,null,null,null,null,null,null,null,null,null,null,25357,-25357]
[" Skn för Västra Nylands folkhögskola",5422604,null,1.4700660406168882,45.3,-1797,null,null,null,64.2,698,36,7153.6494262981741,1431,2136,2227,-91,null,null,null,null,null,null,59,72,null,null,null,null,null,null,null,null,null,null,null,null,null,null,null,null,null,null,27,null,"-",null,null,0.9931606097490292,48.3,-2127,null,null,null,62.1,619,30,7481.3137704182509,1322,2084,2092,-8,null,null,null,null,null,null,-5,71,null,null,null,null,null,null,null,null,null,null,null,null,null,null,null,null,null,null,null,null,25,null,null,null,null,null,null,null,null,null,null,null,null,1320,2100,2075,25,null,null,null,null,null,null,28,56,null,null,null,null,null,null,null,null,null,null,null,null,null,null,null,null,null,null,25,null,0,null,null,null,null,null,null,null,null,null,null,null,null,1320,2100,2075,25,null,null,null,null,null,null,28,59,null,null,null,null,null,null,null,null,null,null,null,null,null,null,null,null,null,null,25,null,383,384,384,380,20000,20000,20000,-130,null,null,-60,null,null,-50,null,null,-40,null,null,null,null,null,null,null,null,null,null,null,null,null,null,null,null,null,null,null,null,null,null,null,null,null,null,null,null,null,null,null,null,null,null,1315633,-1315633]
[" Keski-Uudenmaan vesiensuojelun liikelaitoskuntayhtymä",3885,null,1.3054101221640488,46.9,-2830,null,null,null,44.8,178,8,7866.7883211678827,354,4530,3552,978,null,null,null,null,null,null,988,2302,null,null,null,null,null,null,null,null,null,null,null,null,null,null,null,null,null,null,5,null,41,null,null,0.94147582697201015,51.1,-3266,null,null,null,41.4,91,4,8372.1775240072675,354,4576,3533,1043,null,null,null,null,null,null,1053,1630,null,null,null,null,null,null,null,null,null,null,null,null,null,null,null,null,null,null,null,null,5,null,null,null,null,null,null,null,null,null,null,null,null,355,4597,3558,1039,null,null,null,null,null,null,1049,1665,null,null,null,null,null,null,null,null,null,null,null,null,null,null,null,null,null,null,5,null,9,null,null,null,null,null,null,null,null,null,null,null,null,355,4678,3618,1060,null,null,null,null,null,null,1070,1692,null,null,null,null,null,null,null,null,null,null,null,null,null,null,null,null,null,null,5,null,2582,2542,2542,2550,null,null,null,-1550,null,null,-1385,null,null,-1180,null,null,-1180,null,null,null,null,null,null,null,null,null,null,null,null,null,null,null,null,null,null,null,null,null,null,null,null,null,null,null,null,null,null,null,null,null,null,1391,-1391]
[" Kvarnen samkommun",2846,null,0.95173913043478264,24,-383,null,null,null,75.7,816,44,35535.909712722299,1722,2726,2664,62,null,null,null,null,null,null,62,88,null,null,null,null,null,null,null,null,null,null,null,null,null,null,null,null,null,null,34,null,192,null,null,0.11384876805437553,56.7,-2744,null,null,null,55,649,25,9531.6804407713498,1611,2472,2389,83,null,null,null,null,null,null,83,83,null,null,null,null,null,null,null,null,null,null,null,null,null,null,null,null,null,null,null,null,34,null,null,null,null,null,null,null,null,null,null,null,null,1611,2500,2417,83,null,null,null,null,null,null,83,83,null,null,null,null,null,null,null,null,null,null,null,null,null,null,null,null,null,null,33,null,138,null,null,null,null,null,null,null,null,null,null,null,null,1642,2520,2437,83,null,null,null,null,null,null,83,83,null,null,null,null,null,null,null,null,null,null,null,null,null,null,null,null,null,null,33,null,539,413,413,430,null,null,null,-100,null,null,-100,null,null,-100,null,null,-100,null,null,null,null,null,null,null,null,null,null,null,null,null,null,null,null,null,null,null,null,null,null,null,null,null,null,null,null,null,null,null,null,null,null,846,-846]
[" Sisä-Savon seutuyhtymä",14422,null,0.87947019867549669,63.5,-2721,null,null,null,43.4,185,11,5333.9285714285716,876,1400,1380,20,null,null,null,null,null,null,20,0,null,null,null,null,null,null,null,null,null,null,null,null,null,null,null,null,null,null,16,null,89,null,null,0.44606848017323047,67.5,-2995,null,null,null,40.200000000000003,199,12,6131.484731484732,null,20,20,null,null,null,null,null,null,null,null,null,null,null,null,null,null,null,null,null,null,null,null,null,null,null,null,null,null,null,null,null,null,null,null,null,null,null,null,null,null,null,null,null,null,null,null,null,null,null,null,null,null,null,null,null,null,null,null,null,null,null,null,null,null,null,null,null,null,null,null,null,null,null,null,null,null,124,null,null,null,null,null,null,null,null,null,null,null,null,null,null,null,null,null,null,null,null,null,null,null,null,null,null,null,null,null,null,null,null,null,null,null,null,null,null,null,null,null,null,0,null,360,10,10,0,null,null,null,null,null,null,null,null,null,null,null,null,null,null,null,null,null,null,null,null,null,null,null,null,null,null,null,null,null,null,null,null,null,null,null,null,null,null,null,null,null,null,null,null,null,null,null,5816,-5816]
[" Svenska Österbottens förbund för utbildning och kultur",2218,null,3.9910179640718564,17,1,null,null,null,73.400000000000006,855,45,6972.8768341485102,18825,30204,28500,1704,null,null,null,null,null,null,1452,1340,null,null,null,null,null,null,null,null,null,null,null,null,null,null,null,null,null,null,290,null,27,null,null,1.6325757575757576,21.1,-657,null,null,null,70.599999999999994,537,25,7830.6451612903229,17225,27461,25785,1676,null,null,null,null,null,null,1409,1327,null,null,null,null,null,null,null,null,null,null,null,null,null,null,null,null,null,null,null,null,276,null,null,null,null,null,null,null,null,null,null,null,null,17311,27586,25919,1667,null,null,null,null,null,null,1415,1345,null,null,null,null,null,null,null,null,null,null,null,null,null,null,null,null,null,null,276,null,151,null,null,null,null,null,null,null,null,null,null,null,null,17397,27462,25961,1501,null,null,null,null,null,null,1265,1365,null,null,null,null,null,null,null,null,null,null,null,null,null,null,null,null,null,null,276,null,4677,3979,3979,4019,null,null,null,-3843,400,null,-1025,null,null,-1635,null,null,-515,null,null,null,null,null,null,null,null,11341,null,null,null,10765,null,null,null,10189,null,null,null,9612,null,null,null,null,null,null,null,null,null,null,null,null,null,240,-240]
[" Haapaveden-Siikalatvan seudun kuntayhtymä",2423,null,6.3636363636363633,17.600000000000001,-363,null,null,null,77.5,388,22,6664.4817697664894,150,625,621,4,null,null,null,null,null,null,0,null,null,null,null,null,null,null,null,null,null,null,null,null,null,null,null,null,null,null,null,null,109,null,null,5.6238532110091741,17.8,-136,null,null,null,77.400000000000006,631,35,6533.8775510204086,162,593,589,4,null,null,null,null,null,null,0,null,null,null,null,null,null,null,null,null,null,null,null,null,null,null,null,null,null,null,null,null,null,null,null,null,null,null,null,null,null,null,null,null,null,162,593,589,4,null,null,null,null,null,null,null,null,null,null,null,null,null,null,null,null,null,null,null,null,null,null,null,null,null,null,null,null,33,null,null,null,null,null,null,null,null,null,null,null,null,162,593,589,4,null,null,null,null,null,null,null,null,null,null,null,null,null,null,null,null,null,null,null,null,null,null,null,null,null,null,null,null,445,404,404,404,null,null,null,null,null,null,null,null,null,null,null,null,null,null,null,null,null,null,null,null,null,null,null,null,null,null,null,null,null,null,null,null,null,null,null,null,null,null,null,null,null,null,null,null,null,null,null,100,-100]
[" Itä-Lapin kuntayhtymä",54771,null,0.36319127628797149,75.3,-3867,null,null,null,51.6,236,12,6565.3918403822654,335,816,835,-19,null,null,null,null,null,null,-20,0,null,null,null,null,null,null,null,null,null,null,null,null,null,null,null,null,null,null,8,null,214,null,null,-0.28699484200510794,81.7,-4626,null,null,null,47.2,".",".",7912.3612705702253,178,326,360,-34,null,null,null,null,null,null,-35,0,null,null,null,null,null,null,null,null,null,null,null,null,null,null,null,null,null,null,null,null,4,null,null,null,null,null,null,null,null,null,null,null,null,null,null,null,null,null,null,null,null,null,null,null,null,null,null,null,null,null,null,null,null,null,null,null,null,null,null,null,null,null,null,null,null,243,null,null,null,null,null,null,null,null,null,null,null,null,null,null,null,null,null,null,null,null,null,null,null,null,null,null,null,null,null,null,null,null,null,null,null,null,null,null,null,null,null,null,null,null,330,125,125,null,null,null,1700,null,null,null,null,null,null,null,null,null,null,null,null,null,null,null,null,null,null,852,null,null,null,20,null,null,null,null,null,null,null,null,null,null,null,null,null,null,null,null,null,null,null,null,null,26950,-26950]
[" Vaasanseudun Areenat Kuntayhtymä",86926,null,0.85852007211980719,36.4,-1639,null,null,null,61.7,217,12,6762.3876574508668,1076,2734,2350,384,null,null,null,null,null,null,383,383,null,null,null,null,null,null,null,null,null,null,null,null,null,null,null,null,null,null,19,null,197,null,null,0.10989942584100805,42.4,-2093,null,null,null,56.3,229,11,7385.1837426686216,1099,2827,2339,488,null,null,null,null,null,null,484,484,null,null,null,null,null,null,null,null,null,null,null,null,null,null,null,null,null,null,null,null,19,null,null,null,null,null,null,null,null,null,null,null,null,1115,2855,2362,493,null,null,null,null,null,null,490,490,null,null,null,null,null,null,null,null,null,null,null,null,null,null,null,null,null,null,20,null,154,null,null,null,null,null,null,null,null,null,null,null,null,1132,2883,2385,498,null,null,null,null,null,null,495,495,null,null,null,null,null,null,null,null,null,null,null,null,null,null,null,null,null,null,21,null,552,472,472,490,null,null,null,-3077,2779,null,-175,null,null,-300,null,null,-200,null,null,null,null,null,null,null,null,null,null,null,null,null,null,null,null,null,null,null,null,null,null,null,null,null,null,null,null,null,null,null,null,null,null,21744,-21744]
[" Pohjois-Lapin alueyhteistyön kuntayhtymä",7001,null,0.64092397862437511,54.2,-2447,null,null,null,40.700000000000003,387,19,14674.746335963924,115,296,308,-12,null,null,null,null,null,null,-12,0,null,null,null,null,null,null,null,null,null,null,null,null,null,null,null,null,null,null,"2,5",null,274,null,null,-1.8231854145166839E-2,57.1,-2913,null,null,null,35.4,403,20,7525.7264351523745,50,48,120,-72,null,null,null,null,null,null,-72,0,null,null,null,null,null,null,null,null,null,null,null,null,null,null,null,null,null,null,null,null,"0,5",null,null,null,null,null,null,null,null,null,null,null,null,25,48,60,-12,null,null,null,null,null,null,-12,0,null,null,null,null,null,null,null,null,null,null,null,null,null,null,null,null,null,null,"0,3",null,262,null,null,null,null,null,null,null,null,null,null,null,null,25,48,60,-12,null,null,null,null,null,null,-12,null,null,null,null,null,null,null,null,null,null,null,null,null,null,null,null,null,null,null,"0,3",null,180,30,30,15,null,null,null,null,null,null,null,null,null,null,null,null,null,null,null,null,null,null,null,null,null,null,null,null,null,null,null,null,null,null,null,null,null,null,null,null,null,null,null,null,null,null,null,null,null,null,null,2310,-2310]
[" Helsingin seudun liikenne-kuntayhtymä (HSL)",6682,null,0.59857723577235777,37.299999999999997,-1618,null,null,null,39,551,30,7297.2608890884594,17899,601623,601657,-34,null,null,null,null,null,null,-619,7632,null,null,null,null,null,null,null,null,null,null,null,null,null,null,null,null,null,null,378,null,247,null,null,0.37006737247353222,41.2,-2042,null,null,null,34,485,25,7176.1176117611767,19001,614754,614878,-124,null,null,null,null,null,null,-669,9217,null,null,null,null,null,null,null,null,null,null,null,null,null,null,null,null,null,null,null,null,380,null,null,null,null,null,null,null,null,null,null,null,null,19001,676400,666836,9564,null,null,null,null,null,null,8419,17873,null,null,null,null,null,null,null,null,null,null,null,null,null,null,null,null,null,null,380,null,284,null,null,null,null,null,null,null,null,null,null,null,null,19001,744747,730762,13985,null,null,null,null,null,null,12640,19075,null,null,null,null,null,null,null,null,null,null,null,null,null,null,null,null,null,null,379,null,575784,587912,587912,703619,null,null,null,-22730,null,null,-48504,null,null,-11410,null,null,-7900,null,null,null,null,null,null,null,null,23000,null,null,null,30000,null,null,null,36667,null,null,null,42222,null,null,null,null,null,null,null,null,null,null,null,null,null,1528,-1528]
[" Keski-Savon Jätehuolto liikelaitoskuntayhtymä",9104,null,0.19222720478325858,29.5,-114,null,null,null,64.099999999999994,1515,76,7094.6003856867364,758,5030,4444,586,null,null,null,null,null,null,356,155,null,null,null,null,null,null,null,null,null,null,null,null,null,null,null,null,null,null,20,null,268,null,null,-4.8867699642431463E-2,34.9,-583,null,null,null,58.8,1601,75,7745.7792207792209,754,5273,4676,597,null,null,null,null,null,null,366,155,null,null,null,null,null,null,null,null,null,null,null,null,null,null,null,null,null,null,null,null,20,null,null,null,null,null,null,null,null,null,null,null,null,771,5418,4809,609,null,null,null,null,null,null,363,155,null,null,null,null,null,null,null,null,null,null,null,null,null,null,null,null,null,null,20,null,174,null,null,null,null,null,null,null,null,null,null,null,null,791,5569,4895,674,null,null,null,null,null,null,429,155,null,null,null,null,null,null,null,null,null,null,null,null,null,null,null,null,null,null,20,null,2378,2411,2411,2535,null,null,null,-150,null,null,-2200,null,null,-300,null,null,-300,null,null,null,null,null,null,null,null,null,null,null,null,1000,null,null,null,null,null,null,null,null,null,null,null,null,null,null,null,null,null,null,null,null,null,3111,-3111]
[" Ounastähti Kehittämiskuntayhtymä",2409,null,1.7316602316602316,18.600000000000001,61,null,null,null,81.400000000000006,1113,57,8669.8602794411181,10,6020,2192,3828,null,null,null,null,null,null,4079,null,null,null,null,null,null,null,null,null,null,null,null,null,null,null,null,null,null,null,0,null,22,null,null,2.1218274111675126,15.2,303,null,null,null,83.7,1262,60,7668.1706316652999,5,null,25,-25,null,null,null,null,null,null,2569,null,null,null,null,null,null,null,null,null,null,null,null,null,null,null,null,null,null,null,null,null,null,null,null,null,null,null,null,null,null,null,null,null,null,5,null,26,-26,null,null,null,null,null,null,2442,null,null,null,null,null,null,null,null,null,null,null,null,null,null,null,null,null,null,null,null,null,97,null,null,null,null,null,null,null,null,null,null,null,null,6,null,27,-27,null,null,null,null,null,null,2415,null,null,null,null,null,null,null,null,null,null,null,null,null,null,null,null,null,null,null,0,null,2182,20,20,21,null,null,null,null,null,null,null,null,null,null,null,null,null,null,null,null,null,null,null,null,null,null,null,null,null,null,null,null,null,null,null,null,null,null,null,null,null,null,null,null,null,null,null,null,null,null,null,780,-780]
[" Keski-Satakunnan terveydenhuollon kuntayhtymä",106342,null,3.2079397988174767,43.9,-2057,null,null,null,59,461,23,6353.914997998625,12060,28865,29347,-482,null,null,null,null,null,null,-542,416,null,null,null,null,null,null,null,null,null,null,null,null,null,null,null,null,null,null,340,null,65,null,null,0.69880294917439933,46.6,-2584,null,null,null,55.6,111,5,7801.1130371316485,15047,28889,28560,329,null,null,null,null,null,null,275,275,null,null,null,null,null,null,null,null,null,null,null,null,null,null,null,null,null,null,null,null,342,null,null,null,null,null,null,null,null,null,null,null,null,15122,29034,28702,332,null,null,null,null,null,null,276,276,null,null,null,null,null,null,null,null,null,null,null,null,null,null,null,null,null,null,342,null,110,null,null,null,null,null,null,null,null,null,null,null,null,null,null,null,null,null,null,null,null,null,null,null,null,null,null,null,null,null,null,null,null,null,null,null,null,null,null,null,null,null,null,null,null,9387,9010,9010,null,null,null,null,-250,null,null,-349,null,null,-250,null,null,null,null,null,null,null,null,null,null,null,3838,null,null,null,4471,null,null,null,3838,null,null,null,null,null,null,null,null,null,null,null,null,null,null,null,null,null,12990,-12990]
[" Forssan seudun hyvinvointikuntayhtymä",3819,null,null,14,-87,null,null,null,83.3,123,7,27156.682027649767,54362,122152,120123,2029,null,null,null,null,null,null,1965,1910,null,null,null,null,null,null,null,null,null,null,null,null,null,null,null,null,null,null,1100,null,181,null,null,-40.46153846153846,26.4,-922,null,null,null,71.400000000000006,118,6,7597.5578072226554,53973,126137,124136,2001,null,null,null,null,null,null,1940,1940,null,null,null,null,null,null,null,null,null,null,null,null,null,null,null,null,null,null,null,null,1100,null,null,null,null,null,null,null,null,null,null,null,null,54430,127296,12295,115001,null,null,null,null,null,null,1940,1940,null,null,null,null,null,null,null,null,null,null,null,null,null,null,null,null,null,null,1100,null,298,null,null,null,null,null,null,null,null,null,null,null,null,54887,128461,126460,2001,null,null,null,null,null,null,1940,1940,null,null,null,null,null,null,null,null,null,null,null,null,null,null,null,null,null,null,1100,null,48190,51738,51738,52778,null,null,null,-1450,null,null,-1630,null,null,-1750,null,null,-1700,null,null,null,null,null,null,null,null,2080,null,null,null,1630,null,null,null,1180,null,null,null,730,null,null,null,null,null,null,null,null,null,null,null,null,null,0,0]
[" Muonion-Enontekiön kansanterveystyön ky.",14322,null,-1.3944954128440368,29,-140,null,null,null,80.099999999999994,1269,64,6466.850638151087,4315,6134,6182,-48,null,null,null,null,null,null,55,55,null,null,null,null,null,null,null,null,null,null,null,null,null,null,null,null,null,null,"69,8",null,312,null,null,0.80217864923747273,42.5,-801,null,null,null,73,1414,71,7250.7815213615841,4298,6281,6241,40,null,null,null,null,null,null,43,43,null,null,null,null,null,null,null,null,null,null,null,null,null,null,null,null,null,null,null,null,"67,1",null,null,null,null,null,null,null,null,null,null,null,null,4232,6212,6175,37,null,null,null,null,null,null,37,37,null,null,null,null,null,null,null,null,null,null,null,null,null,null,null,null,null,null,"66,7",null,90,null,null,null,null,null,null,null,null,null,null,null,null,4238,6210,6180,30,null,null,null,null,null,null,29,29,null,null,null,null,null,null,null,null,null,null,null,null,null,null,null,null,null,null,"66,7",null,1187,1334,1334,1334,null,null,null,-221,null,null,-138,null,null,null,null,null,null,null,null,null,null,null,null,null,null,null,null,null,null,null,null,null,null,null,null,null,null,null,null,null,null,null,null,null,null,null,null,null,null,null,null,1962,-1962]
[" Nurmeksen ja Valtimon terveydenhuollon ky.",869,null,1.4855072463768115,29.7,-458,null,null,null,72.2,1317,59,21756.207674943569,8591,24783,24303,480,null,null,null,null,null,null,490,490,null,null,null,null,null,null,null,null,null,null,null,null,null,null,null,null,null,null,170,null,68,null,null,2.8976744186046512,25.7,-825,null,null,null,74,817,32,9193.4758155230593,8283,24942,24483,459,null,null,null,null,null,null,470,489,null,null,null,null,null,null,null,null,null,null,null,null,null,null,null,null,null,null,null,null,163,null,null,null,null,null,null,null,null,null,null,null,null,8283,24816,24357,459,null,null,null,null,null,null,462,489,null,null,null,null,null,null,null,null,null,null,null,null,null,null,null,null,null,null,163,null,5,null,null,null,null,null,null,null,null,null,null,null,null,8283,24816,24357,459,null,null,null,null,null,null,462,489,null,null,null,null,null,null,null,null,null,null,null,null,null,null,null,null,null,null,163,null,14257,14679,14679,14552,null,null,null,-180,null,null,-59,null,null,-100,null,null,-100,null,null,null,null,null,null,null,null,null,null,null,null,null,null,null,null,null,null,null,null,null,null,null,null,null,null,null,null,null,null,null,null,null,null,174,-174]
[" Orimattilan seudun terveydenhuollon kiinteistökuntayhtymä",15952,null,0.54186983252066989,36.6,-820,null,null,null,65,1091,53,6542.6616991388255,679,1350,1026,324,null,null,null,null,null,null,203,203,null,null,null,null,null,null,null,null,null,null,null,null,null,null,null,null,null,null,null,null,231,null,null,1.1483171705647461,38.299999999999997,-873,null,null,null,63.2,1301,66,7172.2644893919714,633,1310,987,323,null,null,null,null,null,null,200,200,null,null,null,null,null,null,null,null,null,null,null,null,null,null,null,null,null,null,null,null,null,null,null,null,null,null,null,null,null,null,null,null,null,630,1308,989,319,null,null,null,null,null,null,196,196,null,null,null,null,null,null,null,null,null,null,null,null,null,null,null,null,null,null,null,null,102,null,null,null,null,null,null,null,null,null,null,null,null,625,1305,986,319,null,null,null,null,null,null,195,195,null,null,null,null,null,null,null,null,null,null,null,null,null,null,null,null,null,null,null,null,124,122,122,125,null,null,null,-150,null,null,-100,null,null,-100,null,null,-100,null,null,null,null,null,null,null,null,null,null,null,null,null,null,null,null,null,null,null,null,null,null,null,null,null,null,null,null,null,null,null,null,null,null,4686,-4686]
[" Paimion-Sauvon kansanterveystyön ky.",1431,null,0.72312703583061888,64.8,-878,null,null,null,57.3,3218,165,7137.0592149035256,5638,8531,8132,399,null,null,null,null,null,null,282,282,null,null,null,null,null,null,null,null,null,null,null,null,null,null,null,null,null,null,96,null,98,null,null,-0.63038548752834467,80.3,-1831,null,null,null,49.3,3285,148,8075.5616065350569,5540,8601,8177,424,null,null,null,null,null,null,315,315,null,null,null,null,null,null,null,null,null,null,null,null,null,null,null,null,null,null,null,null,97,null,null,null,null,null,null,null,null,null,null,null,null,5540,8601,8177,424,null,null,null,null,null,null,315,315,null,null,null,null,null,null,null,null,null,null,null,null,null,null,null,null,null,null,97,null,303,null,null,null,null,null,null,null,null,null,null,null,null,5540,8601,8177,424,null,null,null,null,null,null,315,315,null,null,null,null,null,null,null,null,null,null,null,null,null,null,null,null,null,null,97,null,1726,1836,1836,1836,null,null,null,-215,null,null,-193,null,null,-193,null,null,-193,null,null,null,null,null,null,null,null,3696,null,null,null,3761,null,null,null,3826,null,null,null,3891,null,null,null,null,null,null,null,null,null,null,null,null,null,780,-780]
[" Pelkosenniemen-Savukosken kansanterveystyön ky.",4755,null,2.5714285714285716,48.1,-2264,null,null,null,41.8,489,28,6292.4135056273453,3312,5083,4953,130,null,null,null,null,null,null,111,222,null,null,null,null,null,null,null,null,null,null,null,null,null,null,null,null,null,null,"57,35",null,103,null,null,-1.4935567010309279,49.1,-2654,null,null,null,35,121,7,6490.7795473595979,3310,5057,4946,111,null,null,null,null,null,null,93,93,null,null,null,null,null,null,null,null,null,null,null,null,null,null,null,null,null,null,null,null,"59,35",null,null,null,null,null,null,null,null,null,null,null,null,3310,5058,4946,112,null,null,null,null,null,null,94,94,null,null,null,null,null,null,null,null,null,null,null,null,null,null,null,null,null,null,"59,35",null,291,null,null,null,null,null,null,null,null,null,null,null,null,3310,5060,4946,114,null,null,null,null,null,null,96,96,null,null,null,null,null,null,null,null,null,null,null,null,null,null,null,null,null,null,"59,35",null,964,969,969,970,730,null,620,-80,null,null,-244,null,null,-151,null,null,-55,null,null,null,null,null,null,null,null,720,null,null,null,670,null,null,null,620,null,null,null,570,null,null,null,null,null,null,null,null,null,null,null,null,null,524,-524]
[" Pöytyän  kansanterveystyön ky.",2721,null,0.594188376753507,81,-1955,null,null,null,40.799999999999997,2897,135,7808.7974459028019,6412,9136,8791,345,null,null,null,null,null,null,331,331,null,null,null,null,null,null,null,null,null,null,null,null,null,null,null,null,null,null,112,null,119,null,null,0.18341968911917098,84.7,-2159,null,null,null,39.5,2889,137,7690.579710144927,6476,9291,8970,321,null,null,null,null,null,null,312,312,null,null,null,null,null,null,null,null,null,null,null,null,null,null,null,null,null,null,null,null,115,null,null,null,null,null,null,null,null,null,null,null,null,6507,9313,8994,319,null,null,null,null,null,null,311,311,null,null,null,null,null,null,null,null,null,null,null,null,null,null,null,null,null,null,115,null,42,null,null,null,null,null,null,null,null,null,null,null,null,6537,9313,9005,308,null,null,null,null,null,null,302,302,null,null,null,null,null,null,null,null,null,null,null,null,null,null,null,null,null,null,115,null,1362,1498,1498,1506,500,null,360,-218,null,null,-146,null,null,-107,null,null,-167,null,null,null,null,null,null,null,null,213,null,null,null,113,null,null,null,38,null,null,null,null,null,null,null,null,null,null,null,null,null,null,null,null,null,1691,-1691]
[" Sote kuntayhtymä/Perusturvaliikelaitos Saarikka",2688,null,-6.8783068783068779E-2,24.9,-1005,null,null,null,59.6,135,9,5527.4607703281035,30851,83458,82693,765,null,null,null,null,null,null,765,158,null,null,null,null,null,null,null,null,null,null,null,null,null,null,null,null,null,null,605,null,289,null,null,-1.0621761658031088,28.7,-1223,null,null,null,52.7,119,8,5750.545454545454,31270,84489,83831,658,null,null,null,null,null,null,658,202,null,null,null,null,null,null,null,null,null,null,null,null,null,null,null,null,null,null,null,null,600,null,null,null,null,null,null,null,null,null,null,null,null,31683,84900,84811,89,null,null,null,null,null,null,89,89,null,null,null,null,null,null,null,null,null,null,null,null,null,null,null,null,null,null,600,null,208,null,null,null,null,null,null,null,null,null,null,null,null,31755,85095,85028,67,null,null,null,null,null,null,67,67,null,null,null,null,null,null,null,null,null,null,null,null,null,null,null,null,null,null,600,null,39685,39969,39969,40513,null,null,null,-157,null,null,-36,null,null,-76,null,null,-50,null,null,null,null,null,null,null,null,null,null,null,null,null,null,null,null,null,null,null,null,null,null,null,null,null,null,null,null,null,null,null,null,null,null,158,-158]
[" Sisä-Savon terveydenhuollon ky.",103364,null,1.8645258404415455,78.099999999999994,-2944,null,null,null,54.4,846,45,5679.0084841850103,8119,26920,26611,309,null,null,null,null,null,null,314,42,null,null,null,null,null,null,null,null,null,null,null,null,null,null,null,null,null,null,135,null,91,null,null,1.4510855844483717,87.8,-3571,null,null,null,50.7,547,27,7302.8849887396136,7925,25376,25338,38,null,null,null,null,null,null,null,38,null,null,null,null,null,null,null,null,null,null,null,null,null,null,null,null,null,null,null,null,123,null,null,null,null,null,null,null,null,null,null,null,null,7925,25376,25338,38,null,null,null,null,null,null,null,32,null,null,null,null,null,null,null,null,null,null,null,null,null,null,null,null,null,null,123,null,256,null,null,null,null,null,null,null,null,null,null,null,null,null,null,null,null,null,null,null,null,null,null,null,null,null,null,null,null,null,null,null,null,null,null,null,null,null,null,null,null,null,null,null,null,17098,16014,16014,null,null,null,null,-58,null,null,-30,null,null,null,null,null,null,null,null,null,null,null,null,null,null,1764,null,null,null,1700,null,null,null,1700,null,null,null,null,null,null,null,null,null,null,null,null,null,null,null,null,null,19835,-19835]
[" Säkylän ja Köyliön terveydenhuollon kuntayhtymä",8007,null,0.12003872216844143,27.4,-1144,null,null,null,66.2,62,4,5705.4077902432882,6323,9520,8886,634,null,null,null,null,null,null,433,433,null,null,null,null,null,null,null,null,null,null,null,null,null,null,null,null,null,null,"103,5",null,285,null,null,0.60138248847926268,30.8,-1528,null,null,null,61.3,13,1,6356.6871012135616,5520,8610,8014,596,null,null,null,null,null,null,471,471,null,null,null,null,null,null,null,null,null,null,null,null,null,null,null,null,null,null,null,null,"89,5",null,null,null,null,null,null,null,null,null,null,null,null,5522,8611,8016,595,null,null,null,null,null,null,471,471,null,null,null,null,null,null,null,null,null,null,null,null,null,null,null,null,null,null,"89,5",null,296,null,null,null,null,null,null,null,null,null,null,null,null,5522,8611,8016,595,null,null,null,null,null,null,471,471,null,null,null,null,null,null,null,null,null,null,null,null,null,null,null,null,null,null,"89,5",null,1423,1462,1462,1462,null,null,null,-78,null,null,-60,null,null,null,null,null,null,null,null,null,null,null,null,null,null,6940,null,null,null,6620,null,null,null,6303,null,null,null,5986,null,null,null,null,null,null,null,null,null,null,null,null,null,926,-926]
[" Vieskan liikelaitoskuntayhtymä",8487,null,4.7459749552772807,29.9,-1209,null,null,null,70.7,9,0,7042.2216936251189,1580,3935,2672,1263,null,null,null,null,null,null,1097,757,null,null,null,null,null,null,null,null,null,null,null,null,null,null,null,null,null,null,37,null,137,null,null,3.5652173913043477,32.299999999999997,-1403,null,null,null,67.8,2,0,6636.5248226950353,174,2230,1152,1078,null,null,null,null,null,null,1050,750,null,null,null,null,null,null,null,null,null,null,null,null,null,null,null,null,null,null,null,null,4,null,null,null,null,null,null,null,null,null,null,null,null,175,2230,1150,1080,null,null,null,null,null,null,1050,750,null,null,null,null,null,null,null,null,null,null,null,null,null,null,null,null,null,null,5,null,197,null,null,null,null,null,null,null,null,null,null,null,null,175,2230,1150,1080,null,null,null,null,null,null,1050,750,null,null,null,null,null,null,null,null,null,null,null,null,null,null,null,null,null,null,5,null,366,379,379,380,null,null,null,-1000,null,null,-2230,null,null,-1000,null,null,-1000,null,null,null,null,null,null,null,null,9000,null,null,null,8500,null,null,null,8000,null,null,null,8000,null,null,null,null,null,null,null,null,null,null,null,null,null,271,-271]
[" Riihimäen seudun terveyskeskuksen ky.",2820,null,0.28360957642725598,30.4,-1696,null,null,null,56.3,131,6,10911.867977528089,21586,34711,33687,1024,null,null,null,null,null,null,943,950,null,null,null,null,null,null,null,null,null,null,null,null,null,null,null,null,null,null,421,null,301,null,null,2.9958932238193019,31.5,-2041,null,null,null,57.7,57,2,8401.5553199010246,21416,34264,33254,1010,null,null,null,null,null,null,954,961,null,null,null,null,null,null,null,null,null,null,null,null,null,null,null,null,null,null,null,null,424,null,null,null,null,null,null,null,null,null,null,null,null,22273,35635,34584,1051,null,null,null,null,null,null,992,999,null,null,null,null,null,null,null,null,null,null,null,null,null,null,null,null,null,null,null,null,64,null,null,null,null,null,null,null,null,null,null,null,null,23164,37060,35968,1092,null,null,null,null,null,null,1032,1039,null,null,null,null,null,null,null,null,null,null,null,null,null,null,null,null,null,null,null,null,8638,8278,8278,8953,null,null,null,-703,null,null,-769,null,null,-648,null,null,-60,null,null,null,null,null,null,null,null,1788,null,null,null,489,null,null,null,253,null,null,null,106,null,null,null,null,null,null,null,null,null,null,null,null,null,213,{"$f":"HX126*-1","v":-213}]
[" Raahen seudun hyvinvointikuntayhtymä",10176,null,2.0375556970082749,35.4,-1836,null,null,null,63.2,149,8,6446.8515309069899,54789,126007,124197,1810,null,null,null,null,null,null,1697,1720,null,null,null,null,null,null,null,null,null,null,null,null,null,null,null,null,null,null,1280,null,126,null,null,-0.63818807339449546,46.8,-2554,null,null,null,57.1,38,2,8374.574788609194,54805,128722,127039,1683,null,null,null,null,null,null,1620,1636,null,null,null,null,null,null,null,null,null,null,null,null,null,null,null,null,null,null,null,null,1270,null,null,null,null,null,null,null,null,null,null,null,null,55607,131446,129590,1856,null,null,null,null,null,null,1783,1750,null,null,null,null,null,null,null,null,null,null,null,null,null,null,null,null,null,null,1260,null,246,null,null,null,null,null,null,null,null,null,null,null,null,56717,134432,132519,1913,null,null,null,null,null,null,1830,1800,null,null,null,null,null,null,null,null,null,null,null,null,null,null,null,null,null,null,1250,null,54753,57405,57405,60223,null,null,null,-1492,null,null,-1955,null,null,-1796,null,null,-650,null,null,null,null,null,null,null,null,9450,null,null,null,9449,null,null,null,9448,null,null,null,9447,null,null,null,null,null,null,null,null,null,null,null,null,null,1488,-1488]
[" Kuusiokuntien terveyskuntayhtymä",3317,null,0.88275987620608043,34.799999999999997,-1533,null,null,null,70,211,12,27187.718277066357,20887,29478,29153,325,null,null,null,null,null,null,322,338,null,null,null,null,null,null,null,null,null,null,null,null,null,null,null,null,null,null,384,null,286,null,null,0.8471153846153846,43.5,-2309,null,null,null,62.4,350,17,7571.6819391073013,21035,30010,29627,383,null,null,null,null,null,null,380,397,null,null,null,null,null,null,null,null,null,null,null,null,null,null,null,null,null,null,null,null,384,null,null,null,null,null,null,null,null,null,null,null,null,21349,30460,30067,393,null,null,null,null,null,null,390,402,null,null,null,null,null,null,null,null,null,null,null,null,null,null,null,null,null,null,380,null,141,null,null,null,null,null,null,null,null,null,null,null,null,21666,30911,30514,397,null,null,null,null,null,null,394,409,null,null,null,null,null,null,null,null,null,null,null,null,null,null,null,null,null,null,380,null,5542,5712,5712,5882,null,450,null,-490,null,null,-395,null,null,-400,null,null,-400,null,null,null,null,null,null,null,null,null,null,null,null,null,null,null,null,null,null,null,null,null,null,null,null,null,null,null,null,null,null,null,null,null,null,651,-651]
[" Kuntayhtymä Kaksineuvoinen",72658,null,0.83656635242929656,64.8,-2831,null,null,null,50.9,294,17,5632.0408134972895,40832,94800,94255,545,null,null,null,null,null,null,547,545,null,null,null,null,null,null,null,null,null,null,null,null,null,null,null,null,null,null,832,null,166,null,null,0.44935183375675852,72.599999999999994,-3276,null,null,null,48.1,311,17,6503.9351596155975,36403,90058,89503,555,null,null,null,null,null,null,562,560,null,null,null,null,null,null,null,null,null,null,null,null,null,null,null,null,null,null,null,null,704,null,null,null,null,null,null,null,null,null,null,null,null,36419,90622,90056,566,null,null,null,null,null,null,572,567,null,null,null,null,null,null,null,null,null,null,null,null,null,null,null,null,null,null,700,null,115,null,null,null,null,null,null,null,null,null,null,null,null,37148,92434,91857,577,null,null,null,null,null,null,583,579,null,null,null,null,null,null,null,null,null,null,null,null,null,null,null,null,null,null,700,null,43893,43896,43896,45305,null,null,null,-649,null,null,-635,null,null,-927,null,null,-700,null,null,null,null,null,null,null,null,null,null,null,null,null,null,null,null,null,null,null,null,null,null,null,null,null,null,null,null,null,null,null,null,null,null,21416,-21416]
[" Itä-Suomen laboratoriokeskuksen liikelaitoskuntayhtymä ISLAB",14692,null,1.0056384742951907,44.5,-2067,null,null,null,54.2,327,18,5717.9628355127315,26840,62961,62219,742,null,null,null,null,null,null,600,550,null,null,null,null,null,null,null,null,null,null,null,null,null,null,null,null,null,null,616,null,200,null,null,0.83538796229151557,50.2,-2503,null,null,null,48.8,289,15,6880.7508532423208,26343,62696,62151,545,null,null,null,null,null,null,532,550,null,null,null,null,null,null,null,null,null,null,null,null,null,null,null,null,null,null,null,null,621,null,null,null,null,null,null,null,null,null,null,null,null,26406,62706,62247,459,null,null,null,null,null,null,443,550,null,null,null,null,null,null,null,null,null,null,null,null,null,null,null,null,null,null,621,null,223,null,null,null,null,null,null,null,null,null,null,null,null,26406,60706,62247,-1541,null,null,null,null,null,null,443,550,null,null,null,null,null,null,null,null,null,null,null,null,null,null,null,null,null,null,621,null,16469,16538,16538,16509,null,null,null,-800,null,null,-734,null,null,-800,null,null,-800,null,null,null,null,null,null,null,null,null,null,null,null,null,null,null,null,null,null,null,null,null,null,null,null,null,null,null,null,null,null,null,null,null,null,2937,-2937]
[" Peruspalvelukuntayhtymä Kallio",18588,null,36.885057471264368,43.1,-2067,null,null,null,43.1,26,2,5187.3564475555067,52989,139450,138875,575,null,null,null,null,null,null,574,574,null,null,null,null,null,null,null,null,null,null,null,null,null,null,null,null,null,null,990,null,218,null,null,9.0088105726872243,51.4,-2590,null,null,null,36.6,30,2,6038.4178345327637,53191,140820,140249,571,null,null,null,null,null,null,570,570,null,null,null,null,null,null,null,null,null,null,null,null,null,null,null,null,null,null,null,null,990,null,null,null,null,null,null,null,null,null,null,null,null,54255,143636,143054,582,null,null,null,null,null,null,581,581,null,null,null,null,null,null,null,null,null,null,null,null,null,null,null,null,null,null,990,null,254,null,null,null,null,null,null,null,null,null,null,null,null,55340,146509,145915,594,null,null,null,null,null,null,593,593,null,null,null,null,null,null,null,null,null,null,null,null,null,null,null,null,null,null,990,null,60315,61572,61572,64059,null,null,null,-1240,null,null,-1240,null,null,-1240,null,null,-1240,null,null,null,null,null,null,null,null,null,null,null,null,null,null,null,null,null,null,null,null,null,null,null,null,null,null,null,null,null,null,null,null,null,null,63,-63]
[" Perusturvakuntayhtymä Karviainen",3130,null,2.7028301886792452,13.4,-240,null,null,null,78.900000000000006,322,22,6704.6936114732725,24384,85349,85080,269,null,null,null,null,null,null,269,269,null,null,null,null,null,null,null,null,null,null,null,null,null,null,null,null,null,null,481,null,232,null,null,0,25.5,-1096,null,null,null,64.900000000000006,96,6,6218.0451127819542,24266,116234,115965,269,null,null,null,null,null,null,269,269,null,null,null,null,null,null,null,null,null,null,null,null,null,null,null,null,null,null,null,null,454,null,null,null,null,null,null,null,null,null,null,null,null,24387,116814,116545,269,null,null,null,null,null,null,269,269,null,null,null,null,null,null,null,null,null,null,null,null,null,null,null,null,null,null,444,null,148,null,null,null,null,null,null,null,null,null,null,null,null,24509,117397,117128,269,null,null,null,null,null,null,269,269,null,null,null,null,null,null,null,null,null,null,null,null,null,null,null,null,null,null,444,null,45060,76739,76739,77509,null,null,null,-629,null,null,-365,null,null,-114,null,null,-114,null,null,null,null,null,null,null,null,null,null,null,null,null,null,null,null,null,null,null,null,null,null,null,null,null,null,null,null,null,null,null,null,null,null,110,-110]
[" Suupohjan peruspalveluliikelaitoskuntayhtymä",21829,null,1.6094177413051973,43.2,-1746,null,null,null,55.4,415,24,5426.129835312141,37230,98971,98610,361,null,null,null,null,null,null,361,366,null,null,null,null,null,null,null,null,null,null,null,null,null,null,null,null,null,null,940,null,77,null,null,0.9778748180494905,48.4,-2278,null,null,null,51.2,171,9,6753.6380597014922,37498,98925,98564,361,null,null,null,null,null,null,361,361,null,null,null,null,null,null,null,null,null,null,null,null,null,null,null,null,null,null,null,null,930,null,null,null,null,null,null,null,null,null,null,null,null,37498,98925,98564,361,null,null,null,null,null,null,361,361,null,null,null,null,null,null,null,null,null,null,null,null,null,null,null,null,null,null,930,null,86,null,null,null,null,null,null,null,null,null,null,null,null,37498,98925,98564,361,null,null,null,null,null,null,361,361,null,null,null,null,null,null,null,null,null,null,null,null,null,null,null,null,null,null,930,null,47612,46841,46841,46841,null,null,null,-862,null,null,-707,null,null,-360,null,null,-360,null,null,null,null,null,null,null,null,null,null,null,null,null,null,null,null,null,null,null,null,null,null,null,null,null,null,null,null,null,null,null,null,null,null,5084,-5084]
[" JIK-peruspalveluliikelaitoskuntayhtymä",10170,null,4.2714429868819375,18.899999999999999,-498,null,null,null,80.400000000000006,426,25,6669.101393560788,41152,111623,110842,781,null,null,null,null,null,null,833,833,null,null,null,null,null,null,null,null,null,null,null,null,null,null,null,null,null,null,928,null,86,null,null,1.4297782470960929,21.5,-858,null,null,null,77.099999999999994,262,14,6709.9474401401594,42359,118617,117713,904,null,null,null,null,null,null,960,960,null,null,null,null,null,null,null,null,null,null,null,null,null,null,null,null,null,null,null,null,956,null,null,null,null,null,null,null,null,null,null,null,null,42359,118617,117713,904,null,null,null,null,null,null,960,960,null,null,null,null,null,null,null,null,null,null,null,null,null,null,null,null,null,null,956,null,29,null,null,null,null,null,null,null,null,null,null,null,null,42359,118617,117713,904,null,null,null,null,null,null,960,960,null,null,null,null,null,null,null,null,null,null,null,null,null,null,null,null,null,null,956,null,56743,59519,59519,59519,null,null,null,-1103,null,null,-1197,null,null,-580,null,null,-285,null,null,null,null,null,null,null,null,null,null,null,null,null,null,null,null,null,null,null,null,null,null,null,null,null,null,null,null,null,null,null,null,null,null,611,-611]
[" Pohjois-Satakunnan peruspalveluliikelaitos kuntayhtymä (PoSa)",818,null,0.92647058823529416,42.6,-1583,null,null,null,70.7,694,28,18613.931523022435,29024,58017,57689,328,null,null,null,null,null,null,333,320,null,null,null,null,null,null,null,null,null,null,null,null,null,null,null,null,null,null,592,null,38,null,null,0.37732342007434944,36.6,-1596,null,null,null,73.8,380,15,9013.1736526946115,28412,57632,57365,267,null,null,null,null,null,null,270,264,null,null,null,null,null,null,null,null,null,null,null,null,null,null,null,null,null,null,null,null,578,null,null,null,null,null,null,null,null,null,null,null,null,28696,58077,57993,84,null,null,null,null,null,null,283,267,null,null,null,null,null,null,null,null,null,null,null,null,null,null,null,null,null,null,570,null,133,null,null,null,null,null,null,null,null,null,null,null,null,28985,58658,58568,90,null,null,null,null,null,null,290,270,null,null,null,null,null,null,null,null,null,null,null,null,null,null,null,null,null,null,560,null,20639,20880,20880,21334,null,null,null,-592,null,null,-487,null,null,-336,null,null,-245,null,null,null,null,null,null,null,null,null,null,null,null,null,null,null,null,null,null,null,null,null,null,null,null,null,null,null,null,null,null,null,null,null,null,502,-502]
[" Rannikko-Pohjanmaan sosiaali- ja perusterveydenhuollon ky.",12303,null,2.4679408138101109,30.2,-1011,null,null,null,65.5,703,35,7815.1767977751288,2887,4153,4095,58,null,null,null,null,null,null,57,57,null,null,null,null,null,null,null,null,null,null,null,null,null,null,null,null,null,null,47,null,129,null,null,0.43636983964517229,34.1,-1410,null,null,null,60.5,736,34,7869.8282119525766,2672,3772,3738,34,null,null,null,null,null,null,31,31,null,null,null,null,null,null,null,null,null,null,null,null,null,null,null,null,null,null,null,null,47,null,null,null,null,null,null,null,null,null,null,null,null,2840,3941,3937,4,null,null,null,null,null,null,0,0,null,null,null,null,null,null,null,null,null,null,null,null,null,null,null,null,null,null,50,null,211,null,null,null,null,null,null,null,null,null,null,null,null,2865,3971,3967,4,null,null,null,null,null,null,null,null,null,null,null,null,null,null,null,null,null,null,null,null,null,null,null,null,null,null,50,null,873,756,756,773,null,null,null,null,null,null,null,null,null,null,null,null,null,null,null,null,null,null,null,null,null,null,null,null,null,null,null,null,null,null,null,null,null,null,null,null,null,null,null,null,null,null,null,null,null,null,null,1317,-1317]
[" Peruspalvelukuntayhtymä Selänne",17172,null,1.2478527607361962,51.3,-2306,null,null,null,44,112,7,5373.3373277411629,36679,91567,91269,298,null,null,null,null,null,null,332,332,null,null,null,null,null,null,null,null,null,null,null,null,null,null,null,null,null,null,880,null,198,null,null,0.62855044074436828,56.8,-2540,null,null,null,39.1,106,7,5808.9055983081716,31647,77838,77587,251,null,null,null,null,null,null,275,275,null,null,null,null,null,null,null,null,null,null,null,null,null,null,null,null,null,null,null,null,783,null,null,null,null,null,null,null,null,null,null,null,null,32597,80173,79914,259,null,null,null,null,null,null,284,284,null,null,null,null,null,null,null,null,null,null,null,null,null,null,null,null,null,null,780,null,181,null,null,null,null,null,null,null,null,null,null,null,null,33575,82578,82312,266,null,null,null,null,null,null,292,292,null,null,null,null,null,null,null,null,null,null,null,null,null,null,null,null,null,null,780,null,42460,35603,35603,37771,null,null,null,-737,null,null,-355,null,null,-200,null,null,-200,null,null,null,null,null,null,null,null,null,null,null,null,null,null,null,null,null,null,null,null,null,null,null,null,null,null,null,null,null,null,null,null,null,null,2603,-2603]
[" Liikelaitoskuntayhtymä Meri-Lapin kuntapalvelut",9577,null,1.755855607605401,47,-2176,null,null,null,59.1,129,7,7512.4399825403761,2865,6609,6467,142,null,null,null,null,null,null,null,140,null,null,null,null,null,null,null,null,null,null,null,null,null,null,null,null,null,null,92,null,36,null,null,1.4563758389261745,47.9,-2157,null,null,null,58.6,140,8,6381.5733672603901,2966,7050,6929,121,null,null,null,null,null,null,null,120,null,null,null,null,null,null,null,null,null,null,null,null,null,null,null,null,null,null,null,null,97,null,null,null,null,null,null,null,null,null,null,null,null,2995,7071,7036,35,null,null,null,null,null,null,null,30,null,null,null,null,null,null,null,null,null,null,null,null,null,null,null,null,null,null,96,null,19,null,null,null,null,null,null,null,null,null,null,null,null,3025,7177,7144,33,null,null,null,null,null,null,null,30,null,null,null,null,null,null,null,null,null,null,null,null,null,null,null,null,null,null,95,null,762,787,787,819,null,null,null,null,null,null,null,null,null,null,null,null,null,null,null,null,null,null,null,null,null,200,null,null,null,100,null,null,null,null,null,null,null,null,null,null,null,null,null,null,null,null,null,null,null,null,null,1949,-1949]
[" Ylä-Savon SOTE kuntayhtymä",12396,null,0.75381536152114081,41.3,-2569,null,null,null,30.3,209,10,8410.7113788051447,65128,157664,156044,1620,null,null,null,null,null,null,1328,1528,null,null,null,null,null,null,null,null,null,null,null,null,null,null,null,null,null,null,1255,null,209,null,null,-0.32287188306104903,48.1,-2972,null,null,null,21.4,275,12,8390.9816891183364,64693,159617,157742,1875,null,null,null,null,null,null,1588,1588,null,null,null,null,null,null,null,null,null,null,null,null,null,null,null,null,null,null,null,null,1267,null,null,null,null,null,null,null,null,null,null,null,null,65664,162091,160108,1983,null,null,null,null,null,null,1668,1668,null,null,null,null,null,null,null,null,null,null,null,null,null,null,null,null,null,null,1267,null,145,null,null,null,null,null,null,null,null,null,null,null,null,66780,164928,162830,2098,null,null,null,null,null,null,1751,1751,null,null,null,null,null,null,null,null,null,null,null,null,null,null,null,null,null,null,1267,null,70159,72122,72122,74448,null,null,1250,-1374,null,null,-2638,null,null,-2424,null,null,-1021,null,null,null,null,null,null,null,null,1816,null,null,null,2777,null,null,null,3234,null,null,null,2784,null,null,null,null,null,null,null,null,null,null,null,null,null,3322,-3322]
[" Perusturvakuntayhtymä Akseli",47703,null,1.8733705772811917,35.700000000000003,-1831,null,null,null,59.4,111,6,6063.333836781957,23216,46087,45925,162,null,null,null,null,null,null,160,163,null,null,null,null,null,null,null,null,null,null,null,null,null,null,null,null,null,null,560,null,150,null,null,0.38608260983951592,39.200000000000003,-2143,null,null,null,54.9,109,6,6899.6085712851909,22702,45456,45249,207,null,null,null,null,null,null,204,204,null,null,null,null,null,null,null,null,null,null,null,null,null,null,null,null,null,null,null,null,550,null,null,null,null,null,null,null,null,null,null,null,null,22702,45456,45249,207,null,null,null,null,null,null,204,null,null,null,null,null,null,null,null,null,null,null,null,null,null,null,null,null,null,null,550,null,194,null,null,null,null,null,null,null,null,null,null,null,null,22702,45456,45249,207,null,null,null,null,null,null,204,null,null,null,null,null,null,null,null,null,null,null,null,null,null,null,null,null,null,null,550,null,15332,15261,15261,15261,null,null,null,-249,null,null,-232,null,null,null,null,null,null,null,null,null,null,null,null,null,null,null,null,null,null,null,null,null,null,null,null,null,null,null,null,null,null,null,null,null,null,null,null,null,null,null,null,5677,-5677]
[" Itä-Suomen huoltopalvelut  liikelaitoskuntayhtymä",16700,null,0.54482515841351797,37.700000000000003,-2136,null,null,null,52.2,155,8,6582.680436847103,40370,72524,73333,-809,null,null,null,null,null,null,-1049,1451,null,null,null,null,null,null,null,null,null,null,null,null,null,null,null,null,null,null,1231,null,163,null,null,-0.11519036519036518,47.2,-2641,null,null,null,44.5,197,10,7381.2511202724509,40090,75745,74099,1646,null,null,null,null,null,null,1291,2166,null,null,null,null,null,null,null,null,null,null,null,null,null,null,null,null,null,null,null,null,1210,null,null,null,null,null,null,null,null,null,null,null,null,40914,78194,74863,3331,null,null,null,null,null,null,2964,2155,null,null,null,null,null,null,null,null,null,null,null,null,null,null,null,null,null,null,1200,null,106,null,null,null,null,null,null,null,null,null,null,null,null,42052,81024,77445,3579,null,null,null,null,null,null,3212,2185,null,null,null,null,null,null,null,null,null,null,null,null,null,null,null,null,null,null,1200,null,6432,6630,6630,6945,null,null,null,-1262,2700,null,-7287,4300,null,-780,null,null,-745,null,null,null,null,null,null,null,null,14980,null,null,null,14140,null,null,null,12452,null,null,null,10764,null,null,null,null,null,null,null,null,null,null,null,null,null,8094,-8094]
[" Malmin kiinteistöt ky",8341,null,0.91357234314980795,49.6,-2384,null,null,null,49.8,93,6,5800.6446221797778,null,null,null,null,null,null,null,null,null,null,null,null,null,null,null,null,null,null,null,null,null,null,null,null,null,null,null,null,null,null,null,null,71,null,null,0.66591107236268532,44.8,-2195,null,null,null,53.8,141,8,6073.5364683301341,null,null,null,null,null,null,null,null,null,null,null,null,null,null,null,null,null,null,null,null,null,null,null,null,null,null,null,null,null,null,null,null,null,null,null,null,null,null,null,null,null,null,null,null,null,null,null,null,null,null,null,null,null,null,null,null,null,null,null,null,null,null,null,null,null,null,null,null,null,null,null,null,null,null,null,null,null,96,null,null,null,null,null,null,null,null,null,null,null,null,null,null,null,null,null,null,null,null,null,null,null,null,null,null,null,null,null,null,null,null,null,null,null,null,null,null,null,null,null,null,null,null,null,null,null,null,null,null,null,null,null,null,null,null,null,null,null,null,null,null,null,null,null,null,null,null,null,null,null,null,null,null,null,null,null,null,null,null,null,null,null,null,null,null,null,null,null,null,null,null,null,null,null,3878,-3878]
[" Pohjois-Karjalan maakuntaliitto",15493,null,2.225886232481451,27.7,-1229,null,null,null,61.7,462,23,6801.5046296296296,null,null,null,null,null,null,null,null,null,null,null,null,null,null,null,null,null,null,null,null,null,null,null,null,null,null,null,null,null,null,null,null,33,null,null,1.6768426842684268,25.3,-1169,null,null,null,63.6,372,18,7661.0606353502162,null,null,null,null,null,null,null,null,null,null,null,null,null,null,null,null,null,null,null,null,null,null,null,null,null,null,null,null,null,null,null,null,null,null,null,null,null,null,null,null,null,null,null,null,null,null,null,null,null,null,null,null,null,null,null,null,null,null,null,null,null,null,null,null,null,null,null,null,null,null,null,null,null,null,null,null,null,41,null,null,null,null,null,null,null,null,null,null,null,null,null,null,null,null,null,null,null,null,null,null,null,null,null,null,null,null,null,null,null,null,null,null,null,null,null,null,null,null,null,null,null,null,null,null,null,null,null,null,null,null,null,null,null,null,null,null,null,null,null,null,null,null,null,null,null,null,null,null,null,null,null,null,null,null,null,null,null,null,null,null,null,null,null,null,null,null,null,null,null,null,null,null,null,3602,-3602]
[" Kuntayhtymä Raision-Naantalin vesilaitos",763,null,0.88793103448275867,40.4,-2132,null,null,null,53.8,137,6,8509.9750623441396,null,null,null,null,null,null,null,null,null,null,null,null,null,null,null,null,null,null,null,null,null,null,null,null,null,null,null,null,null,null,null,null,241,null,null,0.17821782178217821,44.5,-2798,null,null,null,49.6,348,14,9278.1371280724452,null,null,null,null,null,null,null,null,null,null,null,null,null,null,null,null,null,null,null,null,null,null,null,null,null,null,null,null,null,null,null,null,null,null,null,null,null,null,null,null,null,null,null,null,null,null,null,null,null,null,null,null,null,null,null,null,null,null,null,null,null,null,null,null,null,null,null,null,null,null,null,null,null,null,null,null,null,100,null,null,null,null,null,null,null,null,null,null,null,null,null,null,null,null,null,null,null,null,null,null,null,null,null,null,null,null,null,null,null,null,null,null,null,null,null,null,null,null,null,null,null,null,null,null,null,null,null,null,null,null,null,null,null,null,null,null,null,null,null,null,null,null,null,null,null,null,null,null,null,null,null,null,null,null,null,null,null,null,null,null,null,null,null,null,null,null,null,null,null,null,null,null,null,138,-138]
[" Kainuun Jätehuollon ky.",2084,null,0.62833675564681724,45.6,-2222,null,null,null,49.6,42,3,7401.0800196367209,null,null,null,null,null,null,null,null,null,null,null,null,null,null,null,null,null,null,null,null,null,null,null,null,null,null,null,null,null,null,null,null,257,null,null,2.1795511221945136,40,-1988,null,null,null,52.9,57,4,5814.9587178241864,null,null,null,null,null,null,null,null,null,null,null,null,null,null,null,null,null,null,null,null,null,null,null,null,null,null,null,null,null,null,null,null,null,null,null,null,null,null,null,null,null,null,null,null,null,null,null,null,null,null,null,null,null,null,null,null,null,null,null,null,null,null,null,null,null,null,null,null,null,null,null,null,null,null,null,null,null,242,null,null,null,null,null,null,null,null,null,null,null,null,null,null,null,null,null,null,null,null,null,null,null,null,null,null,null,null,null,null,null,null,null,null,null,null,null,null,null,null,null,null,null,null,null,null,null,null,null,null,null,null,null,null,null,null,null,null,null,null,null,null,null,null,null,null,null,null,null,null,null,null,null,null,null,null,null,null,null,null,null,null,null,null,null,null,null,null,null,null,null,null,null,null,null,318,-318]
[null,5065,null,0.3223635003739716,58,-1372,null,null,null,53.7,1176,72,5473.6842105263158,null,null,null,null,null,null,null,null,null,null,null,null,null,null,null,null,null,null,null,null,null,null,null,null,null,null,null,null,null,null,null,null,251,null,null,1.4095303867403315,58.7,-1305,null,null,null,52.8,1475,91,5916.8344744260976,null,null,null,null,null,null,null,null,null,null,null,null,null,null,null,null,null,null,null,null,null,null,null,null,null,null,null,null,null,null,null,null,null,null,null,null,null,null,null,null,null,null,null,null,null,null,null,null,null,null,null,null,null,null,null,null,null,null,null,null,null,null,null,null,null,null,null,null,null,null,null,null,null,null,null,null,null,186,null,null,null,null,null,null,null,null,null,null,null,null,null,null,null,null,null,null,null,null,null,null,null,null,null,null,null,null,null,null,null,null,null,null,null,null,null,null,null,null,null,null,null,null,null,null,null,null,null,null,null,null,null,null,null,null,null,null,null,null,null,null,null,null,null,null,null,null,null,null,null,null,null,null,null,null,null,null,null,null,null,null,null,null,null,null,null,null,null,null,null,null,null,null,null,1337,-1337]
[null,4992,null,null,10.3,3571,null,null,null,92.4,3255,209,5678.2574721625315,null,null,null,null,null,null,null,null,null,null,null,null,null,null,null,null,null,null,null,null,null,null,null,null,null,null,null,null,null,null,null,null,102,null,null,null,10.3,3340,null,null,null,92.2,3375,193,6389.2871365989649,null,null,null,null,null,null,null,null,null,null,null,null,null,null,null,null,null,null,null,null,null,null,null,null,null,null,null,null,null,null,null,null,null,null,null,null,null,null,null,null,null,null,null,null,null,null,null,null,null,null,null,null,null,null,null,null,null,null,null,null,null,null,null,null,null,null,null,null,null,null,null,null,null,null,null,null,null,76,null,null,null,null,null,null,null,null,null,null,null,null,null,null,null,null,null,null,null,null,null,null,null,null,null,null,null,null,null,null,null,null,null,null,null,null,null,null,null,null,null,null,null,null,null,null,null,null,null,null,null,null,null,null,null,null,null,null,null,null,null,null,null,null,null,null,null,null,null,null,null,null,null,null,null,null,null,null,null,null,null,null,null,null,null,null,null,null,null,null,null,null,null,null,null,0,0]
[null,3355,null,0.4248633879781421,42.6,-1718,null,null,null,49.6,199,13,6406.5016403220998,null,null,null,null,null,null,null,null,null,null,null,null,null,null,null,null,null,null,null,null,null,null,null,null,null,null,null,null,null,null,null,null,305,null,null,-3.90625E-3,44.8,-1992,null,null,null,45.3,83,5,5733.333333333333,null,null,null,null,null,null,null,null,null,null,null,null,null,null,null,null,null,null,null,null,null,null,null,null,null,null,null,null,null,null,null,null,null,null,null,null,null,null,null,null,null,null,null,null,null,null,null,null,null,null,null,null,null,null,null,null,null,null,null,null,null,null,null,null,null,null,null,null,null,null,null,null,null,null,null,null,null,283,null,null,null,null,null,null,null,null,null,null,null,null,null,null,null,null,null,null,null,null,null,null,null,null,null,null,null,null,null,null,null,null,null,null,null,null,null,null,null,null,null,null,null,null,null,null,null,null,null,null,null,null,null,null,null,null,null,null,null,null,null,null,null,null,null,null,null,null,null,null,null,null,null,null,null,null,null,null,null,null,null,null,null,null,null,null,null,null,null,null,null,null,null,null,null,515,-515]
[null,5580,null,2.4455284552845526,41.3,-2313,null,null,null,54.1,188,9,10071.856287425149,null,null,null,null,null,null,null,null,null,null,null,null,null,null,null,null,null,null,null,null,null,null,null,null,null,null,null,null,null,null,null,null,157,null,null,1.0616686819830714,41,-2528,null,null,null,52,128,6,7801.8259935553169,null,null,null,null,null,null,null,null,null,null,null,null,null,null,null,null,null,null,null,null,null,null,null,null,null,null,null,null,null,null,null,null,null,null,null,null,null,null,null,null,null,null,null,null,null,null,null,null,null,null,null,null,null,null,null,null,null,null,null,null,null,null,null,null,null,null,null,null,null,null,null,null,null,null,null,null,null,266,null,null,null,null,null,null,null,null,null,null,null,null,null,null,null,null,null,null,null,null,null,null,null,null,null,null,null,null,null,null,null,null,null,null,null,null,null,null,null,null,null,null,null,null,null,null,null,null,null,null,null,null,null,null,null,null,null,null,null,null,null,null,null,null,null,null,null,null,null,null,null,null,null,null,null,null,null,null,null,null,null,null,null,null,null,null,null,null,null,null,null,null,null,null,null,597,-597]
[null,2056,null,1.6510263929618769,17.3,-634,null,null,null,81.099999999999994,90,5,4905.4773082942102,null,null,null,null,null,null,null,null,null,null,null,null,null,null,null,null,null,null,null,null,null,null,null,null,null,null,null,null,null,null,null,null,171,null,null,-1.1671924290220821,32.9,-1214,null,null,null,67.7,303,18,6304.4124938026771,null,null,null,null,null,null,null,null,null,null,null,null,null,null,null,null,null,null,null,null,null,null,null,null,null,null,null,null,null,null,null,null,null,null,null,null,null,null,null,null,null,null,null,null,null,null,null,null,null,null,null,null,null,null,null,null,null,null,null,null,null,null,null,null,null,null,null,null,null,null,null,null,null,null,null,null,null,219,null,null,null,null,null,null,null,null,null,null,null,null,null,null,null,null,null,null,null,null,null,null,null,null,null,null,null,null,null,null,null,null,null,null,null,null,null,null,null,null,null,null,null,null,null,null,null,null,null,null,null,null,null,null,null,null,null,null,null,null,null,null,null,null,null,null,null,null,null,null,null,null,null,null,null,null,null,null,null,null,null,null,null,null,null,null,null,null,null,null,null,null,null,null,null,251,-251]
[null,9729,null,0.87672634271099747,73.8,-3177,null,null,null,41,93,6,60072.560467055882,null,null,null,null,null,null,null,null,null,null,null,null,null,null,null,null,null,null,null,null,null,null,null,null,null,null,null,null,null,null,null,null,219,null,null,1.5729453401494297E-3,75.2,-3373,null,null,null,36.700000000000003,189,12,5773.1361803329537,null,null,null,null,null,null,null,null,null,null,null,null,null,null,null,null,null,null,null,null,null,null,null,null,null,null,null,null,null,null,null,null,null,null,null,null,null,null,null,null,null,null,null,null,null,null,null,null,null,null,null,null,null,null,null,null,null,null,null,null,null,null,null,null,null,null,null,null,null,null,null,null,null,null,null,null,null,259,null,null,null,null,null,null,null,null,null,null,null,null,null,null,null,null,null,null,null,null,null,null,null,null,null,null,null,null,null,null,null,null,null,null,null,null,null,null,null,null,null,null,null,null,null,null,null,null,null,null,null,null,null,null,null,null,null,null,null,null,null,null,null,null,null,null,null,null,null,null,null,null,null,null,null,null,null,null,null,null,null,null,null,null,null,null,null,null,null,null,null,null,null,null,null,1909,-1909]
[null,1153,null,1.3097112860892388,53.8,-1425,null,null,null,61.2,1882,100,9552.0581113801454,null,null,null,null,null,null,null,null,null,null,null,null,null,null,null,null,null,null,null,null,null,null,null,null,null,null,null,null,null,null,null,null,73,null,null,1.2155172413793103,52.6,-1324,null,null,null,62.5,2063,104,7253.4013605442178,null,null,null,null,null,null,null,null,null,null,null,null,null,null,null,null,null,null,null,null,null,null,null,null,null,null,null,null,null,null,null,null,null,null,null,null,null,null,null,null,null,null,null,null,null,null,null,null,null,null,null,null,null,null,null,null,null,null,null,null,null,null,null,null,null,null,null,null,null,null,null,null,null,null,null,null,null,61,null,null,null,null,null,null,null,null,null,null,null,null,null,null,null,null,null,null,null,null,null,null,null,null,null,null,null,null,null,null,null,null,null,null,null,null,null,null,null,null,null,null,null,null,null,null,null,null,null,null,null,null,null,null,null,null,null,null,null,null,null,null,null,null,null,null,null,null,null,null,null,null,null,null,null,null,null,null,null,null,null,null,null,null,null,null,null,null,null,null,null,null,null,null,null,373,-373]
[null,3226,null,1.1862130707251566,18.8,-257,null,null,null,80.400000000000006,702,37,10559.243891194099,null,null,null,null,null,null,null,null,null,null,null,null,null,null,null,null,null,null,null,null,null,null,null,null,null,null,null,null,null,null,null,null,133,null,null,1.2857142857142858,15.8,-522,null,null,null,83.2,113,5,7895.0749464668088,null,null,null,null,null,null,null,null,null,null,null,null,null,null,null,null,null,null,null,null,null,null,null,null,null,null,null,null,null,null,null,null,null,null,null,null,null,null,null,null,null,null,null,null,null,null,null,null,null,null,null,null,null,null,null,null,null,null,null,null,null,null,null,null,null,null,null,null,null,null,null,null,null,null,null,null,null,12,null,null,null,null,null,null,null,null,null,null,null,null,null,null,null,null,null,null,null,null,null,null,null,null,null,null,null,null,null,null,null,null,null,null,null,null,null,null,null,null,null,null,null,null,null,null,null,null,null,null,null,null,null,null,null,null,null,null,null,null,null,null,null,null,null,null,null,null,null,null,null,null,null,null,null,null,null,null,null,null,null,null,null,null,null,null,null,null,null,null,null,null,null,null,null,322,-322]
[null,2145,null,1.5087064676616915,14,485,null,null,null,80.7,1548,54,6373.3616864661499,null,null,null,null,null,null,null,null,null,null,null,null,null,null,null,null,null,null,null,null,null,null,null,null,null,null,null,null,null,null,null,null,170,null,null,2.7297297297297298,17.3,315,null,null,null,76.3,1834,59,11315.112540192926,null,null,null,null,null,null,null,null,null,null,null,null,null,null,null,null,null,null,null,null,null,null,null,null,null,null,null,null,null,null,null,null,null,null,null,null,null,null,null,null,null,null,null,null,null,null,null,null,null,null,null,null,null,null,null,null,null,null,null,null,null,null,null,null,null,null,null,null,null,null,null,null,null,null,null,null,null,157,null,null,null,null,null,null,null,null,null,null,null,null,null,null,null,null,null,null,null,null,null,null,null,null,null,null,null,null,null,null,null,null,null,null,null,null,null,null,null,null,null,null,null,null,null,null,null,null,null,null,null,null,null,null,null,null,null,null,null,null,null,null,null,null,null,null,null,null,null,null,null,null,null,null,null,null,null,null,null,null,null,null,null,null,null,null,null,null,null,null,null,null,null,null,null,105,-105]
[null,54635,null,0.59230835560920925,66.8,-3480,null,null,null,49.6,320,15,7853.6311595016277,null,null,null,null,null,null,null,null,null,null,null,null,null,null,null,null,null,null,null,null,null,null,null,null,null,null,null,null,null,null,null,null,139,null,null,0.68575654387232143,59.2,-3424,null,null,null,51.1,2,0,8200.6861063464821,null,null,null,null,null,null,null,null,null,null,null,null,null,null,null,null,null,null,null,null,null,null,null,null,null,null,null,null,null,null,null,null,null,null,null,null,null,null,null,null,null,null,null,null,null,null,null,null,null,null,null,null,null,null,null,null,null,null,null,null,null,null,null,null,null,null,null,null,null,null,null,null,null,null,null,null,null,163,null,null,null,null,null,null,null,null,null,null,null,null,null,null,null,null,null,null,null,null,null,null,null,null,null,null,null,null,null,null,null,null,null,null,null,null,null,null,null,null,null,null,null,null,null,null,null,null,null,null,null,null,null,null,null,null,null,null,null,null,null,null,null,null,null,null,null,null,null,null,null,null,null,null,null,null,null,null,null,null,null,null,null,null,null,null,null,null,null,null,null,null,null,null,null,23127,-23127]
[null,8998,null,1.0941298163951383,50.4,-2185,null,null,null,48.5,366,18,11717.920952896589,null,null,null,null,null,null,null,null,null,null,null,null,null,null,null,null,null,null,null,null,null,null,null,null,null,null,null,null,null,null,null,null,55,null,null,0.69854824935952176,52.7,-2519,null,null,null,47.1,316,14,7990.6124273580681,null,null,null,null,null,null,null,null,null,null,null,null,null,null,null,null,null,null,null,null,null,null,null,null,null,null,null,null,null,null,null,null,null,null,null,null,null,null,null,null,null,null,null,null,null,null,null,null,null,null,null,null,null,null,null,null,null,null,null,null,null,null,null,null,null,null,null,null,null,null,null,null,null,null,null,null,null,51,null,null,null,null,null,null,null,null,null,null,null,null,null,null,null,null,null,null,null,null,null,null,null,null,null,null,null,null,null,null,null,null,null,null,null,null,null,null,null,null,null,null,null,null,null,null,null,null,null,null,null,null,null,null,null,null,null,null,null,null,null,null,null,null,null,null,null,null,null,null,null,null,null,null,null,null,null,null,null,null,null,null,null,null,null,null,null,null,null,null,null,null,null,null,null,3680,-3680]
[null,1777,null,0.40037243947858475,41.4,-2408,null,null,null,37.799999999999997,162,7,8951.0341916420421,null,null,null,null,null,null,null,null,null,null,null,null,null,null,null,null,null,null,null,null,null,null,null,null,null,null,null,null,null,null,null,null,295,null,null,0.11590296495956873,40.1,-2382,null,null,null,35.5,313,13,8902.5330396475783,null,null,null,null,null,null,null,null,null,null,null,null,null,null,null,null,null,null,null,null,null,null,null,null,null,null,null,null,null,null,null,null,null,null,null,null,null,null,null,null,null,null,null,null,null,null,null,null,null,null,null,null,null,null,null,null,null,null,null,null,null,null,null,null,null,null,null,null,null,null,null,null,null,null,null,null,null,45,null,null,null,null,null,null,null,null,null,null,null,null,null,null,null,null,null,null,null,null,null,null,null,null,null,null,null,null,null,null,null,null,null,null,null,null,null,null,null,null,null,null,null,null,null,null,null,null,null,250,240,null,null,null,null,null,null,null,null,null,null,null,null,null,null,null,null,null,null,null,null,null,null,null,null,null,null,null,null,null,null,null,null,null,null,null,null,null,null,null,null,null,null,null,null,562,-562]
[null,2383,null,0.5592476489028213,49,-3020,null,null,null,26.5,120,6,5764.3629425482295,null,null,null,null,null,null,null,null,null,null,null,null,null,null,null,null,null,null,null,null,null,null,null,null,null,null,null,null,null,null,null,null,195,null,null,0.24127230411171452,53.5,-3368,null,null,null,22,103,5,8058.8972431077682,null,null,null,null,null,null,null,null,null,null,null,null,null,null,null,null,null,null,null,null,null,null,null,null,null,null,null,null,null,null,null,null,null,null,null,null,null,null,null,null,null,null,null,null,null,null,null,null,null,null,null,null,null,null,null,null,null,null,null,null,null,null,null,null,null,null,null,null,null,null,null,null,null,null,null,null,null,282,null,null,null,null,null,null,null,null,null,null,null,null,null,null,null,null,null,null,null,null,null,null,null,null,null,null,null,null,null,null,null,null,null,null,null,null,null,null,null,null,null,null,null,null,null,null,null,null,null,null,null,null,null,null,null,null,null,null,null,null,null,null,null,null,null,null,null,null,null,null,null,null,null,null,null,null,null,null,null,null,null,null,null,null,null,null,null,null,null,null,null,null,null,null,null,1194,-1194]
[null,19153,null,2.4583821805392732,46.1,-1834,null,null,null,52.3,300,17,6766.8997668997672,null,null,null,null,null,null,null,null,null,null,null,null,null,null,null,null,null,null,null,null,null,null,null,null,null,null,null,null,null,null,null,null,189,null,null,1.304812834224599,53.7,-2731,null,null,null,45.7,253,13,7183.9364611824112,null,null,null,null,null,null,null,null,null,null,null,null,null,null,null,null,null,null,null,null,null,null,null,null,null,null,null,null,null,null,null,null,null,null,null,null,null,null,null,null,null,null,null,null,null,null,null,null,null,null,null,null,null,null,null,null,null,null,null,null,null,null,null,null,null,null,null,null,null,null,null,null,null,null,null,null,null,188,null,null,null,null,null,null,null,null,null,null,null,null,null,null,null,null,null,null,null,null,null,null,null,null,null,null,null,null,null,null,null,null,null,null,null,null,null,null,null,null,null,null,null,null,null,null,null,null,null,null,null,null,null,null,null,null,null,null,null,null,null,null,null,null,null,null,null,null,null,null,null,null,null,null,null,null,null,null,null,null,null,null,null,null,null,null,null,null,null,null,null,null,null,null,null,1610,-1610]
[null,9572,null,0.71589809738793941,50.7,-2372,null,null,null,49.5,33,2,5983.5902536051717,null,null,null,null,null,null,null,null,null,null,null,null,null,null,null,null,null,null,null,null,null,null,null,null,null,null,null,null,null,null,null,null,174,null,null,0.83204633204633205,48.3,-2403,null,null,null,48.7,7,0,5864.9806667363364,null,null,null,null,null,null,null,null,null,null,null,null,null,null,null,null,null,null,null,null,null,null,null,null,null,null,null,null,null,null,null,null,null,null,null,null,null,null,null,null,null,null,null,null,null,null,null,null,null,null,null,null,null,null,null,null,null,null,null,null,null,null,null,null,null,null,null,null,null,null,null,null,null,null,null,null,null,43,null,null,null,null,null,null,null,null,null,null,null,null,null,null,null,null,null,null,null,null,null,null,null,null,null,null,null,null,null,null,null,null,null,null,null,null,null,null,null,null,null,null,null,null,null,null,null,null,null,null,null,null,null,null,null,null,null,null,null,null,null,null,null,null,null,null,null,null,null,null,null,null,null,null,null,null,null,null,null,null,null,null,null,null,null,null,null,null,null,null,null,null,null,null,null,3083,-3083]
[null,7950,null,0.93832599118942728,28.1,-1240,null,null,null,70.400000000000006,86,5,8018.426294820717,null,null,null,null,null,null,null,null,null,null,null,null,null,null,null,null,null,null,null,null,null,null,null,null,null,null,null,null,null,null,null,null,240,null,null,3.5444947209653091E-2,31.9,-1479,null,null,null,65.7,130,8,6095.6380045124097,null,null,null,null,null,null,null,null,null,null,null,null,null,null,null,null,null,null,null,null,null,null,null,null,null,null,null,null,null,null,null,null,null,null,null,null,null,null,null,null,null,null,null,null,null,null,null,null,null,null,null,null,null,null,null,null,null,null,null,null,null,null,null,null,null,null,null,null,null,null,null,null,null,null,null,null,null,245,null,null,null,null,null,null,null,null,null,null,null,null,null,null,null,null,null,null,null,null,null,null,null,null,null,null,null,null,null,null,null,null,null,null,null,null,null,null,null,null,null,null,null,null,null,null,null,null,null,null,null,null,null,null,null,null,null,null,null,null,null,null,null,null,null,null,null,null,null,null,null,null,null,null,null,null,null,null,null,null,null,null,null,null,null,null,null,null,null,null,null,null,null,null,null,1263,-1263]
[null,1987,null,3.4740566037735849,20.8,374,null,null,null,79,1355,89,6260.6924643584516,null,null,null,null,null,null,null,null,null,null,null,null,null,null,null,null,null,null,null,null,null,null,null,null,null,null,null,null,null,null,null,null,29,null,null,5.666666666666667,23.3,-61,null,null,null,76.8,1080,63,6259.0361445783128,null,null,null,null,null,null,null,null,null,null,null,null,null,null,null,null,null,null,null,null,null,null,null,null,null,null,null,null,null,null,null,null,null,null,null,null,null,null,null,null,null,null,null,null,null,null,null,null,null,null,null,null,null,null,null,null,null,null,null,null,null,null,null,null,null,null,null,null,null,null,null,null,null,null,null,null,null,279,null,null,null,null,null,null,null,null,null,null,null,null,null,null,null,null,null,null,null,null,null,null,null,null,null,null,null,null,null,null,null,null,null,null,null,null,null,null,null,null,null,null,null,null,null,null,null,null,null,null,null,null,null,null,null,null,null,null,null,null,null,null,null,null,null,null,null,null,null,null,null,null,null,null,null,null,null,null,null,null,null,null,null,null,null,null,null,null,null,null,null,null,null,null,null,33,-33]
[null,20534,null,1.5635914958238422,52.3,-2682,null,null,null,53.9,4,0,7690.2193137601698,null,null,null,null,null,null,null,null,null,null,null,null,null,null,null,null,null,null,null,null,null,null,null,null,null,null,null,null,null,null,null,null,78,null,null,0.97935943060498221,57.9,-3139,null,null,null,50.9,4,0,6933.2942670182638,null,null,null,null,null,null,null,null,null,null,null,null,null,null,null,null,null,null,null,null,null,null,null,null,null,null,null,null,null,null,null,null,null,null,null,null,null,null,null,null,null,null,null,null,null,null,null,null,null,null,null,null,null,null,null,null,null,null,null,null,null,null,null,null,null,null,null,null,null,null,null,null,null,null,null,null,null,69,null,null,null,null,null,null,null,null,null,null,null,null,null,null,null,null,null,null,null,null,null,null,null,null,null,null,null,null,null,null,null,null,null,null,null,null,null,null,null,null,null,null,null,null,null,null,null,null,null,null,null,null,null,null,null,null,null,null,null,null,null,null,null,null,null,null,null,null,null,null,null,null,null,null,null,null,null,null,null,null,null,null,null,null,null,null,null,null,null,null,null,null,null,null,null,4931,-4931]
[null,10898,null,-0.30959302325581395,36.6,-1973,null,null,null,56.4,80,4,6826.3725950258095,null,null,null,null,null,null,null,null,null,null,null,null,null,null,null,null,null,null,null,null,null,null,null,null,null,null,null,null,null,null,null,null,300,null,null,-0.42209072978303747,41.2,-2430,null,null,null,49.5,49,3,7090.7210933285378,null,null,null,null,null,null,null,null,null,null,null,null,null,null,null,null,null,null,null,null,null,null,null,null,null,null,null,null,null,null,null,null,null,null,null,null,null,null,null,null,null,null,null,null,null,null,null,null,null,null,null,null,null,null,null,null,null,null,null,null,null,null,null,null,null,null,null,null,null,null,null,null,null,null,null,null,null,73,null,null,null,null,null,null,null,null,null,null,null,null,null,null,null,null,null,null,null,null,null,null,null,null,null,null,null,null,null,null,null,null,null,null,null,null,null,null,null,null,null,null,null,null,null,null,null,null,null,1400,1000,null,null,null,null,null,null,null,null,null,null,null,null,null,null,null,null,null,null,null,null,null,null,null,null,null,null,null,null,null,null,null,null,null,null,null,null,null,null,null,null,null,null,null,null,2013,-2013]
[null,6287,null,0.62369791666666663,53.4,-2589,null,null,null,39.5,82,4,6209.3688728737216,null,null,null,null,null,null,null,null,null,null,null,null,null,null,null,null,null,null,null,null,null,null,null,null,null,null,null,null,null,null,null,null,283,null,null,2.4164502164502166,49.4,-2333,null,null,null,41.5,347,19,6778.9490245437382,null,null,null,null,null,null,null,null,null,null,null,null,null,null,null,null,null,null,null,null,null,null,null,null,null,null,null,null,null,null,null,null,null,null,null,null,null,null,null,null,null,null,null,null,null,null,null,null,null,null,null,null,null,null,null,null,null,null,null,null,null,null,null,null,null,null,null,null,null,null,null,null,null,null,null,null,null,59,null,null,null,null,null,null,null,null,null,null,null,null,null,null,null,null,null,null,null,null,null,null,null,null,null,null,null,null,null,null,null,null,null,null,null,null,null,null,null,null,null,null,null,null,null,null,null,null,null,null,null,null,null,null,null,null,null,null,null,null,null,null,null,null,null,null,null,null,null,null,null,null,null,null,null,null,null,null,null,null,null,null,null,null,null,null,null,null,null,null,null,null,null,null,null,328,-328]
[null,18859,null,5.0335305719921104,52.3,-2730,null,null,null,58.5,154,8,7328.7197231833907,null,null,null,null,null,null,null,null,null,null,null,null,null,null,null,null,null,null,null,null,null,null,null,null,null,null,null,null,null,null,null,null,88,null,null,5.3530166880616177,59.7,-3016,null,null,null,53.6,384,21,6681.9485762855929,null,null,null,null,null,null,null,null,null,null,null,null,null,null,null,null,null,null,null,null,null,null,null,null,null,null,null,null,null,null,null,null,null,null,null,null,null,null,null,null,null,null,null,null,null,null,null,null,null,null,null,null,null,null,null,null,null,null,null,null,null,null,null,null,null,null,null,null,null,null,null,null,null,null,null,null,null,17,null,null,null,null,null,null,null,null,null,null,null,null,null,null,null,null,null,null,null,null,null,null,null,null,null,null,null,null,null,null,null,null,null,null,null,null,null,null,null,null,null,null,null,null,null,null,null,null,null,null,null,null,null,null,null,null,null,null,null,null,null,null,null,null,null,null,null,null,null,null,null,null,null,null,null,null,null,null,null,null,null,null,null,null,null,null,null,null,null,null,null,null,null,null,null,735,-735]
[null,5706,null,2.3024251069900141,18.8,-398,null,null,null,73.400000000000006,365,24,6022.093564916483,null,null,null,null,null,null,null,null,null,null,null,null,null,null,null,null,null,null,null,null,null,null,null,null,null,null,null,null,null,null,null,null,183,null,null,-0.1050228310502283,25.4,-779,null,null,null,65.2,396,24,6018.2704019488428,null,null,null,null,null,null,null,null,null,null,null,null,null,null,null,null,null,null,null,null,null,null,null,null,null,null,null,null,null,null,null,null,null,null,null,null,null,null,null,null,null,null,null,null,null,null,null,null,null,null,null,null,null,null,null,null,null,null,null,null,null,null,null,null,null,null,null,null,null,null,null,null,null,null,null,null,null,221,null,null,null,null,null,null,null,null,null,null,null,null,null,null,null,null,null,null,null,null,null,null,null,null,null,null,null,null,null,null,null,null,null,null,null,null,null,null,null,null,null,null,null,null,null,null,null,null,null,null,null,null,null,null,null,null,null,null,null,null,null,null,null,null,null,null,null,null,null,null,null,null,null,null,null,null,null,null,null,null,null,null,null,null,null,null,null,null,null,null,null,null,null,null,null,402,-402]
[null,14985,null,1.5044925124792012,44.6,-2014,null,null,null,58.5,109,7,6516.8487459609178,null,null,null,null,null,null,null,null,null,null,null,null,null,null,null,null,null,null,null,null,null,null,null,null,null,null,null,null,null,null,null,null,30,null,null,0.65750345781466113,54.3,-2584,null,null,null,53.1,128,8,6094.0193608274767,null,null,null,null,null,null,null,null,null,null,null,null,null,null,null,null,null,null,null,null,null,null,null,null,null,null,null,null,null,null,null,null,null,null,null,null,null,null,null,null,null,null,null,null,null,null,null,null,null,null,null,null,null,null,null,null,null,null,null,null,null,null,null,null,null,null,null,null,null,null,null,null,null,null,null,null,null,218,null,null,null,null,null,null,null,null,null,null,null,null,null,null,null,null,null,null,null,null,null,null,null,null,null,null,null,null,null,null,null,null,null,null,null,null,null,null,null,null,null,null,null,null,null,null,null,null,null,null,null,null,null,null,null,null,null,null,null,null,null,null,null,null,null,null,null,null,null,null,null,null,null,null,null,null,null,null,null,null,null,null,null,null,null,null,null,null,null,null,null,null,null,null,null,5054,-5054]
[null,10942,null,0.12572386467540383,72.5,-2706,null,null,null,43.4,1609,79,5282.9735462939852,null,null,null,null,null,null,null,null,null,null,null,null,null,null,null,null,null,null,null,null,null,null,null,null,null,null,null,null,null,null,null,null,259,null,null,0.40681233933161953,79.3,-3222,null,null,null,40.299999999999997,1595,75,7771.6886663632222,null,null,null,null,null,null,null,null,null,null,null,null,null,null,null,null,null,null,null,null,null,null,null,null,null,null,null,null,null,null,null,null,null,null,null,null,null,null,null,null,null,null,null,null,null,null,null,null,null,null,null,null,null,null,null,null,null,null,null,null,null,null,null,null,null,null,null,null,null,null,null,null,null,null,null,null,null,198,null,null,null,null,null,null,null,null,null,null,null,null,null,null,null,null,null,null,null,null,null,null,null,null,null,null,null,null,null,null,null,null,null,null,null,null,null,null,null,null,null,null,null,null,null,null,null,null,1100,null,null,null,null,null,null,null,null,null,null,null,null,null,null,null,null,null,null,null,null,null,null,null,null,null,null,null,null,null,null,null,null,null,null,null,null,null,null,null,null,null,null,null,null,null,null,6414,-6414]
[null,32690,null,1.7454760496747486,42.3,-1521,null,null,null,60.1,513,33,11080.598255089322,null,null,null,null,null,null,null,null,null,null,null,null,null,null,null,null,null,null,null,null,null,null,null,null,null,null,null,null,null,null,null,null,54,null,null,1.6714085353636545,41.6,-1487,null,null,null,53.8,607,38,5880.5402732274215,null,null,null,null,null,null,null,null,null,null,null,null,null,null,null,null,null,null,null,null,null,null,null,null,null,null,null,null,null,null,null,null,null,null,null,null,null,null,null,null,null,null,null,null,null,null,null,null,null,null,null,null,null,null,null,null,null,null,null,null,null,null,null,null,null,null,null,null,null,null,null,null,null,null,null,null,null,46,null,null,null,null,null,null,null,null,null,null,null,null,null,null,null,null,null,null,null,null,null,null,null,null,null,null,null,null,null,null,null,null,null,null,null,null,null,null,null,null,null,null,null,null,null,null,null,null,null,null,null,null,null,null,null,null,null,null,null,null,null,null,null,null,null,null,null,null,null,null,null,null,null,null,null,null,null,null,null,null,null,null,null,null,null,null,null,null,null,null,null,null,null,null,null,8256,-8256]
[null,4872,null,0.50485436893203883,50.3,-2450,null,null,null,52.2,2,0,6310.4288499025342,null,null,null,null,null,null,null,null,null,null,null,null,null,null,null,null,null,null,null,null,null,null,null,null,null,null,null,null,null,null,null,null,260,null,null,0,50.9,-2501,null,null,null,49.3,3,0,5903.0127940569537,null,null,null,null,null,null,null,null,null,null,null,null,null,null,null,null,null,null,null,null,null,null,null,null,null,null,null,null,null,null,null,null,null,null,null,null,null,null,null,null,null,null,null,null,null,null,null,null,null,null,null,null,null,null,null,null,null,null,null,null,null,null,null,null,null,null,null,null,null,null,null,null,null,null,null,null,null,227,null,null,null,null,null,null,null,null,null,null,null,null,null,null,null,null,null,null,null,null,null,null,null,null,null,null,null,null,null,null,null,null,null,null,null,null,null,null,null,null,null,null,null,null,null,null,null,null,null,null,null,null,null,null,null,null,null,null,null,null,null,null,null,null,null,null,null,null,null,null,null,null,null,null,null,null,null,null,null,null,null,null,null,null,null,null,null,null,null,null,null,null,null,null,null,775,-775]
[null,8191,null,2.699651567944251,29.1,-368,null,null,null,69.900000000000006,992,49,4962.2295472006736,null,null,null,null,null,null,null,null,null,null,null,null,null,null,null,null,null,null,null,null,null,null,null,null,null,null,null,null,null,null,null,null,64,null,null,1.0350444225074038,25.8,-702,null,null,null,72.3,493,24,7498.6759749638904,null,null,null,null,null,null,null,null,null,null,null,null,null,null,null,null,null,null,null,null,null,null,null,null,null,null,null,null,null,null,null,null,null,null,null,null,null,null,null,null,null,null,null,null,null,null,null,null,null,null,null,null,null,null,null,null,null,null,null,null,null,null,null,null,null,null,null,null,null,null,null,null,null,null,null,null,null,155,null,null,null,null,null,null,null,null,null,null,null,null,null,null,null,null,null,null,null,null,null,null,null,null,null,null,null,null,null,null,null,null,null,null,null,null,null,null,null,null,null,null,null,null,null,null,null,null,null,null,null,null,null,null,null,null,null,null,null,null,null,null,null,null,null,null,null,null,null,null,null,null,null,null,null,null,null,null,null,null,null,null,null,null,null,null,null,null,null,null,null,null,null,null,null,1157,-1157]
[null,41178,null,1.9453993933265925,50.1,-1872,null,null,null,55.1,511,33,6895.6651083722909,null,null,null,null,null,null,null,null,null,null,null,null,null,null,null,null,null,null,null,null,null,null,null,null,null,null,null,null,null,null,null,null,51,null,null,1.1556874574292109,55.7,-2191,null,null,null,52.5,544,33,6031.3858395343696,null,null,null,null,null,null,null,null,null,null,null,null,null,null,null,null,null,null,null,null,null,null,null,null,null,null,null,null,null,null,null,null,null,null,null,null,null,null,null,null,null,null,null,null,null,null,null,null,null,null,null,null,null,null,null,null,null,null,null,null,null,null,null,null,null,null,null,null,null,null,null,null,null,null,null,null,null,121,null,null,null,null,null,null,null,null,null,null,null,null,null,null,null,null,null,null,null,null,null,null,null,null,null,null,null,null,null,null,null,null,null,null,null,null,null,null,null,null,null,null,null,null,null,null,null,null,null,null,null,null,null,null,null,null,null,null,null,null,null,null,null,null,null,null,null,null,null,null,null,null,null,null,null,null,null,null,null,null,null,null,null,null,null,null,null,null,null,null,null,null,null,null,null,9170,-9170]
[null,9335,null,1.6456783056668576,32.200000000000003,-266,null,null,null,66.7,1276,70,5426.4768770236424,null,null,null,null,null,null,null,null,null,null,null,null,null,null,null,null,null,null,null,null,null,null,null,null,null,null,null,null,null,null,null,null,123,null,null,0.65063485956136979,39,-751,null,null,null,61.6,1214,60,7402.6652452025583,null,null,null,null,null,null,null,null,null,null,null,null,null,null,null,null,null,null,null,null,null,null,null,null,null,null,null,null,null,null,null,null,null,null,null,null,null,null,null,null,null,null,null,null,null,null,null,null,null,null,null,null,null,null,null,null,null,null,null,null,null,null,null,null,null,null,null,null,null,null,null,null,null,null,null,null,null,167,null,null,null,null,null,null,null,null,null,null,null,null,null,null,null,null,null,null,null,null,null,null,null,null,null,null,null,null,null,null,null,null,null,null,null,null,null,null,null,null,null,null,null,null,null,null,null,null,null,null,null,null,null,null,null,null,null,null,null,null,null,null,null,null,null,null,null,null,null,null,null,null,null,null,null,null,null,null,null,null,null,null,null,null,null,null,null,null,null,null,null,null,null,null,null,1743,-1743]
[null,16347,null,1.8854981084489282,37.799999999999997,-1600,null,null,null,57,282,18,101075.94936708861,null,null,null,null,null,null,null,null,null,null,null,null,null,null,null,null,null,null,null,null,null,null,null,null,null,null,null,null,null,null,null,null,61,null,null,0.89019239793524163,38.9,-1884,null,null,null,56.3,167,10,6346.0122699386502,null,null,null,null,null,null,null,null,null,null,null,null,null,null,null,null,null,null,null,null,null,null,null,null,null,null,null,null,null,null,null,null,null,null,null,null,null,null,null,null,null,null,null,null,null,null,null,null,null,null,null,null,null,null,null,null,null,null,null,null,null,null,null,null,null,null,null,null,null,null,null,null,null,null,null,null,null,199,null,null,null,null,null,null,null,null,null,null,null,null,null,null,null,null,null,null,null,null,null,null,null,null,null,null,null,null,null,null,null,null,null,null,null,null,null,null,null,null,null,null,null,null,null,null,null,null,null,null,null,null,null,null,null,null,null,null,null,null,null,null,null,null,null,null,null,null,null,null,null,null,null,null,null,null,null,null,null,null,null,null,null,null,null,null,null,null,null,null,null,null,null,null,null,3606,-3606]
[null,1423,null,0.95977011494252873,20.7,79,null,null,null,76.2,795,47,6834.2022940563083,null,null,null,null,null,null,null,null,null,null,null,null,null,null,null,null,null,null,null,null,null,null,null,null,null,null,null,null,null,null,null,null,278,null,null,-1.2087912087912087,31.1,-1162,null,null,null,65.2,36,2,7290.7949790794974,null,null,null,null,null,null,null,null,null,null,null,null,null,null,null,null,null,null,null,null,null,null,null,null,null,null,null,null,null,null,null,null,null,null,null,null,null,null,null,null,null,null,null,null,null,null,null,null,null,null,null,null,null,null,null,null,null,null,null,null,null,null,null,null,null,null,null,null,null,null,null,null,null,null,null,null,null,143,null,null,null,null,null,null,null,null,null,null,null,null,null,null,null,null,null,null,null,null,null,null,null,null,null,null,null,null,null,null,null,null,null,null,null,null,null,null,null,null,null,null,null,null,null,null,null,null,null,null,null,null,null,null,null,null,null,null,null,null,null,null,null,null,null,null,null,null,null,null,null,null,null,null,null,null,null,null,null,null,null,null,null,null,null,null,null,null,null,null,null,null,null,null,null,52,-52]
[null,9630,null,1.2408552747835306,34.4,-1038,null,null,null,61.7,653,37,7371.5260232440633,null,null,null,null,null,null,null,null,null,null,null,null,null,null,null,null,null,null,null,null,null,null,null,null,null,null,null,null,null,null,null,null,101,null,null,-0.53865869286629642,44.5,-1824,null,null,null,51.5,543,27,7317.208233204472,null,null,null,null,null,null,null,null,null,null,null,null,null,null,null,null,null,null,null,null,null,null,null,null,null,null,null,null,null,null,null,null,null,null,null,null,null,null,null,null,null,null,null,null,null,null,null,null,null,null,null,null,null,null,null,null,null,null,null,null,null,null,null,null,null,null,null,null,null,null,null,null,null,null,null,null,null,295,null,null,null,null,null,null,null,null,null,null,null,null,null,null,null,null,null,null,null,null,null,null,null,null,null,null,null,null,null,null,null,null,null,null,null,null,null,null,null,null,null,null,null,null,null,null,null,null,null,null,null,null,null,null,null,null,null,null,null,null,null,null,null,null,null,null,null,null,null,null,null,null,null,null,null,null,null,null,null,null,null,null,null,null,null,null,null,null,null,null,null,null,null,null,null,1919,-1919]
[null,7772,null,0.32755359394703659,53.2,-1964,null,null,null,49.9,1410,69,6524.5050691756596,null,null,null,null,null,null,null,null,null,null,null,null,null,null,null,null,null,null,null,null,null,null,null,null,null,null,null,null,null,null,null,null,258,null,null,0.73160682754561501,59,-1882,null,null,null,49.5,1618,84,7011.5967885816235,null,null,null,null,null,null,null,null,null,null,null,null,null,null,null,null,null,null,null,null,null,null,null,null,null,null,null,null,null,null,null,null,null,null,null,null,null,null,null,null,null,null,null,null,null,null,null,null,null,null,null,null,null,null,null,null,null,null,null,null,null,null,null,null,null,null,null,null,null,null,null,null,null,null,null,null,null,172,null,null,null,null,null,null,null,null,null,null,null,null,null,null,null,null,null,null,null,null,null,null,null,null,null,null,null,null,null,null,null,null,null,null,null,null,null,null,null,null,null,null,null,null,null,null,null,null,null,null,null,null,null,null,null,null,null,null,null,null,null,null,null,null,null,null,null,null,null,null,null,null,null,null,null,null,null,null,null,null,null,null,null,null,null,null,null,null,null,null,null,null,null,null,null,2649,-2649]
[null,193798,null,5.2491815906027348,45.6,-831,null,null,null,73.3,1249,61,5396.6840650905742,null,null,null,null,null,null,null,null,null,null,null,null,null,null,null,null,null,null,null,null,null,null,null,null,null,null,null,null,null,null,null,null,25,null,null,1.9874434957307885,42.7,-1519,null,null,null,70.900000000000006,821,33,9121.1759163804945,null,null,null,null,null,null,null,null,null,null,null,null,null,null,null,null,null,null,null,null,null,null,null,null,null,null,null,null,null,null,null,null,null,null,null,null,null,null,null,null,null,null,null,null,null,null,null,null,null,null,null,null,null,null,null,null,null,null,null,null,null,null,null,null,null,null,null,null,null,null,null,null,null,null,null,null,null,83,null,null,null,null,null,null,null,null,null,null,null,null,null,null,null,null,null,null,null,null,null,null,null,null,null,null,null,null,null,null,null,null,null,null,null,null,null,null,null,null,null,null,null,null,null,null,null,null,null,null,null,null,null,null,null,null,null,null,null,null,null,null,null,null,null,null,null,null,null,null,null,null,null,null,null,null,null,null,null,null,null,null,null,null,null,null,null,null,null,null,null,null,null,null,null,15208,-15208]
[null,7262,null,0.65118110236220472,44.2,-2088,null,null,null,51.3,255,14,6910.9528049866431,null,null,null,null,null,null,null,null,null,null,null,null,null,null,null,null,null,null,null,null,null,null,null,null,null,null,null,null,null,null,null,null,244,null,null,-0.20556660039761432,46.2,-2447,null,null,null,46.9,183,10,6877.4342911616504,null,null,null,null,null,null,null,null,null,null,null,null,null,null,null,null,null,null,null,null,null,null,null,null,null,null,null,null,null,null,null,null,null,null,null,null,null,null,null,null,null,null,null,null,null,null,null,null,null,null,null,null,null,null,null,null,null,null,null,null,null,null,null,null,null,null,null,null,null,null,null,null,null,null,null,null,null,88,null,null,null,null,null,null,null,null,null,null,null,null,null,null,null,null,null,null,null,null,null,null,null,null,null,null,null,null,null,null,null,null,null,null,null,null,null,null,null,null,null,null,null,null,null,null,null,null,null,null,960,null,null,null,null,null,null,null,null,null,null,null,null,null,null,null,null,null,null,null,null,null,null,null,null,null,null,null,null,null,null,null,null,null,null,null,null,null,null,null,null,null,null,null,null,1862,-1862]
[null,3279,null,0.85274542429284528,55.9,-1111,null,null,null,63.4,2063,108,6266.832203227963,null,null,null,null,null,null,null,null,null,null,null,null,null,null,null,null,null,null,null,null,null,null,null,null,null,null,null,null,null,null,null,null,66,null,null,0.80168986083499005,55.8,-1046,null,null,null,63.2,2197,114,7030.0030003000302,null,null,null,null,null,null,null,null,null,null,null,null,null,null,null,null,null,null,null,null,null,null,null,null,null,null,null,null,null,null,null,null,null,null,null,null,null,null,null,null,null,null,null,null,null,null,null,null,null,null,null,null,null,null,null,null,null,null,null,null,null,null,null,null,null,null,null,null,null,null,null,null,null,null,null,null,null,93,null,null,null,null,null,null,null,null,null,null,null,null,null,null,null,null,null,null,null,null,null,null,null,null,null,null,null,null,null,null,null,null,null,null,null,null,null,null,null,null,null,null,null,null,null,null,null,null,null,null,null,null,null,null,null,null,null,null,null,null,null,null,null,null,null,null,null,null,null,null,null,null,null,null,null,null,null,null,null,null,null,null,null,null,null,null,null,null,null,null,null,null,null,null,null,1794,-1794]
[null,10590,null,0.63071999999999995,75.099999999999994,-3571,null,null,null,22.3,177,11,6749.4089834515371,null,null,null,null,null,null,null,null,null,null,null,null,null,null,null,null,null,null,null,null,null,null,null,null,null,null,null,null,null,null,null,null,228,null,null,0.89685832839359814,71.5,-3636,null,null,null,21.8,63,4,5818.7140024549144,null,null,null,null,null,null,null,null,null,null,null,null,null,null,null,null,null,null,null,null,null,null,null,null,null,null,null,null,null,null,null,null,null,null,null,null,null,null,null,null,null,null,null,null,null,null,null,null,null,null,null,null,null,null,null,null,null,null,null,null,null,null,null,null,null,null,null,null,null,null,null,null,null,null,null,null,null,257,null,null,null,null,null,null,null,null,null,null,null,null,null,null,null,null,null,null,null,null,null,null,null,null,null,null,null,null,null,null,null,null,null,null,null,null,null,null,null,null,null,null,null,null,null,null,null,null,1100,null,null,null,null,null,null,null,null,null,null,null,null,null,null,null,null,null,null,null,null,null,null,null,null,null,null,null,null,null,null,null,null,null,null,null,null,null,null,null,null,null,null,null,null,null,null,2808,-2808]
[null,3620,null,0.76632801161103048,51.4,-1897,null,null,null,44.3,1165,60,6492.7442760399872,null,null,null,null,null,null,null,null,null,null,null,null,null,null,null,null,null,null,null,null,null,null,null,null,null,null,null,null,null,null,null,null,154,null,null,0.40605686032138444,62.6,-2708,null,null,null,38.4,1159,56,7516.1635052097245,null,null,null,null,null,null,null,null,null,null,null,null,null,null,null,null,null,null,null,null,null,null,null,null,null,null,null,null,null,null,null,null,null,null,null,null,null,null,null,null,null,null,null,null,null,null,null,null,null,null,null,null,null,null,null,null,null,null,null,null,null,null,null,null,null,null,null,null,null,null,null,null,null,null,null,null,null,119,null,null,null,null,null,null,null,null,null,null,null,null,null,null,null,null,null,null,null,null,null,null,null,null,null,null,null,null,null,null,null,null,null,null,null,null,null,null,null,null,null,null,null,null,null,null,null,null,null,null,null,null,null,null,null,null,null,null,null,null,null,null,null,null,null,null,null,null,null,null,null,null,null,null,null,null,null,null,null,null,null,null,null,null,null,null,null,null,null,null,null,null,null,null,null,1344,-1344]
[null,15507,null,1.9392781316348195,52.1,-2936,null,null,null,54.1,78,4,8472.7467046669026,null,null,null,null,null,null,null,null,null,null,null,null,null,null,null,null,null,null,null,null,null,null,null,null,null,null,null,null,null,null,null,null,145,null,null,0.90823117338003501,56.4,-3267,null,null,null,51.2,110,5,7361.4163614163608,null,null,null,null,null,null,null,null,null,null,null,null,null,null,null,null,null,null,null,null,null,null,null,null,null,null,null,null,null,null,null,null,null,null,null,null,null,null,null,null,null,null,null,null,null,null,null,null,null,null,null,null,null,null,null,null,null,null,null,null,null,null,null,null,null,null,null,null,null,null,null,null,null,null,null,null,null,75,null,null,null,null,null,null,null,null,null,null,null,null,null,null,null,null,null,null,null,null,null,null,null,null,null,null,null,null,null,null,null,null,null,null,null,null,null,null,null,null,null,null,null,null,null,null,null,null,null,null,null,null,null,null,null,null,null,null,null,null,null,null,null,null,null,null,null,null,null,null,null,null,null,null,null,null,null,null,null,null,null,null,null,null,null,null,null,null,null,null,null,null,null,null,null,2092,-2092]
[null,5509,null,1.3689320388349515,15.1,-227,null,null,null,80.2,258,13,7607.8742937853103,null,null,null,null,null,null,null,null,null,null,null,null,null,null,null,null,null,null,null,null,null,null,null,null,null,null,null,null,null,null,null,null,217,null,null,0.22439024390243903,17.3,-485,null,null,null,77.7,181,9,7683.5986406725096,null,null,null,null,null,null,null,null,null,null,null,null,null,null,null,null,null,null,null,null,null,null,null,null,null,null,null,null,null,null,null,null,null,null,null,null,null,null,null,null,null,null,null,null,null,null,null,null,null,null,null,null,null,null,null,null,null,null,null,null,null,null,null,null,null,null,null,null,null,null,null,null,null,null,null,null,null,98,null,null,null,null,null,null,null,null,null,null,null,null,null,null,null,null,null,null,null,null,null,null,null,null,null,null,null,null,null,null,null,null,null,null,null,null,null,null,null,null,null,null,null,null,null,null,null,null,null,null,null,null,null,null,null,null,null,null,null,null,null,null,null,null,null,null,null,null,null,null,null,null,null,null,null,null,null,null,null,null,null,null,null,null,null,null,null,null,null,null,null,null,null,null,null,649,{"$f":"HX185*-1","v":-649}]
[null,6836,null,2.6768707482993199,34.5,-1116,null,null,null,59.8,670,41,6969.4929819535946,null,null,null,null,null,null,null,null,null,null,null,null,null,null,null,null,null,null,null,null,null,null,null,null,null,null,null,null,null,null,null,null,70,null,null,1.1707523245984786,34.6,-1613,null,null,null,59.2,210,11,6830.5868748193125,null,null,null,null,null,null,null,null,null,null,null,null,null,null,null,null,null,null,null,null,null,null,null,null,null,null,null,null,null,null,null,null,null,null,null,null,null,null,null,null,null,null,null,null,null,null,null,null,null,null,null,null,null,null,null,null,null,null,null,null,null,null,null,null,null,null,null,null,null,null,null,null,null,null,null,null,null,224,null,null,null,null,null,null,null,null,null,null,null,null,null,null,null,null,null,null,null,null,null,null,null,null,null,null,null,null,null,null,null,null,null,null,null,null,null,null,null,null,null,null,null,null,null,null,null,null,null,null,null,null,null,null,null,null,null,null,null,null,null,null,null,null,null,null,null,null,null,null,null,null,null,null,null,null,null,null,null,null,null,null,null,null,null,null,null,null,null,null,null,null,null,null,null,954,-954]
[null,10970,null,1.3099114538703227,36,-1368,null,null,null,58.1,286,16,8680.89969827192,null,null,null,null,null,null,null,null,null,null,null,null,null,null,null,null,null,null,null,null,null,null,null,null,null,null,null,null,null,null,null,null,175,null,null,0.44090056285178236,47.6,-1939,null,null,null,49.6,583,30,7010.511882998172,null,null,null,null,null,null,null,null,null,null,null,null,null,null,null,null,null,null,null,null,null,null,null,null,null,null,null,null,null,null,null,null,null,null,null,null,null,null,null,null,null,null,null,null,null,null,null,null,null,null,null,null,null,null,null,null,null,null,null,null,null,null,null,null,null,null,null,null,null,null,null,null,null,null,null,null,null,79,null,null,null,null,null,null,null,null,null,null,null,null,null,null,null,null,null,null,null,null,null,null,null,null,null,null,null,null,null,null,null,null,null,null,null,null,null,null,null,null,null,null,null,null,null,null,null,null,null,null,null,null,null,null,null,null,null,null,null,null,null,null,null,null,null,null,null,null,null,null,null,null,null,null,null,null,null,null,null,null,null,null,null,null,null,null,null,null,null,null,null,null,null,null,null,1465,-1465]
[null,966,null,1.513184584178499,47,-2679,null,null,null,59.9,1255,46,9930.1130524152104,null,null,null,null,null,null,null,null,null,null,null,null,null,null,null,null,null,null,null,null,null,null,null,null,null,null,null,null,null,null,null,null,14,null,null,0.99798387096774188,44,-2828,null,null,null,61.6,923,33,10352.02492211838,null,null,null,null,null,null,null,null,null,null,null,null,null,null,null,null,null,null,null,null,null,null,null,null,null,null,null,null,null,null,null,null,null,null,null,null,null,null,null,null,null,null,null,null,null,null,null,null,null,null,null,null,null,null,null,null,null,null,null,null,null,null,null,null,null,null,null,null,null,null,null,null,null,null,null,null,null,202,null,null,null,null,null,null,null,null,null,null,null,null,null,null,null,null,null,null,null,null,null,null,null,null,null,null,null,null,null,null,null,null,null,null,null,null,null,null,null,null,null,null,null,null,null,null,null,null,null,null,null,null,null,null,null,null,null,null,null,null,null,null,null,null,null,null,null,null,null,null,null,null,null,null,null,null,null,null,null,null,null,null,null,null,null,null,null,null,null,null,null,null,null,null,null,433,-433]
[null,3739,null,2.9103448275862069,26.3,-709,null,null,null,68.3,993,50,11914.110429447852,null,null,null,null,null,null,null,null,null,null,null,null,null,null,null,null,null,null,null,null,null,null,null,null,null,null,null,null,null,null,null,null,10,null,null,0.69096209912536444,25.6,-1142,null,null,null,68.599999999999994,588,25,8741.0316836868296,null,null,null,null,null,null,null,null,null,null,null,null,null,null,null,null,null,null,null,null,null,null,null,null,null,null,null,null,null,null,null,null,null,null,null,null,null,null,null,null,null,null,null,null,null,null,null,null,null,null,null,null,null,null,null,null,null,null,null,null,null,null,null,null,null,null,null,null,null,null,null,null,null,null,null,null,null,184,null,null,null,null,null,null,null,null,null,null,null,null,null,null,null,null,null,null,null,null,null,null,null,null,null,null,null,null,null,null,null,null,null,null,null,null,null,null,null,null,null,null,null,null,null,null,null,null,null,null,null,null,null,null,null,null,null,null,null,null,null,null,null,null,null,null,null,null,null,null,null,null,null,null,null,null,null,null,null,null,null,null,null,null,null,null,null,null,null,null,null,null,null,null,null,946,-946]
[null,2923,null,1.1262939958592133,38,-447,null,null,null,63.2,1798,81,7528.522336769759,null,null,null,null,null,null,null,null,null,null,null,null,null,null,null,null,null,null,null,null,null,null,null,null,null,null,null,null,null,null,null,null,124,null,null,1.4854227405247813,41.9,-952,null,null,null,60.5,1591,71,8158.056790968184,null,null,null,null,null,null,null,null,null,null,null,null,null,null,null,null,null,null,null,null,null,null,null,null,null,null,null,null,null,null,null,null,null,null,null,null,null,null,null,null,null,null,null,null,null,null,null,null,null,null,null,null,null,null,null,null,null,null,null,null,null,null,null,null,null,null,null,null,null,null,null,null,null,null,null,null,null,128,null,null,null,null,null,null,null,null,null,null,null,null,null,null,null,null,null,null,null,null,null,null,null,null,null,null,null,null,null,null,null,null,null,null,null,null,null,null,null,null,null,null,null,null,null,null,null,null,null,null,null,null,null,null,null,null,null,null,null,null,null,null,null,null,null,null,null,null,null,null,null,null,null,null,null,null,null,null,null,null,null,null,null,null,null,null,null,null,null,null,null,null,null,null,null,755,-755]
[null,1842,null,2.5728900255754477,47.8,-1883,null,null,null,52.3,939,50,8115.706806282722,null,null,null,null,null,null,null,null,null,null,null,null,null,null,null,null,null,null,null,null,null,null,null,null,null,null,null,null,null,null,null,null,44,null,null,0.62865497076023391,48.8,-2265,null,null,null,50.3,737,37,7355.9504577275175,null,null,null,null,null,null,null,null,null,null,null,null,null,null,null,null,null,null,null,null,null,null,null,null,null,null,null,null,null,null,null,null,null,null,null,null,null,null,null,null,null,null,null,null,null,null,null,null,null,null,null,null,null,null,null,null,null,null,null,null,null,null,null,null,null,null,null,null,null,null,null,null,null,null,null,null,null,258,null,null,null,null,null,null,null,null,null,null,null,null,null,null,null,null,null,null,null,null,null,null,null,null,null,null,null,null,null,null,null,null,null,null,null,null,null,null,null,null,null,null,null,null,null,null,null,null,null,null,null,null,null,null,null,null,null,null,null,null,null,null,null,null,null,null,null,null,null,null,null,null,null,null,null,null,null,null,null,null,null,null,null,null,null,null,null,null,null,null,null,null,null,null,null,305,-305]
[null,4125,null,1.040785498489426,47.2,-1201,null,null,null,62.6,1232,67,6091.0209102091021,null,null,null,null,null,null,null,null,null,null,null,null,null,null,null,null,null,null,null,null,null,null,null,null,null,null,null,null,null,null,null,null,233,null,null,-0.23268698060941828,50.1,-1565,null,null,null,58.6,1256,69,6608.3028083028075,null,null,null,null,null,null,null,null,null,null,null,null,null,null,null,null,null,null,null,null,null,null,null,null,null,null,null,null,null,null,null,null,null,null,null,null,null,null,null,null,null,null,null,null,null,null,null,null,null,null,null,null,null,null,null,null,null,null,null,null,null,null,null,null,null,null,null,null,null,null,null,null,null,null,null,null,null,248,null,null,null,null,null,null,null,null,null,null,null,null,null,null,null,null,null,null,null,null,null,null,null,null,null,null,null,null,null,null,null,null,null,null,null,null,null,null,null,null,null,null,null,null,null,null,null,null,null,null,null,null,null,null,null,null,null,null,null,null,null,null,null,null,null,null,null,null,null,null,null,null,null,null,null,null,null,null,null,null,null,null,null,null,null,null,null,null,null,null,null,null,null,null,null,596,-596]
[null,19288,null,0.11607142857142858,48.5,-2624,null,null,null,51.4,111,6,6422.3350253807102,null,null,null,null,null,null,null,null,null,null,null,null,null,null,null,null,null,null,null,null,null,null,null,null,null,null,null,null,null,null,null,null,275,null,null,0.50679423183582917,52.4,-3072,null,null,null,48.5,19,1,7239.7073221002729,null,null,null,null,null,null,null,null,null,null,null,null,null,null,null,null,null,null,null,null,null,null,null,null,null,null,null,null,null,null,null,null,null,null,null,null,null,null,null,null,null,null,null,null,null,null,null,null,null,null,null,null,null,null,null,null,null,null,null,null,null,null,null,null,null,null,null,null,null,null,null,null,null,null,null,null,null,264,null,null,null,null,null,null,null,null,null,null,null,null,null,null,null,null,null,null,null,null,null,null,null,null,null,null,null,null,null,null,null,null,null,null,null,null,null,null,null,null,null,null,null,null,null,null,null,null,null,null,null,null,null,null,null,null,null,null,null,null,null,null,null,null,null,null,null,null,null,null,null,null,null,null,null,null,null,null,null,null,null,null,null,null,null,null,null,null,null,null,null,null,null,null,null,6568,-6568]
[null,4824,null,0.98479729729729726,23.7,-899,null,null,null,69.5,588,31,9086.2964442668799,null,null,null,null,null,null,null,null,null,null,null,null,null,null,null,null,null,null,null,null,null,null,null,null,null,null,null,null,null,null,null,null,230,null,null,0.32716650438169426,23.6,-1135,null,null,null,67.5,267,13,7649.6142915144128,null,null,null,null,null,null,null,null,null,null,null,null,null,null,null,null,null,null,null,null,null,null,null,null,null,null,null,null,null,null,null,null,null,null,null,null,null,null,null,null,null,null,null,null,null,null,null,null,null,null,null,null,null,null,null,null,null,null,null,null,null,null,null,null,null,null,null,null,null,null,null,null,null,null,null,null,null,136,null,null,null,null,null,null,null,null,null,null,null,null,null,null,null,null,null,null,null,null,null,null,null,null,null,null,null,null,null,null,null,null,null,null,null,null,null,null,null,null,null,null,null,null,null,null,null,null,null,null,null,null,null,null,null,null,null,null,null,null,null,null,null,null,null,null,null,null,null,null,null,null,null,null,null,null,null,null,null,null,null,null,null,null,null,null,null,null,null,null,null,null,null,null,null,809,-809]
[null,19633,null,0.6082935100971173,64.900000000000006,-5213,null,null,null,33.799999999999997,906,27,10731.437598736176,null,null,null,null,null,null,null,null,null,null,null,null,null,null,null,null,null,null,null,null,null,null,null,null,null,null,null,null,null,null,null,null,75,null,null,0.44193691130918517,66.599999999999994,-5569,null,null,null,32,797,24,12339.176829268294,null,null,null,null,null,null,null,null,null,null,null,null,null,null,null,null,null,null,null,null,null,null,null,null,null,null,null,null,null,null,null,null,null,null,null,null,null,null,null,null,null,null,null,null,null,null,null,null,null,null,null,null,null,null,null,null,null,null,null,null,null,null,null,null,null,null,null,null,null,null,null,null,null,null,null,null,null,89,null,null,null,null,null,null,null,null,null,null,null,null,null,null,null,null,null,null,null,null,null,null,null,null,null,null,null,null,null,null,null,null,null,null,null,null,null,null,null,null,null,null,null,null,null,null,null,null,null,null,null,null,null,null,null,null,null,null,null,null,null,null,null,null,null,null,null,null,null,null,null,null,null,null,null,null,null,null,null,null,null,null,null,null,null,null,null,null,null,null,null,null,null,null,null,12832,-12832]
[null,4354,null,-0.32309217046580774,50.8,-1198,null,null,null,56.1,1854,87,7753.333333333333,null,null,null,null,null,null,null,null,null,null,null,null,null,null,null,null,null,null,null,null,null,null,null,null,null,null,null,null,null,null,null,null,309,null,null,1.5203996669442132,43.8,-1694,null,null,null,53.6,2098,67,11476.01891465886,null,null,null,null,null,null,null,null,null,null,null,null,null,null,null,null,null,null,null,null,null,null,null,null,null,null,null,null,null,null,null,null,null,null,null,null,null,null,null,null,null,null,null,null,null,null,null,null,null,null,null,null,null,null,null,null,null,null,null,null,null,null,null,null,null,null,null,null,null,null,null,null,null,null,null,null,null,50,null,null,null,null,null,null,null,null,null,null,null,null,null,null,null,null,null,null,null,null,null,null,null,null,null,null,null,null,null,null,null,null,null,null,null,null,null,null,null,null,null,null,null,null,null,null,null,null,null,600,null,null,null,null,null,null,null,null,null,null,null,null,null,null,null,null,null,null,null,null,null,null,null,null,null,null,null,null,null,null,null,null,null,null,null,null,null,null,null,null,null,null,null,null,null,742,-742]
[null,18369,null,1.4158253111058934,52.8,-2536,null,null,null,55,14,1,5940.7194730619831,null,null,null,null,null,null,null,null,null,null,null,null,null,null,null,null,null,null,null,null,null,null,null,null,null,null,null,null,null,null,null,null,24,null,null,1.2514402765330943,61,-2778,null,null,null,51.9,242,14,6311.9483671668131,null,null,null,null,null,null,null,null,null,null,null,null,null,null,null,null,null,null,null,null,null,null,null,null,null,null,null,null,null,null,null,null,null,null,null,null,null,null,null,null,null,null,null,null,null,null,null,null,null,null,null,null,null,null,null,null,null,null,null,null,null,null,null,null,null,null,null,null,null,null,null,null,null,null,null,null,null,20,null,null,null,null,null,null,null,null,null,null,null,null,null,null,null,null,null,null,null,null,null,null,null,null,null,null,null,null,null,null,null,null,null,null,null,null,null,null,null,null,null,null,null,null,null,null,null,null,null,null,null,null,null,null,null,null,null,null,null,null,null,null,null,null,null,null,null,null,null,null,null,null,null,null,null,null,null,null,null,null,null,null,null,null,null,null,null,null,null,null,null,null,null,null,null,6822,-6822]
[null,4664,null,6.3636363636363633,25.4,365,null,null,null,76.8,1390,78,6485.977396400167,null,null,null,null,null,null,null,null,null,null,null,null,null,null,null,null,null,null,null,null,null,null,null,null,null,null,null,null,null,null,null,null,39,null,null,3.7465277777777777,21.6,445,null,null,null,80,1341,76,6447.1235194585452,null,null,null,null,null,null,null,null,null,null,null,null,null,null,null,null,null,null,null,null,null,null,null,null,null,null,null,null,null,null,null,null,null,null,null,null,null,null,null,null,null,null,null,null,null,null,null,null,null,null,null,null,null,null,null,null,null,null,null,null,null,null,null,null,null,null,null,null,null,null,null,null,null,null,null,null,null,65,null,null,null,null,null,null,null,null,null,null,null,null,null,null,null,null,null,null,null,null,null,null,null,null,null,null,null,null,null,null,null,null,null,null,null,null,null,null,null,null,null,null,null,null,null,null,null,null,null,null,null,null,null,null,null,null,null,null,null,null,null,null,null,null,null,null,null,null,null,null,null,null,null,null,null,null,null,null,null,null,null,null,null,null,null,null,null,null,null,null,null,null,null,null,null,329,-329]
[null,2340,null,1.116504854368932,30.1,-1531,null,null,null,59.1,68,4,6589.6480331262937,null,null,null,null,null,null,null,null,null,null,null,null,null,null,null,null,null,null,null,null,null,null,null,null,null,null,null,null,null,null,null,null,245,null,null,0.71887550200803207,28.3,-1501,null,null,null,58.7,81,4,6913.6114622840287,null,null,null,null,null,null,null,null,null,null,null,null,null,null,null,null,null,null,null,null,null,null,null,null,null,null,null,null,null,null,null,null,null,null,null,null,null,null,null,null,null,null,null,null,null,null,null,null,null,null,null,null,null,null,null,null,null,null,null,null,null,null,null,null,null,null,null,null,null,null,null,null,null,null,null,null,null,13,null,null,null,null,null,null,null,null,null,null,null,null,null,null,null,null,null,null,null,null,null,null,null,null,null,null,null,null,null,null,null,null,null,null,null,null,null,null,null,null,null,null,null,null,null,null,null,null,null,null,null,null,null,null,null,null,null,null,null,null,null,null,null,null,null,null,null,null,null,null,null,null,null,null,null,null,null,null,null,null,null,null,null,null,null,null,null,null,null,null,null,null,null,null,null,244,-244]
[null,83497,null,0.91270832698577131,42.9,-2643,null,null,null,63.5,76,3,8594.4450458903211,null,null,null,null,null,null,null,null,null,null,null,null,null,null,null,null,null,null,null,null,null,null,null,null,null,null,null,null,null,null,null,null,121,null,null,0.82522626059474213,50.8,-3087,null,null,null,60.5,217,9,8474.539232754998,null,null,null,null,null,null,null,null,null,null,null,null,null,null,null,null,null,null,null,null,null,null,null,null,null,null,null,null,null,null,null,null,null,null,null,null,null,null,null,null,null,null,null,null,null,null,null,null,null,null,null,null,null,null,null,null,null,null,null,null,null,null,null,null,null,null,null,null,null,null,null,null,null,null,null,null,null,60,null,null,null,null,null,null,null,null,null,null,null,null,null,null,null,null,null,null,null,null,null,null,null,null,null,null,null,null,null,null,null,null,null,null,null,null,null,null,null,null,null,null,null,null,null,null,null,null,null,null,null,null,null,null,null,null,null,null,null,null,null,null,null,null,null,null,null,null,null,null,null,null,null,null,null,null,null,null,null,null,null,null,null,null,null,null,null,null,null,null,null,null,null,null,null,28427,-28427]
[null,5145,null,1.7184241019698725,46.9,-2063,null,null,null,53.5,278,20,5108.3561108941822,null,null,null,null,null,null,null,null,null,null,null,null,null,null,null,null,null,null,null,null,null,null,null,null,null,null,null,null,null,null,null,null,32,null,null,0.41974125539051271,47.9,-2233,null,null,null,52.7,58,4,5547.0118746350008,null,null,null,null,null,null,null,null,null,null,null,null,null,null,null,null,null,null,null,null,null,null,null,null,null,null,null,null,null,null,null,null,null,null,null,null,null,null,null,null,null,null,null,null,null,null,null,null,null,null,null,null,null,null,null,null,null,null,null,null,null,null,null,null,null,null,null,null,null,null,null,null,null,null,null,null,null,175,null,null,null,null,null,null,null,null,null,null,null,null,null,null,null,null,null,null,null,null,null,null,null,null,null,null,null,null,null,null,null,null,null,null,null,null,null,null,null,null,null,null,null,null,null,null,null,null,null,null,null,null,null,null,null,null,null,null,null,null,null,null,null,null,null,null,null,null,null,null,null,null,null,null,null,null,null,null,null,null,null,null,null,null,null,null,null,null,null,null,null,null,null,null,null,1441,-1441]
[null,49426,null,1.2334948042815845,56.8,-2711,null,null,null,46.5,516,29,5707.4928839104705,null,null,null,null,null,null,null,null,null,null,null,null,null,null,null,null,null,null,null,null,null,null,null,null,null,null,null,null,null,null,null,null,19,null,null,0.75893951208644317,56.3,-2785,null,null,null,45.1,432,23,6947.2138369911072,null,null,null,null,null,null,null,null,null,null,null,null,null,null,null,null,null,null,null,null,null,null,null,null,null,null,null,null,null,null,null,null,null,null,null,null,null,null,null,null,null,null,null,null,null,null,null,null,null,null,null,null,null,null,null,null,null,null,null,null,null,null,null,null,null,null,null,null,null,null,null,null,null,null,null,null,null,35,null,null,null,null,null,null,null,null,null,null,null,null,null,null,null,null,null,null,null,null,null,null,null,null,null,null,null,null,null,null,null,null,null,null,null,null,null,null,null,null,null,null,null,null,null,null,null,null,null,null,null,null,null,null,null,null,null,null,null,null,null,null,null,null,null,null,null,null,null,null,null,null,null,null,null,null,null,null,null,null,null,null,null,null,null,null,null,null,null,null,null,null,null,null,null,25479,-25479]
[null,3647,null,0.72241002187313585,52.7,-2112,null,null,null,57.2,1718,65,21268.727082242014,null,null,null,null,null,null,null,null,null,null,null,null,null,null,null,null,null,null,null,null,null,null,null,null,null,null,null,null,null,null,null,null,293,null,null,-9.2235843549328664E-2,52.1,-2500,null,null,null,55.6,1791,68,9626.8057784911707,null,null,null,null,null,null,null,null,null,null,null,null,null,null,null,null,null,null,null,null,null,null,null,null,null,null,null,null,null,null,null,null,null,null,null,null,null,null,null,null,null,null,null,null,null,null,null,null,null,null,null,null,null,null,null,null,null,null,null,null,null,null,null,null,null,null,null,null,null,null,null,null,null,null,null,null,null,265,null,null,null,null,null,null,null,null,null,null,null,null,null,null,null,null,null,null,null,null,null,null,null,null,null,null,null,null,null,null,null,null,null,null,null,null,null,null,null,null,null,null,null,null,null,null,null,null,null,null,null,null,null,null,null,null,null,null,null,null,null,null,null,null,null,null,null,null,null,null,null,null,null,null,null,null,null,null,null,null,null,null,null,null,null,null,null,null,null,null,null,null,null,null,null,1302,-1302]
[null,8537,null,1.3840533672172808,44.3,-1271,null,null,null,65.900000000000006,1597,69,7737.8953421506612,null,null,null,null,null,null,null,null,null,null,null,null,null,null,null,null,null,null,null,null,null,null,null,null,null,null,null,null,null,null,null,null,48,null,null,1.1662837449741528,45.5,-1510,null,null,null,64.900000000000006,1585,67,8630.2784222737828,null,null,null,null,null,null,null,null,null,null,null,null,null,null,null,null,null,null,null,null,null,null,null,null,null,null,null,null,null,null,null,null,null,null,null,null,null,null,null,null,null,null,null,null,null,null,null,null,null,null,null,null,null,null,null,null,null,null,null,null,null,null,null,null,null,null,null,null,null,null,null,null,null,null,null,null,null,25,null,null,null,null,null,null,null,null,null,null,null,null,null,null,null,null,null,null,null,null,null,null,null,null,null,null,null,null,null,null,null,null,null,null,null,null,null,null,null,null,null,null,null,null,null,null,null,null,null,null,null,null,null,null,null,null,null,null,null,null,null,null,null,null,null,null,null,null,null,null,null,null,null,null,null,null,null,null,null,null,null,null,null,null,null,null,null,null,null,null,null,null,null,null,null,2845,-2845]
[null,2036,null,0.95283772981614712,53.1,-2296,null,null,null,54.1,506,28,10459.821428571429,null,null,null,null,null,null,null,null,null,null,null,null,null,null,null,null,null,null,null,null,null,null,null,null,null,null,null,null,null,null,null,null,193,null,null,-7.4404761904761904E-2,57.7,-2802,null,null,null,49.5,177,10,6824.6213971665857,null,null,null,null,null,null,null,null,null,null,null,null,null,null,null,null,null,null,null,null,null,null,null,null,null,null,null,null,null,null,null,null,null,null,null,null,null,null,null,null,null,null,null,null,null,null,null,null,null,null,null,null,null,null,null,null,null,null,null,null,null,null,null,null,null,null,null,null,null,null,null,null,null,null,null,null,null,300,null,null,null,null,null,null,null,null,null,null,null,null,null,null,null,null,null,null,null,null,null,null,null,null,null,null,null,null,null,null,null,null,null,null,null,null,null,null,null,null,null,null,null,null,null,null,null,null,null,null,null,null,null,null,null,null,null,null,null,null,null,null,null,null,null,null,null,null,null,null,null,null,null,null,null,null,null,null,null,null,null,null,null,null,null,null,null,null,null,null,null,null,null,null,null,480,-480]
[null,3173,null,0.57810413885180245,20.399999999999999,-665,null,null,null,75,337,18,6852.5957972805936,null,null,null,null,null,null,null,null,null,null,null,null,null,null,null,null,null,null,null,null,null,null,null,null,null,null,null,null,null,null,null,null,263,null,null,-6.9364161849710976E-2,20.6,-845,null,null,null,73.5,280,14,7160.1623477989388,null,null,null,null,null,null,null,null,null,null,null,null,null,null,null,null,null,null,null,null,null,null,null,null,null,null,null,null,null,null,null,null,null,null,null,null,null,null,null,null,null,null,null,null,null,null,null,null,null,null,null,null,null,null,null,null,null,null,null,null,null,null,null,null,null,null,null,null,null,null,null,null,null,null,null,null,null,166,null,null,null,null,null,null,null,null,null,null,null,null,null,null,null,null,null,null,null,null,null,null,null,null,null,null,null,null,null,null,null,null,null,null,null,null,null,null,null,null,null,null,null,null,null,null,null,null,null,null,null,null,null,null,null,null,null,null,null,null,null,null,null,null,null,null,null,null,null,null,null,null,null,null,null,null,null,null,null,null,null,null,null,null,null,null,null,null,null,null,null,null,null,null,null,474,-474]
[null,2878,null,0.81533101045296164,18.100000000000001,-11,null,null,null,76.099999999999994,1181,51,8077.7444110777451,null,null,null,null,null,null,null,null,null,null,null,null,null,null,null,null,null,null,null,null,null,null,null,null,null,null,null,null,null,null,null,null,130,null,null,1.0470183486238531,17.100000000000001,-158,null,null,null,79.400000000000006,864,35,9005.8000682360962,null,null,null,null,null,null,null,null,null,null,null,null,null,null,null,null,null,null,null,null,null,null,null,null,null,null,null,null,null,null,null,null,null,null,null,null,null,null,null,null,null,null,null,null,null,null,null,null,null,null,null,null,null,null,null,null,null,null,null,null,null,null,null,null,null,null,null,null,null,null,null,null,null,null,null,null,null,134,null,null,null,null,null,null,null,null,null,null,null,null,null,null,null,null,null,null,null,null,null,null,null,null,null,null,null,null,null,null,null,null,null,null,null,null,null,null,null,null,null,null,null,null,null,null,null,null,null,null,null,null,null,null,null,null,null,null,null,null,null,null,null,null,null,null,null,null,null,null,null,null,null,null,null,null,null,null,null,null,null,null,null,null,null,null,null,null,null,null,null,null,null,null,null,1092,-1092]
[null,2319,null,0.80720720720720718,30.8,-1776,null,null,null,60.6,433,18,8526.2505167424551,null,null,null,null,null,null,null,null,null,null,null,null,null,null,null,null,null,null,null,null,null,null,null,null,null,null,null,null,null,null,null,null,227,null,null,1.0479651162790697,32.799999999999997,-1965,null,null,null,59.6,287,12,8849.1996630160065,null,null,null,null,null,null,null,null,null,null,null,null,null,null,null,null,null,null,null,null,null,null,null,null,null,null,null,null,null,null,null,null,null,null,null,null,null,null,null,null,null,null,null,null,null,null,null,null,null,null,null,null,null,null,null,null,null,null,null,null,null,null,null,null,null,null,null,null,null,null,null,null,null,null,null,null,null,11,null,null,null,null,null,null,null,null,null,null,null,null,null,null,null,null,null,null,null,null,null,null,null,null,null,null,null,null,null,null,null,null,null,null,null,null,null,null,null,null,null,null,null,null,null,null,null,null,null,null,null,null,null,null,null,null,null,null,null,null,null,null,null,null,null,null,null,null,null,null,null,null,null,null,null,null,null,null,null,null,null,null,null,null,null,null,null,null,null,null,null,null,null,null,null,496,-496]
[null,5384,null,0.8072372999304106,56.4,-2742,null,null,null,39.9,25,1,5538.3469843633657,null,null,null,null,null,null,null,null,null,null,null,null,null,null,null,null,null,null,null,null,null,null,null,null,null,null,null,null,null,null,null,null,201,null,null,1.2199606040709128,55.3,-2830,null,null,null,39.9,213,13,6114.933978054677,null,null,null,null,null,null,null,null,null,null,null,null,null,null,null,null,null,null,null,null,null,null,null,null,null,null,null,null,null,null,null,null,null,null,null,null,null,null,null,null,null,null,null,null,null,null,null,null,null,null,null,null,null,null,null,null,null,null,null,null,null,null,null,null,null,null,null,null,null,null,null,null,null,null,null,null,null,84,null,null,null,null,null,null,null,null,null,null,null,null,null,null,null,null,null,null,null,null,null,null,null,null,null,null,null,null,null,null,null,null,null,null,null,null,null,null,null,null,null,null,null,null,null,null,null,null,null,null,null,null,null,null,null,null,null,null,null,null,null,null,null,null,null,null,null,null,null,null,null,null,null,null,null,null,null,null,null,null,null,null,null,null,null,null,null,null,null,null,null,null,null,null,null,1368,-1368]
[null,3356,null,1.5084306095979247,55.3,-775,null,null,null,55.9,2248,133,7512.0499851234754,null,null,null,null,null,null,null,null,null,null,null,null,null,null,null,null,null,null,null,null,null,null,null,null,null,null,null,null,null,null,null,null,155,null,null,1.4170692431561998,63.2,-1142,null,null,null,52.2,2361,123,7008.45665961945,null,null,null,null,null,null,null,null,null,null,null,null,null,null,null,null,null,null,null,null,null,null,null,null,null,null,null,null,null,null,null,null,null,null,null,null,null,null,null,null,null,null,null,null,null,null,null,null,null,null,null,null,null,null,null,null,null,null,null,null,null,null,null,null,null,null,null,null,null,null,null,null,null,null,null,null,null,77,null,null,null,null,null,null,null,null,null,null,null,null,null,null,null,null,null,null,null,null,null,null,null,null,null,null,null,null,null,null,null,null,null,null,null,null,null,null,null,null,null,null,null,null,null,null,null,null,null,null,null,null,null,null,null,null,null,null,null,null,null,null,null,null,null,null,null,null,null,null,null,null,null,null,null,null,null,null,null,null,null,null,null,null,null,null,null,null,null,null,null,null,null,null,null,501,-501]
[null,5731,null,3.0306122448979593,23.3,494,null,null,null,78.8,1769,95,6721.4200781382715,null,null,null,null,null,null,null,null,null,null,null,null,null,null,null,null,null,null,null,null,null,null,null,null,null,null,null,null,null,null,null,null,85,null,null,1.2966841186736475,22.5,332,null,null,null,78.5,1361,67,7421.9524705077793,null,null,null,null,null,null,null,null,null,null,null,null,null,null,null,null,null,null,null,null,null,null,null,null,null,null,null,null,null,null,null,null,null,null,null,null,null,null,null,null,null,null,null,null,null,null,null,null,null,null,null,null,null,null,null,null,null,null,null,null,null,null,null,null,null,null,null,null,null,null,null,null,null,null,null,null,null,58,null,null,null,null,null,null,null,null,null,null,null,null,null,null,null,null,null,null,null,null,null,null,null,null,null,null,null,null,null,null,null,null,null,null,null,null,null,null,null,null,null,null,null,null,null,null,null,null,null,null,null,null,null,null,null,null,null,null,null,null,null,null,null,null,null,null,null,null,null,null,null,null,null,null,null,null,null,null,null,null,null,null,null,null,null,null,null,null,null,null,null,null,null,null,null,594,-594]
[null,1545,null,1.2859375,54.1,-2757,null,null,null,56.6,263,11,7815.6565656565654,null,null,null,null,null,null,null,null,null,null,null,null,null,null,null,null,null,null,null,null,null,null,null,null,null,null,null,null,null,null,null,null,62,null,null,1.088282504012841,60.8,-3458,null,null,null,54,201,9,8607.2796934865892,null,null,null,null,null,null,null,null,null,null,null,null,null,null,null,null,null,null,null,null,null,null,null,null,null,null,null,null,null,null,null,null,null,null,null,null,null,null,null,null,null,null,null,null,null,null,null,null,null,null,null,null,null,null,null,null,null,null,null,null,null,null,null,null,null,null,null,null,null,null,null,null,null,null,null,null,null,34,null,null,null,null,null,null,null,null,null,null,null,null,null,null,null,null,null,null,null,null,null,null,null,null,null,null,null,null,null,null,null,null,null,null,null,null,null,null,null,null,null,null,null,null,null,null,null,null,null,null,null,null,null,null,null,null,null,null,null,null,null,null,null,null,null,null,null,null,null,null,null,null,null,null,null,null,null,null,null,null,null,null,null,null,null,null,null,null,null,null,null,null,null,null,null,502,-502]
[null,2177,null,8.08955223880597,16.600000000000001,512,null,null,null,78.7,1248,95,5947.4161378059844,null,null,null,null,null,null,null,null,null,null,null,null,null,null,null,null,null,null,null,null,null,null,null,null,null,null,null,null,null,null,null,null,52,null,null,6.145161290322581,16.8,521,null,null,null,79.3,1080,76,5206.4574806730334,null,null,null,null,null,null,null,null,null,null,null,null,null,null,null,null,null,null,null,null,null,null,null,null,null,null,null,null,null,null,null,null,null,null,null,null,null,null,null,null,null,null,null,null,null,null,null,null,null,null,null,null,null,null,null,null,null,null,null,null,null,null,null,null,null,null,null,null,null,null,null,null,null,null,null,null,null,271,null,null,null,null,null,null,null,null,null,null,null,null,null,null,null,null,null,null,null,null,null,null,null,null,null,null,null,null,null,null,null,null,null,null,null,null,null,null,null,null,null,null,null,null,null,null,null,null,null,null,null,null,null,null,null,null,null,null,null,null,null,null,null,null,null,null,null,null,null,null,null,null,null,null,null,null,null,null,null,null,null,null,null,null,null,null,null,null,null,null,null,null,null,null,null,55,-55]
[null,6795,null,1.4188235294117648,28.5,69,null,null,null,71.900000000000006,1485,90,5756.1755303690788,null,null,null,null,null,null,null,null,null,null,null,null,null,null,null,null,null,null,null,null,null,null,null,null,null,null,null,null,null,null,null,null,220,null,null,1.0353227771010962,27.8,-613,null,null,null,71.2,821,43,6981.2810763381103,null,null,null,null,null,null,null,null,null,null,null,null,null,null,null,null,null,null,null,null,null,null,null,null,null,null,null,null,null,null,null,null,null,null,null,null,null,null,null,null,null,null,null,null,null,null,null,null,null,null,null,null,null,null,null,null,null,null,null,null,null,null,null,null,null,null,null,null,null,null,null,null,null,null,null,null,null,189,null,null,null,null,null,null,null,null,null,null,null,null,null,null,null,null,null,null,null,null,null,null,null,null,null,null,null,null,null,null,null,null,null,null,null,null,null,null,null,null,null,null,null,null,null,null,null,null,null,null,null,null,null,null,null,null,null,null,null,null,null,null,null,null,null,null,null,null,null,null,null,null,null,null,null,null,null,null,null,null,null,null,null,null,null,null,null,null,null,null,null,null,null,null,null,841,-841]
[null,8590,null,3.8823529411764706,25.5,-1136,null,null,null,67.900000000000006,239,13,6289.0016521123434,null,null,null,null,null,null,null,null,null,null,null,null,null,null,null,null,null,null,null,null,null,null,null,null,null,null,null,null,null,null,null,null,152,null,null,0.18963486454652531,26.9,-1384,null,null,null,65.099999999999994,137,7,6747.1116816431322,null,null,null,null,null,null,null,null,null,null,null,null,null,null,null,null,null,null,null,null,null,null,null,null,null,null,null,null,null,null,null,null,null,null,null,null,null,null,null,null,null,null,null,null,null,null,null,null,null,null,null,null,null,null,null,null,null,null,null,null,null,null,null,null,null,null,null,null,null,null,null,null,null,null,null,null,null,234,null,null,null,null,null,null,null,null,null,null,null,null,null,null,null,null,null,null,null,null,null,null,null,null,null,null,null,null,null,null,null,null,null,null,null,null,null,null,null,null,null,null,null,null,null,null,null,null,null,null,null,null,null,null,null,null,null,null,null,null,null,null,null,null,null,null,null,null,null,null,null,null,null,null,null,null,null,null,null,null,null,null,null,null,null,null,null,null,null,null,null,null,null,null,null,475,-475]
[null,25507,null,0.35170432284184405,92.9,-3845,null,null,null,35.799999999999997,1285,70,6683.1319435223304,null,null,null,null,null,null,null,null,null,null,null,null,null,null,null,null,null,null,null,null,null,null,null,null,null,null,null,null,null,null,null,null,238,null,null,-0.32827350427350427,111.7,-4499,null,null,null,29,1383,73,6872.7473498233221,null,null,null,null,null,null,null,null,null,null,null,null,null,null,null,null,null,null,null,null,null,null,null,null,null,null,null,null,null,null,null,null,null,null,null,null,null,null,null,null,null,null,null,null,null,null,null,null,null,null,null,null,null,null,null,null,null,null,null,null,null,null,null,null,null,null,null,null,null,null,null,null,null,null,null,null,null,241,null,null,null,null,null,null,null,null,null,null,null,null,null,null,null,null,null,null,null,null,null,null,null,null,null,null,null,null,null,null,null,null,null,null,null,null,null,null,null,null,null,null,null,null,null,null,null,null,null,1300,null,null,null,null,null,null,null,null,null,null,null,null,null,null,null,null,null,null,null,null,null,null,null,null,null,null,null,null,null,null,null,null,null,null,null,null,null,null,null,null,null,null,null,null,null,13172,-13172]
[null,28695,null,0.89293729372937292,57.1,-3434,null,null,null,33.200000000000003,78,4,6559.1353292586073,null,null,null,null,null,null,null,null,null,null,null,null,null,null,null,null,null,null,null,null,null,null,null,null,null,null,null,null,null,null,null,null,179,null,null,0.19526451357241925,65.2,-3989,null,null,null,27,101,5,7798.9177564258207,null,null,null,null,null,null,null,null,null,null,null,null,null,null,null,null,null,null,null,null,null,null,null,null,null,null,null,null,null,null,null,null,null,null,null,null,null,null,null,null,null,null,null,null,null,null,null,null,null,null,null,null,null,null,null,null,null,null,null,null,null,null,null,null,null,null,null,null,null,null,null,null,null,null,null,null,null,204,null,null,null,null,null,null,null,null,null,null,null,null,null,null,null,null,null,null,null,null,null,null,null,null,null,null,null,null,null,null,null,null,null,null,null,null,null,null,null,null,null,null,null,null,null,null,null,null,null,1400,1500,null,null,null,null,null,null,null,null,null,null,null,null,null,null,null,null,null,null,null,null,null,null,null,null,null,null,null,null,null,null,null,null,null,null,null,null,null,null,null,null,null,null,null,null,7495,-7495]
[null,24565,null,2.62559965111208,39.6,-2022,null,null,null,61.5,163,9,6963.6385846329249,null,null,null,null,null,null,null,null,null,null,null,null,null,null,null,null,null,null,null,null,null,null,null,null,null,null,null,null,null,null,null,null,81,null,null,-1.2630173564753004,54.1,-2802,null,null,null,52.1,230,12,7261.5829329859134,null,null,null,null,null,null,null,null,null,null,null,null,null,null,null,null,null,null,null,null,null,null,null,null,null,null,null,null,null,null,null,null,null,null,null,null,null,null,null,null,null,null,null,null,null,null,null,null,null,null,null,null,null,null,null,null,null,null,null,null,null,null,null,null,null,null,null,null,null,null,null,null,null,null,null,null,null,142,null,null,null,null,null,null,null,null,null,null,null,null,null,null,null,null,null,null,null,null,null,null,null,null,null,null,null,null,null,null,null,null,null,null,null,null,null,null,null,null,null,null,null,null,null,null,null,null,null,null,null,null,null,null,null,null,null,null,null,null,null,null,null,null,null,null,null,null,null,null,null,null,null,null,null,null,null,null,null,null,null,null,null,null,null,null,null,null,null,null,null,null,null,null,null,1979,-1979]
[null,3872,null,0.25031367628607276,29.1,-1821,null,null,null,54.8,266,10,12791.846036971385,null,null,null,null,null,null,null,null,null,null,null,null,null,null,null,null,null,null,null,null,null,null,null,null,null,null,null,null,null,null,null,null,302,null,null,2.9310344827586206E-2,29.3,-2189,null,null,null,51.9,220,8,10525.376179546034,null,null,null,null,null,null,null,null,null,null,null,null,null,null,null,null,null,null,null,null,null,null,null,null,null,null,null,null,null,null,null,null,null,null,null,null,null,null,null,null,null,null,null,null,null,null,null,null,null,null,null,null,null,null,null,null,null,null,null,null,null,null,null,null,null,null,null,null,null,null,null,null,null,null,null,null,null,292,null,null,null,null,null,null,null,null,null,null,null,null,null,null,null,null,null,null,null,null,null,null,null,null,null,null,null,null,null,null,null,null,null,null,null,null,null,null,null,null,null,null,null,null,null,null,null,null,null,null,null,null,null,null,null,null,null,null,null,null,null,null,null,null,null,null,null,null,null,null,null,null,null,null,null,null,null,null,null,null,null,null,null,null,null,null,null,null,null,null,null,null,null,null,null,936,-936]
[null,4154,null,5.5469798657718119,15.7,601,null,null,null,82.1,1291,56,7944.626935710934,null,null,null,null,null,null,null,null,null,null,null,null,null,null,null,null,null,null,null,null,null,null,null,null,null,null,null,null,null,null,null,null,13,null,null,7.391414141414141,14.3,634,null,null,null,83.6,1265,53,8652.7087769103382,null,null,null,null,null,null,null,null,null,null,null,null,null,null,null,null,null,null,null,null,null,null,null,null,null,null,null,null,null,null,null,null,null,null,null,null,null,null,null,null,null,null,null,null,null,null,null,null,null,null,null,null,null,null,null,null,null,null,null,null,null,null,null,null,null,null,null,null,null,null,null,null,null,null,null,null,null,22,null,null,null,null,null,null,null,null,null,null,null,null,null,null,null,null,null,null,null,null,null,null,null,null,null,null,null,null,null,null,null,null,null,null,null,null,null,null,null,null,null,null,null,null,null,null,null,null,null,null,null,null,null,null,null,null,null,null,null,null,null,null,null,null,null,null,null,null,null,null,null,null,null,null,null,null,null,null,null,null,null,null,null,null,null,null,null,null,null,null,null,null,null,null,null,393,-393]
[null,39979,null,80.676870748299322,14.1,1052,null,null,null,85.6,1580,87,6129.2817679558011,null,null,null,null,null,null,null,null,null,null,null,null,null,null,null,null,null,null,null,null,null,null,null,null,null,null,null,null,null,null,null,null,23,null,null,89.027149321266975,14.2,1182,null,null,null,85.1,1804,94,6967.5468098991014,null,null,null,null,null,null,null,null,null,null,null,null,null,null,null,null,null,null,null,null,null,null,null,null,null,null,null,null,null,null,null,null,null,null,null,null,null,null,null,null,null,null,null,null,null,null,null,null,null,null,null,null,null,null,null,null,null,null,null,null,null,null,null,null,null,null,null,null,null,null,null,null,null,null,null,null,null,30,null,null,null,null,null,null,null,null,null,null,null,null,null,null,null,null,null,null,null,null,null,null,null,null,null,null,null,null,null,null,null,null,null,null,null,null,null,null,null,null,null,null,null,null,null,null,null,null,null,null,null,null,null,null,null,null,null,null,null,null,null,null,null,null,null,null,null,null,null,null,null,null,null,null,null,null,null,null,null,null,null,null,null,null,null,null,null,null,null,null,null,null,null,null,null,222,-222]
[null,3426,null,0.65647058823529414,37.4,-2047,null,null,null,49.4,87,5,13246.768170066072,null,null,null,null,null,null,null,null,null,null,null,null,null,null,null,null,null,null,null,null,null,null,null,null,null,null,null,null,null,null,null,null,173,null,null,0.21617946974847044,38.1,-2316,null,null,null,46.6,1,0,7566.2020905923346,null,null,null,null,null,null,null,null,null,null,null,null,null,null,null,null,null,null,null,null,null,null,null,null,null,null,null,null,null,null,null,null,null,null,null,null,null,null,null,null,null,null,null,null,null,null,null,null,null,null,null,null,null,null,null,null,null,null,null,null,null,null,null,null,null,null,null,null,null,null,null,null,null,null,null,null,null,228,null,null,null,null,null,null,null,null,null,null,null,null,null,null,null,null,null,null,null,null,null,null,null,null,null,null,null,null,null,null,null,null,null,null,null,null,null,null,null,null,null,null,null,null,null,null,null,null,null,null,null,null,null,null,null,null,null,null,null,null,null,null,null,null,null,null,null,null,null,null,null,null,null,null,null,null,null,null,null,null,null,null,null,null,null,null,null,null,null,null,null,null,null,null,null,1253,-1253]
[null,1784,null,1.0013888888888889,43.6,-1424,null,null,null,63.9,1623,57,8497.8354978354982,null,null,null,null,null,null,null,null,null,null,null,null,null,null,null,null,null,null,null,null,null,null,null,null,null,null,null,null,null,null,null,null,17,null,null,0.8564516129032258,43.1,-2276,null,null,null,65,933,34,10072.255929398785,null,null,null,null,null,null,null,null,null,null,null,null,null,null,null,null,null,null,null,null,null,null,null,null,null,null,null,null,null,null,null,null,null,null,null,null,null,null,null,null,null,null,null,null,null,null,null,null,null,null,null,null,null,null,null,null,null,null,null,null,null,null,null,null,null,null,null,null,null,null,null,null,null,null,null,null,null,18,null,null,null,null,null,null,null,null,null,null,null,null,null,null,null,null,null,null,null,null,null,null,null,null,null,null,null,null,null,null,null,null,null,null,null,null,null,null,null,null,null,null,null,null,null,null,null,null,null,null,null,null,null,null,null,null,null,null,null,null,null,null,null,null,null,null,null,null,null,null,null,null,null,null,null,null,null,null,null,null,null,null,null,null,null,null,null,null,null,null,null,null,null,null,null,1253,-1253]
[null,3682,null,2.7467741935483869,30.2,-968,null,null,null,69.900000000000006,117,6,7118.2150313152406,null,null,null,null,null,null,null,null,null,null,null,null,null,null,null,null,null,null,null,null,null,null,null,null,null,null,null,null,null,null,null,null,72,null,null,3.2860635696821516,23.9,-943,null,null,null,73.400000000000006,367,19,7206.9238900634255,null,null,null,null,null,null,null,null,null,null,null,null,null,null,null,null,null,null,null,null,null,null,null,null,null,null,null,null,null,null,null,null,null,null,null,null,null,null,null,null,null,null,null,null,null,null,null,null,null,null,null,null,null,null,null,null,null,null,null,null,null,null,null,null,null,null,null,null,null,null,null,null,null,null,null,null,null,67,null,null,null,null,null,null,null,null,null,null,null,null,null,null,null,null,null,null,null,null,null,null,null,null,null,null,null,null,null,null,null,null,null,null,null,null,null,null,null,null,null,null,null,null,null,null,null,null,null,null,null,null,null,null,null,null,null,null,null,null,null,null,null,null,null,null,null,null,null,null,null,null,null,null,null,null,null,null,null,null,null,null,null,null,null,null,null,null,null,null,null,null,null,null,null,500,-500]
[null,2925,null,0.33168009919404834,74.900000000000006,-3328,null,null,null,34.700000000000003,2780,107,10971.628838451268,null,null,null,null,null,null,null,null,null,null,null,null,null,null,null,null,null,null,null,null,null,null,null,null,null,null,null,null,null,null,null,null,239,null,null,-7.7636869780389736E-2,80.900000000000006,-3722,null,null,null,31,2920,104,11019.925700776765,null,null,null,null,null,null,null,null,null,null,null,null,null,null,null,null,null,null,null,null,null,null,null,null,null,null,null,null,null,null,null,null,null,null,null,null,null,null,null,null,null,null,null,null,null,null,null,null,null,null,null,null,null,null,null,null,null,null,null,null,null,null,null,null,null,null,null,null,null,null,null,null,null,null,null,null,null,297,null,null,null,null,null,null,null,null,null,null,null,null,null,null,null,null,null,null,null,null,null,null,null,null,null,null,null,null,null,null,null,null,null,null,null,null,null,null,null,null,null,null,null,null,null,null,null,null,null,null,null,null,null,null,null,null,null,null,null,null,null,null,null,null,null,null,null,null,null,null,null,null,null,null,null,null,null,null,null,null,null,null,null,null,null,null,null,null,null,null,null,null,null,null,null,1504,-1504]
[null,29318,null,0.46571398659966501,69.599999999999994,-3520,null,null,null,39.6,147,8,5554.552346819215,null,null,null,null,null,null,null,null,null,null,null,null,null,null,null,null,null,null,null,null,null,null,null,null,null,null,null,null,null,null,null,null,128,null,null,0.41713051424773617,72.2,-3667,null,null,null,38.6,267,14,6890.9806606195443,null,null,null,null,null,null,null,null,null,null,null,null,null,null,null,null,null,null,null,null,null,null,null,null,null,null,null,null,null,null,null,null,null,null,null,null,null,null,null,null,null,null,null,null,null,null,null,null,null,null,null,null,null,null,null,null,null,null,null,null,null,null,null,null,null,null,null,null,null,null,null,null,null,null,null,null,null,111,null,null,null,null,null,null,null,null,null,null,null,null,null,null,null,null,null,null,null,null,null,null,null,null,null,null,null,null,null,null,null,null,null,null,null,null,null,null,null,null,null,null,null,null,null,null,null,null,null,null,null,null,null,null,null,null,null,null,null,null,null,null,null,null,null,null,null,null,null,null,null,null,null,null,null,null,null,null,null,null,null,null,null,null,null,null,null,null,null,null,null,null,null,null,null,18773,-18773]
[null,1427,null,1.4360189573459716,29.8,-1410,null,null,null,62,1011,38,11067.83075889859,null,null,null,null,null,null,null,null,null,null,null,null,null,null,null,null,null,null,null,null,null,null,null,null,null,null,null,null,null,null,null,null,76,null,null,0.80862533692722371,31.6,-1935,null,null,null,61.2,819,29,10291.03448275862,null,null,null,null,null,null,null,null,null,null,null,null,null,null,null,null,null,null,null,null,null,null,null,null,null,null,null,null,null,null,null,null,null,null,null,null,null,null,null,null,null,null,null,null,null,null,null,null,null,null,null,null,null,null,null,null,null,null,null,null,null,null,null,null,null,null,null,null,null,null,null,null,null,null,null,null,null,275,null,null,null,null,null,null,null,null,null,null,null,null,null,null,null,null,null,null,null,null,null,null,null,null,null,null,null,null,null,null,null,null,null,null,null,null,null,null,null,null,null,null,null,null,null,null,null,null,null,null,null,null,null,null,null,null,null,null,null,null,null,null,null,null,null,null,null,null,null,null,null,null,null,null,null,null,null,null,null,null,null,null,null,null,null,null,null,null,null,null,null,null,null,null,null,312,-312]
[null,61215,null,1.3816877431906616,37.700000000000003,-1557,null,null,null,65.400000000000006,333,20,5690.0737173672842,null,null,null,null,null,null,null,null,null,null,null,null,null,null,null,null,null,null,null,null,null,null,null,null,null,null,null,null,null,null,null,null,210,null,null,7.7812932568716631E-2,39.299999999999997,-1840,null,null,null,62.2,222,12,6500.1889054979711,null,null,null,null,null,null,null,null,null,null,null,null,null,null,null,null,null,null,null,null,null,null,null,null,null,null,null,null,null,null,null,null,null,null,null,null,null,null,null,null,null,null,null,null,null,null,null,null,null,null,null,null,null,null,null,null,null,null,null,null,null,null,null,null,null,null,null,null,null,null,null,null,null,null,null,null,null,182,null,null,null,null,null,null,null,null,null,null,null,null,null,null,null,null,null,null,null,null,null,null,null,null,null,null,null,null,null,null,null,null,null,null,null,null,null,null,null,null,null,null,null,null,null,null,null,null,null,null,null,null,null,null,null,null,null,null,null,null,null,null,null,null,null,null,null,null,null,null,null,null,null,null,null,null,null,null,null,null,null,null,null,null,null,null,null,null,null,null,null,null,null,null,null,8169,-8169]
[null,5507,null,1.1998527788001472,34.4,-1119,null,null,null,66.5,389,23,11489.544235924934,null,null,null,null,null,null,null,null,null,null,null,null,null,null,null,null,null,null,null,null,null,null,null,null,null,null,null,null,null,null,null,null,215,null,null,1.2808219178082192,33,-1150,null,null,null,66,436,26,6151.1565357719201,null,null,null,null,null,null,null,null,null,null,null,null,null,null,null,null,null,null,null,null,null,null,null,null,null,null,null,null,null,null,null,null,null,null,null,null,null,null,null,null,null,null,null,null,null,null,null,null,null,null,null,null,null,null,null,null,null,null,null,null,null,null,null,null,null,null,null,null,null,null,null,null,null,null,null,null,null,55,null,null,null,null,null,null,null,null,null,null,null,null,null,null,null,null,null,null,null,null,null,null,null,null,null,null,null,null,null,null,null,null,null,null,null,null,null,null,null,null,null,null,null,null,null,null,null,null,null,null,null,null,null,null,null,null,null,null,null,null,null,null,null,null,null,null,null,null,null,null,null,null,null,null,null,null,null,null,null,null,null,null,null,null,null,null,null,null,null,null,null,null,null,null,null,449,-449]
[null,4771,null,0.1172950329144225,39.1,-1851,null,null,null,46.7,627,32,7187.6518218623478,null,null,null,null,null,null,null,null,null,null,null,null,null,null,null,null,null,null,null,null,null,null,null,null,null,null,null,null,null,null,null,null,287,null,null,-0.20808625336927225,42.6,-2163,null,null,null,42.2,573,28,7393.1799506984389,null,null,null,null,null,null,null,null,null,null,null,null,null,null,null,null,null,null,null,null,null,null,null,null,null,null,null,null,null,null,null,null,null,null,null,null,null,null,null,null,null,null,null,null,null,null,null,null,null,null,null,null,null,null,null,null,null,null,null,null,null,null,null,null,null,null,null,null,null,null,null,null,null,null,null,null,null,270,null,null,null,null,null,null,null,null,null,null,null,null,null,null,null,null,null,null,null,null,null,null,null,null,null,null,null,null,null,null,null,null,null,null,null,null,null,null,null,null,null,null,null,null,null,null,null,null,700,630,null,null,null,null,null,null,null,null,null,null,null,null,null,null,null,null,null,null,null,null,null,null,null,null,null,null,null,null,null,null,null,null,null,null,null,null,null,null,null,null,null,null,null,null,null,1479,-1479]
[null,5995,null,7.6968911917098444,29.4,-606,null,null,null,77.5,642,47,4999.6592844974448,null,null,null,null,null,null,null,null,null,null,null,null,null,null,null,null,null,null,null,null,null,null,null,null,null,null,null,null,null,null,null,null,47,null,null,5.217821782178218,29.6,-954,null,null,null,77.599999999999994,192,13,5260.8769256813948,null,null,null,null,null,null,null,null,null,null,null,null,null,null,null,null,null,null,null,null,null,null,null,null,null,null,null,null,null,null,null,null,null,null,null,null,null,null,null,null,null,null,null,null,null,null,null,null,null,null,null,null,null,null,null,null,null,null,null,null,null,null,null,null,null,null,null,null,null,null,null,null,null,null,null,null,null,237,null,null,null,null,null,null,null,null,null,null,null,null,null,null,null,null,null,null,null,null,null,null,null,null,null,null,null,null,null,null,null,null,null,null,null,null,null,null,null,null,null,null,null,null,null,null,null,null,null,null,null,null,null,null,null,null,null,null,null,null,null,null,null,null,null,null,null,null,null,null,null,null,null,null,null,null,null,null,null,null,null,null,null,null,null,null,null,null,null,null,null,null,null,null,null,170,-170]
[null,2467,null,0.91698595146871009,41.9,-1283,null,null,null,39.200000000000003,586,27,8279.2259083728277,null,null,null,null,null,null,null,null,null,null,null,null,null,null,null,null,null,null,null,null,null,null,null,null,null,null,null,null,null,null,null,null,162,null,null,0.65673575129533679,27.1,-1203,null,null,null,48.6,199,9,8486.3453815261055,null,null,null,null,null,null,null,null,null,null,null,null,null,null,null,null,null,null,null,null,null,null,null,null,null,null,null,null,null,null,null,null,null,null,null,null,null,null,null,null,null,null,null,null,null,null,null,null,null,null,null,null,null,null,null,null,null,null,null,null,null,null,null,null,null,null,null,null,null,null,null,null,null,null,null,null,null,278,null,null,null,null,null,null,null,null,null,null,null,null,null,null,null,null,null,null,null,null,null,null,null,null,null,null,null,null,null,null,null,null,null,null,null,null,null,null,null,null,null,null,null,null,null,null,null,null,400,null,null,null,null,null,null,null,null,null,null,null,null,null,null,null,null,null,null,null,null,null,null,null,null,null,null,null,null,null,null,null,null,null,null,null,null,null,null,null,null,null,null,null,null,null,null,710,-710]
[null,10165,null,1.1708715596330275,50.7,-2891,null,null,null,54.3,43,2,6968.9788053949906,null,null,null,null,null,null,null,null,null,null,null,null,null,null,null,null,null,null,null,null,null,null,null,null,null,null,null,null,null,null,null,null,111,null,null,0.42552771749852042,52.8,-3027,null,null,null,52,127,7,7010.1384285435761,null,null,null,null,null,null,null,null,null,null,null,null,null,null,null,null,null,null,null,null,null,null,null,null,null,null,null,null,null,null,null,null,null,null,null,null,null,null,null,null,null,null,null,null,null,null,null,null,null,null,null,null,null,null,null,null,null,null,null,null,null,null,null,null,null,null,null,null,null,null,null,null,null,null,null,null,null,130,null,null,null,null,null,null,null,null,null,null,null,null,null,null,null,null,null,null,null,null,null,null,null,null,null,null,null,null,null,null,null,null,null,null,null,null,null,null,null,null,null,null,null,null,null,null,null,null,null,null,null,null,null,null,null,null,null,null,null,null,null,null,null,null,null,null,null,null,null,null,null,null,null,null,null,null,null,null,null,null,null,null,null,null,null,null,null,null,null,null,null,null,null,null,null,2759,-2759]
[null,3890,null,0.94518879415347135,39.4,-2880,null,null,null,46.4,130,5,9322.0631786771955,null,null,null,null,null,null,null,null,null,null,null,null,null,null,null,null,null,null,null,null,null,null,null,null,null,null,null,null,null,null,null,null,115,null,null,0.4318471337579618,41.2,-3134,null,null,null,44,138,5,9659.7134958532279,null,null,null,null,null,null,null,null,null,null,null,null,null,null,null,null,null,null,null,null,null,null,null,null,null,null,null,null,null,null,null,null,null,null,null,null,null,null,null,null,null,null,null,null,null,null,null,null,null,null,null,null,null,null,null,null,null,null,null,null,null,null,null,null,null,null,null,null,null,null,null,null,null,null,null,null,null,123,null,null,null,null,null,null,null,null,null,null,null,null,null,null,null,null,null,null,null,null,null,null,null,null,null,null,null,null,null,null,null,null,null,null,null,null,null,null,null,null,null,null,null,null,null,null,null,null,null,null,null,null,null,null,null,null,null,null,null,null,null,null,null,null,null,null,null,null,null,null,null,null,null,null,null,null,null,null,null,null,null,null,null,null,null,null,null,null,null,null,null,null,null,null,null,1379,-1379]
[null,54478,null,-8.242463117382938E-2,37.5,-1630,null,null,null,70.7,344,19,6481.6851473328152,null,null,null,null,null,null,null,null,null,null,null,null,null,null,null,null,null,null,null,null,null,null,null,null,null,null,null,null,null,null,null,null,298,null,null,-2.0949123145114665,47.6,-2241,null,null,null,63.4,245,14,6590.9803492653755,null,null,null,null,null,null,null,null,null,null,null,null,null,null,null,null,null,null,null,null,null,null,null,null,null,null,null,null,null,null,null,null,null,null,null,null,null,null,null,null,null,null,null,null,null,null,null,null,null,null,null,null,null,null,null,null,null,null,null,null,null,null,null,null,null,null,null,null,null,null,null,null,null,null,null,null,null,179,null,null,null,null,null,null,null,null,null,null,null,null,null,null,null,null,null,null,null,null,null,null,null,null,null,null,null,null,null,null,null,null,null,null,null,null,null,null,null,null,null,null,null,null,null,null,null,null,null,3000,1650,null,null,null,null,null,null,null,null,null,null,null,null,null,null,null,null,null,null,null,null,null,null,null,null,null,null,null,null,null,null,null,null,null,null,null,null,null,null,null,null,null,null,null,null,7162,-7162]
[null,25511,null,1.1733507939106236,46.3,-1849,null,null,null,55.7,729,39,6183.4843660707002,null,null,null,null,null,null,null,null,null,null,null,null,null,null,null,null,null,null,null,null,null,null,null,null,null,null,null,null,null,null,null,null,131,null,null,1.0621258480776905,40.299999999999997,-1926,null,null,null,56.6,479,23,7448.2266029957964,null,null,null,null,null,null,null,null,null,null,null,null,null,null,null,null,null,null,null,null,null,null,null,null,null,null,null,null,null,null,null,null,null,null,null,null,null,null,null,null,null,null,null,null,null,null,null,null,null,null,null,null,null,null,null,null,null,null,null,null,null,null,null,null,null,null,null,null,null,null,null,null,null,null,null,null,null,195,null,null,null,null,null,null,null,null,null,null,null,null,null,null,null,null,null,null,null,null,null,null,null,null,null,null,null,null,null,null,null,null,null,null,null,null,null,null,null,null,null,null,null,null,null,null,null,null,null,null,null,null,null,null,null,null,null,null,null,null,null,null,null,null,null,null,null,null,null,null,null,null,null,null,null,null,null,null,null,null,null,null,null,null,null,null,null,null,null,null,null,null,null,null,null,5991,-5991]
[null,3032,null,1.1439688715953307,40.700000000000003,-1950,null,null,null,52.1,42,3,12078.540913572131,null,null,null,null,null,null,null,null,null,null,null,null,null,null,null,null,null,null,null,null,null,null,null,null,null,null,null,null,null,null,null,null,178,null,null,-1.4604966139954854,52.5,-2586,null,null,null,41.8,19,1,6065.9413122321139,null,null,null,null,null,null,null,null,null,null,null,null,null,null,null,null,null,null,null,null,null,null,null,null,null,null,null,null,null,null,null,null,null,null,null,null,null,null,null,null,null,null,null,null,null,null,null,null,null,null,null,null,null,null,null,null,null,null,null,null,null,null,null,null,null,null,null,null,null,null,null,null,null,null,null,null,null,190,null,null,null,null,null,null,null,null,null,null,null,null,null,null,null,null,null,null,null,null,null,null,null,null,null,null,null,null,null,null,null,null,null,null,null,null,null,null,null,null,null,null,null,null,null,null,null,null,450,null,395,null,null,null,null,null,null,null,null,null,null,null,null,null,null,null,null,null,null,null,null,null,null,null,null,null,null,null,null,null,null,null,null,null,null,null,null,null,null,null,null,null,null,null,null,444,-444]
[null,3729,null,5.9243697478991599,42.6,-2464,null,null,null,52.5,598,23,7743.9957772499338,null,null,null,null,null,null,null,null,null,null,null,null,null,null,null,null,null,null,null,null,null,null,null,null,null,null,null,null,null,null,null,null,225,null,null,4.2668024439918533,39.299999999999997,-1512,null,null,null,54.4,984,44,8224.2295430393187,null,null,null,null,null,null,null,null,null,null,null,null,null,null,null,null,null,null,null,null,null,null,null,null,null,null,null,null,null,null,null,null,null,null,null,null,null,null,null,null,null,null,null,null,null,null,null,null,null,null,null,null,null,null,null,null,null,null,null,null,null,null,null,null,null,null,null,null,null,null,null,null,null,null,null,null,null,32,null,null,null,null,null,null,null,null,null,null,null,null,null,null,null,null,null,null,null,null,null,null,null,null,null,null,null,null,null,null,null,null,null,null,null,null,null,null,null,null,null,null,null,null,null,null,null,null,null,null,null,null,null,null,null,null,null,null,null,null,null,null,null,null,null,null,null,null,null,null,null,null,null,null,null,null,null,null,null,null,null,null,null,null,null,null,null,null,null,null,null,null,null,null,null,30,-30]
[null,36256,null,0.90013726835964314,36.4,-1964,null,null,null,65.7,36,2,6082.2185970636219,null,null,null,null,null,null,null,null,null,null,null,null,null,null,null,null,null,null,null,null,null,null,null,null,null,null,null,null,null,null,null,null,212,null,null,0.22456043195348194,48.9,-2626,null,null,null,56.6,24,1,7210.0579847562094,null,null,null,null,null,null,null,null,null,null,null,null,null,null,null,null,null,null,null,null,null,null,null,null,null,null,null,null,null,null,null,null,null,null,null,null,null,null,null,null,null,null,null,null,null,null,null,null,null,null,null,null,null,null,null,null,null,null,null,null,null,null,null,null,null,null,null,null,null,null,null,null,null,null,null,null,null,231,null,null,null,null,null,null,null,null,null,null,null,null,null,null,null,null,null,null,null,null,null,null,null,null,null,null,null,null,null,null,null,null,null,null,null,null,null,null,null,null,null,null,null,null,null,null,null,null,null,null,null,null,null,null,null,null,null,null,null,null,null,null,null,null,null,null,null,null,null,null,null,null,null,null,null,null,null,null,null,null,null,null,null,null,null,null,null,null,null,null,null,null,null,null,null,5648,-5648]
[null,1126,null,0.7481644640234949,35.6,-2234,null,null,null,49.8,208,8,22113.321799307956,null,null,null,null,null,null,null,null,null,null,null,null,null,null,null,null,null,null,null,null,null,null,null,null,null,null,null,null,null,null,null,null,307,null,null,-2.7269372693726939,44.3,-3043,null,null,null,35.200000000000003,232,9,9127.7728482697421,null,null,null,null,null,null,null,null,null,null,null,null,null,null,null,null,null,null,null,null,null,null,null,null,null,null,null,null,null,null,null,null,null,null,null,null,null,null,null,null,null,null,null,null,null,null,null,null,null,null,null,null,null,null,null,null,null,null,null,null,null,null,null,null,null,null,null,null,null,null,null,null,null,null,null,null,null,280,null,null,null,null,null,null,null,null,null,null,null,null,null,null,null,null,null,null,null,null,null,null,null,null,null,null,null,null,null,null,null,null,null,null,null,null,null,null,null,null,null,null,null,null,null,null,null,null,null,160,200,null,null,null,null,null,null,null,null,null,null,null,null,null,null,null,null,null,null,null,null,null,null,null,null,null,null,null,null,null,null,null,null,null,null,null,null,null,null,null,null,null,null,null,null,212,-212]
[null,60354,null,0.56687165641717918,49.9,-2530,null,null,null,62.2,2,0,5761.017324497896,null,null,null,null,null,null,null,null,null,null,null,null,null,null,null,null,null,null,null,null,null,null,null,null,null,null,null,null,null,null,null,null,207,null,null,0.12530644523527085,58.3,-2971,null,null,null,56.8,1,0,6926.741218349116,null,null,null,null,null,null,null,null,null,null,null,null,null,null,null,null,null,null,null,null,null,null,null,null,null,null,null,null,null,null,null,null,null,null,null,null,null,null,null,null,null,null,null,null,null,null,null,null,null,null,null,null,null,null,null,null,null,null,null,null,null,null,null,null,null,null,null,null,null,null,null,null,null,null,null,null,null,272,null,null,null,null,null,null,null,null,null,null,null,null,null,null,null,null,null,null,null,null,null,null,null,null,null,null,null,null,null,null,null,null,null,null,null,null,null,null,null,null,null,null,null,null,null,null,null,null,null,null,null,null,null,null,null,null,null,null,null,null,null,null,null,null,null,null,null,null,null,null,null,null,null,null,null,null,null,null,null,null,null,null,null,null,null,null,null,null,null,null,null,null,null,null,null,19964,-19964]
[null,5198,null,1.0718990120746432,63.3,-3194,null,null,null,32.1,409,22,25151.561021759699,null,null,null,null,null,null,null,null,null,null,null,null,null,null,null,null,null,null,null,null,null,null,null,null,null,null,null,null,null,null,null,null,100,null,null,8.5271317829457363E-2,66.5,-3369,null,null,null,29.2,431,23,6844.4953253195954,null,null,null,null,null,null,null,null,null,null,null,null,null,null,null,null,null,null,null,null,null,null,null,null,null,null,null,null,null,null,null,null,null,null,null,null,null,null,null,null,null,null,null,null,null,null,null,null,null,null,null,null,null,null,null,null,null,null,null,null,null,null,null,null,null,null,null,null,null,null,null,null,null,null,null,null,null,158,null,null,null,null,null,null,null,null,null,null,null,null,null,null,null,null,null,null,null,null,null,null,null,null,null,null,null,null,null,null,null,null,null,null,null,null,null,null,null,null,null,null,null,null,null,null,null,null,null,null,680,null,null,null,null,null,null,null,null,null,null,null,null,null,null,null,null,null,null,null,null,null,null,null,null,null,null,null,null,null,null,null,null,null,null,null,null,null,null,null,null,null,null,null,null,1442,-1442]
[null,1632,null,0.76887871853546907,24.1,-527,null,null,null,76.2,576,31,8639.3738711619499,null,null,null,null,null,null,null,null,null,null,null,null,null,null,null,null,null,null,null,null,null,null,null,null,null,null,null,null,null,null,null,null,299,null,null,0.6097560975609756,25.7,-790,null,null,null,73,551,29,6999.3906154783672,null,null,null,null,null,null,null,null,null,null,null,null,null,null,null,null,null,null,null,null,null,null,null,null,null,null,null,null,null,null,null,null,null,null,null,null,null,null,null,null,null,null,null,null,null,null,null,null,null,null,null,null,null,null,null,null,null,null,null,null,null,null,null,null,null,null,null,null,null,null,null,null,null,null,null,null,null,82,null,null,null,null,null,null,null,null,null,null,null,null,null,null,null,null,null,null,null,null,null,null,null,null,null,null,null,null,null,null,null,null,null,null,null,null,null,null,null,null,null,null,null,null,null,null,null,null,null,null,null,null,null,null,null,null,null,null,null,null,null,null,null,null,null,null,null,null,null,null,null,null,null,null,null,null,null,null,null,null,null,null,null,null,null,null,null,null,null,null,null,null,null,null,null,1,-1]
[null,5593,null,-0.94964871194379397,42.5,-1458,null,null,null,53.9,746,39,6548.3241709522972,null,null,null,null,null,null,null,null,null,null,null,null,null,null,null,null,null,null,null,null,null,null,null,null,null,null,null,null,null,null,null,null,310,null,null,0.41902071563088511,45.3,-1557,null,null,null,50.9,1086,57,6947.8291942111846,null,null,null,null,null,null,null,null,null,null,null,null,null,null,null,null,null,null,null,null,null,null,null,null,null,null,null,null,null,null,null,null,null,null,null,null,null,null,null,null,null,null,null,null,null,null,null,null,null,null,null,null,null,null,null,null,null,null,null,null,null,null,null,null,null,null,null,null,null,null,null,null,null,null,null,null,null,250,null,null,null,null,null,null,null,null,null,null,null,null,null,null,null,null,null,null,null,null,null,null,null,null,null,null,null,null,null,null,null,null,null,null,null,null,null,null,null,null,null,null,null,null,null,null,null,null,null,null,null,null,null,null,null,null,null,null,null,null,null,null,null,null,null,null,null,null,null,null,null,null,null,null,null,null,null,null,null,null,null,null,null,null,null,null,null,null,null,null,null,null,null,null,null,813,-813]
[null,5857,null,1.2903225806451613,35.9,-2401,null,null,null,52.3,156,7,7765.5502392344506,null,null,null,null,null,null,null,null,null,null,null,null,null,null,null,null,null,null,null,null,null,null,null,null,null,null,null,null,null,null,null,null,59,null,null,0.49651741293532337,32.9,-2296,null,null,null,54.8,24,1,8173.4915594183522,null,null,null,null,null,null,null,null,null,null,null,null,null,null,null,null,null,null,null,null,null,null,null,null,null,null,null,null,null,null,null,null,null,null,null,null,null,null,null,null,null,null,null,null,null,null,null,null,null,null,null,null,null,null,null,null,null,null,null,null,null,null,null,null,null,null,null,null,null,null,null,null,null,null,null,null,null,289,null,null,null,null,null,null,null,null,null,null,null,null,null,null,null,null,null,null,null,null,null,null,null,null,null,null,null,null,null,null,null,null,null,null,null,null,null,null,null,null,null,null,null,null,null,null,null,null,650,null,null,null,null,null,null,null,null,null,null,null,null,null,null,null,null,null,null,null,null,null,null,null,null,null,null,null,null,null,null,null,null,null,null,null,null,null,null,null,null,null,null,null,null,null,null,2054,-2054]
[null,21567,null,1.0565422254440016,39.4,-2140,null,null,null,55.5,472,22,7311.9515743043494,null,null,null,null,null,null,null,null,null,null,null,null,null,null,null,null,null,null,null,null,null,null,null,null,null,null,null,null,null,null,null,null,156,null,null,-0.13554917247982493,40.1,-2509,null,null,null,52.1,174,8,8352.9933274228915,null,null,null,null,null,null,null,null,null,null,null,null,null,null,null,null,null,null,null,null,null,null,null,null,null,null,null,null,null,null,null,null,null,null,null,null,null,null,null,null,null,null,null,null,null,null,null,null,null,null,null,null,null,null,null,null,null,null,null,null,null,null,null,null,null,null,null,null,null,null,null,null,null,null,null,null,null,281,null,null,null,null,null,null,null,null,null,null,null,null,null,null,null,null,null,null,null,null,null,null,null,null,null,null,null,null,null,null,null,null,null,null,null,null,null,null,null,null,null,null,null,null,null,null,null,null,null,null,null,null,null,null,null,null,null,null,null,null,null,null,null,null,null,null,null,null,null,null,null,null,null,null,null,null,null,null,null,null,null,null,null,null,null,null,null,null,null,null,null,null,null,null,null,5346,-5346]
[null,3356,null,1.1890389197776012,28,-1330,null,null,null,64.5,74,4,6555.6524266201686,null,null,null,null,null,null,null,null,null,null,null,null,null,null,null,null,null,null,null,null,null,null,null,null,null,null,null,null,null,null,null,null,87,null,null,0.63264020163831125,32.1,-1348,null,null,null,61,531,29,6727.325750947799,null,null,null,null,null,null,null,null,null,null,null,null,null,null,null,null,null,null,null,null,null,null,null,null,null,null,null,null,null,null,null,null,null,null,null,null,null,null,null,null,null,null,null,null,null,null,null,null,null,null,null,null,null,null,null,null,null,null,null,null,null,null,null,null,null,null,null,null,null,null,null,null,null,null,null,null,null,253,null,null,null,null,null,null,null,null,null,null,null,null,null,null,null,null,null,null,null,null,null,null,null,null,null,null,null,null,null,null,null,null,null,null,null,null,null,null,null,null,null,null,null,null,null,null,null,null,null,null,null,null,null,null,null,null,null,null,null,null,null,null,null,null,null,null,null,null,null,null,null,null,null,null,null,null,null,null,null,null,null,null,null,null,null,null,null,null,null,null,null,null,null,null,null,1016,{"$f":"HX247*-1","v":-1016}]
[null,18914,null,0.4920339140967111,68.099999999999994,-3428,null,null,null,50.1,168,8,6732.1602072762607,null,null,null,null,null,null,null,null,null,null,null,null,null,null,null,null,null,null,null,null,null,null,null,null,null,null,null,null,null,null,null,null,176,null,null,0.67653149266609147,61.9,-2138,null,null,null,60.4,112,6,7331.1809594962378,null,null,null,null,null,null,null,null,null,null,null,null,null,null,null,null,null,null,null,null,null,null,null,null,null,null,null,null,null,null,null,null,null,null,null,null,null,null,null,null,null,null,null,null,null,null,null,null,null,null,null,null,null,null,null,null,null,null,null,null,null,null,null,null,null,null,null,null,null,null,null,null,null,null,null,null,null,104,null,null,null,null,null,null,null,null,null,null,null,null,null,null,null,null,null,null,null,null,null,null,null,null,null,null,null,null,null,null,null,null,null,null,null,null,null,null,null,null,null,null,null,null,null,null,null,null,null,null,null,null,null,null,null,null,null,null,null,null,null,null,null,null,null,null,null,null,null,null,null,null,null,null,null,null,null,null,null,null,null,null,null,null,null,null,null,null,null,null,null,null,null,null,null,9761,-9761]
[null,6183,null,1.3456243854473944,55,-2799,null,null,null,33.9,101,6,5682.6610279765782,null,null,null,null,null,null,null,null,null,null,null,null,null,null,null,null,null,null,null,null,null,null,null,null,null,null,null,null,null,null,null,null,69,null,null,-1.0313075506445672E-2,67.7,-3559,null,null,null,26.1,4,0,6789.1410048622365,null,null,null,null,null,null,null,null,null,null,null,null,null,null,null,null,null,null,null,null,null,null,null,null,null,null,null,null,null,null,null,null,null,null,null,null,null,null,null,null,null,null,null,null,null,null,null,null,null,null,null,null,null,null,null,null,null,null,null,null,null,null,null,null,null,null,null,null,null,null,null,null,null,null,null,null,null,92,null,null,null,null,null,null,null,null,null,null,null,null,null,null,null,null,null,null,null,null,null,null,null,null,null,null,null,null,null,null,null,null,null,null,null,null,null,null,null,null,null,null,null,null,null,null,null,null,null,null,null,null,null,null,null,null,null,null,null,null,null,null,null,null,null,null,null,null,null,null,null,null,null,null,null,null,null,null,null,null,null,null,null,null,null,null,null,null,null,null,null,null,null,null,null,1890,-1890]
[null,8884,null,1.0904878048780489,38.1,-1402,null,null,null,59.1,1018,49,10338.064955712014,null,null,null,null,null,null,null,null,null,null,null,null,null,null,null,null,null,null,null,null,null,null,null,null,null,null,null,null,null,null,null,null,90,null,null,0.22955694320547129,45.1,-2128,null,null,null,53.2,907,38,8790.3554448720861,null,null,null,null,null,null,null,null,null,null,null,null,null,null,null,null,null,null,null,null,null,null,null,null,null,null,null,null,null,null,null,null,null,null,null,null,null,null,null,null,null,null,null,null,null,null,null,null,null,null,null,null,null,null,null,null,null,null,null,null,null,null,null,null,null,null,null,null,null,null,null,null,null,null,null,null,null,149,null,null,null,null,null,null,null,null,null,null,null,null,null,null,null,null,null,null,null,null,null,null,null,null,null,null,null,null,null,null,null,null,null,null,null,null,null,null,null,null,null,null,null,null,null,null,null,null,null,null,null,null,null,null,null,null,null,null,null,null,null,null,null,null,null,null,null,null,null,null,null,null,null,null,null,null,null,null,null,null,null,null,null,null,null,null,null,null,null,null,null,null,null,null,null,2821,-2821]
[null,2284,null,2.7372262773722629E-2,46.8,-4456,null,null,null,34.299999999999997,327,9,13695.762711864407,null,null,null,null,null,null,null,null,null,null,null,null,null,null,null,null,null,null,null,null,null,null,null,null,null,null,null,null,null,null,null,null,308,null,null,0.56416238917405503,43.9,-4526,null,null,null,35,274,7,14816.659510519536,null,null,null,null,null,null,null,null,null,null,null,null,null,null,null,null,null,null,null,null,null,null,null,null,null,null,null,null,null,null,null,null,null,null,null,null,null,null,null,null,null,null,null,null,null,null,null,null,null,null,null,null,null,null,null,null,null,null,null,null,null,null,null,null,null,null,null,null,null,null,null,null,null,null,null,null,null,276,null,null,null,null,null,null,null,null,null,null,null,null,null,null,null,null,null,null,null,null,null,null,null,null,null,null,null,null,null,null,null,null,null,null,null,null,null,null,null,null,null,null,null,null,null,null,null,null,null,320,null,null,null,null,null,null,null,null,null,null,null,null,null,null,null,null,null,null,null,null,null,null,null,null,null,null,null,null,null,null,null,null,null,null,null,null,null,null,null,null,null,null,null,null,null,1835,-1835]
[null,9146,null,4.1948198198198199,17.2,-143,null,null,null,82.8,342,20,6080.0604229607243,null,null,null,null,null,null,null,null,null,null,null,null,null,null,null,null,null,null,null,null,null,null,null,null,null,null,null,null,null,null,null,null,93,null,null,3.8037974683544302,23.4,-729,null,null,null,77.900000000000006,189,10,6741.7921768338938,null,null,null,null,null,null,null,null,null,null,null,null,null,null,null,null,null,null,null,null,null,null,null,null,null,null,null,null,null,null,null,null,null,null,null,null,null,null,null,null,null,null,null,null,null,null,null,null,null,null,null,null,null,null,null,null,null,null,null,null,null,null,null,null,null,null,null,null,null,null,null,null,null,null,null,null,null,53,null,null,null,null,null,null,null,null,null,null,null,null,null,null,null,null,null,null,null,null,null,null,null,null,null,null,null,null,null,null,null,null,null,null,null,null,null,null,null,null,null,null,null,null,null,null,null,null,null,null,null,null,null,null,null,null,null,null,null,null,null,null,null,null,null,null,null,null,null,null,null,null,null,null,null,null,null,null,null,null,null,null,null,null,null,null,null,null,null,null,null,null,null,null,null,484,-484]
[null,4454,null,0.5786008230452675,37.9,-2012,null,null,null,56.7,107,5,7009.565217391304,null,null,null,null,null,null,null,null,null,null,null,null,null,null,null,null,null,null,null,null,null,null,null,null,null,null,null,null,null,null,null,null,249,null,null,-0.44462947543713571,49.8,-2860,null,null,null,44,68,3,7362.3414199866465,null,null,null,null,null,null,null,null,null,null,null,null,null,null,null,null,null,null,null,null,null,null,null,null,null,null,null,null,null,null,null,null,null,null,null,null,null,null,null,null,null,null,null,null,null,null,null,null,null,null,null,null,null,null,null,null,null,null,null,null,null,null,null,null,null,null,null,null,null,null,null,null,null,null,null,null,null,99,null,null,null,null,null,null,null,null,null,null,null,null,null,null,null,null,null,null,null,null,null,null,null,null,null,null,null,null,null,null,null,null,null,null,null,null,null,null,null,null,null,null,null,null,null,null,null,null,null,null,550,null,null,null,null,null,null,null,null,null,null,null,null,null,null,null,null,null,null,null,null,null,null,null,null,null,null,null,null,null,null,null,null,null,null,null,null,null,null,null,null,null,null,null,null,958,-958]
[null,10659,null,0.76240846216436131,20.399999999999999,-825,null,null,null,71.2,192,11,6639.2446480321587,null,null,null,null,null,null,null,null,null,null,null,null,null,null,null,null,null,null,null,null,null,null,null,null,null,null,null,null,null,null,null,null,253,null,null,-1.363211223694466,31.5,-1609,null,null,null,60.8,32,2,6941.1158958996439,null,null,null,null,null,null,null,null,null,null,null,null,null,null,null,null,null,null,null,null,null,null,null,null,null,null,null,null,null,null,null,null,null,null,null,null,null,null,null,null,null,null,null,null,null,null,null,null,null,null,null,null,null,null,null,null,null,null,null,null,null,null,null,null,null,null,null,null,null,null,null,null,null,null,null,null,null,273,null,null,null,null,null,null,null,null,null,null,null,null,null,null,null,null,null,null,null,null,null,null,null,null,null,null,null,null,null,null,null,null,null,null,null,null,null,null,null,null,null,null,null,null,null,null,null,null,null,null,null,null,null,null,null,null,null,null,null,null,null,null,null,null,null,null,null,null,null,null,null,null,null,null,null,null,null,null,null,null,null,null,null,null,null,null,null,null,null,null,null,null,null,null,null,1146,-1146]
[null,2794,null,1.7014314928425358,26,-1292,null,null,null,68.8,260,14,8219.4019471488173,null,null,null,null,null,null,null,null,null,null,null,null,null,null,null,null,null,null,null,null,null,null,null,null,null,null,null,null,null,null,null,null,180,null,null,-0.81862745098039214,27.1,-1662,null,null,null,65.599999999999994,69,3,7629.0436005625879,null,null,null,null,null,null,null,null,null,null,null,null,null,null,null,null,null,null,null,null,null,null,null,null,null,null,null,null,null,null,null,null,null,null,null,null,null,null,null,null,null,null,null,null,null,null,null,null,null,null,null,null,null,null,null,null,null,null,null,null,null,null,null,null,null,null,null,null,null,null,null,null,null,null,null,null,null,286,null,null,null,null,null,null,null,null,null,null,null,null,null,null,null,null,null,null,null,null,null,null,null,null,null,null,null,null,null,null,null,null,null,null,null,null,null,null,null,null,null,null,null,null,null,null,null,null,null,null,null,null,null,null,null,null,null,null,null,null,null,null,null,null,null,null,null,null,null,null,null,null,null,null,null,null,null,null,null,null,null,null,null,null,null,null,null,null,null,null,null,null,null,null,null,317,-317]
[null,8661,null,3.1995094031071138,20.5,289,null,null,null,76.599999999999994,1438,68,7187.2973275187296,null,null,null,null,null,null,null,null,null,null,null,null,null,null,null,null,null,null,null,null,null,null,null,null,null,null,null,null,null,null,null,null,67,null,null,3.3431372549019609,25.4,-87,null,null,null,76.099999999999994,1471,67,8068.0812436173837,null,null,null,null,null,null,null,null,null,null,null,null,null,null,null,null,null,null,null,null,null,null,null,null,null,null,null,null,null,null,null,null,null,null,null,null,null,null,null,null,null,null,null,null,null,null,null,null,null,null,null,null,null,null,null,null,null,null,null,null,null,null,null,null,null,null,null,null,null,null,null,null,null,null,null,null,null,49,null,null,null,null,null,null,null,null,null,null,null,null,null,null,null,null,null,null,null,null,null,null,null,null,null,null,null,null,null,null,null,null,null,null,null,null,null,null,null,null,null,null,null,null,null,null,null,null,null,null,null,null,null,null,null,null,null,null,null,null,null,null,null,null,null,null,null,null,null,null,null,null,null,null,null,null,null,null,null,null,null,null,null,null,null,null,null,null,null,null,null,null,null,null,null,1125,-1125]
[null,7456,null,0.35718911917098445,59.1,-3692,null,null,null,43.3,49,2,6844.9254322291144,null,null,null,null,null,null,null,null,null,null,null,null,null,null,null,null,null,null,null,null,null,null,null,null,null,null,null,null,null,null,null,null,237,null,null,0.68360793074560178,60.7,-3869,null,null,null,40.799999999999997,251,12,7854.3223052294561,null,null,null,null,null,null,null,null,null,null,null,null,null,null,null,null,null,null,null,null,null,null,null,null,null,null,null,null,null,null,null,null,null,null,null,null,null,null,null,null,null,null,null,null,null,null,null,null,null,null,null,null,null,null,null,null,null,null,null,null,null,null,null,null,null,null,null,null,null,null,null,null,null,null,null,null,null,196,null,null,null,null,null,null,null,null,null,null,null,null,null,null,null,null,null,null,null,null,null,null,null,null,null,null,null,null,null,null,null,null,null,null,null,null,null,null,null,null,null,null,null,null,null,null,null,null,null,null,null,null,null,null,null,null,null,null,null,null,null,null,null,null,null,null,null,null,null,null,null,null,null,null,null,null,null,null,null,null,null,null,null,null,null,null,null,null,null,null,null,null,null,null,null,3075,-3075]
[null,4139,null,4.3664850136239783,17.899999999999999,644,null,null,null,71,1589,73,8721.4268950950482,null,null,null,null,null,null,null,null,null,null,null,null,null,null,null,null,null,null,null,null,null,null,null,null,null,null,null,null,null,null,null,null,15,null,null,5.1921568627450982,16.899999999999999,1100,null,null,null,74.099999999999994,2102,95,8083.7721397797977,null,null,null,null,null,null,null,null,null,null,null,null,null,null,null,null,null,null,null,null,null,null,null,null,null,null,null,null,null,null,null,null,null,null,null,null,null,null,null,null,null,null,null,null,null,null,null,null,null,null,null,null,null,null,null,null,null,null,null,null,null,null,null,null,null,null,null,null,null,null,null,null,null,null,null,null,null,6,null,null,null,null,null,null,null,null,null,null,null,null,null,null,null,null,null,null,null,null,null,null,null,null,null,null,null,null,null,null,null,null,null,null,null,null,null,null,null,null,null,null,null,null,null,null,null,null,null,null,null,null,null,null,null,null,null,null,null,null,null,null,null,null,null,null,null,null,null,null,null,null,null,null,null,null,null,null,null,null,null,null,null,null,null,null,null,null,null,null,null,null,null,null,null,531,-531]
[null,4567,null,2.8504122497055357,38.4,-1075,null,null,null,58.1,27,1,7486.1973036593199,null,null,null,null,null,null,null,null,null,null,null,null,null,null,null,null,null,null,null,null,null,null,null,null,null,null,null,null,null,null,null,null,84,null,null,1.0376447876447876,33.4,-1099,null,null,null,61,177,10,6471.8203411790109,null,null,null,null,null,null,null,null,null,null,null,null,null,null,null,null,null,null,null,null,null,null,null,null,null,null,null,null,null,null,null,null,null,null,null,null,null,null,null,null,null,null,null,null,null,null,null,null,null,null,null,null,null,null,null,null,null,null,null,null,null,null,null,null,null,null,null,null,null,null,null,null,null,null,null,null,null,207,null,null,null,null,null,null,null,null,null,null,null,null,null,null,null,null,null,null,null,null,null,null,null,null,null,null,null,null,null,null,null,null,null,null,null,null,null,null,null,null,null,null,null,null,null,null,null,null,null,null,null,null,null,null,null,null,null,null,null,null,null,null,null,null,null,null,null,null,null,null,null,null,null,null,null,null,null,null,null,null,null,null,null,null,null,null,null,null,null,null,null,null,null,null,null,170,-170]
[null,4826,null,2.6682242990654204,33.6,-1211,null,null,null,59.1,351,25,5533.0587023686912,null,null,null,null,null,null,null,null,null,null,null,null,null,null,null,null,null,null,null,null,null,null,null,null,null,null,null,null,null,null,null,null,99,null,null,3.3463143254520169,30.2,-1056,null,null,null,61.9,418,27,5595.6611570247942,null,null,null,null,null,null,null,null,null,null,null,null,null,null,null,null,null,null,null,null,null,null,null,null,null,null,null,null,null,null,null,null,null,null,null,null,null,null,null,null,null,null,null,null,null,null,null,null,null,null,null,null,null,null,null,null,null,null,null,null,null,null,null,null,null,null,null,null,null,null,null,null,null,null,null,null,null,37,null,null,null,null,null,null,null,null,null,null,null,null,null,null,null,null,null,null,null,null,null,null,null,null,null,null,null,null,null,null,null,null,null,null,null,null,null,null,null,null,null,null,null,null,null,null,null,null,null,null,null,null,null,null,null,null,null,null,null,null,null,null,null,null,null,null,null,null,null,null,null,null,null,null,null,null,null,null,null,null,null,null,null,null,null,null,null,null,null,null,null,null,null,null,null,619,-619]
[null,4251,null,2.4841735052754981,15.2,-386,null,null,null,78.599999999999994,524,24,7637.4943464495709,null,null,null,null,null,null,null,null,null,null,null,null,null,null,null,null,null,null,null,null,null,null,null,null,null,null,null,null,null,null,null,null,50,null,null,3.2136602451838878,19.100000000000001,-743,null,null,null,74.8,380,16,8572.4553674936251,null,null,null,null,null,null,null,null,null,null,null,null,null,null,null,null,null,null,null,null,null,null,null,null,null,null,null,null,null,null,null,null,null,null,null,null,null,null,null,null,null,null,null,null,null,null,null,null,null,null,null,null,null,null,null,null,null,null,null,null,null,null,null,null,null,null,null,null,null,null,null,null,null,null,null,null,null,23,null,null,null,null,null,null,null,null,null,null,null,null,null,null,null,null,null,null,null,null,null,null,null,null,null,null,null,null,null,null,null,null,null,null,null,null,null,null,null,null,null,null,null,null,null,null,null,null,null,null,null,null,null,null,null,null,null,null,null,null,null,null,null,null,null,null,null,null,null,null,null,null,null,null,null,null,null,null,null,null,null,null,null,null,null,null,null,null,null,null,null,null,null,null,null,772,-772]
[null,1667,null,5.5733944954128436,34.1,-1326,null,null,null,55,493,25,10666.272189349113,null,null,null,null,null,null,null,null,null,null,null,null,null,null,null,null,null,null,null,null,null,null,null,null,null,null,null,null,null,null,null,null,18,null,null,6.4751773049645394,48.5,-1745,null,null,null,48.1,902,42,7866.2306777645663,null,null,null,null,null,null,null,null,null,null,null,null,null,null,null,null,null,null,null,null,null,null,null,null,null,null,null,null,null,null,null,null,null,null,null,null,null,null,null,null,null,null,null,null,null,null,null,null,null,null,null,null,null,null,null,null,null,null,null,null,null,null,null,null,null,null,null,null,null,null,null,null,null,null,null,null,null,7,null,null,null,null,null,null,null,null,null,null,null,null,null,null,null,null,null,null,null,null,null,null,null,null,null,null,null,null,null,null,null,null,null,null,null,null,null,null,null,null,null,null,null,null,null,null,null,null,null,null,null,null,null,null,null,null,null,null,null,null,null,null,null,null,null,null,null,null,null,null,null,null,null,null,null,null,null,null,null,null,null,null,null,null,null,null,null,null,null,null,null,null,null,null,null,119,-119]
[null,6474,null,1.1097451944568619,23.5,-952,null,null,null,77.900000000000006,32,2,26634.57430576747,null,null,null,null,null,null,null,null,null,null,null,null,null,null,null,null,null,null,null,null,null,null,null,null,null,null,null,null,null,null,null,null,144,null,null,0.58761528326745716,32.4,-1455,null,null,null,70.8,25,2,6048.4561296239681,null,null,null,null,null,null,null,null,null,null,null,null,null,null,null,null,null,null,null,null,null,null,null,null,null,null,null,null,null,null,null,null,null,null,null,null,null,null,null,null,null,null,null,null,null,null,null,null,null,null,null,null,null,null,null,null,null,null,null,null,null,null,null,null,null,null,null,null,null,null,null,null,null,null,null,null,null,129,null,null,null,null,null,null,null,null,null,null,null,null,null,null,null,null,null,null,null,null,null,null,null,null,null,null,null,null,null,null,null,null,null,null,null,null,null,null,null,null,null,null,null,null,null,null,null,null,null,null,null,null,null,null,null,null,null,null,null,null,null,null,null,null,null,null,null,null,null,null,null,null,null,null,null,null,null,null,null,null,null,null,null,null,null,null,null,null,null,null,null,null,null,null,null,840,-840]
[null,220446,null,5.5710554240470165,38.9,-1463,null,null,null,73.2,550,30,5921.9261228435453,null,null,null,null,null,null,null,null,null,null,null,null,null,null,null,null,null,null,null,null,null,null,null,null,null,null,null,null,null,null,null,null,117,null,null,0.97204709615464913,41.5,-1731,null,null,null,70.900000000000006,437,22,7238.8039793764174,null,null,null,null,null,null,null,null,null,null,null,null,null,null,null,null,null,null,null,null,null,null,null,null,null,null,null,null,null,null,null,null,null,null,null,null,null,null,null,null,null,null,null,null,null,null,null,null,null,null,null,null,null,null,null,null,null,null,null,null,null,null,null,null,null,null,null,null,null,null,null,null,null,null,null,null,null,140,null,null,null,null,null,null,null,null,null,null,null,null,null,null,null,null,null,null,null,null,null,null,null,null,null,null,null,null,null,null,null,null,null,null,null,null,null,null,null,null,null,null,null,null,null,null,null,null,null,null,null,null,null,null,null,null,null,null,null,null,null,null,null,null,null,null,null,null,null,null,null,null,null,null,null,null,null,null,null,null,null,null,null,null,null,null,null,null,null,null,null,null,null,null,null,11989,-11989]
[null,1669,null,-0.59312320916905448,39.1,-114,null,null,null,69.099999999999994,1910,88,7977.0588235294126,null,null,null,null,null,null,null,null,null,null,null,null,null,null,null,null,null,null,null,null,null,null,null,null,null,null,null,null,null,null,null,null,313,null,null,1.7642857142857142,40.9,-705,null,null,null,63.5,2010,81,9071.0093896713624,null,null,null,null,null,null,null,null,null,null,null,null,null,null,null,null,null,null,null,null,null,null,null,null,null,null,null,null,null,null,null,null,null,null,null,null,null,null,null,null,null,null,null,null,null,null,null,null,null,null,null,null,null,null,null,null,null,null,null,null,null,null,null,null,null,null,null,null,null,null,null,null,null,null,null,null,null,177,null,null,null,null,null,null,null,null,null,null,null,null,null,null,null,null,null,null,null,null,null,null,null,null,null,null,null,null,null,null,null,null,null,null,null,null,null,null,null,null,null,null,null,null,null,null,null,null,null,null,null,null,null,null,null,null,null,null,null,null,null,null,null,null,null,null,null,null,null,null,null,null,null,null,null,null,null,null,null,null,null,null,null,null,null,null,null,null,null,null,null,null,null,null,null,222,-222]
[null,3306,null,4.1012345679012343,28.6,-1109,null,null,null,65.5,1035,43,9090.935931502805,null,null,null,null,null,null,null,null,null,null,null,null,null,null,null,null,null,null,null,null,null,null,null,null,null,null,null,null,null,null,null,null,5,null,null,3.9751633986928105,27.8,-720,null,null,null,67.8,1419,54,9505.2410901467501,null,null,null,null,null,null,null,null,null,null,null,null,null,null,null,null,null,null,null,null,null,null,null,null,null,null,null,null,null,null,null,null,null,null,null,null,null,null,null,null,null,null,null,null,null,null,null,null,null,null,null,null,null,null,null,null,null,null,null,null,null,null,null,null,null,null,null,null,null,null,null,null,null,null,null,null,null,3,null,null,null,null,null,null,null,null,null,null,null,null,null,null,null,null,null,null,null,null,null,null,null,null,null,null,null,null,null,null,null,null,null,null,null,null,null,null,null,null,null,null,null,null,null,null,null,null,null,null,null,null,null,null,null,null,null,null,null,null,null,null,null,null,null,null,null,null,null,null,null,null,null,null,null,null,null,null,null,null,null,null,null,null,null,null,null,null,null,null,null,null,null,null,null,802,-802]
[null,5656,null,-3.9356060606060606,16.100000000000001,-694,null,null,null,79.7,71,4,6884.3851547802296,null,null,null,null,null,null,null,null,null,null,null,null,null,null,null,null,null,null,null,null,null,null,null,null,null,null,null,null,null,null,null,null,316,null,null,-5.2099447513812152,33.9,-1581,null,null,null,61.9,395,19,7632.3911912606209,null,null,null,null,null,null,null,null,null,null,null,null,null,null,null,null,null,null,null,null,null,null,null,null,null,null,null,null,null,null,null,null,null,null,null,null,null,null,null,null,null,null,null,null,null,null,null,null,null,null,null,null,null,null,null,null,null,null,null,null,null,null,null,null,null,null,null,null,null,null,null,null,null,null,null,null,null,269,null,null,null,null,null,null,null,null,null,null,null,null,null,null,null,null,null,null,null,null,null,null,null,null,null,null,null,null,null,null,null,null,null,null,null,null,null,null,null,null,null,null,null,null,null,null,null,null,null,780,700,null,null,null,null,null,null,null,null,null,null,null,null,null,null,null,null,null,null,null,null,null,null,null,null,null,null,null,null,null,null,null,null,null,null,null,null,null,null,null,null,null,null,null,null,57,-57]
[null,4876,null,0.65063907486305539,42.5,-2210,null,null,null,41.9,400,19,8287.6602564102577,null,null,null,null,null,null,null,null,null,null,null,null,null,null,null,null,null,null,null,null,null,null,null,null,null,null,null,null,null,null,null,null,222,null,null,1.5829318651066758E-2,34.299999999999997,-2247,null,null,null,44.5,76,3,8067.3881968552178,null,null,null,null,null,null,null,null,null,null,null,null,null,null,null,null,null,null,null,null,null,null,null,null,null,null,null,null,null,null,null,null,null,null,null,null,null,null,null,null,null,null,null,null,null,null,null,null,null,null,null,null,null,null,null,null,null,null,null,null,null,null,null,null,null,null,null,null,null,null,null,null,null,null,null,null,null,71,null,null,null,null,null,null,null,null,null,null,null,null,null,null,null,null,null,null,null,null,null,null,null,null,null,null,null,null,null,null,null,null,null,null,null,null,null,null,null,null,null,null,null,null,null,null,null,null,800,600,null,null,null,null,null,null,null,null,null,null,null,null,null,null,null,null,null,null,null,null,null,null,null,null,null,null,null,null,null,null,null,null,null,null,null,null,null,null,null,null,null,null,null,null,null,1398,-1398]
[null,3381,null,-4.7868852459016393,66.8,-4351,null,null,null,37.200000000000003,594,23,8468.5796269727398,null,null,null,null,null,null,null,null,null,null,null,null,null,null,null,null,null,null,null,null,null,null,null,null,null,null,null,null,null,null,null,null,306,null,null,1.2610062893081762,72,-5518,null,null,null,32.9,266,10,9690.3093987157026,null,null,null,null,null,null,null,null,null,null,null,null,null,null,null,null,null,null,null,null,null,null,null,null,null,null,null,null,null,null,null,null,null,null,null,null,null,null,null,null,null,null,null,null,null,null,null,null,null,null,null,null,null,null,null,null,null,null,null,null,null,null,null,null,null,null,null,null,null,null,null,null,null,null,null,null,null,120,null,null,null,null,null,null,null,null,null,null,null,null,null,null,null,null,null,null,null,null,null,null,null,null,null,null,null,null,null,null,null,null,null,null,null,null,null,null,null,null,null,null,null,null,null,null,null,null,null,450,null,null,null,null,null,null,null,null,null,null,null,null,null,null,null,null,null,null,null,null,null,null,null,null,null,null,null,null,null,null,null,null,null,null,null,null,null,null,null,null,null,null,null,null,null,10,-10]
[null,2466,null,1.0442546583850931,32,-1221,null,null,null,55.3,409,25,11947.474747474747,null,null,null,null,null,null,null,null,null,null,null,null,null,null,null,null,null,null,null,null,null,null,null,null,null,null,null,null,null,null,null,null,242,null,null,0.85530546623794212,28.7,-1182,null,null,null,54.3,303,18,6196.3340122199597,null,null,null,null,null,null,null,null,null,null,null,null,null,null,null,null,null,null,null,null,null,null,null,null,null,null,null,null,null,null,null,null,null,null,null,null,null,null,null,null,null,null,null,null,null,null,null,null,null,null,null,null,null,null,null,null,null,null,null,null,null,null,null,null,null,null,null,null,null,null,null,null,null,null,null,null,null,40,null,null,null,null,null,null,null,null,null,null,null,null,null,null,null,null,null,null,null,null,null,null,null,null,null,null,null,null,null,null,null,null,null,null,null,null,null,null,null,null,null,null,null,null,null,null,null,null,null,null,null,null,null,null,null,null,null,null,null,null,null,null,null,null,null,null,null,null,null,null,null,null,null,null,null,null,null,null,null,null,null,null,null,null,null,null,null,null,null,null,null,null,null,null,null,275,-275]
[null,22371,null,1.0294221282593377,41.2,-1991,null,null,null,51.6,36,2,18238.766910623199,null,null,null,null,null,null,null,null,null,null,null,null,null,null,null,null,null,null,null,null,null,null,null,null,null,null,null,null,null,null,null,null,164,null,null,0.54153330285017531,43.8,-2216,null,null,null,47.9,26,2,6180.6216372448753,null,null,null,null,null,null,null,null,null,null,null,null,null,null,null,null,null,null,null,null,null,null,null,null,null,null,null,null,null,null,null,null,null,null,null,null,null,null,null,null,null,null,null,null,null,null,null,null,null,null,null,null,null,null,null,null,null,null,null,null,null,null,null,null,null,null,null,null,null,null,null,null,null,null,null,null,null,144,null,null,null,null,null,null,null,null,null,null,null,null,null,null,null,null,null,null,null,null,null,null,null,null,null,null,null,null,null,null,null,null,null,null,null,null,null,null,null,null,null,null,null,null,null,null,null,null,null,null,null,null,null,null,null,null,null,null,null,null,null,null,null,null,null,null,null,null,null,null,null,null,null,null,null,null,null,null,null,null,null,null,null,null,null,null,null,null,null,null,null,null,null,null,null,5279,-5279]
[null,182072,null,0.67399410206427746,40.799999999999997,-1702,null,null,null,55.3,658,28,6918.5691093321384,null,null,null,null,null,null,null,null,null,null,null,null,null,null,null,null,null,null,null,null,null,null,null,null,null,null,null,null,null,null,null,null,82,null,null,0.7303522104192719,47.8,-2203,null,null,null,52.7,650,28,8494.8203634345955,null,null,null,null,null,null,null,null,null,null,null,null,null,null,null,null,null,null,null,null,null,null,null,null,null,null,null,null,null,null,null,null,null,null,null,null,null,null,null,null,null,null,null,null,null,null,null,null,null,null,null,null,null,null,null,null,null,null,null,null,null,null,null,null,null,null,null,null,null,null,null,null,null,null,null,null,null,178,null,null,null,null,null,null,null,null,null,null,null,null,null,null,null,null,null,null,null,null,null,null,null,null,null,null,null,null,null,null,null,null,null,null,null,null,null,null,null,null,null,null,null,null,null,null,null,null,null,null,null,null,null,null,null,null,null,null,null,null,null,null,null,null,null,null,null,null,null,null,null,null,null,null,null,null,null,null,null,null,null,null,null,null,null,null,null,null,null,null,null,null,null,null,null,100000,-100000]
[null,2802,null,2.6355311355311355,23,249,null,null,null,81,1259,63,8118.4397163120575,null,null,null,null,null,null,null,null,null,null,null,null,null,null,null,null,null,null,null,null,null,null,null,null,null,null,null,null,null,null,null,null,96,null,null,1.1866295264623956,22.1,-364,null,null,null,80.7,871,41,7705.5456171735241,null,null,null,null,null,null,null,null,null,null,null,null,null,null,null,null,null,null,null,null,null,null,null,null,null,null,null,null,null,null,null,null,null,null,null,null,null,null,null,null,null,null,null,null,null,null,null,null,null,null,null,null,null,null,null,null,null,null,null,null,null,null,null,null,null,null,null,null,null,null,null,null,null,null,null,null,null,44,null,null,null,null,null,null,null,null,null,null,null,null,null,null,null,null,null,null,null,null,null,null,null,null,null,null,null,null,null,null,null,null,null,null,null,null,null,null,null,null,null,null,null,null,null,null,null,null,null,null,null,null,null,null,null,null,null,null,null,null,null,null,null,null,null,null,null,null,null,null,null,null,null,null,null,null,null,null,null,null,null,null,null,null,null,null,null,null,null,null,null,null,null,null,null,100,-100]
[null,38125,null,84.565789473684205,28.9,-1198,null,null,null,74.599999999999994,68,4,5235.2722542278389,null,null,null,null,null,null,null,null,null,null,null,null,null,null,null,null,null,null,null,null,null,null,null,null,null,null,null,null,null,null,null,null,106,null,null,48.029411764705884,29.4,-1384,null,null,null,73.5,5,0,5793.0198228595527,null,null,null,null,null,null,null,null,null,null,null,null,null,null,null,null,null,null,null,null,null,null,null,null,null,null,null,null,null,null,null,null,null,null,null,null,null,null,null,null,null,null,null,null,null,null,null,null,null,null,null,null,null,null,null,null,null,null,null,null,null,null,null,null,null,null,null,null,null,null,null,null,null,null,null,null,null,122,null,null,null,null,null,null,null,null,null,null,null,null,null,null,null,null,null,null,null,null,null,null,null,null,null,null,null,null,null,null,null,null,null,null,null,null,null,null,null,null,null,null,null,null,null,null,null,null,null,null,null,null,null,null,null,null,null,null,null,null,null,null,null,null,null,null,null,null,null,null,null,null,null,null,null,null,null,null,null,null,null,null,null,null,null,null,null,null,null,null,null,null,null,null,null,7,-7]
[null,6642,null,0.6777745580991017,61.8,-2969,null,null,null,41.5,70,4,5924.6363354998457,null,null,null,null,null,null,null,null,null,null,null,null,null,null,null,null,null,null,null,null,null,null,null,null,null,null,null,null,null,null,null,null,112,null,null,0.6526924466931695,60.5,-3018,null,null,null,41.1,32,2,6180.0998034175109,null,null,null,null,null,null,null,null,null,null,null,null,null,null,null,null,null,null,null,null,null,null,null,null,null,null,null,null,null,null,null,null,null,null,null,null,null,null,null,null,null,null,null,null,null,null,null,null,null,null,null,null,null,null,null,null,null,null,null,null,null,null,null,null,null,null,null,null,null,null,null,null,null,null,null,null,null,160,null,null,null,null,null,null,null,null,null,null,null,null,null,null,null,null,null,null,null,null,null,null,null,null,null,null,null,null,null,null,null,null,null,null,null,null,null,null,null,null,null,null,null,null,null,null,null,null,null,null,null,null,null,null,null,null,null,null,null,null,null,null,null,null,null,null,null,null,null,null,null,null,null,null,null,null,null,null,null,null,null,null,null,null,null,null,null,null,null,null,null,null,null,null,null,3191,-3191]
[null,13361,null,0.36940509915014164,34.799999999999997,-1387,null,null,null,62.5,247,16,5547.5874280655153,null,null,null,null,null,null,null,null,null,null,null,null,null,null,null,null,null,null,null,null,null,null,null,null,null,null,null,null,null,null,null,null,271,null,null,0.75575073191133413,34.799999999999997,-1418,null,null,null,60.4,255,16,5775.4268745360059,null,null,null,null,null,null,null,null,null,null,null,null,null,null,null,null,null,null,null,null,null,null,null,null,null,null,null,null,null,null,null,null,null,null,null,null,null,null,null,null,null,null,null,null,null,null,null,null,null,null,null,null,null,null,null,null,null,null,null,null,null,null,null,null,null,null,null,null,null,null,null,null,null,null,null,null,null,74,null,null,null,null,null,null,null,null,null,null,null,null,null,null,null,null,null,null,null,null,null,null,null,null,null,null,null,null,null,null,null,null,null,null,null,null,null,null,null,null,null,null,null,null,null,null,null,null,null,null,null,null,null,null,null,null,null,null,null,null,null,null,null,null,null,null,null,null,null,null,null,null,null,null,null,null,null,null,null,null,null,null,null,null,null,null,null,null,null,null,null,null,null,null,null,1605,-1605]
[null,5105,null,0.67797619047619051,27.5,-1165,null,null,null,58.7,329,19,6000.7624857033934,null,null,null,null,null,null,null,null,null,null,null,null,null,null,null,null,null,null,null,null,null,null,null,null,null,null,null,null,null,null,null,null,208,null,null,3.1339031339031341E-2,26.7,-1294,null,null,null,56.8,118,7,6471.0088906068804,null,null,null,null,null,null,null,null,null,null,null,null,null,null,null,null,null,null,null,null,null,null,null,null,null,null,null,null,null,null,null,null,null,null,null,null,null,null,null,null,null,null,null,null,null,null,null,null,null,null,null,null,null,null,null,null,null,null,null,null,null,null,null,null,null,null,null,null,null,null,null,null,null,null,null,null,null,70,null,null,null,null,null,null,null,null,null,null,null,null,null,null,null,null,null,null,null,null,null,null,null,null,null,null,null,null,null,null,null,null,null,null,null,null,null,null,null,null,null,null,null,null,null,null,null,null,null,null,670,null,null,null,null,null,null,null,null,null,null,null,null,null,null,null,null,null,null,null,null,null,null,null,null,null,null,null,null,null,null,null,null,null,null,null,null,null,null,null,null,null,null,null,null,1550,-1550]
[null,2945,null,3.2705882352941176,33,-1791,null,null,null,58.5,557,24,7749.5764147746531,null,null,null,null,null,null,null,null,null,null,null,null,null,null,null,null,null,null,null,null,null,null,null,null,null,null,null,null,null,null,null,null,1,null,null,2.533724340175953,29.4,-1596,null,null,null,63.9,436,19,8347.1186440677957,null,null,null,null,null,null,null,null,null,null,null,null,null,null,null,null,null,null,null,null,null,null,null,null,null,null,null,null,null,null,null,null,null,null,null,null,null,null,null,null,null,null,null,null,null,null,null,null,null,null,null,null,null,null,null,null,null,null,null,null,null,null,null,null,null,null,null,null,null,null,null,null,null,null,null,null,null,36,null,null,null,null,null,null,null,null,null,null,null,null,null,null,null,null,null,null,null,null,null,null,null,null,null,null,null,null,null,null,null,null,null,null,null,null,null,null,null,null,null,null,null,null,null,null,null,null,null,null,null,null,null,null,null,null,null,null,null,null,null,null,null,null,null,null,null,null,null,null,null,null,null,null,null,null,null,null,null,null,null,null,null,null,null,null,null,null,null,null,null,null,null,null,null,1016,-1016]
[null,1279,null,1.1581450653983354,41.5,-2985,null,null,null,11.8,355,13,15506.955177743432,null,null,null,null,null,null,null,null,null,null,null,null,null,null,null,null,null,null,null,null,null,null,null,null,null,null,null,null,null,null,null,null,31,null,null,2.2870544090056284,37.1,-2817,null,null,null,23.3,395,13,10681.712062256809,null,null,null,null,null,null,null,null,null,null,null,null,null,null,null,null,null,null,null,null,null,null,null,null,null,null,null,null,null,null,null,null,null,null,null,null,null,null,null,null,null,null,null,null,null,null,null,null,null,null,null,null,null,null,null,null,null,null,null,null,null,null,null,null,null,null,null,null,null,null,null,null,null,null,null,null,null,2,null,null,null,null,null,null,null,null,null,null,null,null,null,null,null,null,null,null,null,null,null,null,null,null,null,null,null,null,null,null,null,null,null,null,null,null,null,null,null,null,null,null,null,null,null,null,null,null,null,null,null,null,null,null,null,null,null,null,null,null,null,null,null,null,null,null,null,null,null,null,null,null,null,null,null,null,null,null,null,null,null,null,null,null,null,null,null,null,null,null,null,null,null,null,null,563,-563]
[null,3594,null,0.69360465116279069,54.1,-1532,null,null,null,57.3,1288,74,9337.0402053036778,null,null,null,null,null,null,null,null,null,null,null,null,null,null,null,null,null,null,null,null,null,null,null,null,null,null,null,null,null,null,null,null,248,null,null,-0.13711790393013101,60.4,-2201,null,null,null,51.9,957,52,6768.2824320537966,null,null,null,null,null,null,null,null,null,null,null,null,null,null,null,null,null,null,null,null,null,null,null,null,null,null,null,null,null,null,null,null,null,null,null,null,null,null,null,null,null,null,null,null,null,null,null,null,null,null,null,null,null,null,null,null,null,null,null,null,null,null,null,null,null,null,null,null,null,null,null,null,null,null,null,null,null,126,null,null,null,null,null,null,null,null,null,null,null,null,null,null,null,null,null,null,null,null,null,null,null,null,null,null,null,null,null,null,null,null,null,null,null,null,null,null,null,null,null,null,null,null,null,null,null,null,null,null,null,null,null,null,null,null,null,null,null,null,null,null,null,null,null,null,null,null,null,null,null,null,null,null,null,null,null,null,null,null,null,null,null,null,null,null,null,null,null,null,null,null,null,null,null,881,-881]
[null,7524,null,3.302065404475043,48.8,-2436,null,null,null,55.6,317,15,7268.6269292176694,null,null,null,null,null,null,null,null,null,null,null,null,null,null,null,null,null,null,null,null,null,null,null,null,null,null,null,null,null,null,null,null,46,null,null,2.7349019607843137,55.9,-2945,null,null,null,55.9,454,21,7904.7935201168502,null,null,null,null,null,null,null,null,null,null,null,null,null,null,null,null,null,null,null,null,null,null,null,null,null,null,null,null,null,null,null,null,null,null,null,null,null,null,null,null,null,null,null,null,null,null,null,null,null,null,null,null,null,null,null,null,null,null,null,null,null,null,null,null,null,null,null,null,null,null,null,null,null,null,null,null,null,63,null,null,null,null,null,null,null,null,null,null,null,null,null,null,null,null,null,null,null,null,null,null,null,null,null,null,null,null,null,null,null,null,null,null,null,null,null,null,null,null,null,null,null,null,null,null,null,null,null,null,null,null,null,null,null,null,null,null,null,null,null,null,null,null,null,null,null,null,null,null,null,null,null,null,null,null,null,null,null,null,null,null,null,null,null,null,null,null,null,null,null,null,null,null,null,883,-883]
[null,15463,null,1.0361033302209772,37.700000000000003,-1355,null,null,null,64.099999999999994,876,43,11472.935926043991,null,null,null,null,null,null,null,null,null,null,null,null,null,null,null,null,null,null,null,null,null,null,null,null,null,null,null,null,null,null,null,null,151,null,null,0.30841671571512652,37.1,-1657,null,null,null,66.599999999999994,618,30,7636.1055551971094,null,null,null,null,null,null,null,null,null,null,null,null,null,null,null,null,null,null,null,null,null,null,null,null,null,null,null,null,null,null,null,null,null,null,null,null,null,null,null,null,null,null,null,null,null,null,null,null,null,null,null,null,null,null,null,null,null,null,null,null,null,null,null,null,null,null,null,null,null,null,null,null,null,null,null,null,null,267,null,null,null,null,null,null,null,null,null,null,null,null,null,null,null,null,null,null,null,null,null,null,null,null,null,null,null,null,null,null,null,null,null,null,null,null,null,null,null,null,null,null,null,null,null,null,null,null,null,null,null,null,null,null,null,null,null,null,null,null,null,null,null,null,null,null,null,null,null,null,null,null,null,null,null,null,null,null,null,null,null,null,null,null,null,null,null,null,null,null,null,null,null,null,null,4040,-4040]
[null,3193,null,0.71682626538987693,62.3,-3858,null,null,null,40.4,435,17,8386.8436934218462,null,null,null,null,null,null,null,null,null,null,null,null,null,null,null,null,null,null,null,null,null,null,null,null,null,null,null,null,null,null,null,null,125,null,null,0.79618768328445744,74.3,-5049,null,null,null,35.4,508,17,10812.307692307693,null,null,null,null,null,null,null,null,null,null,null,null,null,null,null,null,null,null,null,null,null,null,null,null,null,null,null,null,null,null,null,null,null,null,null,null,null,null,null,null,null,null,null,null,null,null,null,null,null,null,null,null,null,null,null,null,null,null,null,null,null,null,null,null,null,null,null,null,null,null,null,null,null,null,null,null,null,4,null,null,null,null,null,null,null,null,null,null,null,null,null,null,null,null,null,null,null,null,null,null,null,null,null,null,null,null,null,null,null,null,null,null,null,null,null,null,null,null,null,null,null,null,null,null,null,null,null,null,null,null,null,null,null,null,null,null,null,null,null,null,null,null,null,null,null,null,null,null,null,null,null,null,null,null,null,null,null,null,null,null,null,null,null,null,null,null,null,null,null,null,null,null,null,1411,-1411]
[null,66321,null,1.4202747166657963,38.6,-1869,null,null,null,64.599999999999994,296,13,7527.7327063810053,null,null,null,null,null,null,null,null,null,null,null,null,null,null,null,null,null,null,null,null,null,null,null,null,null,null,null,null,null,null,null,null,60,null,null,0.95930419843229897,43.4,-2561,null,null,null,61.1,301,12,8840.3366859730577,null,null,null,null,null,null,null,null,null,null,null,null,null,null,null,null,null,null,null,null,null,null,null,null,null,null,null,null,null,null,null,null,null,null,null,null,null,null,null,null,null,null,null,null,null,null,null,null,null,null,null,null,null,null,null,null,null,null,null,null,null,null,null,null,null,null,null,null,null,null,null,null,null,null,null,null,null,152,null,null,null,null,null,null,null,null,null,null,null,null,null,null,null,null,null,null,null,null,null,null,null,null,null,null,null,null,null,null,null,null,null,null,null,null,null,null,null,null,null,null,null,null,null,null,null,null,null,null,null,null,null,null,null,null,null,null,null,null,null,null,null,null,null,null,null,null,null,null,null,null,null,null,null,null,null,null,null,null,null,null,null,null,null,null,null,null,null,null,null,null,null,null,null,18241,-18241]
[null,21129,null,0.46048032472657574,39,-1135,null,null,null,71.099999999999994,280,16,5656.645419084768,null,null,null,null,null,null,null,null,null,null,null,null,null,null,null,null,null,null,null,null,null,null,null,null,null,null,null,null,null,null,null,null,205,null,null,0.40052115266707539,41.9,-1448,null,null,null,67.8,365,20,6591.299829964104,null,null,null,null,null,null,null,null,null,null,null,null,null,null,null,null,null,null,null,null,null,null,null,null,null,null,null,null,null,null,null,null,null,null,null,null,null,null,null,null,null,null,null,null,null,null,null,null,null,null,null,null,null,null,null,null,null,null,null,null,null,null,null,null,null,null,null,null,null,null,null,null,null,null,null,null,null,103,null,null,null,null,null,null,null,null,null,null,null,null,null,null,null,null,null,null,null,null,null,null,null,null,null,null,null,null,null,null,null,null,null,null,null,null,null,null,null,null,null,null,null,null,null,null,null,null,null,null,null,null,null,null,null,null,null,null,null,null,null,null,null,null,null,null,null,null,null,null,null,null,null,null,null,null,null,null,null,null,null,null,null,null,null,null,null,null,null,null,null,null,null,null,null,8869,-8869]
[null,2379,null,null,10,3047,null,null,null,89.4,3218,125,102791.13664341404,null,null,null,null,null,null,null,null,null,null,null,null,null,null,null,null,null,null,null,null,null,null,null,null,null,null,null,null,null,null,null,null,224,null,null,null,9.8000000000000007,2841,null,null,null,89.4,3147,120,9590.6650144568357,null,null,null,null,null,null,null,null,null,null,null,null,null,null,null,null,null,null,null,null,null,null,null,null,null,null,null,null,null,null,null,null,null,null,null,null,null,null,null,null,null,null,null,null,null,null,null,null,null,null,null,null,null,null,null,null,null,null,null,null,null,null,null,null,null,null,null,null,null,null,null,null,null,null,null,null,null,81,null,null,null,null,null,null,null,null,null,null,null,null,null,null,null,null,null,null,null,null,null,null,null,null,null,null,null,null,null,null,null,null,null,null,null,null,null,null,null,null,null,null,null,null,null,null,null,null,null,null,null,null,null,null,null,null,null,null,null,null,null,null,null,null,null,null,null,null,null,null,null,null,null,null,null,null,null,null,null,null,null,null,null,null,null,null,null,null,null,null,null,null,null,null,null,0,0]
[null,208098,null,1.3646302002088464,84.7,-4061,null,null,null,43.6,631,34,9758.9322220087579,null,null,null,null,null,null,null,null,null,null,null,null,null,null,null,null,null,null,null,null,null,null,null,null,null,null,null,null,null,null,null,null,79,null,null,1.7657790818239978,89.3,-4418,null,null,null,41.6,557,30,6767.8411393391525,null,null,null,null,null,null,null,null,null,null,null,null,null,null,null,null,null,null,null,null,null,null,null,null,null,null,null,null,null,null,null,null,null,null,null,null,null,null,null,null,null,null,null,null,null,null,null,null,null,null,null,null,null,null,null,null,null,null,null,null,null,null,null,null,null,null,null,null,null,null,null,null,null,null,null,null,null,52,null,null,null,null,null,null,null,null,null,null,null,null,null,null,null,null,null,null,null,null,null,null,null,null,null,null,null,null,null,null,null,null,null,null,null,null,null,null,null,null,null,null,null,null,null,null,null,null,null,null,null,null,null,null,null,null,null,null,null,null,null,null,null,null,null,null,null,null,null,null,null,null,null,null,null,null,null,null,null,null,null,null,null,null,null,null,null,null,null,null,null,null,null,null,null,50747,-50747]
[null,22107,null,0.90681091713793949,42.9,-2200,null,null,null,57.8,230,13,6678.1827833318584,null,null,null,null,null,null,null,null,null,null,null,null,null,null,null,null,null,null,null,null,null,null,null,null,null,null,null,null,null,null,null,null,134,null,null,0.15379143548157634,44,-2471,null,null,null,65,127,5,9652.1038495971352,null,null,null,null,null,null,null,null,null,null,null,null,null,null,null,null,null,null,null,null,null,null,null,null,null,null,null,null,null,null,null,null,null,null,null,null,null,null,null,null,null,null,null,null,null,null,null,null,null,null,null,null,null,null,null,null,null,null,null,null,null,null,null,null,null,null,null,null,null,null,null,null,null,null,null,null,null,290,null,null,null,null,null,null,null,null,null,null,null,null,null,null,null,null,null,null,null,null,null,null,null,null,null,null,null,null,null,null,null,null,null,null,null,null,null,null,null,null,null,null,null,null,null,null,null,null,null,null,null,null,null,null,null,null,null,null,null,null,null,null,null,null,null,null,null,null,null,null,null,null,null,null,null,null,null,null,null,null,null,null,null,null,null,null,null,null,null,null,null,null,null,null,null,7226,-7226]
[null,2330,null,2.1578947368421053,29.3,-1756,null,null,null,56.7,87,4,7600.5099872503188,null,null,null,null,null,null,null,null,null,null,null,null,null,null,null,null,null,null,null,null,null,null,null,null,null,null,null,null,null,null,null,null,127,null,null,1.2795180722891566,44.4,-2510,null,null,null,46.8,198,8,8779.6901893287431,null,null,null,null,null,null,null,null,null,null,null,null,null,null,null,null,null,null,null,null,null,null,null,null,null,null,null,null,null,null,null,null,null,null,null,null,null,null,null,null,null,null,null,null,null,null,null,null,null,null,null,null,null,null,null,null,null,null,null,null,null,null,null,null,null,null,null,null,null,null,null,null,null,null,null,null,null,293,null,null,null,null,null,null,null,null,null,null,null,null,null,null,null,null,null,null,null,null,null,null,null,null,null,null,null,null,null,null,null,null,null,null,null,null,null,null,null,null,null,null,null,null,null,null,null,null,null,null,null,null,null,null,null,null,null,null,null,null,null,null,null,null,null,null,null,null,null,null,null,null,null,null,null,null,null,null,null,null,null,null,null,null,null,null,null,null,null,null,null,null,null,null,null,255,-255]
[null,2288,null,0.82603550295857986,17.600000000000001,-610,null,null,null,73.599999999999994,298,14,7830.5439330543932,null,null,null,null,null,null,null,null,null,null,null,null,null,null,null,null,null,null,null,null,null,null,null,null,null,null,null,null,null,null,null,null,148,null,null,1.029126213592233,19.5,-865,null,null,null,70.8,357,15,8399.05498281787,null,null,null,null,null,null,null,null,null,null,null,null,null,null,null,null,null,null,null,null,null,null,null,null,null,null,null,null,null,null,null,null,null,null,null,null,null,null,null,null,null,null,null,null,null,null,null,null,null,null,null,null,null,null,null,null,null,null,null,null,null,null,null,null,null,null,null,null,null,null,null,null,null,null,null,null,null,251,null,null,null,null,null,null,null,null,null,null,null,null,null,null,null,null,null,null,null,null,null,null,null,null,null,null,null,null,null,null,null,null,null,null,null,null,null,null,null,null,null,null,null,null,null,null,null,null,null,null,null,null,null,null,null,null,null,null,null,null,null,null,null,null,null,null,null,null,null,null,null,null,null,null,null,null,null,null,null,null,null,null,null,null,null,null,null,null,null,null,null,null,null,null,null,804,-804]
[null,4473,null,0.57794676806083645,65.7,-3256,null,null,null,42,177,10,6179.1010723248919,null,null,null,null,null,null,null,null,null,null,null,null,null,null,null,null,null,null,null,null,null,null,null,null,null,null,null,null,null,null,null,null,203,null,null,0.53023663453111303,67.400000000000006,-3574,null,null,null,39.200000000000003,112,6,6622.7180527383371,null,null,null,null,null,null,null,null,null,null,null,null,null,null,null,null,null,null,null,null,null,null,null,null,null,null,null,null,null,null,null,null,null,null,null,null,null,null,null,null,null,null,null,null,null,null,null,null,null,null,null,null,null,null,null,null,null,null,null,null,null,null,null,null,null,null,null,null,null,null,null,null,null,null,null,null,null,233,null,null,null,null,null,null,null,null,null,null,null,null,null,null,null,null,null,null,null,null,null,null,null,null,null,null,null,null,null,null,null,null,null,null,null,null,null,null,null,null,null,null,null,null,null,null,null,null,null,null,null,null,null,null,null,null,null,null,null,null,null,null,null,null,null,null,null,null,null,null,null,null,null,null,null,null,null,null,null,null,null,null,null,null,null,null,null,null,null,null,null,null,null,null,null,1863,-1863]
[null,3332,null,0.38646482635796975,42.4,-2327,null,null,null,45,73,4,6656.6813509544791,null,null,null,null,null,null,null,null,null,null,null,null,null,null,null,null,null,null,null,null,null,null,null,null,null,null,null,null,null,null,null,null,250,null,null,-0.63577586206896552,54.6,-3035,null,null,null,34.299999999999997,141,7,7175.9314015375521,null,null,null,null,null,null,null,null,null,null,null,null,null,null,null,null,null,null,null,null,null,null,null,null,null,null,null,null,null,null,null,null,null,null,null,null,null,null,null,null,null,null,null,null,null,null,null,null,null,null,null,null,null,null,null,null,null,null,null,null,null,null,null,null,null,null,null,null,null,null,null,null,null,null,null,null,null,226,null,null,null,null,null,null,null,null,null,null,null,null,null,null,null,null,null,null,null,null,null,null,null,null,null,null,null,null,null,null,null,null,null,null,null,null,null,null,null,null,null,null,null,null,null,null,null,null,520,null,470,null,null,null,null,null,null,null,null,null,null,null,null,null,null,null,null,null,null,null,null,null,null,null,null,null,null,null,null,null,null,null,null,null,null,null,null,null,null,null,null,null,null,null,null,989,-989]
[null,3874,null,1.453781512605042,25,-1052,null,null,null,69.5,228,14,5891.4689550731955,null,null,null,null,null,null,null,null,null,null,null,null,null,null,null,null,null,null,null,null,null,null,null,null,null,null,null,null,null,null,null,null,206,null,null,-0.73693379790940772,28.9,-1317,null,null,null,64.3,254,15,6250.1272264631043,null,null,null,null,null,null,null,null,null,null,null,null,null,null,null,null,null,null,null,null,null,null,null,null,null,null,null,null,null,null,null,null,null,null,null,null,null,null,null,null,null,null,null,null,null,null,null,null,null,null,null,null,null,null,null,null,null,null,null,null,null,null,null,null,null,null,null,null,null,null,null,null,null,null,null,null,null,252,null,null,null,null,null,null,null,null,null,null,null,null,null,null,null,null,null,null,null,null,null,null,null,null,null,null,null,null,null,null,null,null,null,null,null,null,null,null,null,null,null,null,null,null,null,null,null,null,null,null,null,null,null,null,null,null,null,null,null,null,null,null,null,null,null,null,null,null,null,null,null,null,null,null,null,null,null,null,null,null,null,null,null,null,null,null,null,null,null,null,null,null,null,null,null,493,-493]
[null,28929,null,0.98578888793767661,59.4,-2631,null,null,null,44.6,198,13,5580.3855708337715,null,null,null,null,null,null,null,null,null,null,null,null,null,null,null,null,null,null,null,null,null,null,null,null,null,null,null,null,null,null,null,null,104,null,null,0.49114031369224248,60.5,-2795,null,null,null,42.5,191,12,5726.0584501639114,null,null,null,null,null,null,null,null,null,null,null,null,null,null,null,null,null,null,null,null,null,null,null,null,null,null,null,null,null,null,null,null,null,null,null,null,null,null,null,null,null,null,null,null,null,null,null,null,null,null,null,null,null,null,null,null,null,null,null,null,null,null,null,null,null,null,null,null,null,null,null,null,null,null,null,null,null,209,null,null,null,null,null,null,null,null,null,null,null,null,null,null,null,null,null,null,null,null,null,null,null,null,null,null,null,null,null,null,null,null,null,null,null,null,null,null,null,null,null,null,null,null,null,null,null,null,null,null,null,null,null,null,null,null,null,null,null,null,null,null,null,null,null,null,null,null,null,null,null,null,null,null,null,null,null,null,null,null,null,null,null,null,null,null,null,null,null,null,null,null,null,null,null,9896,-9896]
[null,6895,null,0.52543320290665174,60.7,-3475,null,null,null,52,66,3,8203.5385704175515,null,null,null,null,null,null,null,null,null,null,null,null,null,null,null,null,null,null,null,null,null,null,null,null,null,null,null,null,null,null,null,null,254,null,null,0.57527539779681758,50.5,-3885,null,null,null,47.6,432,13,11755.641799626275,null,null,null,null,null,null,null,null,null,null,null,null,null,null,null,null,null,null,null,null,null,null,null,null,null,null,null,null,null,null,null,null,null,null,null,null,null,null,null,null,null,null,null,null,null,null,null,null,null,null,null,null,null,null,null,null,null,null,null,null,null,null,null,null,null,null,null,null,null,null,null,null,null,null,null,null,null,183,null,null,null,null,null,null,null,null,null,null,null,null,null,null,null,null,null,null,null,null,null,null,null,null,null,null,null,null,null,null,null,null,null,null,null,null,null,null,null,null,null,null,null,null,null,null,null,null,null,null,null,null,null,null,null,null,null,null,null,null,null,null,null,null,null,null,null,null,null,null,null,null,null,null,null,null,null,null,null,null,null,null,null,null,null,null,null,null,null,null,null,null,null,null,null,1407,-1407]
[null,3171,null,-0.53429951690821254,45.7,-2029,null,null,null,53.7,398,23,6445.6859093730609,null,null,null,null,null,null,null,null,null,null,null,null,null,null,null,null,null,null,null,null,null,null,null,null,null,null,null,null,null,null,null,null,315,null,null,-0.96373626373626375,56.4,-2690,null,null,null,43.7,217,12,6640.5616224648984,null,null,null,null,null,null,null,null,null,null,null,null,null,null,null,null,null,null,null,null,null,null,null,null,null,null,null,null,null,null,null,null,null,null,null,null,null,null,null,null,null,null,null,null,null,null,null,null,null,null,null,null,null,null,null,null,null,null,null,null,null,null,null,null,null,null,null,null,null,null,null,null,null,null,null,null,null,263,null,null,null,null,null,null,null,null,null,null,null,null,null,null,null,null,null,null,null,null,null,null,null,null,null,null,null,null,null,null,null,null,null,null,null,null,null,null,null,null,null,null,null,null,null,null,null,null,null,420,415,null,null,null,null,null,null,null,null,null,null,null,null,null,null,null,null,null,null,null,null,null,null,null,null,null,null,null,null,null,null,null,null,null,null,null,null,null,null,null,null,null,null,null,null,902,-902]
[null,3435,null,6.1932203389830507,55.3,-3122,null,null,null,42.3,957,45,7721.3773314203736,null,null,null,null,null,null,null,null,null,null,null,null,null,null,null,null,null,null,null,null,null,null,null,null,null,null,null,null,null,null,null,null,4,null,null,0.22385479688850476,58.1,-2697,null,null,null,41.9,1155,53,7906.7966733581879,null,null,null,null,null,null,null,null,null,null,null,null,null,null,null,null,null,null,null,null,null,null,null,null,null,null,null,null,null,null,null,null,null,null,null,null,null,null,null,null,null,null,null,null,null,null,null,null,null,null,null,null,null,null,null,null,null,null,null,null,null,null,null,null,null,null,null,null,null,null,null,null,null,null,null,null,null,146,null,null,null,null,null,null,null,null,null,null,null,null,null,null,null,null,null,null,null,null,null,null,null,null,null,null,null,null,null,null,null,null,null,null,null,null,null,null,null,null,null,null,null,null,null,null,null,null,null,null,null,null,null,null,null,null,null,null,null,null,null,null,null,null,null,null,null,null,null,null,null,null,null,null,null,null,null,null,null,null,null,null,null,null,null,null,null,null,null,null,null,null,null,null,null,375,-375]
[null,7280,null,3.3810408921933086,27.3,-481,null,null,null,73.400000000000006,812,41,7241.6476586609424,null,null,null,null,null,null,null,null,null,null,null,null,null,null,null,null,null,null,null,null,null,null,null,null,null,null,null,null,null,null,null,null,177,null,null,1.8004535147392291,28.2,-757,null,null,null,71,603,29,7519.5016251354282,null,null,null,null,null,null,null,null,null,null,null,null,null,null,null,null,null,null,null,null,null,null,null,null,null,null,null,null,null,null,null,null,null,null,null,null,null,null,null,null,null,null,null,null,null,null,null,null,null,null,null,null,null,null,null,null,null,null,null,null,null,null,null,null,null,null,null,null,null,null,null,null,null,null,null,null,null,101,null,null,null,null,null,null,null,null,null,null,null,null,null,null,null,null,null,null,null,null,null,null,null,null,null,null,null,null,null,null,null,null,null,null,null,null,null,null,null,null,null,null,null,null,null,null,null,null,null,null,null,null,null,null,null,null,null,null,null,null,null,null,null,null,null,null,null,null,null,null,null,null,null,null,null,null,null,null,null,null,null,null,null,null,null,null,null,null,null,null,null,null,null,null,null,444,-444]
[null,6691,null,4.3023952095808387,22.5,-1124,null,null,null,63,163,7,8426.3680854219183,null,null,null,null,null,null,null,null,null,null,null,null,null,null,null,null,null,null,null,null,null,null,null,null,null,null,null,null,null,null,null,null,196,null,null,1.7551440329218106,23.7,-1491,null,null,null,59.2,58,2,8822.3053892215557,null,null,null,null,null,null,null,null,null,null,null,null,null,null,null,null,null,null,null,null,null,null,null,null,null,null,null,null,null,null,null,null,null,null,null,null,null,null,null,null,null,null,null,null,null,null,null,null,null,null,null,null,null,null,null,null,null,null,null,null,null,null,null,null,null,null,null,null,null,null,null,null,null,null,null,null,null,247,null,null,null,null,null,null,null,null,null,null,null,null,null,null,null,null,null,null,null,null,null,null,null,null,null,null,null,null,null,null,null,null,null,null,null,null,null,null,null,null,null,null,null,null,null,null,null,null,null,null,null,null,null,null,null,null,null,null,null,null,null,null,null,null,null,null,null,null,null,null,null,null,null,null,null,null,null,null,null,null,null,null,null,null,null,null,null,null,null,null,null,null,null,null,null,293,-293]
[null,4482,null,9.6083743842364537,12.4,2258,null,null,null,84.7,2784,137,7424.9462365591398,null,null,null,null,null,null,null,null,null,null,null,null,null,null,null,null,null,null,null,null,null,null,null,null,null,null,null,null,null,null,null,null,11,null,null,15.932203389830509,12.1,2605,null,null,null,83.8,3203,133,8816.9446883230903,null,null,null,null,null,null,null,null,null,null,null,null,null,null,null,null,null,null,null,null,null,null,null,null,null,null,null,null,null,null,null,null,null,null,null,null,null,null,null,null,null,null,null,null,null,null,null,null,null,null,null,null,null,null,null,null,null,null,null,null,null,null,null,null,null,null,null,null,null,null,null,null,null,null,null,null,null,80,null,null,null,null,null,null,null,null,null,null,null,null,null,null,null,null,null,null,null,null,null,null,null,null,null,null,null,null,null,null,null,null,null,null,null,null,null,null,null,null,null,null,null,null,null,null,null,null,null,null,null,null,null,null,null,null,null,null,null,null,null,null,null,null,null,null,null,null,null,null,null,null,null,null,null,null,null,null,null,null,null,null,null,null,null,null,null,null,null,null,null,null,null,null,null,391,-391]
[null,14748,null,0.85022466300549171,63.4,-3754,null,null,null,18.8,144,7,7029.7911117341928,null,null,null,null,null,null,null,null,null,null,null,null,null,null,null,null,null,null,null,null,null,null,null,null,null,null,null,null,null,null,null,null,132,null,null,0.56518518518518523,65.099999999999994,-3980,null,null,null,17.100000000000001,40,2,7292.0938553636552,null,null,null,null,null,null,null,null,null,null,null,null,null,null,null,null,null,null,null,null,null,null,null,null,null,null,null,null,null,null,null,null,null,null,null,null,null,null,null,null,null,null,null,null,null,null,null,null,null,null,null,null,null,null,null,null,null,null,null,null,null,null,null,null,null,null,null,null,null,null,null,null,null,null,null,null,null,161,null,null,null,null,null,null,null,null,null,null,null,null,null,null,null,null,null,null,null,null,null,null,null,null,null,null,null,null,null,null,null,null,null,null,null,null,null,null,null,null,null,null,null,null,null,null,null,null,null,null,null,null,null,null,null,null,null,null,null,null,null,null,null,null,null,null,null,null,null,null,null,null,null,null,null,null,null,null,null,null,null,null,null,null,null,null,null,null,null,null,null,null,null,null,null,5001,-5001]
[null,31743,null,1.5044929396662388,49.7,-2009,null,null,null,55.9,495,30,5955.1418783530471,null,null,null,null,null,null,null,null,null,null,null,null,null,null,null,null,null,null,null,null,null,null,null,null,null,null,null,null,null,null,null,null,56,null,null,0.6897838066977533,59.6,-2590,null,null,null,49.3,429,24,6531.2073615738536,null,null,null,null,null,null,null,null,null,null,null,null,null,null,null,null,null,null,null,null,null,null,null,null,null,null,null,null,null,null,null,null,null,null,null,null,null,null,null,null,null,null,null,null,null,null,null,null,null,null,null,null,null,null,null,null,null,null,null,null,null,null,null,null,null,null,null,null,null,null,null,null,null,null,null,null,null,105,null,null,null,null,null,null,null,null,null,null,null,null,null,null,null,null,null,null,null,null,null,null,null,null,null,null,null,null,null,null,null,null,null,null,null,null,null,null,null,null,null,null,null,null,null,null,null,null,null,null,null,null,null,null,null,null,null,null,null,null,null,null,null,null,null,null,null,null,null,null,null,null,null,null,null,null,null,null,null,null,null,null,null,null,null,null,null,null,null,null,null,null,null,null,null,8540,-8540]
[null,2483,null,1.9140625,26.3,-946,null,null,null,66.400000000000006,493,25,7253.333333333333,null,null,null,null,null,null,null,null,null,null,null,null,null,null,null,null,null,null,null,null,null,null,null,null,null,null,null,null,null,null,null,null,255,null,null,0.5190713101160862,21.8,-1047,null,null,null,68.900000000000006,198,9,7828.2184137106415,null,null,null,null,null,null,null,null,null,null,null,null,null,null,null,null,null,null,null,null,null,null,null,null,null,null,null,null,null,null,null,null,null,null,null,null,null,null,null,null,null,null,null,null,null,null,null,null,null,null,null,null,null,null,null,null,null,null,null,null,null,null,null,null,null,null,null,null,null,null,null,null,null,null,null,null,null,168,null,null,null,null,null,null,null,null,null,null,null,null,null,null,null,null,null,null,null,null,null,null,null,null,null,null,null,null,null,null,null,null,null,null,null,null,null,null,null,null,null,null,null,null,null,null,null,null,null,null,null,null,null,null,null,null,null,null,null,null,null,null,null,null,null,null,null,null,null,null,null,null,null,null,null,null,null,null,null,null,null,null,null,null,null,null,null,null,null,null,null,null,null,null,null,71,-71]
[null,6271,null,0.5145102781136639,43.7,-2228,null,null,null,51.3,270,15,6693.2314410480358,null,null,null,null,null,null,null,null,null,null,null,null,null,null,null,null,null,null,null,null,null,null,null,null,null,null,null,null,null,null,null,null,188,null,null,2.6294277929155312,44.3,-2315,null,null,null,50.4,193,11,6559.3273613075598,null,null,null,null,null,null,null,null,null,null,null,null,null,null,null,null,null,null,null,null,null,null,null,null,null,null,null,null,null,null,null,null,null,null,null,null,null,null,null,null,null,null,null,null,null,null,null,null,null,null,null,null,null,null,null,null,null,null,null,null,null,null,null,null,null,null,null,null,null,null,null,null,null,null,null,null,null,147,null,null,null,null,null,null,null,null,null,null,null,null,null,null,null,null,null,null,null,null,null,null,null,null,null,null,null,null,null,null,null,null,null,null,null,null,null,null,null,null,null,null,null,null,null,null,null,null,500,null,500,null,null,null,null,null,null,null,null,null,null,null,null,null,null,null,null,null,null,null,null,null,null,null,null,null,null,null,null,null,null,null,null,null,null,null,null,null,null,null,null,null,null,null,null,3002,-3002]
[null,20077,null,0.15714616096207215,51.6,-2672,null,null,null,54.3,85,5,6815.5798170551789,null,null,null,null,null,null,null,null,null,null,null,null,null,null,null,null,null,null,null,null,null,null,null,null,null,null,null,null,null,null,null,null,276,null,null,0.45387755102040817,62.1,-3311,null,null,null,47.4,238,12,7358.1544534912409,null,null,null,null,null,null,null,null,null,null,null,null,null,null,null,null,null,null,null,null,null,null,null,null,null,null,null,null,null,null,null,null,null,null,null,null,null,null,null,null,null,null,null,null,null,null,null,null,null,null,null,null,null,null,null,null,null,null,null,null,null,null,null,null,null,null,null,null,null,null,null,null,null,null,null,null,null,85,null,null,null,null,null,null,null,null,null,null,null,null,null,null,null,null,null,null,null,null,null,null,null,null,null,null,null,null,null,null,null,null,null,null,null,null,null,null,null,null,null,null,null,null,null,null,null,null,null,900,null,null,null,null,null,null,null,null,null,null,null,null,null,null,null,null,null,null,null,null,null,null,null,null,null,null,null,null,null,null,null,null,null,null,null,null,null,null,null,null,null,null,null,null,null,7850,{"$f":"HX305*-1","v":-7850}]